Workbook

Sheet Empresas
F4: JANEIRO | G4: 2017 | J4: JANEIRO | M4: FEVEREIRO | P4: MARÇO | S4: ABRIL | V4: MAIO | Y4: JUNHO | AB4: JULHO | AE4: AGOSTO | AH4: SETEMBRO | AK4: OUTUBRO | AN4: NOVEMBRO | AQ4: DEZEMBRO
B5: UF | C5: Código | D5: Sindicato | E5: SIGLA | F5: ="Comparativo "&CHAR(10)&OFFSET(INDIRECT(F4,TRUE),,-3)&" / "&F4 -> Comparativo 2017 / JANEIRO | G5: Serviços Demandados | H5: Serviços Atendidos | I5: % Atendimento | J5: Serviços Demandados | K5: Serviços Atendidos | L5: % Atendimento | M5: Serviços Demandados | N5: Serviços Atendidos | O5: % Atendimento | P5: Serviços Demandados | Q5: Serviços Atendidos | R5: % Atendimento | S5: Serviços Demandados | T5: Serviços Atendidos | U5: % Atendimento | V5: Serviços Demandados | W5: Serviços Atendidos | X5: % Atendimento | Y5: Serviços Demandados | Z5: Serviços Atendidos | AA5: % Atendimento | AB5: Serviços Demandados | AC5: Serviços Atendidos | AD5: % Atendimento | AE5: Serviços Demandados | AF5: Serviços Atendidos | AG5: % Atendimento | AH5: Serviços Demandados | AI5: Serviços Atendidos | AJ5: % Atendimento | AK5: Serviços Demandados | AL5: Serviços Atendidos | AM5: % Atendimento | AN5: Serviços Demandados | AO5: Serviços Atendidos | AP5: % Atendimento | AQ5: Serviços Demandados | AR5: Serviços Atendidos | AS5: % Atendimento
B6: AM | C6: 1 | D6: EMPRESA 1 | E6: EMP1 | F6: =IF(OFFSET(INDIRECT($F$4,TRUE),ROW(D6)-4,2)>OFFSET(INDIRECT($F$4),ROW(D6)-4,-1),1,IF(OFFSET(INDIRECT($F$4,TRUE),ROW(D6)-4,2)=OFFSET(INDIRECT($F$4),ROW(D6)-4,-1),2,3)) -> 2 | G6: 10 | H6: 5 | I6: =IFERROR(H6/G6,"") -> 0.5 | J6: 10 | K6: 5 | L6: =IFERROR(K6/J6,"") -> 0.5 | M6: ="" ->  | N6: ="" ->  | O6: =IFERROR(N6/M6,"") ->  | P6: ="" ->  | Q6: ="" ->  | R6: =IFERROR(Q6/P6,"") ->  | S6: ="" ->  | T6: ="" ->  | U6: =IFERROR(T6/S6,"") ->  | V6: ="" ->  | W6: ="" ->  | X6: =IFERROR(W6/V6,"") ->  | Y6: ="" ->  | Z6: ="" ->  | AA6: =IFERROR(Z6/Y6,"") ->  | AB6: ="" ->  | AC6: ="" ->  | AD6: =IFERROR(AC6/AB6,"") ->  | AE6: ="" ->  | AF6: ="" ->  | AG6: =IFERROR(AF6/AE6,"") ->  | AH6: ="" ->  | AI6: ="" ->  | AJ6: =IFERROR(AI6/AH6,"") ->  | AK6: ="" ->  | AL6: ="" ->  | AM6: =IFERROR(AL6/AK6,"") ->  | AN6: ="" ->  | AO6: ="" ->  | AP6: =IFERROR(AO6/AN6,"") ->  | AQ6: ="" ->  | AR6: ="" ->  | AS6: =IFERROR(AR6/AQ6,"") -> 
B7: AM | C7: 2 | D7: EMPRESA 2 | E7: EMP2 | F7: 1 | G7: 6 | H7: 2 | I7: 0.3333333333 | J7: 6 | K7: 3 | L7: 0.5 | M7: ="" ->  | N7: ="" ->  | P7: ="" ->  | Q7: ="" ->  | S7: ="" ->  | T7: ="" ->  | V7: ="" ->  | W7: ="" ->  | Y7: ="" ->  | Z7: ="" ->  | AB7: ="" ->  | AC7: ="" ->  | AE7: ="" ->  | AF7: ="" ->  | AH7: ="" ->  | AI7: ="" ->  | AK7: ="" ->  | AL7: ="" ->  | AN7: ="" ->  | AO7: ="" ->  | AQ7: ="" ->  | AR7: ="" -> 
B8: AM | C8: 3 | D8: EMPRESA 3 | E8: EMP3 | F8: 1 | G8: 4 | H8: 1 | I8: 0.25 | J8: 4 | K8: 2 | L8: 0.5 | M8: ="" ->  | N8: ="" ->  | P8: ="" ->  | Q8: ="" ->  | S8: ="" ->  | T8: ="" ->  | V8: ="" ->  | W8: ="" ->  | Y8: ="" ->  | Z8: ="" ->  | AB8: ="" ->  | AC8: ="" ->  | AE8: ="" ->  | AF8: ="" ->  | AH8: ="" ->  | AI8: ="" ->  | AK8: ="" ->  | AL8: ="" ->  | AN8: ="" ->  | AO8: ="" ->  | AQ8: ="" ->  | AR8: ="" -> 
B9: BA | C9: 4 | D9: EMPRESA 4 | E9: EMP4 | F9: 2 | G9: 1 | H9: 1 | I9: 1 | J9: 1 | K9: 1 | L9: 1 | M9: ="" ->  | N9: ="" ->  | P9: ="" ->  | Q9: ="" ->  | S9: ="" ->  | T9: ="" ->  | V9: ="" ->  | W9: ="" ->  | Y9: ="" ->  | Z9: ="" ->  | AB9: ="" ->  | AC9: ="" ->  | AE9: ="" ->  | AF9: ="" ->  | AH9: ="" ->  | AI9: ="" ->  | AK9: ="" ->  | AL9: ="" ->  | AN9: ="" ->  | AO9: ="" ->  | AQ9: ="" ->  | AR9: ="" -> 
B10: BA | C10: 5 | D10: EMPRESA 5 | E10: EMP5 | F10: 1 | G10: 200 | H10: 25 | I10: 0.125 | J10: 200 | K10: 29 | L10: 0.145 | M10: ="" ->  | N10: ="" ->  | P10: ="" ->  | Q10: ="" ->  | S10: ="" ->  | T10: ="" ->  | V10: ="" ->  | W10: ="" ->  | Y10: ="" ->  | Z10: ="" ->  | AB10: ="" ->  | AC10: ="" ->  | AE10: ="" ->  | AF10: ="" ->  | AH10: ="" ->  | AI10: ="" ->  | AK10: ="" ->  | AL10: ="" ->  | AN10: ="" ->  | AO10: ="" ->  | AQ10: ="" ->  | AR10: ="" -> 
B11: BA | C11: 6 | D11: EMPRESA 6 | E11: EMP6 | F11: 2 | G11: 19 | H11: 0 | I11: 0 | J11: 19 | K11: 0 | L11: 0 | M11: ="" ->  | N11: ="" ->  | P11: ="" ->  | Q11: ="" ->  | S11: ="" ->  | T11: ="" ->  | V11: ="" ->  | W11: ="" ->  | Y11: ="" ->  | Z11: ="" ->  | AB11: ="" ->  | AC11: ="" ->  | AE11: ="" ->  | AF11: ="" ->  | AH11: ="" ->  | AI11: ="" ->  | AK11: ="" ->  | AL11: ="" ->  | AN11: ="" ->  | AO11: ="" ->  | AQ11: ="" ->  | AR11: ="" -> 
B12: BA | C12: 7 | D12: EMPRESA 7 | E12: EMP7 | F12: 1 | G12: 32 | H12: 12 | I12: 0.375 | J12: 32 | K12: 18 | L12: 0.5625 | M12: ="" ->  | N12: ="" ->  | P12: ="" ->  | Q12: ="" ->  | S12: ="" ->  | T12: ="" ->  | V12: ="" ->  | W12: ="" ->  | Y12: ="" ->  | Z12: ="" ->  | AB12: ="" ->  | AC12: ="" ->  | AE12: ="" ->  | AF12: ="" ->  | AH12: ="" ->  | AI12: ="" ->  | AK12: ="" ->  | AL12: ="" ->  | AN12: ="" ->  | AO12: ="" ->  | AQ12: ="" ->  | AR12: ="" -> 
B13: BA | C13: 8 | D13: EMPRESA 8 | E13: EMP8 | F13: 3 | G13: 149 | H13: 140 | I13: 0.9395973154 | J13: 149 | K13: 122 | L13: 0.8187919463 | M13: ="" ->  | N13: ="" ->  | P13: ="" ->  | Q13: ="" ->  | S13: ="" ->  | T13: ="" ->  | V13: ="" ->  | W13: ="" ->  | Y13: ="" ->  | Z13: ="" ->  | AB13: ="" ->  | AC13: ="" ->  | AE13: ="" ->  | AF13: ="" ->  | AH13: ="" ->  | AI13: ="" ->  | AK13: ="" ->  | AL13: ="" ->  | AN13: ="" ->  | AO13: ="" ->  | AQ13: ="" ->  | AR13: ="" -> 
B14: CE | C14: 9 | D14: EMPRESA 9 | E14: EMP9 | F14: 1 | G14: 1050 | H14: 50 | I14: 0.04761904762 | J14: 1050 | K14: 55 | L14: 0.05238095238 | M14: ="" ->  | N14: ="" ->  | P14: ="" ->  | Q14: ="" ->  | S14: ="" ->  | T14: ="" ->  | V14: ="" ->  | W14: ="" ->  | Y14: ="" ->  | Z14: ="" ->  | AB14: ="" ->  | AC14: ="" ->  | AE14: ="" ->  | AF14: ="" ->  | AH14: ="" ->  | AI14: ="" ->  | AK14: ="" ->  | AL14: ="" ->  | AN14: ="" ->  | AO14: ="" ->  | AQ14: ="" ->  | AR14: ="" -> 
B15: CE | C15: 10 | D15: EMPRESA 10 | E15: EMP10 | F15: 3 | G15: 122 | H15: 22 | I15: 0.1803278689 | J15: 122 | K15: 21 | L15: 0.1721311475 | M15: ="" ->  | N15: ="" ->  | P15: ="" ->  | Q15: ="" ->  | S15: ="" ->  | T15: ="" ->  | V15: ="" ->  | W15: ="" ->  | Y15: ="" ->  | Z15: ="" ->  | AB15: ="" ->  | AC15: ="" ->  | AE15: ="" ->  | AF15: ="" ->  | AH15: ="" ->  | AI15: ="" ->  | AK15: ="" ->  | AL15: ="" ->  | AN15: ="" ->  | AO15: ="" ->  | AQ15: ="" ->  | AR15: ="" -> 
B16: CE | C16: 11 | D16: EMPRESA 11 | E16: EMP11 | F16: 3 | G16: 304 | H16: 157 | I16: 0.5164473684 | J16: 304 | K16: 133 | L16: 0.4375 | M16: ="" ->  | N16: ="" ->  | P16: ="" ->  | Q16: ="" ->  | S16: ="" ->  | T16: ="" ->  | V16: ="" ->  | W16: ="" ->  | Y16: ="" ->  | Z16: ="" ->  | AB16: ="" ->  | AC16: ="" ->  | AE16: ="" ->  | AF16: ="" ->  | AH16: ="" ->  | AI16: ="" ->  | AK16: ="" ->  | AL16: ="" ->  | AN16: ="" ->  | AO16: ="" ->  | AQ16: ="" ->  | AR16: ="" -> 
B17: CE | C17: 12 | D17: EMPRESA 12 | E17: EMP12 | F17: 1 | G17: 264 | H17: 99 | I17: 0.375 | J17: 264 | K17: 143 | L17: 0.5416666667 | M17: ="" ->  | N17: ="" ->  | P17: ="" ->  | Q17: ="" ->  | S17: ="" ->  | T17: ="" ->  | V17: ="" ->  | W17: ="" ->  | Y17: ="" ->  | Z17: ="" ->  | AB17: ="" ->  | AC17: ="" ->  | AE17: ="" ->  | AF17: ="" ->  | AH17: ="" ->  | AI17: ="" ->  | AK17: ="" ->  | AL17: ="" ->  | AN17: ="" ->  | AO17: ="" ->  | AQ17: ="" ->  | AR17: ="" -> 
B18: DF | C18: 13 | D18: EMPRESA 13 | E18: EMP13 | F18: 1 | G18: 72 | H18: 18 | I18: 0.25 | J18: 72 | K18: 29 | L18: 0.4027777778 | M18: ="" ->  | N18: ="" ->  | P18: ="" ->  | Q18: ="" ->  | S18: ="" ->  | T18: ="" ->  | V18: ="" ->  | W18: ="" ->  | Y18: ="" ->  | Z18: ="" ->  | AB18: ="" ->  | AC18: ="" ->  | AE18: ="" ->  | AF18: ="" ->  | AH18: ="" ->  | AI18: ="" ->  | AK18: ="" ->  | AL18: ="" ->  | AN18: ="" ->  | AO18: ="" ->  | AQ18: ="" ->  | AR18: ="" -> 
B19: DF | C19: 14 | D19: EMPRESA 14 | E19: EMP14 | F19: 3 | G19: 67 | H19: 29 | I19: 0.4328358209 | J19: 67 | K19: 28 | L19: 0.4179104478 | M19: ="" ->  | N19: ="" ->  | P19: ="" ->  | Q19: ="" ->  | S19: ="" ->  | T19: ="" ->  | V19: ="" ->  | W19: ="" ->  | Y19: ="" ->  | Z19: ="" ->  | AB19: ="" ->  | AC19: ="" ->  | AE19: ="" ->  | AF19: ="" ->  | AH19: ="" ->  | AI19: ="" ->  | AK19: ="" ->  | AL19: ="" ->  | AN19: ="" ->  | AO19: ="" ->  | AQ19: ="" ->  | AR19: ="" -> 
B20: DF | C20: 15 | D20: EMPRESA 15 | E20: EMP15 | F20: =IF(OFFSET(INDIRECT($F$4,TRUE),ROW(D20)-4,2)>OFFSET(INDIRECT($F$4),ROW(D20)-4,-1),1,IF(OFFSET(INDIRECT($F$4,TRUE),ROW(D20)-4,2)=OFFSET(INDIRECT($F$4),ROW(D20)-4,-1),2,3)) -> 1 | G20: 47 | H20: 8 | I20: =IFERROR(H20/G20,"") -> 0.170212766 | J20: 47 | K20: 12 | L20: =IFERROR(K20/J20,"") -> 0.2553191489 | M20: ="" ->  | N20: ="" ->  | O20: =IFERROR(N20/M20,"") ->  | P20: ="" ->  | Q20: ="" ->  | R20: =IFERROR(Q20/P20,"") ->  | S20: ="" ->  | T20: ="" ->  | U20: =IFERROR(T20/S20,"") ->  | V20: ="" ->  | W20: ="" ->  | X20: =IFERROR(W20/V20,"") ->  | Y20: ="" ->  | Z20: ="" ->  | AA20: =IFERROR(Z20/Y20,"") ->  | AB20: ="" ->  | AC20: ="" ->  | AD20: =IFERROR(AC20/AB20,"") ->  | AE20: ="" ->  | AF20: ="" ->  | AG20: =IFERROR(AF20/AE20,"") ->  | AH20: ="" ->  | AI20: ="" ->  | AJ20: =IFERROR(AI20/AH20,"") ->  | AK20: ="" ->  | AL20: ="" ->  | AM20: =IFERROR(AL20/AK20,"") ->  | AN20: ="" ->  | AO20: ="" ->  | AP20: =IFERROR(AO20/AN20,"") ->  | AQ20: ="" ->  | AR20: ="" ->  | AS20: =IFERROR(AR20/AQ20,"") -> 
B21: DF | C21: 16 | D21: EMPRESA 16 | E21: EMP16 | F21: 3 | G21: 85 | H21: 80 | I21: 0.9411764706 | J21: 85 | K21: 66 | L21: 0.7764705882 | M21: ="" ->  | N21: ="" ->  | P21: ="" ->  | Q21: ="" ->  | S21: ="" ->  | T21: ="" ->  | V21: ="" ->  | W21: ="" ->  | Y21: ="" ->  | Z21: ="" ->  | AB21: ="" ->  | AC21: ="" ->  | AE21: ="" ->  | AF21: ="" ->  | AH21: ="" ->  | AI21: ="" ->  | AK21: ="" ->  | AL21: ="" ->  | AN21: ="" ->  | AO21: ="" ->  | AQ21: ="" ->  | AR21: ="" -> 
B22: DF | C22: 17 | D22: EMPRESA 17 | E22: EMP17 | F22: 1 | G22: 87 | H22: 27 | I22: 0.3103448276 | J22: 87 | K22: 37 | L22: 0.4252873563 | M22: ="" ->  | N22: ="" ->  | P22: ="" ->  | Q22: ="" ->  | S22: ="" ->  | T22: ="" ->  | V22: ="" ->  | W22: ="" ->  | Y22: ="" ->  | Z22: ="" ->  | AB22: ="" ->  | AC22: ="" ->  | AE22: ="" ->  | AF22: ="" ->  | AH22: ="" ->  | AI22: ="" ->  | AK22: ="" ->  | AL22: ="" ->  | AN22: ="" ->  | AO22: ="" ->  | AQ22: ="" ->  | AR22: ="" -> 
B23: GO | C23: 18 | D23: EMPRESA 18 | E23: EMP18 | F23: 2 | G23: 341 | H23: 128 | I23: 0.3753665689 | J23: 341 | K23: 128 | L23: 0.3753665689 | M23: ="" ->  | N23: ="" ->  | P23: ="" ->  | Q23: ="" ->  | S23: ="" ->  | T23: ="" ->  | V23: ="" ->  | W23: ="" ->  | Y23: ="" ->  | Z23: ="" ->  | AB23: ="" ->  | AC23: ="" ->  | AE23: ="" ->  | AF23: ="" ->  | AH23: ="" ->  | AI23: ="" ->  | AK23: ="" ->  | AL23: ="" ->  | AN23: ="" ->  | AO23: ="" ->  | AQ23: ="" ->  | AR23: ="" -> 
B24: GO | C24: 19 | D24: EMPRESA 19 | E24: EMP19 | F24: 2 | G24: 79 | H24: 55 | I24: 0.6962025316 | J24: 79 | K24: 55 | L24: 0.6962025316 | M24: ="" ->  | N24: ="" ->  | P24: ="" ->  | Q24: ="" ->  | S24: ="" ->  | T24: ="" ->  | V24: ="" ->  | W24: ="" ->  | Y24: ="" ->  | Z24: ="" ->  | AB24: ="" ->  | AC24: ="" ->  | AE24: ="" ->  | AF24: ="" ->  | AH24: ="" ->  | AI24: ="" ->  | AK24: ="" ->  | AL24: ="" ->  | AN24: ="" ->  | AO24: ="" ->  | AQ24: ="" ->  | AR24: ="" -> 
B25: GO | C25: 20 | D25: EMPRESA 20 | E25: EMP20 | F25: 1 | G25: 11 | H25: 4 | I25: 0.3636363636 | J25: 11 | K25: 6 | L25: 0.5454545455 | M25: ="" ->  | N25: ="" ->  | P25: ="" ->  | Q25: ="" ->  | S25: ="" ->  | T25: ="" ->  | V25: ="" ->  | W25: ="" ->  | Y25: ="" ->  | Z25: ="" ->  | AB25: ="" ->  | AC25: ="" ->  | AE25: ="" ->  | AF25: ="" ->  | AH25: ="" ->  | AI25: ="" ->  | AK25: ="" ->  | AL25: ="" ->  | AN25: ="" ->  | AO25: ="" ->  | AQ25: ="" ->  | AR25: ="" -> 
B26: GO | C26: 21 | D26: EMPRESA 21 | E26: EMP21 | F26: 3 | G26: 19 | H26: 16 | I26: 0.8421052632 | J26: 19 | K26: 13 | L26: 0.6842105263 | M26: ="" ->  | N26: ="" ->  | P26: ="" ->  | Q26: ="" ->  | S26: ="" ->  | T26: ="" ->  | V26: ="" ->  | W26: ="" ->  | Y26: ="" ->  | Z26: ="" ->  | AB26: ="" ->  | AC26: ="" ->  | AE26: ="" ->  | AF26: ="" ->  | AH26: ="" ->  | AI26: ="" ->  | AK26: ="" ->  | AL26: ="" ->  | AN26: ="" ->  | AO26: ="" ->  | AQ26: ="" ->  | AR26: ="" -> 
B27: GO | C27: 22 | D27: EMPRESA 22 | E27: EMP22 | F27: 3 | G27: 12 | H27: 7 | I27: 0.5833333333 | J27: 12 | K27: 5 | L27: 0.4166666667 | M27: ="" ->  | N27: ="" ->  | P27: ="" ->  | Q27: ="" ->  | S27: ="" ->  | T27: ="" ->  | V27: ="" ->  | W27: ="" ->  | Y27: ="" ->  | Z27: ="" ->  | AB27: ="" ->  | AC27: ="" ->  | AE27: ="" ->  | AF27: ="" ->  | AH27: ="" ->  | AI27: ="" ->  | AK27: ="" ->  | AL27: ="" ->  | AN27: ="" ->  | AO27: ="" ->  | AQ27: ="" ->  | AR27: ="" -> 
B28: MA | C28: 23 | D28: EMPRESA 23 | E28: EMP23 | F28: 2 | G28: 46 | H28: 6 | I28: 0.1304347826 | J28: 46 | K28: 6 | L28: 0.1304347826 | M28: ="" ->  | N28: ="" ->  | P28: ="" ->  | Q28: ="" ->  | S28: ="" ->  | T28: ="" ->  | V28: ="" ->  | W28: ="" ->  | Y28: ="" ->  | Z28: ="" ->  | AB28: ="" ->  | AC28: ="" ->  | AE28: ="" ->  | AF28: ="" ->  | AH28: ="" ->  | AI28: ="" ->  | AK28: ="" ->  | AL28: ="" ->  | AN28: ="" ->  | AO28: ="" ->  | AQ28: ="" ->  | AR28: ="" -> 
B29: MA | C29: 24 | D29: EMPRESA 24 | E29: EMP24 | F29: 2 | G29: 43 | H29: 13 | I29: 0.3023255814 | J29: 43 | K29: 13 | L29: 0.3023255814 | M29: ="" ->  | N29: ="" ->  | P29: ="" ->  | Q29: ="" ->  | S29: ="" ->  | T29: ="" ->  | V29: ="" ->  | W29: ="" ->  | Y29: ="" ->  | Z29: ="" ->  | AB29: ="" ->  | AC29: ="" ->  | AE29: ="" ->  | AF29: ="" ->  | AH29: ="" ->  | AI29: ="" ->  | AK29: ="" ->  | AL29: ="" ->  | AN29: ="" ->  | AO29: ="" ->  | AQ29: ="" ->  | AR29: ="" -> 
B30: MA | C30: 25 | D30: EMPRESA 25 | E30: EMP25 | F30: 1 | G30: 60 | H30: 28 | I30: 0.4666666667 | J30: 60 | K30: 34 | L30: 0.5666666667 | M30: ="" ->  | N30: ="" ->  | P30: ="" ->  | Q30: ="" ->  | S30: ="" ->  | T30: ="" ->  | V30: ="" ->  | W30: ="" ->  | Y30: ="" ->  | Z30: ="" ->  | AB30: ="" ->  | AC30: ="" ->  | AE30: ="" ->  | AF30: ="" ->  | AH30: ="" ->  | AI30: ="" ->  | AK30: ="" ->  | AL30: ="" ->  | AN30: ="" ->  | AO30: ="" ->  | AQ30: ="" ->  | AR30: ="" -> 
B31: MA | C31: 26 | D31: EMPRESA 26 | E31: EMP26 | F31: 2 | G31: 51 | H31: 12 | I31: 0.2352941176 | J31: 51 | K31: 12 | L31: 0.2352941176 | M31: ="" ->  | N31: ="" ->  | P31: ="" ->  | Q31: ="" ->  | S31: ="" ->  | T31: ="" ->  | V31: ="" ->  | W31: ="" ->  | Y31: ="" ->  | Z31: ="" ->  | AB31: ="" ->  | AC31: ="" ->  | AE31: ="" ->  | AF31: ="" ->  | AH31: ="" ->  | AI31: ="" ->  | AK31: ="" ->  | AL31: ="" ->  | AN31: ="" ->  | AO31: ="" ->  | AQ31: ="" ->  | AR31: ="" -> 
B32: MA | C32: 27 | D32: EMPRESA 27 | E32: EMP27 | F32: 1 | G32: 82 | H32: 0 | I32: 0 | J32: 82 | K32: 2 | L32: 0.0243902439 | M32: ="" ->  | N32: ="" ->  | P32: ="" ->  | Q32: ="" ->  | S32: ="" ->  | T32: ="" ->  | V32: ="" ->  | W32: ="" ->  | Y32: ="" ->  | Z32: ="" ->  | AB32: ="" ->  | AC32: ="" ->  | AE32: ="" ->  | AF32: ="" ->  | AH32: ="" ->  | AI32: ="" ->  | AK32: ="" ->  | AL32: ="" ->  | AN32: ="" ->  | AO32: ="" ->  | AQ32: ="" ->  | AR32: ="" -> 
B33: MT | C33: 28 | D33: EMPRESA 28 | E33: EMP28 | F33: 2 | G33: 25 | H33: 2 | I33: 0.08 | J33: 25 | K33: 2 | L33: 0.08 | M33: ="" ->  | N33: ="" ->  | P33: ="" ->  | Q33: ="" ->  | S33: ="" ->  | T33: ="" ->  | V33: ="" ->  | W33: ="" ->  | Y33: ="" ->  | Z33: ="" ->  | AB33: ="" ->  | AC33: ="" ->  | AE33: ="" ->  | AF33: ="" ->  | AH33: ="" ->  | AI33: ="" ->  | AK33: ="" ->  | AL33: ="" ->  | AN33: ="" ->  | AO33: ="" ->  | AQ33: ="" ->  | AR33: ="" -> 
B34: MT | C34: 29 | D34: EMPRESA 29 | E34: EMP29 | F34: 3 | G34: 58 | H34: 33 | I34: 0.5689655172 | J34: 58 | K34: 29 | L34: 0.5 | M34: ="" ->  | N34: ="" ->  | P34: ="" ->  | Q34: ="" ->  | S34: ="" ->  | T34: ="" ->  | V34: ="" ->  | W34: ="" ->  | Y34: ="" ->  | Z34: ="" ->  | AB34: ="" ->  | AC34: ="" ->  | AE34: ="" ->  | AF34: ="" ->  | AH34: ="" ->  | AI34: ="" ->  | AK34: ="" ->  | AL34: ="" ->  | AN34: ="" ->  | AO34: ="" ->  | AQ34: ="" ->  | AR34: ="" -> 
B35: MT | C35: 30 | D35: EMPRESA 30 | E35: EMP30 | F35: =IF(OFFSET(INDIRECT($F$4,TRUE),ROW(D35)-4,2)>OFFSET(INDIRECT($F$4),ROW(D35)-4,-1),1,IF(OFFSET(INDIRECT($F$4,TRUE),ROW(D35)-4,2)=OFFSET(INDIRECT($F$4),ROW(D35)-4,-1),2,3)) -> 2 | G35: 10 | H35: 2 | I35: =IFERROR(H35/G35,"") -> 0.2 | J35: 10 | K35: 2 | L35: =IFERROR(K35/J35,"") -> 0.2 | M35: ="" ->  | N35: ="" ->  | O35: =IFERROR(N35/M35,"") ->  | P35: ="" ->  | Q35: ="" ->  | R35: =IFERROR(Q35/P35,"") ->  | S35: ="" ->  | T35: ="" ->  | U35: =IFERROR(T35/S35,"") ->  | V35: ="" ->  | W35: ="" ->  | X35: =IFERROR(W35/V35,"") ->  | Y35: ="" ->  | Z35: ="" ->  | AA35: =IFERROR(Z35/Y35,"") ->  | AB35: ="" ->  | AC35: ="" ->  | AD35: =IFERROR(AC35/AB35,"") ->  | AE35: ="" ->  | AF35: ="" ->  | AG35: =IFERROR(AF35/AE35,"") ->  | AH35: ="" ->  | AI35: ="" ->  | AJ35: =IFERROR(AI35/AH35,"") ->  | AK35: ="" ->  | AL35: ="" ->  | AM35: =IFERROR(AL35/AK35,"") ->  | AN35: ="" ->  | AO35: ="" ->  | AP35: =IFERROR(AO35/AN35,"") ->  | AQ35: ="" ->  | AR35: ="" ->  | AS35: =IFERROR(AR35/AQ35,"") -> 
B36: MT | C36: 31 | D36: EMPRESA 31 | E36: EMP31 | F36: 1 | G36: 30 | H36: 1 | I36: 0.03333333333 | J36: 30 | K36: 3 | L36: 0.1 | M36: ="" ->  | N36: ="" ->  | P36: ="" ->  | Q36: ="" ->  | S36: ="" ->  | T36: ="" ->  | V36: ="" ->  | W36: ="" ->  | Y36: ="" ->  | Z36: ="" ->  | AB36: ="" ->  | AC36: ="" ->  | AE36: ="" ->  | AF36: ="" ->  | AH36: ="" ->  | AI36: ="" ->  | AK36: ="" ->  | AL36: ="" ->  | AN36: ="" ->  | AO36: ="" ->  | AQ36: ="" ->  | AR36: ="" -> 
B37: MT | C37: 32 | D37: EMPRESA 32 | E37: EMP32 | F37: 1 | G37: 21 | H37: 6 | I37: 0.2857142857 | J37: 21 | K37: 7 | L37: 0.3333333333 | M37: ="" ->  | N37: ="" ->  | P37: ="" ->  | Q37: ="" ->  | S37: ="" ->  | T37: ="" ->  | V37: ="" ->  | W37: ="" ->  | Y37: ="" ->  | Z37: ="" ->  | AB37: ="" ->  | AC37: ="" ->  | AE37: ="" ->  | AF37: ="" ->  | AH37: ="" ->  | AI37: ="" ->  | AK37: ="" ->  | AL37: ="" ->  | AN37: ="" ->  | AO37: ="" ->  | AQ37: ="" ->  | AR37: ="" -> 
B38: MS | C38: 33 | D38: EMPRESA 33 | E38: EMP33 | F38: 1 | G38: 85 | H38: 58 | I38: 0.6823529412 | J38: 85 | K38: 60 | L38: 0.7058823529 | M38: ="" ->  | N38: ="" ->  | P38: ="" ->  | Q38: ="" ->  | S38: ="" ->  | T38: ="" ->  | V38: ="" ->  | W38: ="" ->  | Y38: ="" ->  | Z38: ="" ->  | AB38: ="" ->  | AC38: ="" ->  | AE38: ="" ->  | AF38: ="" ->  | AH38: ="" ->  | AI38: ="" ->  | AK38: ="" ->  | AL38: ="" ->  | AN38: ="" ->  | AO38: ="" ->  | AQ38: ="" ->  | AR38: ="" -> 
B39: MS | C39: 34 | D39: EMPRESA 34 | E39: EMP34 | F39: 3 | G39: 38 | H39: 20 | I39: 0.5263157895 | J39: 38 | K39: 17 | L39: 0.4473684211 | M39: ="" ->  | N39: ="" ->  | P39: ="" ->  | Q39: ="" ->  | S39: ="" ->  | T39: ="" ->  | V39: ="" ->  | W39: ="" ->  | Y39: ="" ->  | Z39: ="" ->  | AB39: ="" ->  | AC39: ="" ->  | AE39: ="" ->  | AF39: ="" ->  | AH39: ="" ->  | AI39: ="" ->  | AK39: ="" ->  | AL39: ="" ->  | AN39: ="" ->  | AO39: ="" ->  | AQ39: ="" ->  | AR39: ="" -> 
B40: MS | C40: 35 | D40: EMPRESA 35 | E40: EMP35 | F40: 3 | G40: 42 | H40: 19 | I40: 0.4523809524 | J40: 42 | K40: 18 | L40: 0.4285714286 | M40: ="" ->  | N40: ="" ->  | P40: ="" ->  | Q40: ="" ->  | S40: ="" ->  | T40: ="" ->  | V40: ="" ->  | W40: ="" ->  | Y40: ="" ->  | Z40: ="" ->  | AB40: ="" ->  | AC40: ="" ->  | AE40: ="" ->  | AF40: ="" ->  | AH40: ="" ->  | AI40: ="" ->  | AK40: ="" ->  | AL40: ="" ->  | AN40: ="" ->  | AO40: ="" ->  | AQ40: ="" ->  | AR40: ="" -> 
B41: MS | C41: 36 | D41: EMPRESA 36 | E41: EMP36 | F41: 1 | G41: 88 | H41: 12 | I41: 0.1363636364 | J41: 88 | K41: 16 | L41: 0.1818181818 | M41: ="" ->  | N41: ="" ->  | P41: ="" ->  | Q41: ="" ->  | S41: ="" ->  | T41: ="" ->  | V41: ="" ->  | W41: ="" ->  | Y41: ="" ->  | Z41: ="" ->  | AB41: ="" ->  | AC41: ="" ->  | AE41: ="" ->  | AF41: ="" ->  | AH41: ="" ->  | AI41: ="" ->  | AK41: ="" ->  | AL41: ="" ->  | AN41: ="" ->  | AO41: ="" ->  | AQ41: ="" ->  | AR41: ="" -> 
B42: MS | C42: 37 | D42: EMPRESA 37 | E42: EMP37 | F42: 3 | G42: 2 | H42: 2 | I42: 1 | J42: 2 | K42: 1 | L42: 0.5 | M42: ="" ->  | N42: ="" ->  | P42: ="" ->  | Q42: ="" ->  | S42: ="" ->  | T42: ="" ->  | V42: ="" ->  | W42: ="" ->  | Y42: ="" ->  | Z42: ="" ->  | AB42: ="" ->  | AC42: ="" ->  | AE42: ="" ->  | AF42: ="" ->  | AH42: ="" ->  | AI42: ="" ->  | AK42: ="" ->  | AL42: ="" ->  | AN42: ="" ->  | AO42: ="" ->  | AQ42: ="" ->  | AR42: ="" -> 
B43: MG | C43: 38 | D43: EMPRESA 38 | E43: EMP38 | F43: 2 | G43: 26 | H43: 7 | I43: 0.2692307692 | J43: 26 | K43: 7 | L43: 0.2692307692 | M43: ="" ->  | N43: ="" ->  | P43: ="" ->  | Q43: ="" ->  | S43: ="" ->  | T43: ="" ->  | V43: ="" ->  | W43: ="" ->  | Y43: ="" ->  | Z43: ="" ->  | AB43: ="" ->  | AC43: ="" ->  | AE43: ="" ->  | AF43: ="" ->  | AH43: ="" ->  | AI43: ="" ->  | AK43: ="" ->  | AL43: ="" ->  | AN43: ="" ->  | AO43: ="" ->  | AQ43: ="" ->  | AR43: ="" -> 
B44: MG | C44: 39 | D44: EMPRESA 39 | E44: EMP39 | F44: 3 | G44: 12 | H44: 7 | I44: 0.5833333333 | J44: 12 | K44: 6 | L44: 0.5 | M44: ="" ->  | N44: ="" ->  | P44: ="" ->  | Q44: ="" ->  | S44: ="" ->  | T44: ="" ->  | V44: ="" ->  | W44: ="" ->  | Y44: ="" ->  | Z44: ="" ->  | AB44: ="" ->  | AC44: ="" ->  | AE44: ="" ->  | AF44: ="" ->  | AH44: ="" ->  | AI44: ="" ->  | AK44: ="" ->  | AL44: ="" ->  | AN44: ="" ->  | AO44: ="" ->  | AQ44: ="" ->  | AR44: ="" -> 
B45: MG | C45: 40 | D45: EMPRESA 40 | E45: EMP40 | F45: 1 | G45: 83 | H45: 22 | I45: 0.265060241 | J45: 83 | K45: 30 | L45: 0.3614457831 | M45: ="" ->  | N45: ="" ->  | P45: ="" ->  | Q45: ="" ->  | S45: ="" ->  | T45: ="" ->  | V45: ="" ->  | W45: ="" ->  | Y45: ="" ->  | Z45: ="" ->  | AB45: ="" ->  | AC45: ="" ->  | AE45: ="" ->  | AF45: ="" ->  | AH45: ="" ->  | AI45: ="" ->  | AK45: ="" ->  | AL45: ="" ->  | AN45: ="" ->  | AO45: ="" ->  | AQ45: ="" ->  | AR45: ="" -> 
B46: MG | C46: 41 | D46: EMPRESA 41 | E46: EMP41 | F46: 2 | G46: 13 | H46: 4 | I46: 0.3076923077 | J46: 13 | K46: 4 | L46: 0.3076923077 | M46: ="" ->  | N46: ="" ->  | P46: ="" ->  | Q46: ="" ->  | S46: ="" ->  | T46: ="" ->  | V46: ="" ->  | W46: ="" ->  | Y46: ="" ->  | Z46: ="" ->  | AB46: ="" ->  | AC46: ="" ->  | AE46: ="" ->  | AF46: ="" ->  | AH46: ="" ->  | AI46: ="" ->  | AK46: ="" ->  | AL46: ="" ->  | AN46: ="" ->  | AO46: ="" ->  | AQ46: ="" ->  | AR46: ="" -> 
B47: Total | C47: TOTAL | D47: =COUNTA(D6:D46)-COUNTIF(D6:D46,"*[BAIXA]*") -> 41 | G47: =SUM(G6:G46) -> 3796 | H47: 1140 | I47: 0.3003161222 | J47: =SUM(J6:J46) -> 3796 | K47: =SUM(K6:K46) -> 1180 | L47: 0.31085353 | M47: =SUM(M6:M46) -> 0 | N47: =SUM(N6:N46) -> 0 | P47: =SUM(P6:P46) -> 0 | Q47: =SUM(Q6:Q46) -> 0 | S47: =SUM(S6:S46) -> 0 | T47: =SUM(T6:T46) -> 0 | V47: =SUM(V6:V46) -> 0 | W47: =SUM(W6:W46) -> 0 | Y47: =SUM(Y6:Y46) -> 0 | Z47: =SUM(Z6:Z46) -> 0 | AB47: =SUM(AB6:AB46) -> 0 | AC47: =SUM(AC6:AC46) -> 0 | AE47: =SUM(AE6:AE46) -> 0 | AF47: =SUM(AF6:AF46) -> 0 | AH47: =SUM(AH6:AH46) -> 0 | AI47: =SUM(AI6:AI46) -> 0 | AK47: =SUM(AK6:AK46) -> 0 | AL47: =SUM(AL6:AL46) -> 0 | AN47: =SUM(AN6:AN46) -> 0 | AO47: =SUM(AO6:AO46) -> 0 | AQ47: =SUM(AQ6:AQ46) -> 0 | AR47: =SUM(AR6:AR46) -> 0

Sheet UF
B1: =VLOOKUP(Dados!$E$2,Dados!$B$33:$C$68,2,FALSE) -> JANEIRO
E2: 2017 | H2: JANEIRO | K2: FEVEREIRO | N2: MARÇO | Q2: ABRIL | T2: MAIO | W2: JUNHO | Z2: JULHO | AC2: AGOSTO | AF2: SETEMBRO | AI2: OUTUBRO | AL2: NOVEMBRO | AO2: DEZEMBRO
B3: UF | C3: Qtd. De Empresas | E3: Serviços Demandados | F3: Serviços Atendidos | G3: % Atendimento | H3: Serviços Demandados | I3: Serviços Atendidos | J3: % Atendimento | K3: Serviços Demandados | L3: Serviços Atendidos | M3: % Atendimento | N3: Serviços Demandados | O3: Serviços Atendidos | P3: % Atendimento | Q3: Serviços Demandados | R3: Serviços Atendidos | S3: % Atendimento | T3: Serviços Demandados | U3: Serviços Atendidos | V3: % Atendimento | W3: Serviços Demandados | X3: Serviços Atendidos | Y3: % Atendimento | Z3: Serviços Demandados | AA3: Serviços Atendidos | AB3: % Atendimento | AC3: Serviços Demandados | AD3: Serviços Atendidos | AE3: % Atendimento | AF3: Serviços Demandados | AG3: Serviços Atendidos | AH3: % Atendimento | AI3: Serviços Demandados | AJ3: Serviços Atendidos | AK3: % Atendimento | AL3: Serviços Demandados | AM3: Serviços Atendidos | AN3: % Atendimento | AO3: Serviços Demandados | AP3: Serviços Atendidos | AQ3: % Atendimento
A4: =IFERROR(IF(OR(Dados!$D5="",Dados!$E5=""),"",IF(Dados!$E5>Dados!$D5,3,IF(Dados!$E5=Dados!$D5,2,1))),"") ->  | B4: AM | C4: =COUNTIF(Empresas!$B$5:$B$47,UF!$B4) -> 3 | D4: ="" ->  | E4: =IF(Empresas!G6="","",SUMIF(Empresas!$B$6:$B$50,UF!$B4,Empresas!G$6:G$46)) -> 20 | F4: =IF(Empresas!H6="","",SUMIF(Empresas!$B$6:$B$46,UF!$B4,Empresas!H$6:H$46)) -> 8 | G4: =IFERROR(F4/E4,"") -> 0.4 | H4: =IF(Empresas!J6="","",SUMIF(Empresas!$B$6:$B$50,UF!$B4,Empresas!J$6:J$46)) -> 20 | I4: =IF(Empresas!K6="","",SUMIF(Empresas!$B$6:$B$46,UF!$B4,Empresas!K$6:K$46)) -> 10 | J4: =IFERROR(I4/H4,"") -> 0.5 | K4: =IF(Empresas!M6="","",SUMIF(Empresas!$B$6:$B$46,UF!$B4,Empresas!M$6:M$46)) ->  | L4: =IF(Empresas!N6="","",SUMIF(Empresas!$B$6:$B$46,UF!$B4,Empresas!N$6:N$46)) ->  | M4: =IFERROR(L4/K4,"") ->  | N4: =IF(Empresas!P6="","",SUMIF(Empresas!$B$6:$B$46,UF!$B4,Empresas!P$6:P$46)) ->  | O4: =IF(Empresas!Q6="","",SUMIF(Empresas!$B$6:$B$46,UF!$B4,Empresas!Q$6:Q$46)) ->  | P4: =IFERROR(O4/N4,"") ->  | Q4: =IF(Empresas!S6="","",SUMIF(Empresas!$B$6:$B$46,UF!$B4,Empresas!S$6:S$46)) ->  | R4: =IF(Empresas!T6="","",SUMIF(Empresas!$B$6:$B$46,UF!$B4,Empresas!T$6:T$46)) ->  | S4: =IFERROR(R4/Q4,"") ->  | T4: =IF(Empresas!V6="","",SUMIF(Empresas!$B$6:$B$46,UF!$B4,Empresas!V$6:V$46)) ->  | U4: =IF(Empresas!W6="","",SUMIF(Empresas!$B$6:$B$46,UF!$B4,Empresas!W$6:W$46)) ->  | V4: =IFERROR(U4/T4,"") ->  | W4: =IF(Empresas!Y6="","",SUMIF(Empresas!$B$6:$B$46,UF!$B4,Empresas!Y$6:Y$46)) ->  | X4: =IF(Empresas!Z6="","",SUMIF(Empresas!$B$6:$B$46,UF!$B4,Empresas!Z$6:Z$46)) ->  | Y4: =IFERROR(X4/W4,"") ->  | Z4: =IF(Empresas!AB6="","",SUMIF(Empresas!$B$6:$B$46,UF!$B4,Empresas!AB$6:AB$46)) ->  | AA4: =IF(Empresas!AC6="","",SUMIF(Empresas!$B$6:$B$46,UF!$B4,Empresas!AC$6:AC$46)) ->  | AB4: =IFERROR(AA4/Z4,"") ->  | AC4: =IF(Empresas!AE6="","",SUMIF(Empresas!$B$6:$B$46,UF!$B4,Empresas!AE$6:AE$46)) ->  | AD4: =IF(Empresas!AF6="","",SUMIF(Empresas!$B$6:$B$46,UF!$B4,Empresas!AF$6:AF$46)) ->  | AE4: =IFERROR(AD4/AC4,"") ->  | AF4: =IF(Empresas!AH6="","",SUMIF(Empresas!$B$6:$B$46,UF!$B4,Empresas!AH$6:AH$46)) ->  | AG4: =IF(Empresas!AI6="","",SUMIF(Empresas!$B$6:$B$46,UF!$B4,Empresas!AI$6:AI$46)) ->  | AH4: =IFERROR(AG4/AF4,"") ->  | AI4: =IF(Empresas!AK6="","",SUMIF(Empresas!$B$6:$B$46,UF!$B4,Empresas!AK$6:AK$46)) ->  | AJ4: =IF(Empresas!AL6="","",SUMIF(Empresas!$B$6:$B$46,UF!$B4,Empresas!AL$6:AL$46)) ->  | AK4: =IFERROR(AJ4/AI4,"") ->  | AL4: =IF(Empresas!AN6="","",SUMIF(Empresas!$B$6:$B$46,UF!$B4,Empresas!AN$6:AN$46)) ->  | AM4: =IF(Empresas!AO6="","",SUMIF(Empresas!$B$6:$B$46,UF!$B4,Empresas!AO$6:AO$46)) ->  | AN4: =IFERROR(AM4/AL4,"") ->  | AO4: =IF(Empresas!AQ6="","",SUMIF(Empresas!$B$6:$B$46,UF!$B4,Empresas!AQ$6:AQ$46)) ->  | AP4: =IF(Empresas!AR6="","",SUMIF(Empresas!$B$6:$B$46,UF!$B4,Empresas!AR$6:AR$46)) ->  | AQ4: =IFERROR(AP4/AO4,"") -> 
A5: =IFERROR(IF(OR(Dados!$D6="",Dados!$E6=""),"",IF(Dados!$E6>Dados!$D6,3,IF(Dados!$E6=Dados!$D6,2,1))),"") ->  | B5: BA | C5: =COUNTIF(Empresas!$B$5:$B$47,UF!$B5) -> 5 | D5: ="" ->  | E5: =IF(Empresas!G7="","",SUMIF(Empresas!$B$6:$B$50,UF!$B5,Empresas!G$6:G$46)) -> 401 | F5: =IF(Empresas!H7="","",SUMIF(Empresas!$B$6:$B$46,UF!$B5,Empresas!H$6:H$46)) -> 178 | G5: =IFERROR(F5/E5,"") -> 0.4438902743 | H5: =IF(Empresas!J7="","",SUMIF(Empresas!$B$6:$B$50,UF!$B5,Empresas!J$6:J$46)) -> 401 | I5: =IF(Empresas!K7="","",SUMIF(Empresas!$B$6:$B$46,UF!$B5,Empresas!K$6:K$46)) -> 170 | J5: =IFERROR(I5/H5,"") -> 0.4239401496 | K5: =IF(Empresas!M7="","",SUMIF(Empresas!$B$6:$B$46,UF!$B5,Empresas!M$6:M$46)) ->  | L5: =IF(Empresas!N7="","",SUMIF(Empresas!$B$6:$B$46,UF!$B5,Empresas!N$6:N$46)) ->  | M5: =IFERROR(L5/K5,"") ->  | N5: =IF(Empresas!P7="","",SUMIF(Empresas!$B$6:$B$46,UF!$B5,Empresas!P$6:P$46)) ->  | O5: =IF(Empresas!Q7="","",SUMIF(Empresas!$B$6:$B$46,UF!$B5,Empresas!Q$6:Q$46)) ->  | P5: =IFERROR(O5/N5,"") ->  | Q5: =IF(Empresas!S7="","",SUMIF(Empresas!$B$6:$B$46,UF!$B5,Empresas!S$6:S$46)) ->  | R5: =IF(Empresas!T7="","",SUMIF(Empresas!$B$6:$B$46,UF!$B5,Empresas!T$6:T$46)) ->  | T5: =IF(Empresas!V7="","",SUMIF(Empresas!$B$6:$B$46,UF!$B5,Empresas!V$6:V$46)) ->  | U5: =IF(Empresas!W7="","",SUMIF(Empresas!$B$6:$B$46,UF!$B5,Empresas!W$6:W$46)) ->  | W5: =IF(Empresas!Y7="","",SUMIF(Empresas!$B$6:$B$46,UF!$B5,Empresas!Y$6:Y$46)) ->  | X5: =IF(Empresas!Z7="","",SUMIF(Empresas!$B$6:$B$46,UF!$B5,Empresas!Z$6:Z$46)) ->  | Z5: =IF(Empresas!AB7="","",SUMIF(Empresas!$B$6:$B$46,UF!$B5,Empresas!AB$6:AB$46)) ->  | AA5: =IF(Empresas!AC7="","",SUMIF(Empresas!$B$6:$B$46,UF!$B5,Empresas!AC$6:AC$46)) ->  | AC5: =IF(Empresas!AE7="","",SUMIF(Empresas!$B$6:$B$46,UF!$B5,Empresas!AE$6:AE$46)) ->  | AD5: =IF(Empresas!AF7="","",SUMIF(Empresas!$B$6:$B$46,UF!$B5,Empresas!AF$6:AF$46)) ->  | AF5: =IF(Empresas!AH7="","",SUMIF(Empresas!$B$6:$B$46,UF!$B5,Empresas!AH$6:AH$46)) ->  | AG5: =IF(Empresas!AI7="","",SUMIF(Empresas!$B$6:$B$46,UF!$B5,Empresas!AI$6:AI$46)) ->  | AI5: =IF(Empresas!AK7="","",SUMIF(Empresas!$B$6:$B$46,UF!$B5,Empresas!AK$6:AK$46)) ->  | AJ5: =IF(Empresas!AL7="","",SUMIF(Empresas!$B$6:$B$46,UF!$B5,Empresas!AL$6:AL$46)) ->  | AL5: =IF(Empresas!AN7="","",SUMIF(Empresas!$B$6:$B$46,UF!$B5,Empresas!AN$6:AN$46)) ->  | AM5: =IF(Empresas!AO7="","",SUMIF(Empresas!$B$6:$B$46,UF!$B5,Empresas!AO$6:AO$46)) ->  | AO5: =IF(Empresas!AQ7="","",SUMIF(Empresas!$B$6:$B$46,UF!$B5,Empresas!AQ$6:AQ$46)) ->  | AP5: =IF(Empresas!AR7="","",SUMIF(Empresas!$B$6:$B$46,UF!$B5,Empresas!AR$6:AR$46)) -> 
A6: =IFERROR(IF(OR(Dados!$D7="",Dados!$E7=""),"",IF(Dados!$E7>Dados!$D7,3,IF(Dados!$E7=Dados!$D7,2,1))),"") ->  | B6: CE | C6: =COUNTIF(Empresas!$B$5:$B$47,UF!$B6) -> 4 | D6: ="" ->  | E6: =IF(Empresas!G8="","",SUMIF(Empresas!$B$6:$B$50,UF!$B6,Empresas!G$6:G$46)) -> 1740 | F6: =IF(Empresas!H8="","",SUMIF(Empresas!$B$6:$B$46,UF!$B6,Empresas!H$6:H$46)) -> 328 | G6: 0.1885057471 | H6: =IF(Empresas!J8="","",SUMIF(Empresas!$B$6:$B$50,UF!$B6,Empresas!J$6:J$46)) -> 1740 | I6: =IF(Empresas!K8="","",SUMIF(Empresas!$B$6:$B$46,UF!$B6,Empresas!K$6:K$46)) -> 352 | J6: 0.2022988506 | K6: =IF(Empresas!M8="","",SUMIF(Empresas!$B$6:$B$46,UF!$B6,Empresas!M$6:M$46)) ->  | L6: =IF(Empresas!N8="","",SUMIF(Empresas!$B$6:$B$46,UF!$B6,Empresas!N$6:N$46)) ->  | N6: =IF(Empresas!P8="","",SUMIF(Empresas!$B$6:$B$46,UF!$B6,Empresas!P$6:P$46)) ->  | O6: =IF(Empresas!Q8="","",SUMIF(Empresas!$B$6:$B$46,UF!$B6,Empresas!Q$6:Q$46)) ->  | Q6: =IF(Empresas!S8="","",SUMIF(Empresas!$B$6:$B$46,UF!$B6,Empresas!S$6:S$46)) ->  | R6: =IF(Empresas!T8="","",SUMIF(Empresas!$B$6:$B$46,UF!$B6,Empresas!T$6:T$46)) ->  | T6: =IF(Empresas!V8="","",SUMIF(Empresas!$B$6:$B$46,UF!$B6,Empresas!V$6:V$46)) ->  | U6: =IF(Empresas!W8="","",SUMIF(Empresas!$B$6:$B$46,UF!$B6,Empresas!W$6:W$46)) ->  | W6: =IF(Empresas!Y8="","",SUMIF(Empresas!$B$6:$B$46,UF!$B6,Empresas!Y$6:Y$46)) ->  | X6: =IF(Empresas!Z8="","",SUMIF(Empresas!$B$6:$B$46,UF!$B6,Empresas!Z$6:Z$46)) ->  | Z6: =IF(Empresas!AB8="","",SUMIF(Empresas!$B$6:$B$46,UF!$B6,Empresas!AB$6:AB$46)) ->  | AA6: =IF(Empresas!AC8="","",SUMIF(Empresas!$B$6:$B$46,UF!$B6,Empresas!AC$6:AC$46)) ->  | AC6: =IF(Empresas!AE8="","",SUMIF(Empresas!$B$6:$B$46,UF!$B6,Empresas!AE$6:AE$46)) ->  | AD6: =IF(Empresas!AF8="","",SUMIF(Empresas!$B$6:$B$46,UF!$B6,Empresas!AF$6:AF$46)) ->  | AF6: =IF(Empresas!AH8="","",SUMIF(Empresas!$B$6:$B$46,UF!$B6,Empresas!AH$6:AH$46)) ->  | AG6: =IF(Empresas!AI8="","",SUMIF(Empresas!$B$6:$B$46,UF!$B6,Empresas!AI$6:AI$46)) ->  | AI6: =IF(Empresas!AK8="","",SUMIF(Empresas!$B$6:$B$46,UF!$B6,Empresas!AK$6:AK$46)) ->  | AJ6: =IF(Empresas!AL8="","",SUMIF(Empresas!$B$6:$B$46,UF!$B6,Empresas!AL$6:AL$46)) ->  | AL6: =IF(Empresas!AN8="","",SUMIF(Empresas!$B$6:$B$46,UF!$B6,Empresas!AN$6:AN$46)) ->  | AM6: =IF(Empresas!AO8="","",SUMIF(Empresas!$B$6:$B$46,UF!$B6,Empresas!AO$6:AO$46)) ->  | AO6: =IF(Empresas!AQ8="","",SUMIF(Empresas!$B$6:$B$46,UF!$B6,Empresas!AQ$6:AQ$46)) ->  | AP6: =IF(Empresas!AR8="","",SUMIF(Empresas!$B$6:$B$46,UF!$B6,Empresas!AR$6:AR$46)) -> 
A7: =IFERROR(IF(OR(Dados!$D8="",Dados!$E8=""),"",IF(Dados!$E8>Dados!$D8,3,IF(Dados!$E8=Dados!$D8,2,1))),"") ->  | B7: DF | C7: =COUNTIF(Empresas!$B$5:$B$47,UF!$B7) -> 5 | D7: ="" ->  | E7: =IF(Empresas!G9="","",SUMIF(Empresas!$B$6:$B$50,UF!$B7,Empresas!G$6:G$46)) -> 358 | F7: =IF(Empresas!H9="","",SUMIF(Empresas!$B$6:$B$46,UF!$B7,Empresas!H$6:H$46)) -> 162 | G7: 0.4525139665 | H7: =IF(Empresas!J9="","",SUMIF(Empresas!$B$6:$B$50,UF!$B7,Empresas!J$6:J$46)) -> 358 | I7: =IF(Empresas!K9="","",SUMIF(Empresas!$B$6:$B$46,UF!$B7,Empresas!K$6:K$46)) -> 172 | J7: 0.4804469274 | K7: =IF(Empresas!M9="","",SUMIF(Empresas!$B$6:$B$46,UF!$B7,Empresas!M$6:M$46)) ->  | L7: =IF(Empresas!N9="","",SUMIF(Empresas!$B$6:$B$46,UF!$B7,Empresas!N$6:N$46)) ->  | N7: =IF(Empresas!P9="","",SUMIF(Empresas!$B$6:$B$46,UF!$B7,Empresas!P$6:P$46)) ->  | O7: =IF(Empresas!Q9="","",SUMIF(Empresas!$B$6:$B$46,UF!$B7,Empresas!Q$6:Q$46)) ->  | Q7: =IF(Empresas!S9="","",SUMIF(Empresas!$B$6:$B$46,UF!$B7,Empresas!S$6:S$46)) ->  | R7: =IF(Empresas!T9="","",SUMIF(Empresas!$B$6:$B$46,UF!$B7,Empresas!T$6:T$46)) ->  | T7: =IF(Empresas!V9="","",SUMIF(Empresas!$B$6:$B$46,UF!$B7,Empresas!V$6:V$46)) ->  | U7: =IF(Empresas!W9="","",SUMIF(Empresas!$B$6:$B$46,UF!$B7,Empresas!W$6:W$46)) ->  | W7: =IF(Empresas!Y9="","",SUMIF(Empresas!$B$6:$B$46,UF!$B7,Empresas!Y$6:Y$46)) ->  | X7: =IF(Empresas!Z9="","",SUMIF(Empresas!$B$6:$B$46,UF!$B7,Empresas!Z$6:Z$46)) ->  | Z7: =IF(Empresas!AB9="","",SUMIF(Empresas!$B$6:$B$46,UF!$B7,Empresas!AB$6:AB$46)) ->  | AA7: =IF(Empresas!AC9="","",SUMIF(Empresas!$B$6:$B$46,UF!$B7,Empresas!AC$6:AC$46)) ->  | AC7: =IF(Empresas!AE9="","",SUMIF(Empresas!$B$6:$B$46,UF!$B7,Empresas!AE$6:AE$46)) ->  | AD7: =IF(Empresas!AF9="","",SUMIF(Empresas!$B$6:$B$46,UF!$B7,Empresas!AF$6:AF$46)) ->  | AF7: =IF(Empresas!AH9="","",SUMIF(Empresas!$B$6:$B$46,UF!$B7,Empresas!AH$6:AH$46)) ->  | AG7: =IF(Empresas!AI9="","",SUMIF(Empresas!$B$6:$B$46,UF!$B7,Empresas!AI$6:AI$46)) ->  | AI7: =IF(Empresas!AK9="","",SUMIF(Empresas!$B$6:$B$46,UF!$B7,Empresas!AK$6:AK$46)) ->  | AJ7: =IF(Empresas!AL9="","",SUMIF(Empresas!$B$6:$B$46,UF!$B7,Empresas!AL$6:AL$46)) ->  | AL7: =IF(Empresas!AN9="","",SUMIF(Empresas!$B$6:$B$46,UF!$B7,Empresas!AN$6:AN$46)) ->  | AM7: =IF(Empresas!AO9="","",SUMIF(Empresas!$B$6:$B$46,UF!$B7,Empresas!AO$6:AO$46)) ->  | AO7: =IF(Empresas!AQ9="","",SUMIF(Empresas!$B$6:$B$46,UF!$B7,Empresas!AQ$6:AQ$46)) ->  | AP7: =IF(Empresas!AR9="","",SUMIF(Empresas!$B$6:$B$46,UF!$B7,Empresas!AR$6:AR$46)) -> 
A8: =IFERROR(IF(OR(Dados!$D9="",Dados!$E9=""),"",IF(Dados!$E9>Dados!$D9,3,IF(Dados!$E9=Dados!$D9,2,1))),"") ->  | B8: GO | C8: =COUNTIF(Empresas!$B$5:$B$47,UF!$B8) -> 5 | D8: ="" ->  | E8: =IF(Empresas!G10="","",SUMIF(Empresas!$B$6:$B$50,UF!$B8,Empresas!G$6:G$46)) -> 462 | F8: =IF(Empresas!H10="","",SUMIF(Empresas!$B$6:$B$46,UF!$B8,Empresas!H$6:H$46)) -> 210 | G8: 0.4545454545 | H8: =IF(Empresas!J10="","",SUMIF(Empresas!$B$6:$B$50,UF!$B8,Empresas!J$6:J$46)) -> 462 | I8: =IF(Empresas!K10="","",SUMIF(Empresas!$B$6:$B$46,UF!$B8,Empresas!K$6:K$46)) -> 207 | J8: 0.4480519481 | K8: =IF(Empresas!M10="","",SUMIF(Empresas!$B$6:$B$46,UF!$B8,Empresas!M$6:M$46)) ->  | L8: =IF(Empresas!N10="","",SUMIF(Empresas!$B$6:$B$46,UF!$B8,Empresas!N$6:N$46)) ->  | N8: =IF(Empresas!P10="","",SUMIF(Empresas!$B$6:$B$46,UF!$B8,Empresas!P$6:P$46)) ->  | O8: =IF(Empresas!Q10="","",SUMIF(Empresas!$B$6:$B$46,UF!$B8,Empresas!Q$6:Q$46)) ->  | Q8: =IF(Empresas!S10="","",SUMIF(Empresas!$B$6:$B$46,UF!$B8,Empresas!S$6:S$46)) ->  | R8: =IF(Empresas!T10="","",SUMIF(Empresas!$B$6:$B$46,UF!$B8,Empresas!T$6:T$46)) ->  | T8: =IF(Empresas!V10="","",SUMIF(Empresas!$B$6:$B$46,UF!$B8,Empresas!V$6:V$46)) ->  | U8: =IF(Empresas!W10="","",SUMIF(Empresas!$B$6:$B$46,UF!$B8,Empresas!W$6:W$46)) ->  | W8: =IF(Empresas!Y10="","",SUMIF(Empresas!$B$6:$B$46,UF!$B8,Empresas!Y$6:Y$46)) ->  | X8: =IF(Empresas!Z10="","",SUMIF(Empresas!$B$6:$B$46,UF!$B8,Empresas!Z$6:Z$46)) ->  | Z8: =IF(Empresas!AB10="","",SUMIF(Empresas!$B$6:$B$46,UF!$B8,Empresas!AB$6:AB$46)) ->  | AA8: =IF(Empresas!AC10="","",SUMIF(Empresas!$B$6:$B$46,UF!$B8,Empresas!AC$6:AC$46)) ->  | AC8: =IF(Empresas!AE10="","",SUMIF(Empresas!$B$6:$B$46,UF!$B8,Empresas!AE$6:AE$46)) ->  | AD8: =IF(Empresas!AF10="","",SUMIF(Empresas!$B$6:$B$46,UF!$B8,Empresas!AF$6:AF$46)) ->  | AF8: =IF(Empresas!AH10="","",SUMIF(Empresas!$B$6:$B$46,UF!$B8,Empresas!AH$6:AH$46)) ->  | AG8: =IF(Empresas!AI10="","",SUMIF(Empresas!$B$6:$B$46,UF!$B8,Empresas!AI$6:AI$46)) ->  | AI8: =IF(Empresas!AK10="","",SUMIF(Empresas!$B$6:$B$46,UF!$B8,Empresas!AK$6:AK$46)) ->  | AJ8: =IF(Empresas!AL10="","",SUMIF(Empresas!$B$6:$B$46,UF!$B8,Empresas!AL$6:AL$46)) ->  | AL8: =IF(Empresas!AN10="","",SUMIF(Empresas!$B$6:$B$46,UF!$B8,Empresas!AN$6:AN$46)) ->  | AM8: =IF(Empresas!AO10="","",SUMIF(Empresas!$B$6:$B$46,UF!$B8,Empresas!AO$6:AO$46)) ->  | AO8: =IF(Empresas!AQ10="","",SUMIF(Empresas!$B$6:$B$46,UF!$B8,Empresas!AQ$6:AQ$46)) ->  | AP8: =IF(Empresas!AR10="","",SUMIF(Empresas!$B$6:$B$46,UF!$B8,Empresas!AR$6:AR$46)) -> 
A9: =IFERROR(IF(OR(Dados!$D10="",Dados!$E10=""),"",IF(Dados!$E10>Dados!$D10,3,IF(Dados!$E10=Dados!$D10,2,1))),"") ->  | B9: MA | C9: =COUNTIF(Empresas!$B$5:$B$47,UF!$B9) -> 5 | D9: ="" ->  | E9: =IF(Empresas!G11="","",SUMIF(Empresas!$B$6:$B$50,UF!$B9,Empresas!G$6:G$46)) -> 282 | F9: =IF(Empresas!H11="","",SUMIF(Empresas!$B$6:$B$46,UF!$B9,Empresas!H$6:H$46)) -> 59 | G9: 0.2092198582 | H9: =IF(Empresas!J11="","",SUMIF(Empresas!$B$6:$B$50,UF!$B9,Empresas!J$6:J$46)) -> 282 | I9: =IF(Empresas!K11="","",SUMIF(Empresas!$B$6:$B$46,UF!$B9,Empresas!K$6:K$46)) -> 67 | J9: 0.2375886525 | K9: =IF(Empresas!M11="","",SUMIF(Empresas!$B$6:$B$46,UF!$B9,Empresas!M$6:M$46)) ->  | L9: =IF(Empresas!N11="","",SUMIF(Empresas!$B$6:$B$46,UF!$B9,Empresas!N$6:N$46)) ->  | N9: =IF(Empresas!P11="","",SUMIF(Empresas!$B$6:$B$46,UF!$B9,Empresas!P$6:P$46)) ->  | O9: =IF(Empresas!Q11="","",SUMIF(Empresas!$B$6:$B$46,UF!$B9,Empresas!Q$6:Q$46)) ->  | Q9: =IF(Empresas!S11="","",SUMIF(Empresas!$B$6:$B$46,UF!$B9,Empresas!S$6:S$46)) ->  | R9: =IF(Empresas!T11="","",SUMIF(Empresas!$B$6:$B$46,UF!$B9,Empresas!T$6:T$46)) ->  | T9: =IF(Empresas!V11="","",SUMIF(Empresas!$B$6:$B$46,UF!$B9,Empresas!V$6:V$46)) ->  | U9: =IF(Empresas!W11="","",SUMIF(Empresas!$B$6:$B$46,UF!$B9,Empresas!W$6:W$46)) ->  | W9: =IF(Empresas!Y11="","",SUMIF(Empresas!$B$6:$B$46,UF!$B9,Empresas!Y$6:Y$46)) ->  | X9: =IF(Empresas!Z11="","",SUMIF(Empresas!$B$6:$B$46,UF!$B9,Empresas!Z$6:Z$46)) ->  | Z9: =IF(Empresas!AB11="","",SUMIF(Empresas!$B$6:$B$46,UF!$B9,Empresas!AB$6:AB$46)) ->  | AA9: =IF(Empresas!AC11="","",SUMIF(Empresas!$B$6:$B$46,UF!$B9,Empresas!AC$6:AC$46)) ->  | AC9: =IF(Empresas!AE11="","",SUMIF(Empresas!$B$6:$B$46,UF!$B9,Empresas!AE$6:AE$46)) ->  | AD9: =IF(Empresas!AF11="","",SUMIF(Empresas!$B$6:$B$46,UF!$B9,Empresas!AF$6:AF$46)) ->  | AF9: =IF(Empresas!AH11="","",SUMIF(Empresas!$B$6:$B$46,UF!$B9,Empresas!AH$6:AH$46)) ->  | AG9: =IF(Empresas!AI11="","",SUMIF(Empresas!$B$6:$B$46,UF!$B9,Empresas!AI$6:AI$46)) ->  | AI9: =IF(Empresas!AK11="","",SUMIF(Empresas!$B$6:$B$46,UF!$B9,Empresas!AK$6:AK$46)) ->  | AJ9: =IF(Empresas!AL11="","",SUMIF(Empresas!$B$6:$B$46,UF!$B9,Empresas!AL$6:AL$46)) ->  | AL9: =IF(Empresas!AN11="","",SUMIF(Empresas!$B$6:$B$46,UF!$B9,Empresas!AN$6:AN$46)) ->  | AM9: =IF(Empresas!AO11="","",SUMIF(Empresas!$B$6:$B$46,UF!$B9,Empresas!AO$6:AO$46)) ->  | AO9: =IF(Empresas!AQ11="","",SUMIF(Empresas!$B$6:$B$46,UF!$B9,Empresas!AQ$6:AQ$46)) ->  | AP9: =IF(Empresas!AR11="","",SUMIF(Empresas!$B$6:$B$46,UF!$B9,Empresas!AR$6:AR$46)) -> 
A10: =IFERROR(IF(OR(Dados!$D11="",Dados!$E11=""),"",IF(Dados!$E11>Dados!$D11,3,IF(Dados!$E11=Dados!$D11,2,1))),"") ->  | B10: MT | C10: =COUNTIF(Empresas!$B$5:$B$47,UF!$B10) -> 5 | D10: ="" ->  | E10: =IF(Empresas!G12="","",SUMIF(Empresas!$B$6:$B$50,UF!$B10,Empresas!G$6:G$46)) -> 144 | F10: =IF(Empresas!H12="","",SUMIF(Empresas!$B$6:$B$46,UF!$B10,Empresas!H$6:H$46)) -> 44 | G10: =IFERROR(F10/E10,"") -> 0.3055555556 | H10: =IF(Empresas!J12="","",SUMIF(Empresas!$B$6:$B$50,UF!$B10,Empresas!J$6:J$46)) -> 144 | I10: =IF(Empresas!K12="","",SUMIF(Empresas!$B$6:$B$46,UF!$B10,Empresas!K$6:K$46)) -> 43 | J10: =IFERROR(I10/H10,"") -> 0.2986111111 | K10: =IF(Empresas!M12="","",SUMIF(Empresas!$B$6:$B$46,UF!$B10,Empresas!M$6:M$46)) ->  | L10: =IF(Empresas!N12="","",SUMIF(Empresas!$B$6:$B$46,UF!$B10,Empresas!N$6:N$46)) ->  | M10: =IFERROR(L10/K10,"") ->  | N10: =IF(Empresas!P12="","",SUMIF(Empresas!$B$6:$B$46,UF!$B10,Empresas!P$6:P$46)) ->  | O10: =IF(Empresas!Q12="","",SUMIF(Empresas!$B$6:$B$46,UF!$B10,Empresas!Q$6:Q$46)) ->  | P10: =IFERROR(O10/N10,"") ->  | Q10: =IF(Empresas!S12="","",SUMIF(Empresas!$B$6:$B$46,UF!$B10,Empresas!S$6:S$46)) ->  | R10: =IF(Empresas!T12="","",SUMIF(Empresas!$B$6:$B$46,UF!$B10,Empresas!T$6:T$46)) ->  | S10: =IFERROR(R10/Q10,"") ->  | T10: =IF(Empresas!V12="","",SUMIF(Empresas!$B$6:$B$46,UF!$B10,Empresas!V$6:V$46)) ->  | U10: =IF(Empresas!W12="","",SUMIF(Empresas!$B$6:$B$46,UF!$B10,Empresas!W$6:W$46)) ->  | V10: =IFERROR(U10/T10,"") ->  | W10: =IF(Empresas!Y12="","",SUMIF(Empresas!$B$6:$B$46,UF!$B10,Empresas!Y$6:Y$46)) ->  | X10: =IF(Empresas!Z12="","",SUMIF(Empresas!$B$6:$B$46,UF!$B10,Empresas!Z$6:Z$46)) ->  | Y10: =IFERROR(X10/W10,"") ->  | Z10: =IF(Empresas!AB12="","",SUMIF(Empresas!$B$6:$B$46,UF!$B10,Empresas!AB$6:AB$46)) ->  | AA10: =IF(Empresas!AC12="","",SUMIF(Empresas!$B$6:$B$46,UF!$B10,Empresas!AC$6:AC$46)) ->  | AB10: =IFERROR(AA10/Z10,"") ->  | AC10: =IF(Empresas!AE12="","",SUMIF(Empresas!$B$6:$B$46,UF!$B10,Empresas!AE$6:AE$46)) ->  | AD10: =IF(Empresas!AF12="","",SUMIF(Empresas!$B$6:$B$46,UF!$B10,Empresas!AF$6:AF$46)) ->  | AE10: =IFERROR(AD10/AC10,"") ->  | AF10: =IF(Empresas!AH12="","",SUMIF(Empresas!$B$6:$B$46,UF!$B10,Empresas!AH$6:AH$46)) ->  | AG10: =IF(Empresas!AI12="","",SUMIF(Empresas!$B$6:$B$46,UF!$B10,Empresas!AI$6:AI$46)) ->  | AH10: =IFERROR(AG10/AF10,"") ->  | AI10: =IF(Empresas!AK12="","",SUMIF(Empresas!$B$6:$B$46,UF!$B10,Empresas!AK$6:AK$46)) ->  | AJ10: =IF(Empresas!AL12="","",SUMIF(Empresas!$B$6:$B$46,UF!$B10,Empresas!AL$6:AL$46)) ->  | AK10: =IFERROR(AJ10/AI10,"") ->  | AL10: =IF(Empresas!AN12="","",SUMIF(Empresas!$B$6:$B$46,UF!$B10,Empresas!AN$6:AN$46)) ->  | AM10: =IF(Empresas!AO12="","",SUMIF(Empresas!$B$6:$B$46,UF!$B10,Empresas!AO$6:AO$46)) ->  | AN10: =IFERROR(AM10/AL10,"") ->  | AO10: =IF(Empresas!AQ12="","",SUMIF(Empresas!$B$6:$B$46,UF!$B10,Empresas!AQ$6:AQ$46)) ->  | AP10: =IF(Empresas!AR12="","",SUMIF(Empresas!$B$6:$B$46,UF!$B10,Empresas!AR$6:AR$46)) ->  | AQ10: =IFERROR(AP10/AO10,"") -> 
A11: =IFERROR(IF(OR(Dados!$D12="",Dados!$E12=""),"",IF(Dados!$E12>Dados!$D12,3,IF(Dados!$E12=Dados!$D12,2,1))),"") ->  | B11: MS | C11: =COUNTIF(Empresas!$B$5:$B$47,UF!$B11) -> 5 | D11: ="" ->  | E11: =IF(Empresas!G13="","",SUMIF(Empresas!$B$6:$B$50,UF!$B11,Empresas!G$6:G$46)) -> 255 | F11: =IF(Empresas!H13="","",SUMIF(Empresas!$B$6:$B$46,UF!$B11,Empresas!H$6:H$46)) -> 111 | G11: 0.4352941176 | H11: =IF(Empresas!J13="","",SUMIF(Empresas!$B$6:$B$50,UF!$B11,Empresas!J$6:J$46)) -> 255 | I11: =IF(Empresas!K13="","",SUMIF(Empresas!$B$6:$B$46,UF!$B11,Empresas!K$6:K$46)) -> 112 | J11: 0.4392156863 | K11: =IF(Empresas!M13="","",SUMIF(Empresas!$B$6:$B$46,UF!$B11,Empresas!M$6:M$46)) ->  | L11: =IF(Empresas!N13="","",SUMIF(Empresas!$B$6:$B$46,UF!$B11,Empresas!N$6:N$46)) ->  | N11: =IF(Empresas!P13="","",SUMIF(Empresas!$B$6:$B$46,UF!$B11,Empresas!P$6:P$46)) ->  | O11: =IF(Empresas!Q13="","",SUMIF(Empresas!$B$6:$B$46,UF!$B11,Empresas!Q$6:Q$46)) ->  | Q11: =IF(Empresas!S13="","",SUMIF(Empresas!$B$6:$B$46,UF!$B11,Empresas!S$6:S$46)) ->  | R11: =IF(Empresas!T13="","",SUMIF(Empresas!$B$6:$B$46,UF!$B11,Empresas!T$6:T$46)) ->  | T11: =IF(Empresas!V13="","",SUMIF(Empresas!$B$6:$B$46,UF!$B11,Empresas!V$6:V$46)) ->  | U11: =IF(Empresas!W13="","",SUMIF(Empresas!$B$6:$B$46,UF!$B11,Empresas!W$6:W$46)) ->  | W11: =IF(Empresas!Y13="","",SUMIF(Empresas!$B$6:$B$46,UF!$B11,Empresas!Y$6:Y$46)) ->  | X11: =IF(Empresas!Z13="","",SUMIF(Empresas!$B$6:$B$46,UF!$B11,Empresas!Z$6:Z$46)) ->  | Z11: =IF(Empresas!AB13="","",SUMIF(Empresas!$B$6:$B$46,UF!$B11,Empresas!AB$6:AB$46)) ->  | AA11: =IF(Empresas!AC13="","",SUMIF(Empresas!$B$6:$B$46,UF!$B11,Empresas!AC$6:AC$46)) ->  | AC11: =IF(Empresas!AE13="","",SUMIF(Empresas!$B$6:$B$46,UF!$B11,Empresas!AE$6:AE$46)) ->  | AD11: =IF(Empresas!AF13="","",SUMIF(Empresas!$B$6:$B$46,UF!$B11,Empresas!AF$6:AF$46)) ->  | AF11: =IF(Empresas!AH13="","",SUMIF(Empresas!$B$6:$B$46,UF!$B11,Empresas!AH$6:AH$46)) ->  | AG11: =IF(Empresas!AI13="","",SUMIF(Empresas!$B$6:$B$46,UF!$B11,Empresas!AI$6:AI$46)) ->  | AI11: =IF(Empresas!AK13="","",SUMIF(Empresas!$B$6:$B$46,UF!$B11,Empresas!AK$6:AK$46)) ->  | AJ11: =IF(Empresas!AL13="","",SUMIF(Empresas!$B$6:$B$46,UF!$B11,Empresas!AL$6:AL$46)) ->  | AL11: =IF(Empresas!AN13="","",SUMIF(Empresas!$B$6:$B$46,UF!$B11,Empresas!AN$6:AN$46)) ->  | AM11: =IF(Empresas!AO13="","",SUMIF(Empresas!$B$6:$B$46,UF!$B11,Empresas!AO$6:AO$46)) ->  | AO11: =IF(Empresas!AQ13="","",SUMIF(Empresas!$B$6:$B$46,UF!$B11,Empresas!AQ$6:AQ$46)) ->  | AP11: =IF(Empresas!AR13="","",SUMIF(Empresas!$B$6:$B$46,UF!$B11,Empresas!AR$6:AR$46)) -> 
A12: =IFERROR(IF(OR(Dados!$D13="",Dados!$E13=""),"",IF(Dados!$E13>Dados!$D13,3,IF(Dados!$E13=Dados!$D13,2,1))),"") ->  | B12: MG | C12: =COUNTIF(Empresas!$B$5:$B$47,UF!$B12) -> 4 | D12: ="" ->  | E12: =IF(Empresas!G14="","",SUMIF(Empresas!$B$6:$B$50,UF!$B12,Empresas!G$6:G$46)) -> 134 | F12: =IF(Empresas!H14="","",SUMIF(Empresas!$B$6:$B$46,UF!$B12,Empresas!H$6:H$46)) -> 40 | G12: 0.2985074627 | H12: =IF(Empresas!J14="","",SUMIF(Empresas!$B$6:$B$50,UF!$B12,Empresas!J$6:J$46)) -> 134 | I12: =IF(Empresas!K14="","",SUMIF(Empresas!$B$6:$B$46,UF!$B12,Empresas!K$6:K$46)) -> 47 | J12: 0.3507462687 | K12: =IF(Empresas!M14="","",SUMIF(Empresas!$B$6:$B$46,UF!$B12,Empresas!M$6:M$46)) ->  | L12: =IF(Empresas!N14="","",SUMIF(Empresas!$B$6:$B$46,UF!$B12,Empresas!N$6:N$46)) ->  | N12: =IF(Empresas!P14="","",SUMIF(Empresas!$B$6:$B$46,UF!$B12,Empresas!P$6:P$46)) ->  | O12: =IF(Empresas!Q14="","",SUMIF(Empresas!$B$6:$B$46,UF!$B12,Empresas!Q$6:Q$46)) ->  | Q12: =IF(Empresas!S14="","",SUMIF(Empresas!$B$6:$B$46,UF!$B12,Empresas!S$6:S$46)) ->  | R12: =IF(Empresas!T14="","",SUMIF(Empresas!$B$6:$B$46,UF!$B12,Empresas!T$6:T$46)) ->  | T12: =IF(Empresas!V14="","",SUMIF(Empresas!$B$6:$B$46,UF!$B12,Empresas!V$6:V$46)) ->  | U12: =IF(Empresas!W14="","",SUMIF(Empresas!$B$6:$B$46,UF!$B12,Empresas!W$6:W$46)) ->  | W12: =IF(Empresas!Y14="","",SUMIF(Empresas!$B$6:$B$46,UF!$B12,Empresas!Y$6:Y$46)) ->  | X12: =IF(Empresas!Z14="","",SUMIF(Empresas!$B$6:$B$46,UF!$B12,Empresas!Z$6:Z$46)) ->  | Z12: =IF(Empresas!AB14="","",SUMIF(Empresas!$B$6:$B$46,UF!$B12,Empresas!AB$6:AB$46)) ->  | AA12: =IF(Empresas!AC14="","",SUMIF(Empresas!$B$6:$B$46,UF!$B12,Empresas!AC$6:AC$46)) ->  | AC12: =IF(Empresas!AE14="","",SUMIF(Empresas!$B$6:$B$46,UF!$B12,Empresas!AE$6:AE$46)) ->  | AD12: =IF(Empresas!AF14="","",SUMIF(Empresas!$B$6:$B$46,UF!$B12,Empresas!AF$6:AF$46)) ->  | AF12: =IF(Empresas!AH14="","",SUMIF(Empresas!$B$6:$B$46,UF!$B12,Empresas!AH$6:AH$46)) ->  | AG12: =IF(Empresas!AI14="","",SUMIF(Empresas!$B$6:$B$46,UF!$B12,Empresas!AI$6:AI$46)) ->  | AI12: =IF(Empresas!AK14="","",SUMIF(Empresas!$B$6:$B$46,UF!$B12,Empresas!AK$6:AK$46)) ->  | AJ12: =IF(Empresas!AL14="","",SUMIF(Empresas!$B$6:$B$46,UF!$B12,Empresas!AL$6:AL$46)) ->  | AL12: =IF(Empresas!AN14="","",SUMIF(Empresas!$B$6:$B$46,UF!$B12,Empresas!AN$6:AN$46)) ->  | AM12: =IF(Empresas!AO14="","",SUMIF(Empresas!$B$6:$B$46,UF!$B12,Empresas!AO$6:AO$46)) ->  | AO12: =IF(Empresas!AQ14="","",SUMIF(Empresas!$B$6:$B$46,UF!$B12,Empresas!AQ$6:AQ$46)) ->  | AP12: =IF(Empresas!AR14="","",SUMIF(Empresas!$B$6:$B$46,UF!$B12,Empresas!AR$6:AR$46)) -> 

Sheet Dados
C2: =MID(CELL("nome.arquivo",UF!A1),FIND("]",CELL("nome.arquivo",UF!A1))+1,LEN(CELL("nome.arquivo",UF!A1)))&"!" -> UF! | D2: COL | E2: 7
D3: LIN | E3: 12 | H3: % Atendimento | V3: Qtd. De Serviços Demandados | AK3: Qtd. De Serviços Demandados | AX3: Estado | AY3: =Dados!AK35 -> 0 | AZ3: =Dados!BM68 -> 0
G4: Estado | H4: =UF!$H$2 -> JANEIRO | I4: =UF!$K$2 -> FEVEREIRO | J4: =UF!$N$2 -> MARÇO | K4: =UF!$Q$2 -> ABRIL | L4: =UF!$T$2 -> MAIO | M4: =UF!$W$2 -> JUNHO | N4: =UF!$Z$2 -> JULHO | O4: =UF!$AC$2 -> AGOSTO | P4: =UF!$AF$2 -> SETEMBRO | Q4: =UF!$AI$2 -> OUTUBRO | R4: =UF!$AL$2 -> NOVEMBRO | S4: =UF!$AO$2 -> DEZEMBRO | U4: Estado | V4: =UF!$H$2 -> JANEIRO | W4: =UF!$K$2 -> FEVEREIRO | X4: =UF!$N$2 -> MARÇO | Y4: =UF!$Q$2 -> ABRIL | Z4: =UF!$T$2 -> MAIO | AA4: =UF!$W$2 -> JUNHO | AB4: =UF!$Z$2 -> JULHO | AC4: =UF!$AC$2 -> AGOSTO | AD4: =UF!$AF$2 -> SETEMBRO | AE4: =UF!$AI$2 -> OUTUBRO | AF4: =UF!$AL$2 -> NOVEMBRO | AG4: =UF!$AO$2 -> DEZEMBRO | AJ4: Estado | AK4: =UF!$H$2 -> JANEIRO | AL4: =UF!$K$2 -> FEVEREIRO | AM4: =UF!$N$2 -> MARÇO | AN4: =UF!$Q$2 -> ABRIL | AO4: =UF!$T$2 -> MAIO | AP4: =UF!$W$2 -> JUNHO | AQ4: =UF!$Z$2 -> JULHO | AR4: =UF!$AC$2 -> AGOSTO | AS4: =UF!$AF$2 -> SETEMBRO | AT4: =UF!$AI$2 -> OUTUBRO | AU4: =UF!$AL$2 -> NOVEMBRO | AV4: =UF!$AO$2 -> DEZEMBRO | AX4: =UF!$H$2 -> JANEIRO | AY4: =INDEX(Dados!$H$72:$P$83,ROW(AX4)-5,periodo) ->  | AZ4: =Dados!BM69 -> 0
B5: =IF(OR($D5="",$E5=""),"",IF($E5>$D5,3,IF($E5=$D5,2,1))) ->  | C5: 4 | D5: =INDIRECT($C$2&ADDRESS($C5,$E$2-3)) ->  | E5: =INDIRECT($C$2&ADDRESS($C5,$E$2)) -> 0.4 | G5: AM | H5: =IF(UF!$J$4="",#N/A,UF!$J$4) -> 0.5 | I5: =IF(UF!$M$4="",#N/A,UF!$M$4) ->  | J5: =IF(UF!$P$4="",#N/A,UF!$P$4) ->  | K5: =IF(UF!$S$4="",#N/A,UF!$S$4) ->  | L5: =IF(UF!$V$4="",#N/A,UF!$V$4) ->  | M5: =IF(UF!$Y$4="",#N/A,UF!$Y$4) ->  | N5: =IF(UF!$AB$4="",#N/A,UF!$AB$4) ->  | O5: =IF(UF!$AE$4="",#N/A,UF!$AE$4) ->  | P5: =IF(UF!$AH$4="",#N/A,UF!$AH$4) ->  | Q5: =IF(UF!$AK$4="",#N/A,UF!$AK$4) ->  | R5: =IF(UF!$AN$4="",#N/A,UF!$AN$4) ->  | S5: =IF(UF!$AQ$4="",#N/A,UF!$AQ$4) ->  | U5: AM | V5: =IF(UF!H4="",#N/A,UF!H4) -> 20 | W5: =IF(UF!K4="",#N/A,UF!K4) ->  | X5: =IF(UF!N4="",#N/A,UF!N4) ->  | Y5: =IF(UF!Q4="",#N/A,UF!Q4) ->  | Z5: =IF(UF!T4="",#N/A,UF!T4) ->  | AA5: =IF(UF!W4="",#N/A,UF!W4) ->  | AB5: =IF(UF!Z4="",#N/A,UF!Z4) ->  | AC5: =IF(UF!AC4="",#N/A,UF!AC4) ->  | AD5: =IF(UF!AF4="",#N/A,UF!AF4) ->  | AE5: =IF(UF!AI4="",#N/A,UF!AI4) ->  | AF5: =IF(UF!AL4="",#N/A,UF!AL4) ->  | AG5: =IF(UF!AO4="",#N/A,UF!AO4) ->  | AJ5: AM | AK5: =IF(UF!I4="",#N/A,UF!I4) -> 10 | AL5: =IF(UF!L4="",#N/A,UF!L4) ->  | AM5: =IF(UF!O4="",#N/A,UF!O4) ->  | AN5: =IF(UF!R4="",#N/A,UF!R4) ->  | AO5: =IF(UF!U4="",#N/A,UF!U4) ->  | AP5: =IF(UF!X4="",#N/A,UF!X4) ->  | AQ5: =IF(UF!AA4="",#N/A,UF!AA4) ->  | AR5: =IF(UF!AD4="",#N/A,UF!AD4) ->  | AS5: =IF(UF!AG4="",#N/A,UF!AG4) ->  | AT5: =IF(UF!AJ4="",#N/A,UF!AJ4) ->  | AU5: =IF(UF!AM4="",#N/A,UF!AM4) ->  | AV5: =IF(UF!AP4="",#N/A,UF!AP4) ->  | AX5: =UF!$K$2 -> FEVEREIRO | AY5: =INDEX(Dados!$H$72:$P$83,ROW(AX5)-5,periodo) ->  | AZ5: =Dados!AU70 -> 0
B6: =IF(OR($D6="",$E6=""),"",IF($E6>$D6,3,IF($E6=$D6,2,1))) ->  | C6: 5 | E6: 0.4438902743 | G6: BA | H6: =IF(UF!$J$5="",#N/A,UF!$J$5) -> 0.4239401496 | I6: =IF(UF!$M$5="",#N/A,UF!$M$5) ->  | J6: =IF(UF!$P$5="",#N/A,UF!$P$5) ->  | K6: =IF(UF!$S$5="",#N/A,UF!$S$5) ->  | L6: =IF(UF!$V$5="",#N/A,UF!$V$5) ->  | M6: =IF(UF!$Y$5="",#N/A,UF!$Y$5) ->  | N6: =IF(UF!$AB$5="",#N/A,UF!$AB$5) ->  | O6: =IF(UF!$AE$5="",#N/A,UF!$AE$5) ->  | P6: =IF(UF!$AH$5="",#N/A,UF!$AH$5) ->  | Q6: =IF(UF!$AK$5="",#N/A,UF!$AK$5) ->  | R6: =IF(UF!$AN$5="",#N/A,UF!$AN$5) ->  | S6: =IF(UF!$AQ$5="",#N/A,UF!$AQ$5) ->  | U6: BA | V6: =IF(UF!H5="",#N/A,UF!H5) -> 401 | W6: =IF(UF!K5="",#N/A,UF!K5) ->  | X6: =IF(UF!$N5="",#N/A,UF!$N5) ->  | Y6: =IF(UF!$Q5="",#N/A,UF!$Q5) ->  | Z6: =IF(UF!T5="",#N/A,UF!T5) ->  | AA6: =IF(UF!W5="",#N/A,UF!W5) ->  | AB6: =IF(UF!Z5="",#N/A,UF!Z5) ->  | AC6: =IF(UF!AC5="",#N/A,UF!AC5) ->  | AD6: =IF(UF!AF5="",#N/A,UF!AF5) ->  | AE6: =IF(UF!AI5="",#N/A,UF!AI5) ->  | AF6: =IF(UF!AL5="",#N/A,UF!AL5) ->  | AG6: =IF(UF!AO5="",#N/A,UF!AO5) ->  | AJ6: BA | AK6: =IF(UF!I5="",#N/A,UF!I5) -> 170 | AL6: =IF(UF!L5="",#N/A,UF!L5) ->  | AM6: =IF(UF!O5="",#N/A,UF!O5) ->  | AN6: =IF(UF!R5="",#N/A,UF!R5) ->  | AO6: =IF(UF!U5="",#N/A,UF!U5) ->  | AP6: =IF(UF!X5="",#N/A,UF!X5) ->  | AQ6: =IF(UF!AA5="",#N/A,UF!AA5) ->  | AR6: =IF(UF!AD5="",#N/A,UF!AD5) ->  | AS6: =IF(UF!AG5="",#N/A,UF!AG5) ->  | AT6: =IF(UF!AJ5="",#N/A,UF!AJ5) ->  | AU6: =IF(UF!AM5="",#N/A,UF!AM5) ->  | AV6: =IF(UF!AP5="",#N/A,UF!AP5) ->  | AX6: =UF!$N$2 -> MARÇO | AY6: =INDEX(Dados!$H$72:$P$83,ROW(AX6)-5,periodo) -> 0.4804469274 | AZ6: =Dados!AU72 -> 0
C7: 6 | E7: 0.1885057471 | G7: CE | H7: =IF(UF!$J$6="",#N/A,UF!$J$6) -> 0.2022988506 | I7: =IF(UF!$M$6="",#N/A,UF!$M$6) ->  | J7: =IF(UF!$P$6="",#N/A,UF!$P$6) ->  | K7: =IF(UF!$S$6="",#N/A,UF!$S$6) ->  | L7: =IF(UF!$V$6="",#N/A,UF!$V$6) ->  | M7: =IF(UF!$Y$6="",#N/A,UF!$Y$6) ->  | N7: =IF(UF!$AB$6="",#N/A,UF!$AB$6) ->  | O7: =IF(UF!$AE$6="",#N/A,UF!$AE$6) ->  | P7: =IF(UF!$AH$6="",#N/A,UF!$AH$6) ->  | Q7: =IF(UF!$AK$6="",#N/A,UF!$AK$6) ->  | R7: =IF(UF!$AN$6="",#N/A,UF!$AN$6) ->  | S7: =IF(UF!$AQ$6="",#N/A,UF!$AQ$6) ->  | U7: CE | V7: =IF(UF!H6="",#N/A,UF!H6) -> 1740 | W7: =IF(UF!K6="",#N/A,UF!K6) ->  | X7: =IF(UF!$N6="",#N/A,UF!$N6) ->  | Y7: =IF(UF!$Q6="",#N/A,UF!$Q6) ->  | Z7: =IF(UF!T6="",#N/A,UF!T6) ->  | AA7: =IF(UF!W6="",#N/A,UF!W6) ->  | AB7: =IF(UF!Z6="",#N/A,UF!Z6) ->  | AC7: =IF(UF!AC6="",#N/A,UF!AC6) ->  | AD7: =IF(UF!AF6="",#N/A,UF!AF6) ->  | AE7: =IF(UF!AI6="",#N/A,UF!AI6) ->  | AF7: =IF(UF!AL6="",#N/A,UF!AL6) ->  | AG7: =IF(UF!AO6="",#N/A,UF!AO6) ->  | AJ7: CE | AK7: =IF(UF!I6="",#N/A,UF!I6) -> 352 | AL7: =IF(UF!L6="",#N/A,UF!L6) ->  | AM7: =IF(UF!O6="",#N/A,UF!O6) ->  | AN7: =IF(UF!R6="",#N/A,UF!R6) ->  | AO7: =IF(UF!U6="",#N/A,UF!U6) ->  | AP7: =IF(UF!X6="",#N/A,UF!X6) ->  | AQ7: =IF(UF!AA6="",#N/A,UF!AA6) ->  | AR7: =IF(UF!AD6="",#N/A,UF!AD6) ->  | AS7: =IF(UF!AG6="",#N/A,UF!AG6) ->  | AT7: =IF(UF!AJ6="",#N/A,UF!AJ6) ->  | AU7: =IF(UF!AM6="",#N/A,UF!AM6) ->  | AV7: =IF(UF!AP6="",#N/A,UF!AP6) ->  | AX7: =UF!$Q$2 -> ABRIL | AY7: =INDEX(Dados!$H$72:$P$83,ROW(AX7)-5,periodo) ->  | AZ7: =Dados!AU73 -> 0
C8: 7 | E8: 0.4525139665 | G8: DF | H8: =IF(UF!$J$7="",#N/A,UF!$J$7) -> 0.4804469274 | I8: =IF(UF!$M$7="",#N/A,UF!$M$7) ->  | J8: =IF(UF!$P$7="",#N/A,UF!$P$7) ->  | K8: =IF(UF!$S$7="",#N/A,UF!$S$7) ->  | L8: =IF(UF!$V$7="",#N/A,UF!$V$7) ->  | M8: =IF(UF!$Y$7="",#N/A,UF!$Y$7) ->  | N8: =IF(UF!$AB$7="",#N/A,UF!$AB$7) ->  | O8: =IF(UF!$AE$7="",#N/A,UF!$AE$7) ->  | P8: =IF(UF!$AH$7="",#N/A,UF!$AH$7) ->  | Q8: =IF(UF!$AK$7="",#N/A,UF!$AK$7) ->  | R8: =IF(UF!$AN$7="",#N/A,UF!$AN$7) ->  | S8: =IF(UF!$AQ$7="",#N/A,UF!$AQ$7) ->  | U8: DF | V8: =IF(UF!H7="",#N/A,UF!H7) -> 358 | W8: =IF(UF!K7="",#N/A,UF!K7) ->  | X8: =IF(UF!$N7="",#N/A,UF!$N7) ->  | Y8: =IF(UF!$Q7="",#N/A,UF!$Q7) ->  | Z8: =IF(UF!T7="",#N/A,UF!T7) ->  | AA8: =IF(UF!W7="",#N/A,UF!W7) ->  | AB8: =IF(UF!Z7="",#N/A,UF!Z7) ->  | AC8: =IF(UF!AC7="",#N/A,UF!AC7) ->  | AD8: =IF(UF!AF7="",#N/A,UF!AF7) ->  | AE8: =IF(UF!AI7="",#N/A,UF!AI7) ->  | AF8: =IF(UF!AL7="",#N/A,UF!AL7) ->  | AG8: =IF(UF!AO7="",#N/A,UF!AO7) ->  | AJ8: DF | AK8: =IF(UF!I7="",#N/A,UF!I7) -> 172 | AL8: =IF(UF!L7="",#N/A,UF!L7) ->  | AM8: =IF(UF!O7="",#N/A,UF!O7) ->  | AN8: =IF(UF!R7="",#N/A,UF!R7) ->  | AO8: =IF(UF!U7="",#N/A,UF!U7) ->  | AP8: =IF(UF!X7="",#N/A,UF!X7) ->  | AQ8: =IF(UF!AA7="",#N/A,UF!AA7) ->  | AR8: =IF(UF!AD7="",#N/A,UF!AD7) ->  | AS8: =IF(UF!AG7="",#N/A,UF!AG7) ->  | AT8: =IF(UF!AJ7="",#N/A,UF!AJ7) ->  | AU8: =IF(UF!AM7="",#N/A,UF!AM7) ->  | AV8: =IF(UF!AP7="",#N/A,UF!AP7) ->  | AX8: =UF!$T$2 -> MAIO | AY8: =INDEX(Dados!$H$72:$P$83,ROW(AX8)-5,periodo) ->  | AZ8: =Dados!AU74 -> 0
C9: 8 | E9: 0.4545454545 | G9: GO | H9: =IF(UF!$J$8="",#N/A,UF!$J$8) -> 0.4480519481 | I9: =IF(UF!$M$8="",#N/A,UF!$M$8) ->  | J9: =IF(UF!$P$8="",#N/A,UF!$P$8) ->  | K9: =IF(UF!$S$8="",#N/A,UF!$S$8) ->  | L9: =IF(UF!$V$8="",#N/A,UF!$V$8) ->  | M9: =IF(UF!$Y$8="",#N/A,UF!$Y$8) ->  | N9: =IF(UF!$AB$8="",#N/A,UF!$AB$8) ->  | O9: =IF(UF!$AE$8="",#N/A,UF!$AE$8) ->  | P9: =IF(UF!$AH$8="",#N/A,UF!$AH$8) ->  | Q9: =IF(UF!$AK$8="",#N/A,UF!$AK$8) ->  | R9: =IF(UF!$AN$8="",#N/A,UF!$AN$8) ->  | S9: =IF(UF!$AQ$8="",#N/A,UF!$AQ$8) ->  | U9: GO | V9: =IF(UF!H8="",#N/A,UF!H8) -> 462 | W9: =IF(UF!K8="",#N/A,UF!K8) ->  | X9: =IF(UF!$N8="",#N/A,UF!$N8) ->  | Y9: =IF(UF!$Q8="",#N/A,UF!$Q8) ->  | Z9: =IF(UF!T8="",#N/A,UF!T8) ->  | AA9: =IF(UF!W8="",#N/A,UF!W8) ->  | AB9: =IF(UF!Z8="",#N/A,UF!Z8) ->  | AC9: =IF(UF!AC8="",#N/A,UF!AC8) ->  | AD9: =IF(UF!AF8="",#N/A,UF!AF8) ->  | AE9: =IF(UF!AI8="",#N/A,UF!AI8) ->  | AF9: =IF(UF!AL8="",#N/A,UF!AL8) ->  | AG9: =IF(UF!AO8="",#N/A,UF!AO8) ->  | AJ9: GO | AK9: =IF(UF!I8="",#N/A,UF!I8) -> 207 | AL9: =IF(UF!L8="",#N/A,UF!L8) ->  | AM9: =IF(UF!O8="",#N/A,UF!O8) ->  | AN9: =IF(UF!R8="",#N/A,UF!R8) ->  | AO9: =IF(UF!U8="",#N/A,UF!U8) ->  | AP9: =IF(UF!X8="",#N/A,UF!X8) ->  | AQ9: =IF(UF!AA8="",#N/A,UF!AA8) ->  | AR9: =IF(UF!AD8="",#N/A,UF!AD8) ->  | AS9: =IF(UF!AG8="",#N/A,UF!AG8) ->  | AT9: =IF(UF!AJ8="",#N/A,UF!AJ8) ->  | AU9: =IF(UF!AM8="",#N/A,UF!AM8) ->  | AV9: =IF(UF!AP8="",#N/A,UF!AP8) ->  | AX9: =UF!$W$2 -> JUNHO | AY9: =INDEX(Dados!$H$72:$P$83,ROW(AX9)-5,periodo) ->  | AZ9: =Dados!AU75 -> 0
C10: 9 | E10: 0.2092198582 | G10: MA | H10: =IF(UF!$J$9="",#N/A,UF!$J$9) -> 0.2375886525 | I10: =IF(UF!$M$9="",#N/A,UF!$M$9) ->  | J10: =IF(UF!$P$9="",#N/A,UF!$P$9) ->  | K10: =IF(UF!$S$9="",#N/A,UF!$S$9) ->  | L10: =IF(UF!$V$9="",#N/A,UF!$V$9) ->  | M10: =IF(UF!$Y$9="",#N/A,UF!$Y$9) ->  | N10: =IF(UF!$AB$9="",#N/A,UF!$AB$9) ->  | O10: =IF(UF!$AE$9="",#N/A,UF!$AE$9) ->  | P10: =IF(UF!$AH$9="",#N/A,UF!$AH$9) ->  | Q10: =IF(UF!$AK$9="",#N/A,UF!$AK$9) ->  | R10: =IF(UF!$AN$9="",#N/A,UF!$AN$9) ->  | S10: =IF(UF!$AQ$9="",#N/A,UF!$AQ$9) ->  | U10: MA | V10: =IF(UF!H9="",#N/A,UF!H9) -> 282 | W10: =IF(UF!K9="",#N/A,UF!K9) ->  | X10: =IF(UF!$N9="",#N/A,UF!$N9) ->  | Y10: =IF(UF!$Q9="",#N/A,UF!$Q9) ->  | Z10: =IF(UF!T9="",#N/A,UF!T9) ->  | AA10: =IF(UF!W9="",#N/A,UF!W9) ->  | AB10: =IF(UF!Z9="",#N/A,UF!Z9) ->  | AC10: =IF(UF!AC9="",#N/A,UF!AC9) ->  | AD10: =IF(UF!AF9="",#N/A,UF!AF9) ->  | AE10: =IF(UF!AI9="",#N/A,UF!AI9) ->  | AF10: =IF(UF!AL9="",#N/A,UF!AL9) ->  | AG10: =IF(UF!AO9="",#N/A,UF!AO9) ->  | AJ10: MA | AK10: =IF(UF!I9="",#N/A,UF!I9) -> 67 | AL10: =IF(UF!L9="",#N/A,UF!L9) ->  | AM10: =IF(UF!O9="",#N/A,UF!O9) ->  | AN10: =IF(UF!R9="",#N/A,UF!R9) ->  | AO10: =IF(UF!U9="",#N/A,UF!U9) ->  | AP10: =IF(UF!X9="",#N/A,UF!X9) ->  | AQ10: =IF(UF!AA9="",#N/A,UF!AA9) ->  | AR10: =IF(UF!AD9="",#N/A,UF!AD9) ->  | AS10: =IF(UF!AG9="",#N/A,UF!AG9) ->  | AT10: =IF(UF!AJ9="",#N/A,UF!AJ9) ->  | AU10: =IF(UF!AM9="",#N/A,UF!AM9) ->  | AV10: =IF(UF!AP9="",#N/A,UF!AP9) ->  | AX10: =UF!$Z$2 -> JULHO | AY10: =INDEX(Dados!$H$72:$P$83,ROW(AX10)-5,periodo) ->  | AZ10: =Dados!AU76 -> 0
C11: 10 | E11: 0.3055555556 | G11: MT | H11: =IF(UF!$J$10="",#N/A,UF!$J$10) -> 0.2986111111 | I11: =IF(UF!$M$10="",#N/A,UF!$M$10) ->  | J11: =IF(UF!$P$10="",#N/A,UF!$P$10) ->  | K11: =IF(UF!$S$10="",#N/A,UF!$S$10) ->  | L11: =IF(UF!$V$10="",#N/A,UF!$V$10) ->  | M11: =IF(UF!$Y$10="",#N/A,UF!$Y$10) ->  | N11: =IF(UF!$AB$10="",#N/A,UF!$AB$10) ->  | O11: =IF(UF!$AE$10="",#N/A,UF!$AE$10) ->  | P11: =IF(UF!$AH$10="",#N/A,UF!$AH$10) ->  | Q11: =IF(UF!$AK$10="",#N/A,UF!$AK$10) ->  | R11: =IF(UF!$AN$10="",#N/A,UF!$AN$10) ->  | S11: =IF(UF!$AQ$10="",#N/A,UF!$AQ$10) ->  | U11: MT | V11: =IF(UF!H10="",#N/A,UF!H10) -> 144 | W11: =IF(UF!K10="",#N/A,UF!K10) ->  | X11: =IF(UF!$N10="",#N/A,UF!$N10) ->  | Y11: =IF(UF!$Q10="",#N/A,UF!$Q10) ->  | Z11: =IF(UF!T10="",#N/A,UF!T10) ->  | AA11: =IF(UF!W10="",#N/A,UF!W10) ->  | AB11: =IF(UF!Z10="",#N/A,UF!Z10) ->  | AC11: =IF(UF!AC10="",#N/A,UF!AC10) ->  | AD11: =IF(UF!AF10="",#N/A,UF!AF10) ->  | AE11: =IF(UF!AI10="",#N/A,UF!AI10) ->  | AF11: =IF(UF!AL10="",#N/A,UF!AL10) ->  | AG11: =IF(UF!AO10="",#N/A,UF!AO10) ->  | AJ11: MT | AK11: =IF(UF!I10="",#N/A,UF!I10) -> 43 | AL11: =IF(UF!L10="",#N/A,UF!L10) ->  | AM11: =IF(UF!O10="",#N/A,UF!O10) ->  | AN11: =IF(UF!R10="",#N/A,UF!R10) ->  | AO11: =IF(UF!U10="",#N/A,UF!U10) ->  | AP11: =IF(UF!X10="",#N/A,UF!X10) ->  | AQ11: =IF(UF!AA10="",#N/A,UF!AA10) ->  | AR11: =IF(UF!AD10="",#N/A,UF!AD10) ->  | AS11: =IF(UF!AG10="",#N/A,UF!AG10) ->  | AT11: =IF(UF!AJ10="",#N/A,UF!AJ10) ->  | AU11: =IF(UF!AM10="",#N/A,UF!AM10) ->  | AV11: =IF(UF!AP10="",#N/A,UF!AP10) ->  | AX11: =UF!$AC$2 -> AGOSTO | AY11: =INDEX(Dados!$H$72:$P$83,ROW(AX11)-5,periodo) ->  | AZ11: =Dados!AU77 -> 0
C12: 11 | E12: 0.4352941176 | G12: MS | H12: =IF(UF!$J$11="",#N/A,UF!$J$11) -> 0.4392156863 | I12: =IF(UF!$M$11="",#N/A,UF!$M$11) ->  | J12: =IF(UF!$P$11="",#N/A,UF!$P$11) ->  | K12: =IF(UF!$S$11="",#N/A,UF!$S$11) ->  | L12: =IF(UF!$V$11="",#N/A,UF!$V$11) ->  | M12: =IF(UF!$Y$11="",#N/A,UF!$Y$11) ->  | N12: =IF(UF!$AB$11="",#N/A,UF!$AB$11) ->  | O12: =IF(UF!$AE$11="",#N/A,UF!$AE$11) ->  | P12: =IF(UF!$AH$11="",#N/A,UF!$AH$11) ->  | Q12: =IF(UF!$AK$11="",#N/A,UF!$AK$11) ->  | R12: =IF(UF!$AN$11="",#N/A,UF!$AN$11) ->  | S12: =IF(UF!$AQ$11="",#N/A,UF!$AQ$11) ->  | U12: MS | V12: =IF(UF!H11="",#N/A,UF!H11) -> 255 | W12: =IF(UF!K11="",#N/A,UF!K11) ->  | X12: =IF(UF!$N11="",#N/A,UF!$N11) ->  | Y12: =IF(UF!$Q11="",#N/A,UF!$Q11) ->  | Z12: =IF(UF!T11="",#N/A,UF!T11) ->  | AA12: =IF(UF!W11="",#N/A,UF!W11) ->  | AB12: =IF(UF!Z11="",#N/A,UF!Z11) ->  | AC12: =IF(UF!AC11="",#N/A,UF!AC11) ->  | AD12: =IF(UF!AF11="",#N/A,UF!AF11) ->  | AE12: =IF(UF!AI11="",#N/A,UF!AI11) ->  | AF12: =IF(UF!AL11="",#N/A,UF!AL11) ->  | AG12: =IF(UF!AO11="",#N/A,UF!AO11) ->  | AJ12: MS | AK12: =IF(UF!I11="",#N/A,UF!I11) -> 112 | AL12: =IF(UF!L11="",#N/A,UF!L11) ->  | AM12: =IF(UF!O11="",#N/A,UF!O11) ->  | AN12: =IF(UF!R11="",#N/A,UF!R11) ->  | AO12: =IF(UF!U11="",#N/A,UF!U11) ->  | AP12: =IF(UF!X11="",#N/A,UF!X11) ->  | AQ12: =IF(UF!AA11="",#N/A,UF!AA11) ->  | AR12: =IF(UF!AD11="",#N/A,UF!AD11) ->  | AS12: =IF(UF!AG11="",#N/A,UF!AG11) ->  | AT12: =IF(UF!AJ11="",#N/A,UF!AJ11) ->  | AU12: =IF(UF!AM11="",#N/A,UF!AM11) ->  | AV12: =IF(UF!AP11="",#N/A,UF!AP11) ->  | AX12: =UF!$AF$2 -> SETEMBRO | AY12: =INDEX(Dados!$H$72:$P$83,ROW(AX12)-5,periodo) ->  | AZ12: =Dados!AU78 -> 0
C13: 12 | E13: 0.2985074627 | G13: MG | H13: =IF(UF!$J$12="",#N/A,UF!$J$12) -> 0.3507462687 | I13: =IF(UF!$M$12="",#N/A,UF!$M$12) ->  | J13: =IF(UF!$P$12="",#N/A,UF!$P$12) ->  | K13: =IF(UF!$S$12="",#N/A,UF!$S$12) ->  | L13: =IF(UF!$V$12="",#N/A,UF!$V$12) ->  | M13: =IF(UF!$Y$12="",#N/A,UF!$Y$12) ->  | N13: =IF(UF!$AB$12="",#N/A,UF!$AB$12) ->  | O13: =IF(UF!$AE$12="",#N/A,UF!$AE$12) ->  | P13: =IF(UF!$AH$12="",#N/A,UF!$AH$12) ->  | Q13: =IF(UF!$AK$12="",#N/A,UF!$AK$12) ->  | R13: =IF(UF!$AN$12="",#N/A,UF!$AN$12) ->  | S13: =IF(UF!$AQ$12="",#N/A,UF!$AQ$12) ->  | U13: MG | V13: =IF(UF!H12="",#N/A,UF!H12) -> 134 | W13: =IF(UF!K12="",#N/A,UF!K12) ->  | X13: =IF(UF!$N12="",#N/A,UF!$N12) ->  | Y13: =IF(UF!$Q12="",#N/A,UF!$Q12) ->  | Z13: =IF(UF!T12="",#N/A,UF!T12) ->  | AA13: =IF(UF!W12="",#N/A,UF!W12) ->  | AB13: =IF(UF!Z12="",#N/A,UF!Z12) ->  | AC13: =IF(UF!AC12="",#N/A,UF!AC12) ->  | AD13: =IF(UF!AF12="",#N/A,UF!AF12) ->  | AE13: =IF(UF!AI12="",#N/A,UF!AI12) ->  | AF13: =IF(UF!AL12="",#N/A,UF!AL12) ->  | AG13: =IF(UF!AO12="",#N/A,UF!AO12) ->  | AJ13: MG | AK13: =IF(UF!I12="",#N/A,UF!I12) -> 47 | AL13: =IF(UF!L12="",#N/A,UF!L12) ->  | AM13: =IF(UF!O12="",#N/A,UF!O12) ->  | AN13: =IF(UF!R12="",#N/A,UF!R12) ->  | AO13: =IF(UF!U12="",#N/A,UF!U12) ->  | AP13: =IF(UF!X12="",#N/A,UF!X12) ->  | AQ13: =IF(UF!AA12="",#N/A,UF!AA12) ->  | AR13: =IF(UF!AD12="",#N/A,UF!AD12) ->  | AS13: =IF(UF!AG12="",#N/A,UF!AG12) ->  | AT13: =IF(UF!AJ12="",#N/A,UF!AJ12) ->  | AU13: =IF(UF!AM12="",#N/A,UF!AM12) ->  | AV13: =IF(UF!AP12="",#N/A,UF!AP12) ->  | AX13: =UF!$AI$2 -> OUTUBRO | AY13: =INDEX(Dados!$H$72:$P$83,ROW(AX13)-5,periodo) ->  | AZ13: =Dados!AU79 -> 0
B14: 2 | C14: 13 | D14: 0 | E14: 0 | AX14: =UF!$AL$2 -> NOVEMBRO | AY14: =INDEX(Dados!$H$72:$P$83,ROW(AX14)-5,periodo) ->  | AZ14: =Dados!AU80 -> 0
B15: 2 | C15: 14 | D15: 0 | E15: 0 | AX15: =UF!$AO$2 -> DEZEMBRO | AY15: =INDEX(Dados!$H$72:$P$83,ROW(AX15)-5,periodo) ->  | AZ15: =Dados!AU81 -> 0
B16: 2 | C16: 15 | D16: 0 | E16: 0
B17: 2 | C17: 16 | D17: 0 | E17: 0
B18: 2 | C18: 17 | D18: 0 | E18: 0
B19: 2 | C19: 18 | D19: 0 | E19: 0
B20: 2 | C20: 19 | D20: 0 | E20: 0
B21: 2 | C21: 20 | D21: 0 | E21: 0
B22: 2 | C22: 21 | D22: 0 | E22: 0
B23: 2 | C23: 22 | D23: 0 | E23: 0
B24: 2 | C24: 23 | D24: 0 | E24: 0
B25: 2 | C25: 24 | D25: 0 | E25: 0
B26: 2 | C26: 25 | D26: 0 | E26: 0
B27: 2 | C27: 26 | D27: 0 | E27: 0
B28: 2 | C28: 27 | D28: 0 | E28: 0
B29: 2 | C29: 28 | D29: 0 | E29: 0
B30: 2 | C30: 29 | D30: 0 | E30: 0
B31: 2 | C31: 30 | D31: 0 | E31: 0
B33: 5 | C33: JANEIRO | D33: ABRIL | E33: 16 | K33: 1 | L33: AM | M33: AM
B34: 6 | C34: JANEIRO | D34: ABRIL | E34: 15 | K34: 2 | L34: BA | M34: BA | P34: 1 | Q34: JANEIRO | R34: JAN
B35: 7 | C35: JANEIRO | D35: ABRIL | E35: 14 | K35: 3 | L35: CE | M35: CE | P35: 2 | Q35: FEVEREIRO | R35: FEV
B36: 8 | C36: FEVEREIRO | D36: AGOSTO | E36: 28 | G36: REF | H36: 4 | I36: =INDEX($K$33:$K$59,MATCH('Planilha (B)'!$C$4,Dados!$L$33:$L$59,0)) ->  | K36: 4 | L36: DF | M36: DF | P36: 3 | Q36: MARÇO | R36: MAR
B37: 9 | C37: FEVEREIRO | D37: AGOSTO | E37: 27 | G37: PERÍODO | H37: =VLOOKUP(periodo,Dados!$K$33:$L$59,2,0) -> DF | K37: 5 | L37: GO | M37: GO | P37: 4 | Q37: ABRIL | R37: ABR
B38: 10 | C38: FEVEREIRO | D38: AGOSTO | E38: 26 | K38: 6 | L38: MA | M38: MA | P38: 5 | Q38: MAIO | R38: MAI
B39: 11 | C39: MARÇO | D39: DEZEMBRO | E39: 40 | K39: 9 | L39: MG | M39: MG | P39: 6 | Q39: JUNHO | R39: JUN
B40: 12 | C40: MARÇO | D40: DEZEMBRO | E40: 39 | K40: 8 | L40: MS | M40: MS | P40: 7 | Q40: JULHO | R40: JUL
B41: 13 | C41: MARÇO | D41: DEZEMBRO | E41: 38 | K41: 7 | L41: MT | M41: MT | P41: 8 | Q41: AGOSTO | R41: AGO
B42: 14 | C42: ABRIL | D42: FEVEREIRO | E42: 10 | P42: 9 | Q42: SETEMBRO | R42: SET
B43: 15 | C43: ABRIL | D43: FEVEREIRO | E43: 9 | H43: =CONCATENATE(H41,H42) ->  | P43: 10 | Q43: OUTUBRO | R43: OUT
B44: 16 | C44: ABRIL | D44: FEVEREIRO | E44: 8 | P44: 11 | Q44: NOVEMBRO | R44: NOV
B45: 17 | C45: MAIO | D45: JANEIRO | E45: 7 | P45: 12 | Q45: DEZEMBRO | R45: DEZ
B46: 18 | C46: MAIO | D46: JANEIRO | E46: 6
B47: 19 | C47: MAIO | D47: JANEIRO | E47: 5
B48: 20 | C48: JUNHO | D48: JULHO | E48: 25
B49: 21 | C49: JUNHO | D49: JULHO | E49: 24
B50: 22 | C50: JUNHO | D50: JULHO | E50: 23
B51: 23 | C51: JULHO | D51: JUNHO | E51: 22
B52: 24 | C52: JULHO | D52: JUNHO | E52: 21
B53: 25 | C53: JULHO | D53: JUNHO | E53: 20
B54: 26 | C54: AGOSTO | D54: MAIO | E54: 19
B55: 27 | C55: AGOSTO | D55: MAIO | E55: 18
B56: 28 | C56: AGOSTO | D56: MAIO | E56: 17
B57: 29 | C57: SETEMBRO | D57: MARÇO | E57: 13
B58: 30 | C58: SETEMBRO | D58: MARÇO | E58: 12
B59: 31 | C59: SETEMBRO | D59: MARÇO | E59: 11
B60: 32 | C60: OUTUBRO | D60: NOVEMBRO | E60: 37
B61: 33 | C61: OUTUBRO | D61: NOVEMBRO | E61: 36
B62: 34 | C62: OUTUBRO | D62: NOVEMBRO | E62: 35
B63: 35 | C63: NOVEMBRO | D63: OUTUBRO | E63: 34
B64: 36 | C64: NOVEMBRO | D64: OUTUBRO | E64: 33
B65: 37 | C65: NOVEMBRO | D65: OUTUBRO | E65: 32
B66: 38 | C66: DEZEMBRO | D66: SETEMBRO | E66: 31
B67: 39 | C67: DEZEMBRO | D67: SETEMBRO | E67: 30
B68: 40 | C68: DEZEMBRO | D68: SETEMBRO | E68: 29
G70: Estado | H70: AM | I70: BA | J70: CE | K70: DF | L70: GO | M70: MA | N70: MG | O70: MS | P70: MT | R70: BRASIL
G71: 2017 | H71: =IF(UF!$G$4="",#N/A,UF!$G$4) -> 0.4 | I71: =IF(UF!$G$5="",#N/A,UF!$G$5) -> 0.4438902743 | J71: =IF(UF!$G$6="",#N/A,UF!$G$6) -> 0.1885057471 | K71: =IF(UF!$G$7="",#N/A,UF!$G$7) -> 0.4525139665 | L71: =IF(UF!$G$8="",#N/A,UF!$G$8) -> 0.4545454545 | M71: =IF(UF!$G$9="",#N/A,UF!$G$9) -> 0.2092198582 | N71: =IF(UF!$G$10="",#N/A,UF!$G$10) -> 0.3055555556 | O71: =IF(UF!$G$11="",#N/A,UF!$G$11) -> 0.4352941176 | P71: =IF(UF!$G$12="",#N/A,UF!$G$12) -> 0.2985074627 | R71: =AVERAGE(H71:P71) -> 0.3542258263
G72: =UF!$H$2 -> JANEIRO | H72: =IF(UF!$J$4="",#N/A,UF!$J$4) -> 0.5 | I72: =IF(UF!$J$5="",#N/A,UF!$J$5) -> 0.4239401496 | J72: =IF(UF!$J$6="",#N/A,UF!$J$6) -> 0.2022988506 | K72: =IF(UF!$J$7="",#N/A,UF!$J$7) -> 0.4804469274 | L72: =IF(UF!$J$8="",#N/A,UF!$J$8) -> 0.4480519481 | M72: =IF(UF!$J$9="",#N/A,UF!$J$9) -> 0.2375886525 | N72: =IF(UF!$J$10="",#N/A,UF!$J$10) -> 0.2986111111 | O72: =IF(UF!$J$11="",#N/A,UF!$J$11) -> 0.4392156863 | P72: =IF(UF!$J$12="",#N/A,UF!$J$12) -> 0.3507462687 | R72: =AVERAGE(H72:P72) -> 0.3756555105
G73: =UF!$K$2 -> FEVEREIRO | H73: =IF(UF!$M$4="",#N/A,UF!$M$4) ->  | I73: =IF(UF!$M$5="",#N/A,UF!$M$5) ->  | J73: =IF(UF!$M$6="",#N/A,UF!$M$6) ->  | K73: =IF(UF!$M$7="",#N/A,UF!$M$7) ->  | L73: =IF(UF!$M$8="",#N/A,UF!$M$8) ->  | M73: =IF(UF!$M$9="",#N/A,UF!$M$9) ->  | N73: =IF(UF!$M$10="",#N/A,UF!$M$10) ->  | O73: =IF(UF!$M$11="",#N/A,UF!$M$11) ->  | P73: =IF(UF!$M$12="",#N/A,UF!$M$12) ->  | R73: =AVERAGE(H73:P73) -> 
G74: =UF!$N$2 -> MARÇO | H74: =IF(UF!$P$4="",#N/A,UF!$P$4) ->  | I74: =IF(UF!$P$5="",#N/A,UF!$P$5) ->  | J74: =IF(UF!$P$6="",#N/A,UF!$P$6) ->  | K74: =IF(UF!$P$7="",#N/A,UF!$P$7) ->  | L74: =IF(UF!$P$8="",#N/A,UF!$P$8) ->  | M74: =IF(UF!$P$9="",#N/A,UF!$P$9) ->  | N74: =IF(UF!$P$10="",#N/A,UF!$P$10) ->  | O74: =IF(UF!$P$11="",#N/A,UF!$P$11) ->  | P74: =IF(UF!$P$12="",#N/A,UF!$P$12) ->  | R74: =AVERAGE(H74:P74) -> 
G75: =UF!$Q$2 -> ABRIL | H75: =IF(UF!$S$4="",#N/A,UF!$S$4) ->  | I75: =IF(UF!$S$5="",#N/A,UF!$S$5) ->  | J75: =IF(UF!$S$6="",#N/A,UF!$S$6) ->  | K75: =IF(UF!$S$7="",#N/A,UF!$S$7) ->  | L75: =IF(UF!$S$8="",#N/A,UF!$S$8) ->  | M75: =IF(UF!$S$9="",#N/A,UF!$S$9) ->  | N75: =IF(UF!$S$10="",#N/A,UF!$S$10) ->  | O75: =IF(UF!$S$11="",#N/A,UF!$S$11) ->  | P75: =IF(UF!$S$12="",#N/A,UF!$S$12) ->  | R75: =AVERAGE(H75:P75) -> 
G76: =UF!$T$2 -> MAIO | H76: =IF(UF!$V$4="",#N/A,UF!$V$4) ->  | I76: =IF(UF!$V$5="",#N/A,UF!$V$5) ->  | J76: =IF(UF!$V$6="",#N/A,UF!$V$6) ->  | K76: =IF(UF!$V$7="",#N/A,UF!$V$7) ->  | L76: =IF(UF!$V$8="",#N/A,UF!$V$8) ->  | M76: =IF(UF!$V$9="",#N/A,UF!$V$9) ->  | N76: =IF(UF!$V$10="",#N/A,UF!$V$10) ->  | O76: =IF(UF!$V$11="",#N/A,UF!$V$11) ->  | P76: =IF(UF!$V$12="",#N/A,UF!$V$12) ->  | R76: =AVERAGE(H76:P76) -> 
G77: =UF!$W$2 -> JUNHO | H77: =IF(UF!$Y$4="",#N/A,UF!$Y$4) ->  | I77: =IF(UF!$Y$5="",#N/A,UF!$Y$5) ->  | J77: =IF(UF!$Y$6="",#N/A,UF!$Y$6) ->  | K77: =IF(UF!$Y$7="",#N/A,UF!$Y$7) ->  | L77: =IF(UF!$Y$8="",#N/A,UF!$Y$8) ->  | M77: =IF(UF!$Y$9="",#N/A,UF!$Y$9) ->  | N77: =IF(UF!$Y$10="",#N/A,UF!$Y$10) ->  | O77: =IF(UF!$Y$11="",#N/A,UF!$Y$11) ->  | P77: =IF(UF!$Y$12="",#N/A,UF!$Y$12) ->  | R77: =AVERAGE(H77:P77) -> 
G78: =UF!$Z$2 -> JULHO | H78: =IF(UF!$AB$4="",#N/A,UF!$AB$4) ->  | I78: =IF(UF!$AB$5="",#N/A,UF!$AB$5) ->  | J78: =IF(UF!$AB$6="",#N/A,UF!$AB$6) ->  | K78: =IF(UF!$AB$7="",#N/A,UF!$AB$7) ->  | L78: =IF(UF!$AB$8="",#N/A,UF!$AB$8) ->  | M78: =IF(UF!$AB$9="",#N/A,UF!$AB$9) ->  | N78: =IF(UF!$AB$10="",#N/A,UF!$AB$10) ->  | O78: =IF(UF!$AB$11="",#N/A,UF!$AB$11) ->  | P78: =IF(UF!$AB$12="",#N/A,UF!$AB$12) ->  | R78: =AVERAGE(H78:P78) -> 
G79: =UF!$AC$2 -> AGOSTO | H79: =IF(UF!$AE$4="",#N/A,UF!$AE$4) ->  | I79: =IF(UF!$AE$5="",#N/A,UF!$AE$5) ->  | J79: =IF(UF!$AE$6="",#N/A,UF!$AE$6) ->  | K79: =IF(UF!$AE$7="",#N/A,UF!$AE$7) ->  | L79: =IF(UF!$AE$8="",#N/A,UF!$AE$8) ->  | M79: =IF(UF!$AE$9="",#N/A,UF!$AE$9) ->  | N79: =IF(UF!$AE$10="",#N/A,UF!$AE$10) ->  | O79: =IF(UF!$AE$11="",#N/A,UF!$AE$11) ->  | P79: =IF(UF!$AE$12="",#N/A,UF!$AE$12) ->  | R79: =AVERAGE(H79:P79) -> 
G80: =UF!$AF$2 -> SETEMBRO | H80: =IF(UF!$AH$4="",#N/A,UF!$AH$4) ->  | I80: =IF(UF!$AH$5="",#N/A,UF!$AH$5) ->  | J80: =IF(UF!$AH$6="",#N/A,UF!$AH$6) ->  | K80: =IF(UF!$AH$7="",#N/A,UF!$AH$7) ->  | L80: =IF(UF!$AH$8="",#N/A,UF!$AH$8) ->  | M80: =IF(UF!$AH$9="",#N/A,UF!$AH$9) ->  | N80: =IF(UF!$AH$10="",#N/A,UF!$AH$10) ->  | O80: =IF(UF!$AH$11="",#N/A,UF!$AH$11) ->  | P80: =IF(UF!$AH$12="",#N/A,UF!$AH$12) ->  | R80: =AVERAGE(H80:P80) -> 
G81: =UF!$AI$2 -> OUTUBRO | H81: =IF(UF!$AK$4="",#N/A,UF!$AK$4) ->  | I81: =IF(UF!$AK$5="",#N/A,UF!$AK$5) ->  | J81: =IF(UF!$AK$6="",#N/A,UF!$AK$6) ->  | K81: =IF(UF!$AK$7="",#N/A,UF!$AK$7) ->  | L81: =IF(UF!$AK$8="",#N/A,UF!$AK$8) ->  | M81: =IF(UF!$AK$9="",#N/A,UF!$AK$9) ->  | N81: =IF(UF!$AK$10="",#N/A,UF!$AK$10) ->  | O81: =IF(UF!$AK$11="",#N/A,UF!$AK$11) ->  | P81: =IF(UF!$AK$12="",#N/A,UF!$AK$12) ->  | R81: =AVERAGE(H81:P81) -> 
G82: =UF!$AL$2 -> NOVEMBRO | H82: =IF(UF!$AN$4="",#N/A,UF!$AN$4) ->  | I82: =IF(UF!$AN$5="",#N/A,UF!$AN$5) ->  | J82: =IF(UF!$AN$6="",#N/A,UF!$AN$6) ->  | K82: =IF(UF!$AN$7="",#N/A,UF!$AN$7) ->  | L82: =IF(UF!$AN$8="",#N/A,UF!$AN$8) ->  | M82: =IF(UF!$AN$9="",#N/A,UF!$AN$9) ->  | N82: =IF(UF!$AN$10="",#N/A,UF!$AN$10) ->  | O82: =IF(UF!$AN$11="",#N/A,UF!$AN$11) ->  | P82: =IF(UF!$AN$12="",#N/A,UF!$AN$12) ->  | R82: =AVERAGE(H82:P82) -> 
G83: =UF!$AO$2 -> DEZEMBRO | H83: =IF(UF!$AQ$4="",#N/A,UF!$AQ$4) ->  | I83: =IF(UF!$AQ$5="",#N/A,UF!$AQ$5) ->  | J83: =IF(UF!$AQ$6="",#N/A,UF!$AQ$6) ->  | K83: =IF(UF!$AQ$7="",#N/A,UF!$AQ$7) ->  | L83: =IF(UF!$AQ$8="",#N/A,UF!$AQ$8) ->  | M83: =IF(UF!$AQ$9="",#N/A,UF!$AQ$9) ->  | N83: =IF(UF!$AQ$10="",#N/A,UF!$AQ$10) ->  | O83: =IF(UF!$AQ$11="",#N/A,UF!$AQ$11) ->  | P83: =IF(UF!$AQ$12="",#N/A,UF!$AQ$12) ->  | R83: =AVERAGE(H83:P83) -> 
G85: EMPRESA | H85: COD | I85: =UF!$E$2 -> 2017 | J85: =UF!$H$2 -> JANEIRO | K85: =UF!$K$2 -> FEVEREIRO | L85: =UF!$N$2 -> MARÇO | M85: =UF!$Q$2 -> ABRIL | N85: =UF!$T$2 -> MAIO | O85: =UF!$W$2 -> JUNHO | P85: =UF!$Z$2 -> JULHO | Q85: =UF!$AC$2 -> AGOSTO | R85: =UF!$AF$2 -> SETEMBRO | S85: =UF!$AI$2 -> OUTUBRO | T85: =UF!$AL$2 -> NOVEMBRO | U85: =UF!$AO$2 -> DEZEMBRO
F86: 1 | G86: ='Planilha (A)'!C25 -> EMPRESA 13 | H86: ='Planilha (A)'!B25 -> 13 | I86: =IF('Planilha (A)'!G25="",#N/A,'Planilha (A)'!G25) -> 0.25 | J86: =IF('Planilha (A)'!J25="",#N/A,'Planilha (A)'!J25) -> 0.4027777778 | K86: =IF('Planilha (A)'!M25="",#N/A,'Planilha (A)'!M25) ->  | L86: =IF('Planilha (A)'!P25="",#N/A,'Planilha (A)'!P25) ->  | M86: =IF('Planilha (A)'!S25="",#N/A,'Planilha (A)'!S25) ->  | N86: =IF('Planilha (A)'!V25="",#N/A,'Planilha (A)'!V25) ->  | O86: =IF('Planilha (A)'!Y25="",#N/A,'Planilha (A)'!Y25) ->  | P86: =IF('Planilha (A)'!AB25="",#N/A,'Planilha (A)'!AB25) ->  | Q86: =IF('Planilha (A)'!AE25="",#N/A,'Planilha (A)'!AE25) ->  | R86: =IF('Planilha (A)'!AH25="",#N/A,'Planilha (A)'!AH25) ->  | S86: =IF('Planilha (A)'!AK25="",#N/A,'Planilha (A)'!AK25) ->  | T86: =IF('Planilha (A)'!AN25="",#N/A,'Planilha (A)'!AN25) ->  | U86: =IF('Planilha (A)'!AQ25="",#N/A,'Planilha (A)'!AQ25) -> 
F87: 2 | G87: ='Planilha (A)'!C26 -> EMPRESA 14 | H87: ='Planilha (A)'!B26 -> 14 | I87: =IF('Planilha (A)'!G26="",#N/A,'Planilha (A)'!G26) -> 0.4328358209 | J87: =IF('Planilha (A)'!J26="",#N/A,'Planilha (A)'!J26) -> 0.4179104478 | K87: =IF('Planilha (A)'!M26="",#N/A,'Planilha (A)'!M26) ->  | L87: =IF('Planilha (A)'!P26="",#N/A,'Planilha (A)'!P26) ->  | M87: =IF('Planilha (A)'!S26="",#N/A,'Planilha (A)'!S26) ->  | N87: =IF('Planilha (A)'!V26="",#N/A,'Planilha (A)'!V26) ->  | O87: =IF('Planilha (A)'!Y26="",#N/A,'Planilha (A)'!Y26) ->  | P87: =IF('Planilha (A)'!AB26="",#N/A,'Planilha (A)'!AB26) ->  | Q87: =IF('Planilha (A)'!AE26="",#N/A,'Planilha (A)'!AE26) ->  | R87: =IF('Planilha (A)'!AH26="",#N/A,'Planilha (A)'!AH26) ->  | S87: =IF('Planilha (A)'!AK26="",#N/A,'Planilha (A)'!AK26) ->  | T87: =IF('Planilha (A)'!AN26="",#N/A,'Planilha (A)'!AN26) ->  | U87: =IF('Planilha (A)'!AQ26="",#N/A,'Planilha (A)'!AQ26) -> 
F88: 3 | G88: ='Planilha (A)'!C27 -> EMPRESA 15 | H88: ='Planilha (A)'!B27 -> 15 | I88: =IF('Planilha (A)'!G27="",#N/A,'Planilha (A)'!G27) -> 0.170212766 | J88: =IF('Planilha (A)'!J27="",#N/A,'Planilha (A)'!J27) -> 0.2553191489 | K88: =IF('Planilha (A)'!M27="",#N/A,'Planilha (A)'!M27) ->  | L88: =IF('Planilha (A)'!P27="",#N/A,'Planilha (A)'!P27) ->  | M88: =IF('Planilha (A)'!S27="",#N/A,'Planilha (A)'!S27) ->  | N88: =IF('Planilha (A)'!V27="",#N/A,'Planilha (A)'!V27) ->  | O88: =IF('Planilha (A)'!Y27="",#N/A,'Planilha (A)'!Y27) ->  | P88: =IF('Planilha (A)'!AB27="",#N/A,'Planilha (A)'!AB27) ->  | Q88: =IF('Planilha (A)'!AE27="",#N/A,'Planilha (A)'!AE27) ->  | R88: =IF('Planilha (A)'!AH27="",#N/A,'Planilha (A)'!AH27) ->  | S88: =IF('Planilha (A)'!AK27="",#N/A,'Planilha (A)'!AK27) ->  | T88: =IF('Planilha (A)'!AN27="",#N/A,'Planilha (A)'!AN27) ->  | U88: =IF('Planilha (A)'!AQ27="",#N/A,'Planilha (A)'!AQ27) -> 
F89: 4 | G89: ='Planilha (A)'!C28 -> EMPRESA 16 | H89: ='Planilha (A)'!B28 -> 16 | I89: =IF('Planilha (A)'!G28="",#N/A,'Planilha (A)'!G28) -> 0.9411764706 | J89: =IF('Planilha (A)'!J28="",#N/A,'Planilha (A)'!J28) -> 0.7764705882 | K89: =IF('Planilha (A)'!M28="",#N/A,'Planilha (A)'!M28) ->  | L89: =IF('Planilha (A)'!P28="",#N/A,'Planilha (A)'!P28) ->  | M89: =IF('Planilha (A)'!S28="",#N/A,'Planilha (A)'!S28) ->  | N89: =IF('Planilha (A)'!V28="",#N/A,'Planilha (A)'!V28) ->  | O89: =IF('Planilha (A)'!Y28="",#N/A,'Planilha (A)'!Y28) ->  | P89: =IF('Planilha (A)'!AB28="",#N/A,'Planilha (A)'!AB28) ->  | Q89: =IF('Planilha (A)'!AE28="",#N/A,'Planilha (A)'!AE28) ->  | R89: =IF('Planilha (A)'!AH28="",#N/A,'Planilha (A)'!AH28) ->  | S89: =IF('Planilha (A)'!AK28="",#N/A,'Planilha (A)'!AK28) ->  | T89: =IF('Planilha (A)'!AN28="",#N/A,'Planilha (A)'!AN28) ->  | U89: =IF('Planilha (A)'!AQ28="",#N/A,'Planilha (A)'!AQ28) -> 
F90: 5 | G90: ='Planilha (A)'!C29 -> EMPRESA 17 | H90: ='Planilha (A)'!B29 -> 17 | I90: =IF('Planilha (A)'!G29="",#N/A,'Planilha (A)'!G29) -> 0.3103448276 | J90: =IF('Planilha (A)'!J29="",#N/A,'Planilha (A)'!J29) -> 0.4252873563 | K90: =IF('Planilha (A)'!M29="",#N/A,'Planilha (A)'!M29) ->  | L90: =IF('Planilha (A)'!P29="",#N/A,'Planilha (A)'!P29) ->  | M90: =IF('Planilha (A)'!S29="",#N/A,'Planilha (A)'!S29) ->  | N90: =IF('Planilha (A)'!V29="",#N/A,'Planilha (A)'!V29) ->  | O90: =IF('Planilha (A)'!Y29="",#N/A,'Planilha (A)'!Y29) ->  | P90: =IF('Planilha (A)'!AB29="",#N/A,'Planilha (A)'!AB29) ->  | Q90: =IF('Planilha (A)'!AE29="",#N/A,'Planilha (A)'!AE29) ->  | R90: =IF('Planilha (A)'!AH29="",#N/A,'Planilha (A)'!AH29) ->  | S90: =IF('Planilha (A)'!AK29="",#N/A,'Planilha (A)'!AK29) ->  | T90: =IF('Planilha (A)'!AN29="",#N/A,'Planilha (A)'!AN29) ->  | U90: =IF('Planilha (A)'!AQ29="",#N/A,'Planilha (A)'!AQ29) -> 
F91: 6 | G91: ='Planilha (A)'!C30 ->  | H91: ='Planilha (A)'!B30 ->  | I91: =IF('Planilha (A)'!G30="",#N/A,'Planilha (A)'!G30) ->  | J91: =IF('Planilha (A)'!J30="",#N/A,'Planilha (A)'!J30) ->  | K91: =IF('Planilha (A)'!M30="",#N/A,'Planilha (A)'!M30) ->  | L91: =IF('Planilha (A)'!P30="",#N/A,'Planilha (A)'!P30) ->  | M91: =IF('Planilha (A)'!S30="",#N/A,'Planilha (A)'!S30) ->  | N91: =IF('Planilha (A)'!V30="",#N/A,'Planilha (A)'!V30) ->  | O91: =IF('Planilha (A)'!Y30="",#N/A,'Planilha (A)'!Y30) ->  | P91: =IF('Planilha (A)'!AB30="",#N/A,'Planilha (A)'!AB30) ->  | Q91: =IF('Planilha (A)'!AE30="",#N/A,'Planilha (A)'!AE30) ->  | R91: =IF('Planilha (A)'!AH30="",#N/A,'Planilha (A)'!AH30) ->  | S91: =IF('Planilha (A)'!AK30="",#N/A,'Planilha (A)'!AK30) ->  | T91: =IF('Planilha (A)'!AN30="",#N/A,'Planilha (A)'!AN30) ->  | U91: =IF('Planilha (A)'!AQ30="",#N/A,'Planilha (A)'!AQ30) -> 
F92: 7 | G92: ='Planilha (A)'!C31 ->  | H92: ='Planilha (A)'!B31 ->  | I92: =IF('Planilha (A)'!G31="",#N/A,'Planilha (A)'!G31) ->  | J92: =IF('Planilha (A)'!J31="",#N/A,'Planilha (A)'!J31) ->  | K92: =IF('Planilha (A)'!M31="",#N/A,'Planilha (A)'!M31) ->  | L92: =IF('Planilha (A)'!P31="",#N/A,'Planilha (A)'!P31) ->  | M92: =IF('Planilha (A)'!S31="",#N/A,'Planilha (A)'!S31) ->  | N92: =IF('Planilha (A)'!V31="",#N/A,'Planilha (A)'!V31) ->  | O92: =IF('Planilha (A)'!Y31="",#N/A,'Planilha (A)'!Y31) ->  | P92: =IF('Planilha (A)'!AB31="",#N/A,'Planilha (A)'!AB31) ->  | Q92: =IF('Planilha (A)'!AE31="",#N/A,'Planilha (A)'!AE31) ->  | R92: =IF('Planilha (A)'!AH31="",#N/A,'Planilha (A)'!AH31) ->  | S92: =IF('Planilha (A)'!AK31="",#N/A,'Planilha (A)'!AK31) ->  | T92: =IF('Planilha (A)'!AN31="",#N/A,'Planilha (A)'!AN31) ->  | U92: =IF('Planilha (A)'!AQ31="",#N/A,'Planilha (A)'!AQ31) -> 
F93: 8 | G93: ='Planilha (A)'!C32 ->  | H93: ='Planilha (A)'!B32 ->  | I93: =IF('Planilha (A)'!G32="",#N/A,'Planilha (A)'!G32) ->  | J93: =IF('Planilha (A)'!J32="",#N/A,'Planilha (A)'!J32) ->  | K93: =IF('Planilha (A)'!M32="",#N/A,'Planilha (A)'!M32) ->  | L93: =IF('Planilha (A)'!P32="",#N/A,'Planilha (A)'!P32) ->  | M93: =IF('Planilha (A)'!S32="",#N/A,'Planilha (A)'!S32) ->  | N93: =IF('Planilha (A)'!V32="",#N/A,'Planilha (A)'!V32) ->  | O93: =IF('Planilha (A)'!Y32="",#N/A,'Planilha (A)'!Y32) ->  | P93: =IF('Planilha (A)'!AB32="",#N/A,'Planilha (A)'!AB32) ->  | Q93: =IF('Planilha (A)'!AE32="",#N/A,'Planilha (A)'!AE32) ->  | R93: =IF('Planilha (A)'!AH32="",#N/A,'Planilha (A)'!AH32) ->  | S93: =IF('Planilha (A)'!AK32="",#N/A,'Planilha (A)'!AK32) ->  | T93: =IF('Planilha (A)'!AN32="",#N/A,'Planilha (A)'!AN32) ->  | U93: =IF('Planilha (A)'!AQ32="",#N/A,'Planilha (A)'!AQ32) -> 
F94: 9 | G94: ='Planilha (A)'!C33 ->  | H94: ='Planilha (A)'!B33 ->  | I94: =IF('Planilha (A)'!G33="",#N/A,'Planilha (A)'!G33) ->  | J94: =IF('Planilha (A)'!J33="",#N/A,'Planilha (A)'!J33) ->  | K94: =IF('Planilha (A)'!M33="",#N/A,'Planilha (A)'!M33) ->  | L94: =IF('Planilha (A)'!P33="",#N/A,'Planilha (A)'!P33) ->  | M94: =IF('Planilha (A)'!S33="",#N/A,'Planilha (A)'!S33) ->  | N94: =IF('Planilha (A)'!V33="",#N/A,'Planilha (A)'!V33) ->  | O94: =IF('Planilha (A)'!Y33="",#N/A,'Planilha (A)'!Y33) ->  | P94: =IF('Planilha (A)'!AB33="",#N/A,'Planilha (A)'!AB33) ->  | Q94: =IF('Planilha (A)'!AE33="",#N/A,'Planilha (A)'!AE33) ->  | R94: =IF('Planilha (A)'!AH33="",#N/A,'Planilha (A)'!AH33) ->  | S94: =IF('Planilha (A)'!AK33="",#N/A,'Planilha (A)'!AK33) ->  | T94: =IF('Planilha (A)'!AN33="",#N/A,'Planilha (A)'!AN33) ->  | U94: =IF('Planilha (A)'!AQ33="",#N/A,'Planilha (A)'!AQ33) -> 
F95: 10 | G95: ='Planilha (A)'!C34 ->  | H95: ='Planilha (A)'!B34 ->  | I95: =IF('Planilha (A)'!G34="",#N/A,'Planilha (A)'!G34) ->  | J95: =IF('Planilha (A)'!J34="",#N/A,'Planilha (A)'!J34) ->  | K95: =IF('Planilha (A)'!M34="",#N/A,'Planilha (A)'!M34) ->  | L95: =IF('Planilha (A)'!P34="",#N/A,'Planilha (A)'!P34) ->  | M95: =IF('Planilha (A)'!S34="",#N/A,'Planilha (A)'!S34) ->  | N95: =IF('Planilha (A)'!V34="",#N/A,'Planilha (A)'!V34) ->  | O95: =IF('Planilha (A)'!Y34="",#N/A,'Planilha (A)'!Y34) ->  | P95: =IF('Planilha (A)'!AB34="",#N/A,'Planilha (A)'!AB34) ->  | Q95: =IF('Planilha (A)'!AE34="",#N/A,'Planilha (A)'!AE34) ->  | R95: =IF('Planilha (A)'!AH34="",#N/A,'Planilha (A)'!AH34) ->  | S95: =IF('Planilha (A)'!AK34="",#N/A,'Planilha (A)'!AK34) ->  | T95: =IF('Planilha (A)'!AN34="",#N/A,'Planilha (A)'!AN34) ->  | U95: =IF('Planilha (A)'!AQ34="",#N/A,'Planilha (A)'!AQ34) -> 
F96: 11 | G96: ='Planilha (A)'!C35 ->  | H96: ='Planilha (A)'!B35 ->  | I96: =IF('Planilha (A)'!G35="",#N/A,'Planilha (A)'!G35) ->  | J96: =IF('Planilha (A)'!J35="",#N/A,'Planilha (A)'!J35) ->  | K96: =IF('Planilha (A)'!M35="",#N/A,'Planilha (A)'!M35) ->  | L96: =IF('Planilha (A)'!P35="",#N/A,'Planilha (A)'!P35) ->  | M96: =IF('Planilha (A)'!S35="",#N/A,'Planilha (A)'!S35) ->  | N96: =IF('Planilha (A)'!V35="",#N/A,'Planilha (A)'!V35) ->  | O96: =IF('Planilha (A)'!Y35="",#N/A,'Planilha (A)'!Y35) ->  | P96: =IF('Planilha (A)'!AB35="",#N/A,'Planilha (A)'!AB35) ->  | Q96: =IF('Planilha (A)'!AE35="",#N/A,'Planilha (A)'!AE35) ->  | R96: =IF('Planilha (A)'!AH35="",#N/A,'Planilha (A)'!AH35) ->  | S96: =IF('Planilha (A)'!AK35="",#N/A,'Planilha (A)'!AK35) ->  | T96: =IF('Planilha (A)'!AN35="",#N/A,'Planilha (A)'!AN35) ->  | U96: =IF('Planilha (A)'!AQ35="",#N/A,'Planilha (A)'!AQ35) -> 
F97: 12 | G97: ='Planilha (A)'!C36 ->  | H97: ='Planilha (A)'!B36 ->  | I97: =IF('Planilha (A)'!G36="",#N/A,'Planilha (A)'!G36) ->  | J97: =IF('Planilha (A)'!J36="",#N/A,'Planilha (A)'!J36) ->  | K97: =IF('Planilha (A)'!M36="",#N/A,'Planilha (A)'!M36) ->  | L97: =IF('Planilha (A)'!P36="",#N/A,'Planilha (A)'!P36) ->  | M97: =IF('Planilha (A)'!S36="",#N/A,'Planilha (A)'!S36) ->  | N97: =IF('Planilha (A)'!V36="",#N/A,'Planilha (A)'!V36) ->  | O97: =IF('Planilha (A)'!Y36="",#N/A,'Planilha (A)'!Y36) ->  | P97: =IF('Planilha (A)'!AB36="",#N/A,'Planilha (A)'!AB36) ->  | Q97: =IF('Planilha (A)'!AE36="",#N/A,'Planilha (A)'!AE36) ->  | R97: =IF('Planilha (A)'!AH36="",#N/A,'Planilha (A)'!AH36) ->  | S97: =IF('Planilha (A)'!AK36="",#N/A,'Planilha (A)'!AK36) ->  | T97: =IF('Planilha (A)'!AN36="",#N/A,'Planilha (A)'!AN36) ->  | U97: =IF('Planilha (A)'!AQ36="",#N/A,'Planilha (A)'!AQ36) -> 
F98: 13 | G98: ='Planilha (A)'!C37 ->  | H98: ='Planilha (A)'!B37 ->  | I98: =IF('Planilha (A)'!G37="",#N/A,'Planilha (A)'!G37) ->  | J98: =IF('Planilha (A)'!J37="",#N/A,'Planilha (A)'!J37) ->  | K98: =IF('Planilha (A)'!M37="",#N/A,'Planilha (A)'!M37) ->  | L98: =IF('Planilha (A)'!P37="",#N/A,'Planilha (A)'!P37) ->  | M98: =IF('Planilha (A)'!S37="",#N/A,'Planilha (A)'!S37) ->  | N98: =IF('Planilha (A)'!V37="",#N/A,'Planilha (A)'!V37) ->  | O98: =IF('Planilha (A)'!Y37="",#N/A,'Planilha (A)'!Y37) ->  | P98: =IF('Planilha (A)'!AB37="",#N/A,'Planilha (A)'!AB37) ->  | Q98: =IF('Planilha (A)'!AE37="",#N/A,'Planilha (A)'!AE37) ->  | R98: =IF('Planilha (A)'!AH37="",#N/A,'Planilha (A)'!AH37) ->  | S98: =IF('Planilha (A)'!AK37="",#N/A,'Planilha (A)'!AK37) ->  | T98: =IF('Planilha (A)'!AN37="",#N/A,'Planilha (A)'!AN37) ->  | U98: =IF('Planilha (A)'!AQ37="",#N/A,'Planilha (A)'!AQ37) -> 
F99: 14 | G99: ='Planilha (A)'!C38 ->  | H99: ='Planilha (A)'!B38 ->  | I99: =IF('Planilha (A)'!G38="",#N/A,'Planilha (A)'!G38) ->  | J99: =IF('Planilha (A)'!J38="",#N/A,'Planilha (A)'!J38) ->  | K99: =IF('Planilha (A)'!M38="",#N/A,'Planilha (A)'!M38) ->  | L99: =IF('Planilha (A)'!P38="",#N/A,'Planilha (A)'!P38) ->  | M99: =IF('Planilha (A)'!S38="",#N/A,'Planilha (A)'!S38) ->  | N99: =IF('Planilha (A)'!V38="",#N/A,'Planilha (A)'!V38) ->  | O99: =IF('Planilha (A)'!Y38="",#N/A,'Planilha (A)'!Y38) ->  | P99: =IF('Planilha (A)'!AB38="",#N/A,'Planilha (A)'!AB38) ->  | Q99: =IF('Planilha (A)'!AE38="",#N/A,'Planilha (A)'!AE38) ->  | R99: =IF('Planilha (A)'!AH38="",#N/A,'Planilha (A)'!AH38) ->  | S99: =IF('Planilha (A)'!AK38="",#N/A,'Planilha (A)'!AK38) ->  | T99: =IF('Planilha (A)'!AN38="",#N/A,'Planilha (A)'!AN38) ->  | U99: =IF('Planilha (A)'!AQ38="",#N/A,'Planilha (A)'!AQ38) -> 
F100: 15 | G100: ='Planilha (A)'!C39 ->  | H100: ='Planilha (A)'!B39 ->  | I100: =IF('Planilha (A)'!G39="",#N/A,'Planilha (A)'!G39) ->  | J100: =IF('Planilha (A)'!J39="",#N/A,'Planilha (A)'!J39) ->  | K100: =IF('Planilha (A)'!M39="",#N/A,'Planilha (A)'!M39) ->  | L100: =IF('Planilha (A)'!P39="",#N/A,'Planilha (A)'!P39) ->  | M100: =IF('Planilha (A)'!S39="",#N/A,'Planilha (A)'!S39) ->  | N100: =IF('Planilha (A)'!V39="",#N/A,'Planilha (A)'!V39) ->  | O100: =IF('Planilha (A)'!Y39="",#N/A,'Planilha (A)'!Y39) ->  | P100: =IF('Planilha (A)'!AB39="",#N/A,'Planilha (A)'!AB39) ->  | Q100: =IF('Planilha (A)'!AE39="",#N/A,'Planilha (A)'!AE39) ->  | R100: =IF('Planilha (A)'!AH39="",#N/A,'Planilha (A)'!AH39) ->  | S100: =IF('Planilha (A)'!AK39="",#N/A,'Planilha (A)'!AK39) ->  | T100: =IF('Planilha (A)'!AN39="",#N/A,'Planilha (A)'!AN39) ->  | U100: =IF('Planilha (A)'!AQ39="",#N/A,'Planilha (A)'!AQ39) -> 
F101: 16 | G101: ='Planilha (A)'!C40 ->  | H101: ='Planilha (A)'!B40 ->  | I101: =IF('Planilha (A)'!G40="",#N/A,'Planilha (A)'!G40) ->  | J101: =IF('Planilha (A)'!J40="",#N/A,'Planilha (A)'!J40) ->  | K101: =IF('Planilha (A)'!M40="",#N/A,'Planilha (A)'!M40) ->  | L101: =IF('Planilha (A)'!P40="",#N/A,'Planilha (A)'!P40) ->  | M101: =IF('Planilha (A)'!S40="",#N/A,'Planilha (A)'!S40) ->  | N101: =IF('Planilha (A)'!V40="",#N/A,'Planilha (A)'!V40) ->  | O101: =IF('Planilha (A)'!Y40="",#N/A,'Planilha (A)'!Y40) ->  | P101: =IF('Planilha (A)'!AB40="",#N/A,'Planilha (A)'!AB40) ->  | Q101: =IF('Planilha (A)'!AE40="",#N/A,'Planilha (A)'!AE40) ->  | R101: =IF('Planilha (A)'!AH40="",#N/A,'Planilha (A)'!AH40) ->  | S101: =IF('Planilha (A)'!AK40="",#N/A,'Planilha (A)'!AK40) ->  | T101: =IF('Planilha (A)'!AN40="",#N/A,'Planilha (A)'!AN40) ->  | U101: =IF('Planilha (A)'!AQ40="",#N/A,'Planilha (A)'!AQ40) -> 
F102: 17 | G102: ='Planilha (A)'!C41 ->  | H102: ='Planilha (A)'!B41 ->  | I102: =IF('Planilha (A)'!G41="",#N/A,'Planilha (A)'!G41) ->  | J102: =IF('Planilha (A)'!J41="",#N/A,'Planilha (A)'!J41) ->  | K102: =IF('Planilha (A)'!M41="",#N/A,'Planilha (A)'!M41) ->  | L102: =IF('Planilha (A)'!P41="",#N/A,'Planilha (A)'!P41) ->  | M102: =IF('Planilha (A)'!S41="",#N/A,'Planilha (A)'!S41) ->  | N102: =IF('Planilha (A)'!V41="",#N/A,'Planilha (A)'!V41) ->  | O102: =IF('Planilha (A)'!Y41="",#N/A,'Planilha (A)'!Y41) ->  | P102: =IF('Planilha (A)'!AB41="",#N/A,'Planilha (A)'!AB41) ->  | Q102: =IF('Planilha (A)'!AE41="",#N/A,'Planilha (A)'!AE41) ->  | R102: =IF('Planilha (A)'!AH41="",#N/A,'Planilha (A)'!AH41) ->  | S102: =IF('Planilha (A)'!AK41="",#N/A,'Planilha (A)'!AK41) ->  | T102: =IF('Planilha (A)'!AN41="",#N/A,'Planilha (A)'!AN41) ->  | U102: =IF('Planilha (A)'!AQ41="",#N/A,'Planilha (A)'!AQ41) -> 
F103: 18 | G103: ='Planilha (A)'!C42 ->  | H103: ='Planilha (A)'!B42 ->  | I103: =IF('Planilha (A)'!G42="",#N/A,'Planilha (A)'!G42) ->  | J103: =IF('Planilha (A)'!J42="",#N/A,'Planilha (A)'!J42) ->  | K103: =IF('Planilha (A)'!M42="",#N/A,'Planilha (A)'!M42) ->  | L103: =IF('Planilha (A)'!P42="",#N/A,'Planilha (A)'!P42) ->  | M103: =IF('Planilha (A)'!S42="",#N/A,'Planilha (A)'!S42) ->  | N103: =IF('Planilha (A)'!V42="",#N/A,'Planilha (A)'!V42) ->  | O103: =IF('Planilha (A)'!Y42="",#N/A,'Planilha (A)'!Y42) ->  | P103: =IF('Planilha (A)'!AB42="",#N/A,'Planilha (A)'!AB42) ->  | Q103: =IF('Planilha (A)'!AE42="",#N/A,'Planilha (A)'!AE42) ->  | R103: =IF('Planilha (A)'!AH42="",#N/A,'Planilha (A)'!AH42) ->  | S103: =IF('Planilha (A)'!AK42="",#N/A,'Planilha (A)'!AK42) ->  | T103: =IF('Planilha (A)'!AN42="",#N/A,'Planilha (A)'!AN42) ->  | U103: =IF('Planilha (A)'!AQ42="",#N/A,'Planilha (A)'!AQ42) -> 
F104: 19 | G104: ='Planilha (A)'!C43 ->  | H104: ='Planilha (A)'!B43 ->  | I104: =IF('Planilha (A)'!G43="",#N/A,'Planilha (A)'!G43) ->  | J104: =IF('Planilha (A)'!J43="",#N/A,'Planilha (A)'!J43) ->  | K104: =IF('Planilha (A)'!M43="",#N/A,'Planilha (A)'!M43) ->  | L104: =IF('Planilha (A)'!P43="",#N/A,'Planilha (A)'!P43) ->  | M104: =IF('Planilha (A)'!S43="",#N/A,'Planilha (A)'!S43) ->  | N104: =IF('Planilha (A)'!V43="",#N/A,'Planilha (A)'!V43) ->  | O104: =IF('Planilha (A)'!Y43="",#N/A,'Planilha (A)'!Y43) ->  | P104: =IF('Planilha (A)'!AB43="",#N/A,'Planilha (A)'!AB43) ->  | Q104: =IF('Planilha (A)'!AE43="",#N/A,'Planilha (A)'!AE43) ->  | R104: =IF('Planilha (A)'!AH43="",#N/A,'Planilha (A)'!AH43) ->  | S104: =IF('Planilha (A)'!AK43="",#N/A,'Planilha (A)'!AK43) ->  | T104: =IF('Planilha (A)'!AN43="",#N/A,'Planilha (A)'!AN43) ->  | U104: =IF('Planilha (A)'!AQ43="",#N/A,'Planilha (A)'!AQ43) -> 
F105: 20 | G105: ='Planilha (A)'!C44 ->  | H105: ='Planilha (A)'!B44 ->  | I105: =IF('Planilha (A)'!G44="",#N/A,'Planilha (A)'!G44) ->  | J105: =IF('Planilha (A)'!J44="",#N/A,'Planilha (A)'!J44) ->  | K105: =IF('Planilha (A)'!M44="",#N/A,'Planilha (A)'!M44) ->  | L105: =IF('Planilha (A)'!P44="",#N/A,'Planilha (A)'!P44) ->  | M105: =IF('Planilha (A)'!S44="",#N/A,'Planilha (A)'!S44) ->  | N105: =IF('Planilha (A)'!V44="",#N/A,'Planilha (A)'!V44) ->  | O105: =IF('Planilha (A)'!Y44="",#N/A,'Planilha (A)'!Y44) ->  | P105: =IF('Planilha (A)'!AB44="",#N/A,'Planilha (A)'!AB44) ->  | Q105: =IF('Planilha (A)'!AE44="",#N/A,'Planilha (A)'!AE44) ->  | R105: =IF('Planilha (A)'!AH44="",#N/A,'Planilha (A)'!AH44) ->  | S105: =IF('Planilha (A)'!AK44="",#N/A,'Planilha (A)'!AK44) ->  | T105: =IF('Planilha (A)'!AN44="",#N/A,'Planilha (A)'!AN44) ->  | U105: =IF('Planilha (A)'!AQ44="",#N/A,'Planilha (A)'!AQ44) -> 
F106: 21 | G106: ='Planilha (A)'!C45 ->  | H106: ='Planilha (A)'!B45 ->  | I106: =IF('Planilha (A)'!G45="",#N/A,'Planilha (A)'!G45) ->  | J106: =IF('Planilha (A)'!J45="",#N/A,'Planilha (A)'!J45) ->  | K106: =IF('Planilha (A)'!M45="",#N/A,'Planilha (A)'!M45) ->  | L106: =IF('Planilha (A)'!P45="",#N/A,'Planilha (A)'!P45) ->  | M106: =IF('Planilha (A)'!S45="",#N/A,'Planilha (A)'!S45) ->  | N106: =IF('Planilha (A)'!V45="",#N/A,'Planilha (A)'!V45) ->  | O106: =IF('Planilha (A)'!Y45="",#N/A,'Planilha (A)'!Y45) ->  | P106: =IF('Planilha (A)'!AB45="",#N/A,'Planilha (A)'!AB45) ->  | Q106: =IF('Planilha (A)'!AE45="",#N/A,'Planilha (A)'!AE45) ->  | R106: =IF('Planilha (A)'!AH45="",#N/A,'Planilha (A)'!AH45) ->  | S106: =IF('Planilha (A)'!AK45="",#N/A,'Planilha (A)'!AK45) ->  | T106: =IF('Planilha (A)'!AN45="",#N/A,'Planilha (A)'!AN45) ->  | U106: =IF('Planilha (A)'!AQ45="",#N/A,'Planilha (A)'!AQ45) -> 
F107: 22 | G107: ='Planilha (A)'!C46 ->  | H107: ='Planilha (A)'!B46 ->  | I107: =IF('Planilha (A)'!G46="",#N/A,'Planilha (A)'!G46) ->  | J107: =IF('Planilha (A)'!J46="",#N/A,'Planilha (A)'!J46) ->  | K107: =IF('Planilha (A)'!M46="",#N/A,'Planilha (A)'!M46) ->  | L107: =IF('Planilha (A)'!P46="",#N/A,'Planilha (A)'!P46) ->  | M107: =IF('Planilha (A)'!S46="",#N/A,'Planilha (A)'!S46) ->  | N107: =IF('Planilha (A)'!V46="",#N/A,'Planilha (A)'!V46) ->  | O107: =IF('Planilha (A)'!Y46="",#N/A,'Planilha (A)'!Y46) ->  | P107: =IF('Planilha (A)'!AB46="",#N/A,'Planilha (A)'!AB46) ->  | Q107: =IF('Planilha (A)'!AE46="",#N/A,'Planilha (A)'!AE46) ->  | R107: =IF('Planilha (A)'!AH46="",#N/A,'Planilha (A)'!AH46) ->  | S107: =IF('Planilha (A)'!AK46="",#N/A,'Planilha (A)'!AK46) ->  | T107: =IF('Planilha (A)'!AN46="",#N/A,'Planilha (A)'!AN46) ->  | U107: =IF('Planilha (A)'!AQ46="",#N/A,'Planilha (A)'!AQ46) -> 
F108: 23 | G108: ='Planilha (A)'!C47 ->  | H108: ='Planilha (A)'!B47 ->  | I108: =IF('Planilha (A)'!G47="",#N/A,'Planilha (A)'!G47) ->  | J108: =IF('Planilha (A)'!J47="",#N/A,'Planilha (A)'!J47) ->  | K108: =IF('Planilha (A)'!M47="",#N/A,'Planilha (A)'!M47) ->  | L108: =IF('Planilha (A)'!P47="",#N/A,'Planilha (A)'!P47) ->  | M108: =IF('Planilha (A)'!S47="",#N/A,'Planilha (A)'!S47) ->  | N108: =IF('Planilha (A)'!V47="",#N/A,'Planilha (A)'!V47) ->  | O108: =IF('Planilha (A)'!Y47="",#N/A,'Planilha (A)'!Y47) ->  | P108: =IF('Planilha (A)'!AB47="",#N/A,'Planilha (A)'!AB47) ->  | Q108: =IF('Planilha (A)'!AE47="",#N/A,'Planilha (A)'!AE47) ->  | R108: =IF('Planilha (A)'!AH47="",#N/A,'Planilha (A)'!AH47) ->  | S108: =IF('Planilha (A)'!AK47="",#N/A,'Planilha (A)'!AK47) ->  | T108: =IF('Planilha (A)'!AN47="",#N/A,'Planilha (A)'!AN47) ->  | U108: =IF('Planilha (A)'!AQ47="",#N/A,'Planilha (A)'!AQ47) -> 
F109: 24 | G109: ='Planilha (A)'!C48 ->  | H109: ='Planilha (A)'!B48 ->  | I109: =IF('Planilha (A)'!G48="",#N/A,'Planilha (A)'!G48) ->  | J109: =IF('Planilha (A)'!J48="",#N/A,'Planilha (A)'!J48) ->  | K109: =IF('Planilha (A)'!M48="",#N/A,'Planilha (A)'!M48) ->  | L109: =IF('Planilha (A)'!P48="",#N/A,'Planilha (A)'!P48) ->  | M109: =IF('Planilha (A)'!S48="",#N/A,'Planilha (A)'!S48) ->  | N109: =IF('Planilha (A)'!V48="",#N/A,'Planilha (A)'!V48) ->  | O109: =IF('Planilha (A)'!Y48="",#N/A,'Planilha (A)'!Y48) ->  | P109: =IF('Planilha (A)'!AB48="",#N/A,'Planilha (A)'!AB48) ->  | Q109: =IF('Planilha (A)'!AE48="",#N/A,'Planilha (A)'!AE48) ->  | R109: =IF('Planilha (A)'!AH48="",#N/A,'Planilha (A)'!AH48) ->  | S109: =IF('Planilha (A)'!AK48="",#N/A,'Planilha (A)'!AK48) ->  | T109: =IF('Planilha (A)'!AN48="",#N/A,'Planilha (A)'!AN48) ->  | U109: =IF('Planilha (A)'!AQ48="",#N/A,'Planilha (A)'!AQ48) -> 
F110: 25 | G110: ='Planilha (A)'!C49 ->  | H110: ='Planilha (A)'!B49 ->  | I110: =IF('Planilha (A)'!G49="",#N/A,'Planilha (A)'!G49) ->  | J110: =IF('Planilha (A)'!J49="",#N/A,'Planilha (A)'!J49) ->  | K110: =IF('Planilha (A)'!M49="",#N/A,'Planilha (A)'!M49) ->  | L110: =IF('Planilha (A)'!P49="",#N/A,'Planilha (A)'!P49) ->  | M110: =IF('Planilha (A)'!S49="",#N/A,'Planilha (A)'!S49) ->  | N110: =IF('Planilha (A)'!V49="",#N/A,'Planilha (A)'!V49) ->  | O110: =IF('Planilha (A)'!Y49="",#N/A,'Planilha (A)'!Y49) ->  | P110: =IF('Planilha (A)'!AB49="",#N/A,'Planilha (A)'!AB49) ->  | Q110: =IF('Planilha (A)'!AE49="",#N/A,'Planilha (A)'!AE49) ->  | R110: =IF('Planilha (A)'!AH49="",#N/A,'Planilha (A)'!AH49) ->  | S110: =IF('Planilha (A)'!AK49="",#N/A,'Planilha (A)'!AK49) ->  | T110: =IF('Planilha (A)'!AN49="",#N/A,'Planilha (A)'!AN49) ->  | U110: =IF('Planilha (A)'!AQ49="",#N/A,'Planilha (A)'!AQ49) -> 
F111: 26 | G111: ='Planilha (A)'!C50 ->  | H111: ='Planilha (A)'!B50 ->  | I111: =IF('Planilha (A)'!G50="",#N/A,'Planilha (A)'!G50) ->  | J111: =IF('Planilha (A)'!J50="",#N/A,'Planilha (A)'!J50) ->  | K111: =IF('Planilha (A)'!M50="",#N/A,'Planilha (A)'!M50) ->  | L111: =IF('Planilha (A)'!P50="",#N/A,'Planilha (A)'!P50) ->  | M111: =IF('Planilha (A)'!S50="",#N/A,'Planilha (A)'!S50) ->  | N111: =IF('Planilha (A)'!V50="",#N/A,'Planilha (A)'!V50) ->  | O111: =IF('Planilha (A)'!Y50="",#N/A,'Planilha (A)'!Y50) ->  | P111: =IF('Planilha (A)'!AB50="",#N/A,'Planilha (A)'!AB50) ->  | Q111: =IF('Planilha (A)'!AE50="",#N/A,'Planilha (A)'!AE50) ->  | R111: =IF('Planilha (A)'!AH50="",#N/A,'Planilha (A)'!AH50) ->  | S111: =IF('Planilha (A)'!AK50="",#N/A,'Planilha (A)'!AK50) ->  | T111: =IF('Planilha (A)'!AN50="",#N/A,'Planilha (A)'!AN50) ->  | U111: =IF('Planilha (A)'!AQ50="",#N/A,'Planilha (A)'!AQ50) -> 
F112: 27 | G112: ='Planilha (A)'!C51 ->  | H112: ='Planilha (A)'!B51 ->  | I112: =IF('Planilha (A)'!G51="",#N/A,'Planilha (A)'!G51) ->  | J112: =IF('Planilha (A)'!J51="",#N/A,'Planilha (A)'!J51) ->  | K112: =IF('Planilha (A)'!M51="",#N/A,'Planilha (A)'!M51) ->  | L112: =IF('Planilha (A)'!P51="",#N/A,'Planilha (A)'!P51) ->  | M112: =IF('Planilha (A)'!S51="",#N/A,'Planilha (A)'!S51) ->  | N112: =IF('Planilha (A)'!V51="",#N/A,'Planilha (A)'!V51) ->  | O112: =IF('Planilha (A)'!Y51="",#N/A,'Planilha (A)'!Y51) ->  | P112: =IF('Planilha (A)'!AB51="",#N/A,'Planilha (A)'!AB51) ->  | Q112: =IF('Planilha (A)'!AE51="",#N/A,'Planilha (A)'!AE51) ->  | R112: =IF('Planilha (A)'!AH51="",#N/A,'Planilha (A)'!AH51) ->  | S112: =IF('Planilha (A)'!AK51="",#N/A,'Planilha (A)'!AK51) ->  | T112: =IF('Planilha (A)'!AN51="",#N/A,'Planilha (A)'!AN51) ->  | U112: =IF('Planilha (A)'!AQ51="",#N/A,'Planilha (A)'!AQ51) -> 
F113: 28 | G113: ='Planilha (A)'!C52 ->  | H113: ='Planilha (A)'!B52 ->  | I113: =IF('Planilha (A)'!G52="",#N/A,'Planilha (A)'!G52) ->  | J113: =IF('Planilha (A)'!J52="",#N/A,'Planilha (A)'!J52) ->  | K113: =IF('Planilha (A)'!M52="",#N/A,'Planilha (A)'!M52) ->  | L113: =IF('Planilha (A)'!P52="",#N/A,'Planilha (A)'!P52) ->  | M113: =IF('Planilha (A)'!S52="",#N/A,'Planilha (A)'!S52) ->  | N113: =IF('Planilha (A)'!V52="",#N/A,'Planilha (A)'!V52) ->  | O113: =IF('Planilha (A)'!Y52="",#N/A,'Planilha (A)'!Y52) ->  | P113: =IF('Planilha (A)'!AB52="",#N/A,'Planilha (A)'!AB52) ->  | Q113: =IF('Planilha (A)'!AE52="",#N/A,'Planilha (A)'!AE52) ->  | R113: =IF('Planilha (A)'!AH52="",#N/A,'Planilha (A)'!AH52) ->  | S113: =IF('Planilha (A)'!AK52="",#N/A,'Planilha (A)'!AK52) ->  | T113: =IF('Planilha (A)'!AN52="",#N/A,'Planilha (A)'!AN52) ->  | U113: =IF('Planilha (A)'!AQ52="",#N/A,'Planilha (A)'!AQ52) -> 
F114: 29 | G114: ='Planilha (A)'!C53 ->  | H114: ='Planilha (A)'!B53 ->  | I114: =IF('Planilha (A)'!G53="",#N/A,'Planilha (A)'!G53) ->  | J114: =IF('Planilha (A)'!J53="",#N/A,'Planilha (A)'!J53) ->  | K114: =IF('Planilha (A)'!M53="",#N/A,'Planilha (A)'!M53) ->  | L114: =IF('Planilha (A)'!P53="",#N/A,'Planilha (A)'!P53) ->  | M114: =IF('Planilha (A)'!S53="",#N/A,'Planilha (A)'!S53) ->  | N114: =IF('Planilha (A)'!V53="",#N/A,'Planilha (A)'!V53) ->  | O114: =IF('Planilha (A)'!Y53="",#N/A,'Planilha (A)'!Y53) ->  | P114: =IF('Planilha (A)'!AB53="",#N/A,'Planilha (A)'!AB53) ->  | Q114: =IF('Planilha (A)'!AE53="",#N/A,'Planilha (A)'!AE53) ->  | R114: =IF('Planilha (A)'!AH53="",#N/A,'Planilha (A)'!AH53) ->  | S114: =IF('Planilha (A)'!AK53="",#N/A,'Planilha (A)'!AK53) ->  | T114: =IF('Planilha (A)'!AN53="",#N/A,'Planilha (A)'!AN53) ->  | U114: =IF('Planilha (A)'!AQ53="",#N/A,'Planilha (A)'!AQ53) -> 
F115: 30 | G115: ='Planilha (A)'!C54 ->  | H115: ='Planilha (A)'!B54 ->  | I115: =IF('Planilha (A)'!G54="",#N/A,'Planilha (A)'!G54) ->  | J115: =IF('Planilha (A)'!J54="",#N/A,'Planilha (A)'!J54) ->  | K115: =IF('Planilha (A)'!M54="",#N/A,'Planilha (A)'!M54) ->  | L115: =IF('Planilha (A)'!P54="",#N/A,'Planilha (A)'!P54) ->  | M115: =IF('Planilha (A)'!S54="",#N/A,'Planilha (A)'!S54) ->  | N115: =IF('Planilha (A)'!V54="",#N/A,'Planilha (A)'!V54) ->  | O115: =IF('Planilha (A)'!Y54="",#N/A,'Planilha (A)'!Y54) ->  | P115: =IF('Planilha (A)'!AB54="",#N/A,'Planilha (A)'!AB54) ->  | Q115: =IF('Planilha (A)'!AE54="",#N/A,'Planilha (A)'!AE54) ->  | R115: =IF('Planilha (A)'!AH54="",#N/A,'Planilha (A)'!AH54) ->  | S115: =IF('Planilha (A)'!AK54="",#N/A,'Planilha (A)'!AK54) ->  | T115: =IF('Planilha (A)'!AN54="",#N/A,'Planilha (A)'!AN54) ->  | U115: =IF('Planilha (A)'!AQ54="",#N/A,'Planilha (A)'!AQ54) -> 
F116: 31 | G116: ='Planilha (A)'!C55 ->  | H116: ='Planilha (A)'!B55 ->  | I116: =IF('Planilha (A)'!G55="",#N/A,'Planilha (A)'!G55) ->  | J116: =IF('Planilha (A)'!J55="",#N/A,'Planilha (A)'!J55) ->  | K116: =IF('Planilha (A)'!M55="",#N/A,'Planilha (A)'!M55) ->  | L116: =IF('Planilha (A)'!P55="",#N/A,'Planilha (A)'!P55) ->  | M116: =IF('Planilha (A)'!S55="",#N/A,'Planilha (A)'!S55) ->  | N116: =IF('Planilha (A)'!V55="",#N/A,'Planilha (A)'!V55) ->  | O116: =IF('Planilha (A)'!Y55="",#N/A,'Planilha (A)'!Y55) ->  | P116: =IF('Planilha (A)'!AB55="",#N/A,'Planilha (A)'!AB55) ->  | Q116: =IF('Planilha (A)'!AE55="",#N/A,'Planilha (A)'!AE55) ->  | R116: =IF('Planilha (A)'!AH55="",#N/A,'Planilha (A)'!AH55) ->  | S116: =IF('Planilha (A)'!AK55="",#N/A,'Planilha (A)'!AK55) ->  | T116: =IF('Planilha (A)'!AN55="",#N/A,'Planilha (A)'!AN55) ->  | U116: =IF('Planilha (A)'!AQ55="",#N/A,'Planilha (A)'!AQ55) -> 
F117: 32 | G117: ='Planilha (A)'!C56 ->  | H117: ='Planilha (A)'!B56 ->  | I117: =IF('Planilha (A)'!G56="",#N/A,'Planilha (A)'!G56) ->  | J117: =IF('Planilha (A)'!J56="",#N/A,'Planilha (A)'!J56) ->  | K117: =IF('Planilha (A)'!M56="",#N/A,'Planilha (A)'!M56) ->  | L117: =IF('Planilha (A)'!P56="",#N/A,'Planilha (A)'!P56) ->  | M117: =IF('Planilha (A)'!S56="",#N/A,'Planilha (A)'!S56) ->  | N117: =IF('Planilha (A)'!V56="",#N/A,'Planilha (A)'!V56) ->  | O117: =IF('Planilha (A)'!Y56="",#N/A,'Planilha (A)'!Y56) ->  | P117: =IF('Planilha (A)'!AB56="",#N/A,'Planilha (A)'!AB56) ->  | Q117: =IF('Planilha (A)'!AE56="",#N/A,'Planilha (A)'!AE56) ->  | R117: =IF('Planilha (A)'!AH56="",#N/A,'Planilha (A)'!AH56) ->  | S117: =IF('Planilha (A)'!AK56="",#N/A,'Planilha (A)'!AK56) ->  | T117: =IF('Planilha (A)'!AN56="",#N/A,'Planilha (A)'!AN56) ->  | U117: =IF('Planilha (A)'!AQ56="",#N/A,'Planilha (A)'!AQ56) -> 
F118: 33 | G118: ='Planilha (A)'!C57 ->  | H118: ='Planilha (A)'!B57 ->  | I118: =IF('Planilha (A)'!G57="",#N/A,'Planilha (A)'!G57) ->  | J118: =IF('Planilha (A)'!J57="",#N/A,'Planilha (A)'!J57) ->  | K118: =IF('Planilha (A)'!M57="",#N/A,'Planilha (A)'!M57) ->  | L118: =IF('Planilha (A)'!P57="",#N/A,'Planilha (A)'!P57) ->  | M118: =IF('Planilha (A)'!S57="",#N/A,'Planilha (A)'!S57) ->  | N118: =IF('Planilha (A)'!V57="",#N/A,'Planilha (A)'!V57) ->  | O118: =IF('Planilha (A)'!Y57="",#N/A,'Planilha (A)'!Y57) ->  | P118: =IF('Planilha (A)'!AB57="",#N/A,'Planilha (A)'!AB57) ->  | Q118: =IF('Planilha (A)'!AE57="",#N/A,'Planilha (A)'!AE57) ->  | R118: =IF('Planilha (A)'!AH57="",#N/A,'Planilha (A)'!AH57) ->  | S118: =IF('Planilha (A)'!AK57="",#N/A,'Planilha (A)'!AK57) ->  | T118: =IF('Planilha (A)'!AN57="",#N/A,'Planilha (A)'!AN57) ->  | U118: =IF('Planilha (A)'!AQ57="",#N/A,'Planilha (A)'!AQ57) -> 
F119: 34 | G119: ='Planilha (A)'!C58 ->  | H119: ='Planilha (A)'!B58 ->  | I119: =IF('Planilha (A)'!G58="",#N/A,'Planilha (A)'!G58) ->  | J119: =IF('Planilha (A)'!J58="",#N/A,'Planilha (A)'!J58) ->  | K119: =IF('Planilha (A)'!M58="",#N/A,'Planilha (A)'!M58) ->  | L119: =IF('Planilha (A)'!P58="",#N/A,'Planilha (A)'!P58) ->  | M119: =IF('Planilha (A)'!S58="",#N/A,'Planilha (A)'!S58) ->  | N119: =IF('Planilha (A)'!V58="",#N/A,'Planilha (A)'!V58) ->  | O119: =IF('Planilha (A)'!Y58="",#N/A,'Planilha (A)'!Y58) ->  | P119: =IF('Planilha (A)'!AB58="",#N/A,'Planilha (A)'!AB58) ->  | Q119: =IF('Planilha (A)'!AE58="",#N/A,'Planilha (A)'!AE58) ->  | R119: =IF('Planilha (A)'!AH58="",#N/A,'Planilha (A)'!AH58) ->  | S119: =IF('Planilha (A)'!AK58="",#N/A,'Planilha (A)'!AK58) ->  | T119: =IF('Planilha (A)'!AN58="",#N/A,'Planilha (A)'!AN58) ->  | U119: =IF('Planilha (A)'!AQ58="",#N/A,'Planilha (A)'!AQ58) -> 
F120: 35 | G120: ='Planilha (A)'!C59 ->  | H120: ='Planilha (A)'!B59 ->  | I120: =IF('Planilha (A)'!G59="",#N/A,'Planilha (A)'!G59) ->  | J120: =IF('Planilha (A)'!J59="",#N/A,'Planilha (A)'!J59) ->  | K120: =IF('Planilha (A)'!M59="",#N/A,'Planilha (A)'!M59) ->  | L120: =IF('Planilha (A)'!P59="",#N/A,'Planilha (A)'!P59) ->  | M120: =IF('Planilha (A)'!S59="",#N/A,'Planilha (A)'!S59) ->  | N120: =IF('Planilha (A)'!V59="",#N/A,'Planilha (A)'!V59) ->  | O120: =IF('Planilha (A)'!Y59="",#N/A,'Planilha (A)'!Y59) ->  | P120: =IF('Planilha (A)'!AB59="",#N/A,'Planilha (A)'!AB59) ->  | Q120: =IF('Planilha (A)'!AE59="",#N/A,'Planilha (A)'!AE59) ->  | R120: =IF('Planilha (A)'!AH59="",#N/A,'Planilha (A)'!AH59) ->  | S120: =IF('Planilha (A)'!AK59="",#N/A,'Planilha (A)'!AK59) ->  | T120: =IF('Planilha (A)'!AN59="",#N/A,'Planilha (A)'!AN59) ->  | U120: =IF('Planilha (A)'!AQ59="",#N/A,'Planilha (A)'!AQ59) -> 
F121: 36 | G121: ='Planilha (A)'!C60 ->  | H121: ='Planilha (A)'!B60 ->  | I121: =IF('Planilha (A)'!G60="",#N/A,'Planilha (A)'!G60) ->  | J121: =IF('Planilha (A)'!J60="",#N/A,'Planilha (A)'!J60) ->  | K121: =IF('Planilha (A)'!M60="",#N/A,'Planilha (A)'!M60) ->  | L121: =IF('Planilha (A)'!P60="",#N/A,'Planilha (A)'!P60) ->  | M121: =IF('Planilha (A)'!S60="",#N/A,'Planilha (A)'!S60) ->  | N121: =IF('Planilha (A)'!V60="",#N/A,'Planilha (A)'!V60) ->  | O121: =IF('Planilha (A)'!Y60="",#N/A,'Planilha (A)'!Y60) ->  | P121: =IF('Planilha (A)'!AB60="",#N/A,'Planilha (A)'!AB60) ->  | Q121: =IF('Planilha (A)'!AE60="",#N/A,'Planilha (A)'!AE60) ->  | R121: =IF('Planilha (A)'!AH60="",#N/A,'Planilha (A)'!AH60) ->  | S121: =IF('Planilha (A)'!AK60="",#N/A,'Planilha (A)'!AK60) ->  | T121: =IF('Planilha (A)'!AN60="",#N/A,'Planilha (A)'!AN60) ->  | U121: =IF('Planilha (A)'!AQ60="",#N/A,'Planilha (A)'!AQ60) -> 
F122: 37 | G122: ='Planilha (A)'!C61 ->  | H122: ='Planilha (A)'!B61 ->  | I122: =IF('Planilha (A)'!G61="",#N/A,'Planilha (A)'!G61) ->  | J122: =IF('Planilha (A)'!J61="",#N/A,'Planilha (A)'!J61) ->  | K122: =IF('Planilha (A)'!M61="",#N/A,'Planilha (A)'!M61) ->  | L122: =IF('Planilha (A)'!P61="",#N/A,'Planilha (A)'!P61) ->  | M122: =IF('Planilha (A)'!S61="",#N/A,'Planilha (A)'!S61) ->  | N122: =IF('Planilha (A)'!V61="",#N/A,'Planilha (A)'!V61) ->  | O122: =IF('Planilha (A)'!Y61="",#N/A,'Planilha (A)'!Y61) ->  | P122: =IF('Planilha (A)'!AB61="",#N/A,'Planilha (A)'!AB61) ->  | Q122: =IF('Planilha (A)'!AE61="",#N/A,'Planilha (A)'!AE61) ->  | R122: =IF('Planilha (A)'!AH61="",#N/A,'Planilha (A)'!AH61) ->  | S122: =IF('Planilha (A)'!AK61="",#N/A,'Planilha (A)'!AK61) ->  | T122: =IF('Planilha (A)'!AN61="",#N/A,'Planilha (A)'!AN61) ->  | U122: =IF('Planilha (A)'!AQ61="",#N/A,'Planilha (A)'!AQ61) -> 
F123: 38 | G123: ='Planilha (A)'!C62 ->  | H123: ='Planilha (A)'!B62 ->  | I123: =IF('Planilha (A)'!G62="",#N/A,'Planilha (A)'!G62) ->  | J123: =IF('Planilha (A)'!J62="",#N/A,'Planilha (A)'!J62) ->  | K123: =IF('Planilha (A)'!M62="",#N/A,'Planilha (A)'!M62) ->  | L123: =IF('Planilha (A)'!P62="",#N/A,'Planilha (A)'!P62) ->  | M123: =IF('Planilha (A)'!S62="",#N/A,'Planilha (A)'!S62) ->  | N123: =IF('Planilha (A)'!V62="",#N/A,'Planilha (A)'!V62) ->  | O123: =IF('Planilha (A)'!Y62="",#N/A,'Planilha (A)'!Y62) ->  | P123: =IF('Planilha (A)'!AB62="",#N/A,'Planilha (A)'!AB62) ->  | Q123: =IF('Planilha (A)'!AE62="",#N/A,'Planilha (A)'!AE62) ->  | R123: =IF('Planilha (A)'!AH62="",#N/A,'Planilha (A)'!AH62) ->  | S123: =IF('Planilha (A)'!AK62="",#N/A,'Planilha (A)'!AK62) ->  | T123: =IF('Planilha (A)'!AN62="",#N/A,'Planilha (A)'!AN62) ->  | U123: =IF('Planilha (A)'!AQ62="",#N/A,'Planilha (A)'!AQ62) -> 
F124: 39 | G124: ='Planilha (A)'!C63 ->  | H124: ='Planilha (A)'!B63 ->  | I124: =IF('Planilha (A)'!G63="",#N/A,'Planilha (A)'!G63) ->  | J124: =IF('Planilha (A)'!J63="",#N/A,'Planilha (A)'!J63) ->  | K124: =IF('Planilha (A)'!M63="",#N/A,'Planilha (A)'!M63) ->  | L124: =IF('Planilha (A)'!P63="",#N/A,'Planilha (A)'!P63) ->  | M124: =IF('Planilha (A)'!S63="",#N/A,'Planilha (A)'!S63) ->  | N124: =IF('Planilha (A)'!V63="",#N/A,'Planilha (A)'!V63) ->  | O124: =IF('Planilha (A)'!Y63="",#N/A,'Planilha (A)'!Y63) ->  | P124: =IF('Planilha (A)'!AB63="",#N/A,'Planilha (A)'!AB63) ->  | Q124: =IF('Planilha (A)'!AE63="",#N/A,'Planilha (A)'!AE63) ->  | R124: =IF('Planilha (A)'!AH63="",#N/A,'Planilha (A)'!AH63) ->  | S124: =IF('Planilha (A)'!AK63="",#N/A,'Planilha (A)'!AK63) ->  | T124: =IF('Planilha (A)'!AN63="",#N/A,'Planilha (A)'!AN63) ->  | U124: =IF('Planilha (A)'!AQ63="",#N/A,'Planilha (A)'!AQ63) -> 
F125: 40 | G125: ='Planilha (A)'!C64 ->  | H125: ='Planilha (A)'!B64 ->  | I125: =IF('Planilha (A)'!G64="",#N/A,'Planilha (A)'!G64) ->  | J125: =IF('Planilha (A)'!J64="",#N/A,'Planilha (A)'!J64) ->  | K125: =IF('Planilha (A)'!M64="",#N/A,'Planilha (A)'!M64) ->  | L125: =IF('Planilha (A)'!P64="",#N/A,'Planilha (A)'!P64) ->  | M125: =IF('Planilha (A)'!S64="",#N/A,'Planilha (A)'!S64) ->  | N125: =IF('Planilha (A)'!V64="",#N/A,'Planilha (A)'!V64) ->  | O125: =IF('Planilha (A)'!Y64="",#N/A,'Planilha (A)'!Y64) ->  | P125: =IF('Planilha (A)'!AB64="",#N/A,'Planilha (A)'!AB64) ->  | Q125: =IF('Planilha (A)'!AE64="",#N/A,'Planilha (A)'!AE64) ->  | R125: =IF('Planilha (A)'!AH64="",#N/A,'Planilha (A)'!AH64) ->  | S125: =IF('Planilha (A)'!AK64="",#N/A,'Planilha (A)'!AK64) ->  | T125: =IF('Planilha (A)'!AN64="",#N/A,'Planilha (A)'!AN64) ->  | U125: =IF('Planilha (A)'!AQ64="",#N/A,'Planilha (A)'!AQ64) -> 
F126: 41 | G126: ='Planilha (A)'!C65 ->  | H126: ='Planilha (A)'!B65 ->  | I126: =IF('Planilha (A)'!G65="",#N/A,'Planilha (A)'!G65) ->  | J126: =IF('Planilha (A)'!J65="",#N/A,'Planilha (A)'!J65) ->  | K126: =IF('Planilha (A)'!M65="",#N/A,'Planilha (A)'!M65) ->  | L126: =IF('Planilha (A)'!P65="",#N/A,'Planilha (A)'!P65) ->  | M126: =IF('Planilha (A)'!S65="",#N/A,'Planilha (A)'!S65) ->  | N126: =IF('Planilha (A)'!V65="",#N/A,'Planilha (A)'!V65) ->  | O126: =IF('Planilha (A)'!Y65="",#N/A,'Planilha (A)'!Y65) ->  | P126: =IF('Planilha (A)'!AB65="",#N/A,'Planilha (A)'!AB65) ->  | Q126: =IF('Planilha (A)'!AE65="",#N/A,'Planilha (A)'!AE65) ->  | R126: =IF('Planilha (A)'!AH65="",#N/A,'Planilha (A)'!AH65) ->  | S126: =IF('Planilha (A)'!AK65="",#N/A,'Planilha (A)'!AK65) ->  | T126: =IF('Planilha (A)'!AN65="",#N/A,'Planilha (A)'!AN65) ->  | U126: =IF('Planilha (A)'!AQ65="",#N/A,'Planilha (A)'!AQ65) -> 
F127: 42 | G127: ='Planilha (A)'!C66 ->  | H127: ='Planilha (A)'!B66 ->  | I127: =IF('Planilha (A)'!G66="",#N/A,'Planilha (A)'!G66) ->  | J127: =IF('Planilha (A)'!J66="",#N/A,'Planilha (A)'!J66) ->  | K127: =IF('Planilha (A)'!M66="",#N/A,'Planilha (A)'!M66) ->  | L127: =IF('Planilha (A)'!P66="",#N/A,'Planilha (A)'!P66) ->  | M127: =IF('Planilha (A)'!S66="",#N/A,'Planilha (A)'!S66) ->  | N127: =IF('Planilha (A)'!V66="",#N/A,'Planilha (A)'!V66) ->  | O127: =IF('Planilha (A)'!Y66="",#N/A,'Planilha (A)'!Y66) ->  | P127: =IF('Planilha (A)'!AB66="",#N/A,'Planilha (A)'!AB66) ->  | Q127: =IF('Planilha (A)'!AE66="",#N/A,'Planilha (A)'!AE66) ->  | R127: =IF('Planilha (A)'!AH66="",#N/A,'Planilha (A)'!AH66) ->  | S127: =IF('Planilha (A)'!AK66="",#N/A,'Planilha (A)'!AK66) ->  | T127: =IF('Planilha (A)'!AN66="",#N/A,'Planilha (A)'!AN66) ->  | U127: =IF('Planilha (A)'!AQ66="",#N/A,'Planilha (A)'!AQ66) -> 
F128: 43 | G128: ='Planilha (A)'!C67 ->  | H128: ='Planilha (A)'!B67 ->  | I128: =IF('Planilha (A)'!G67="",#N/A,'Planilha (A)'!G67) ->  | J128: =IF('Planilha (A)'!J67="",#N/A,'Planilha (A)'!J67) ->  | K128: =IF('Planilha (A)'!M67="",#N/A,'Planilha (A)'!M67) ->  | L128: =IF('Planilha (A)'!P67="",#N/A,'Planilha (A)'!P67) ->  | M128: =IF('Planilha (A)'!S67="",#N/A,'Planilha (A)'!S67) ->  | N128: =IF('Planilha (A)'!V67="",#N/A,'Planilha (A)'!V67) ->  | O128: =IF('Planilha (A)'!Y67="",#N/A,'Planilha (A)'!Y67) ->  | P128: =IF('Planilha (A)'!AB67="",#N/A,'Planilha (A)'!AB67) ->  | Q128: =IF('Planilha (A)'!AE67="",#N/A,'Planilha (A)'!AE67) ->  | R128: =IF('Planilha (A)'!AH67="",#N/A,'Planilha (A)'!AH67) ->  | S128: =IF('Planilha (A)'!AK67="",#N/A,'Planilha (A)'!AK67) ->  | T128: =IF('Planilha (A)'!AN67="",#N/A,'Planilha (A)'!AN67) ->  | U128: =IF('Planilha (A)'!AQ67="",#N/A,'Planilha (A)'!AQ67) -> 
F129: 44 | G129: ='Planilha (A)'!C68 ->  | H129: ='Planilha (A)'!B68 ->  | I129: =IF('Planilha (A)'!G68="",#N/A,'Planilha (A)'!G68) ->  | J129: =IF('Planilha (A)'!J68="",#N/A,'Planilha (A)'!J68) ->  | K129: =IF('Planilha (A)'!M68="",#N/A,'Planilha (A)'!M68) ->  | L129: =IF('Planilha (A)'!P68="",#N/A,'Planilha (A)'!P68) ->  | M129: =IF('Planilha (A)'!S68="",#N/A,'Planilha (A)'!S68) ->  | N129: =IF('Planilha (A)'!V68="",#N/A,'Planilha (A)'!V68) ->  | O129: =IF('Planilha (A)'!Y68="",#N/A,'Planilha (A)'!Y68) ->  | P129: =IF('Planilha (A)'!AB68="",#N/A,'Planilha (A)'!AB68) ->  | Q129: =IF('Planilha (A)'!AE68="",#N/A,'Planilha (A)'!AE68) ->  | R129: =IF('Planilha (A)'!AH68="",#N/A,'Planilha (A)'!AH68) ->  | S129: =IF('Planilha (A)'!AK68="",#N/A,'Planilha (A)'!AK68) ->  | T129: =IF('Planilha (A)'!AN68="",#N/A,'Planilha (A)'!AN68) ->  | U129: =IF('Planilha (A)'!AQ68="",#N/A,'Planilha (A)'!AQ68) -> 
F130: 45 | G130: ='Planilha (A)'!C69 ->  | H130: ='Planilha (A)'!B69 ->  | I130: =IF('Planilha (A)'!G69="",#N/A,'Planilha (A)'!G69) ->  | J130: =IF('Planilha (A)'!J69="",#N/A,'Planilha (A)'!J69) ->  | K130: =IF('Planilha (A)'!M69="",#N/A,'Planilha (A)'!M69) ->  | L130: =IF('Planilha (A)'!P69="",#N/A,'Planilha (A)'!P69) ->  | M130: =IF('Planilha (A)'!S69="",#N/A,'Planilha (A)'!S69) ->  | N130: =IF('Planilha (A)'!V69="",#N/A,'Planilha (A)'!V69) ->  | O130: =IF('Planilha (A)'!Y69="",#N/A,'Planilha (A)'!Y69) ->  | P130: =IF('Planilha (A)'!AB69="",#N/A,'Planilha (A)'!AB69) ->  | Q130: =IF('Planilha (A)'!AE69="",#N/A,'Planilha (A)'!AE69) ->  | R130: =IF('Planilha (A)'!AH69="",#N/A,'Planilha (A)'!AH69) ->  | S130: =IF('Planilha (A)'!AK69="",#N/A,'Planilha (A)'!AK69) ->  | T130: =IF('Planilha (A)'!AN69="",#N/A,'Planilha (A)'!AN69) ->  | U130: =IF('Planilha (A)'!AQ69="",#N/A,'Planilha (A)'!AQ69) -> 
F131: 46 | G131: ='Planilha (A)'!C70 ->  | H131: ='Planilha (A)'!B70 ->  | I131: =IF('Planilha (A)'!G70="",#N/A,'Planilha (A)'!G70) ->  | J131: =IF('Planilha (A)'!J70="",#N/A,'Planilha (A)'!J70) ->  | K131: =IF('Planilha (A)'!M70="",#N/A,'Planilha (A)'!M70) ->  | L131: =IF('Planilha (A)'!P70="",#N/A,'Planilha (A)'!P70) ->  | M131: =IF('Planilha (A)'!S70="",#N/A,'Planilha (A)'!S70) ->  | N131: =IF('Planilha (A)'!V70="",#N/A,'Planilha (A)'!V70) ->  | O131: =IF('Planilha (A)'!Y70="",#N/A,'Planilha (A)'!Y70) ->  | P131: =IF('Planilha (A)'!AB70="",#N/A,'Planilha (A)'!AB70) ->  | Q131: =IF('Planilha (A)'!AE70="",#N/A,'Planilha (A)'!AE70) ->  | R131: =IF('Planilha (A)'!AH70="",#N/A,'Planilha (A)'!AH70) ->  | S131: =IF('Planilha (A)'!AK70="",#N/A,'Planilha (A)'!AK70) ->  | T131: =IF('Planilha (A)'!AN70="",#N/A,'Planilha (A)'!AN70) ->  | U131: =IF('Planilha (A)'!AQ70="",#N/A,'Planilha (A)'!AQ70) -> 
F132: 47 | G132: ='Planilha (A)'!C71 ->  | H132: ='Planilha (A)'!B71 ->  | I132: =IF('Planilha (A)'!G71="",#N/A,'Planilha (A)'!G71) ->  | J132: =IF('Planilha (A)'!J71="",#N/A,'Planilha (A)'!J71) ->  | K132: =IF('Planilha (A)'!M71="",#N/A,'Planilha (A)'!M71) ->  | L132: =IF('Planilha (A)'!P71="",#N/A,'Planilha (A)'!P71) ->  | M132: =IF('Planilha (A)'!S71="",#N/A,'Planilha (A)'!S71) ->  | N132: =IF('Planilha (A)'!V71="",#N/A,'Planilha (A)'!V71) ->  | O132: =IF('Planilha (A)'!Y71="",#N/A,'Planilha (A)'!Y71) ->  | P132: =IF('Planilha (A)'!AB71="",#N/A,'Planilha (A)'!AB71) ->  | Q132: =IF('Planilha (A)'!AE71="",#N/A,'Planilha (A)'!AE71) ->  | R132: =IF('Planilha (A)'!AH71="",#N/A,'Planilha (A)'!AH71) ->  | S132: =IF('Planilha (A)'!AK71="",#N/A,'Planilha (A)'!AK71) ->  | T132: =IF('Planilha (A)'!AN71="",#N/A,'Planilha (A)'!AN71) ->  | U132: =IF('Planilha (A)'!AQ71="",#N/A,'Planilha (A)'!AQ71) -> 
F133: 48 | G133: ='Planilha (A)'!C72 ->  | H133: ='Planilha (A)'!B72 ->  | I133: =IF('Planilha (A)'!G72="",#N/A,'Planilha (A)'!G72) ->  | J133: =IF('Planilha (A)'!J72="",#N/A,'Planilha (A)'!J72) ->  | K133: =IF('Planilha (A)'!M72="",#N/A,'Planilha (A)'!M72) ->  | L133: =IF('Planilha (A)'!P72="",#N/A,'Planilha (A)'!P72) ->  | M133: =IF('Planilha (A)'!S72="",#N/A,'Planilha (A)'!S72) ->  | N133: =IF('Planilha (A)'!V72="",#N/A,'Planilha (A)'!V72) ->  | O133: =IF('Planilha (A)'!Y72="",#N/A,'Planilha (A)'!Y72) ->  | P133: =IF('Planilha (A)'!AB72="",#N/A,'Planilha (A)'!AB72) ->  | Q133: =IF('Planilha (A)'!AE72="",#N/A,'Planilha (A)'!AE72) ->  | R133: =IF('Planilha (A)'!AH72="",#N/A,'Planilha (A)'!AH72) ->  | S133: =IF('Planilha (A)'!AK72="",#N/A,'Planilha (A)'!AK72) ->  | T133: =IF('Planilha (A)'!AN72="",#N/A,'Planilha (A)'!AN72) ->  | U133: =IF('Planilha (A)'!AQ72="",#N/A,'Planilha (A)'!AQ72) -> 
F134: 49 | G134: ='Planilha (A)'!C73 ->  | H134: ='Planilha (A)'!B73 ->  | I134: =IF('Planilha (A)'!G73="",#N/A,'Planilha (A)'!G73) ->  | J134: =IF('Planilha (A)'!J73="",#N/A,'Planilha (A)'!J73) ->  | K134: =IF('Planilha (A)'!M73="",#N/A,'Planilha (A)'!M73) ->  | L134: =IF('Planilha (A)'!P73="",#N/A,'Planilha (A)'!P73) ->  | M134: =IF('Planilha (A)'!S73="",#N/A,'Planilha (A)'!S73) ->  | N134: =IF('Planilha (A)'!V73="",#N/A,'Planilha (A)'!V73) ->  | O134: =IF('Planilha (A)'!Y73="",#N/A,'Planilha (A)'!Y73) ->  | P134: =IF('Planilha (A)'!AB73="",#N/A,'Planilha (A)'!AB73) ->  | Q134: =IF('Planilha (A)'!AE73="",#N/A,'Planilha (A)'!AE73) ->  | R134: =IF('Planilha (A)'!AH73="",#N/A,'Planilha (A)'!AH73) ->  | S134: =IF('Planilha (A)'!AK73="",#N/A,'Planilha (A)'!AK73) ->  | T134: =IF('Planilha (A)'!AN73="",#N/A,'Planilha (A)'!AN73) ->  | U134: =IF('Planilha (A)'!AQ73="",#N/A,'Planilha (A)'!AQ73) -> 
F135: 50 | G135: ='Planilha (A)'!C74 ->  | H135: ='Planilha (A)'!B74 ->  | I135: =IF('Planilha (A)'!G74="",#N/A,'Planilha (A)'!G74) ->  | J135: =IF('Planilha (A)'!J74="",#N/A,'Planilha (A)'!J74) ->  | K135: =IF('Planilha (A)'!M74="",#N/A,'Planilha (A)'!M74) ->  | L135: =IF('Planilha (A)'!P74="",#N/A,'Planilha (A)'!P74) ->  | M135: =IF('Planilha (A)'!S74="",#N/A,'Planilha (A)'!S74) ->  | N135: =IF('Planilha (A)'!V74="",#N/A,'Planilha (A)'!V74) ->  | O135: =IF('Planilha (A)'!Y74="",#N/A,'Planilha (A)'!Y74) ->  | P135: =IF('Planilha (A)'!AB74="",#N/A,'Planilha (A)'!AB74) ->  | Q135: =IF('Planilha (A)'!AE74="",#N/A,'Planilha (A)'!AE74) ->  | R135: =IF('Planilha (A)'!AH74="",#N/A,'Planilha (A)'!AH74) ->  | S135: =IF('Planilha (A)'!AK74="",#N/A,'Planilha (A)'!AK74) ->  | T135: =IF('Planilha (A)'!AN74="",#N/A,'Planilha (A)'!AN74) ->  | U135: =IF('Planilha (A)'!AQ74="",#N/A,'Planilha (A)'!AQ74) -> 

Sheet Planilha (A)
K5: ESTADO | L5: =Dados!$H$37 -> DF | M5: =Dados!$R$70 -> BRASIL
K6: 2017 | L6: =INDEX(Dados!$H$71:$P$83,ROW(K6)-5,periodo) -> 0.4525139665 | M6: =Dados!R71 -> 0.3542258263
K7: JAN | L7: =INDEX(Dados!$H$71:$P$83,ROW(K7)-5,periodo) -> 0.4804469274 | M7: =Dados!R72 -> 0.3756555105
K8: FEV | L8: =INDEX(Dados!$H$71:$P$83,ROW(K8)-5,periodo) ->  | M8: =Dados!R73 -> 
K9: MAR | L9: =INDEX(Dados!$H$71:$P$83,ROW(K9)-5,periodo) ->  | M9: =Dados!R74 -> 
K10: ABR | L10: =INDEX(Dados!$H$71:$P$83,ROW(K10)-5,periodo) ->  | M10: =Dados!R75 -> 
K11: MAI | L11: =INDEX(Dados!$H$71:$P$83,ROW(K11)-5,periodo) ->  | M11: =Dados!R76 -> 
K12: JUN | L12: =INDEX(Dados!$H$71:$P$83,ROW(K12)-5,periodo) ->  | M12: =Dados!R77 -> 
K13: JUL | L13: =INDEX(Dados!$H$71:$P$83,ROW(K13)-5,periodo) ->  | M13: =Dados!R78 -> 
K14: AGO | L14: =INDEX(Dados!$H$71:$P$83,ROW(K14)-5,periodo) ->  | M14: =Dados!R79 -> 
K15: SET | L15: =INDEX(Dados!$H$71:$P$83,ROW(K15)-5,periodo) ->  | M15: =Dados!R80 -> 
K16: OUT | L16: =INDEX(Dados!$H$71:$P$83,ROW(K16)-5,periodo) ->  | M16: =Dados!R81 -> 
K17: NOV | L17: =INDEX(Dados!$H$71:$P$83,ROW(K17)-5,periodo) ->  | M17: =Dados!R82 -> 
K18: DEZ | L18: =INDEX(Dados!$H$71:$P$83,ROW(K18)-5,periodo) ->  | M18: =Dados!R83 -> 
C23: =COLUMN(INDIRECT(D23))+2 -> 10 | D23: JAN | E23: 2017 | H23: JAN | K23: FEV | N23: MAR | Q23: ABR | T23: MAI | W23: JUN | Z23: JUL | AC23: AGO | AF23: SET | AI23: OUT | AL23: NOV | AO23: DEZ
B24: Código | C24: Empresa | D24: ="Comparativo "&IF(D23=JAN,YEAR(TODAY())-1,OFFSET(INDIRECT(D23,TRUE),,-3))&" / "&D23 -> Comparativo 2017 / JAN | E24: Serviços Demandados | F24: Serviços Atendidos | G24: % Atendimento | H24: Serviços Demandados | I24: Serviços Atendidos | J24: % Atendimento | K24: Serviços Demandados | L24: Serviços Atendidos | M24: % Atendimento | N24: Serviços Demandados | O24: Serviços Atendidos | P24: % Atendimento | Q24: Serviços Demandados | R24: Serviços Atendidos | S24: % Atendimento | T24: Serviços Demandados | U24: Serviços Atendidos | V24: % Atendimento | W24: Serviços Demandados | X24: Serviços Atendidos | Y24: % Atendimento | Z24: Serviços Demandados | AA24: Serviços Atendidos | AB24: % Atendimento | AC24: Serviços Demandados | AD24: Serviços Atendidos | AE24: % Atendimento | AF24: Serviços Demandados | AG24: Serviços Atendidos | AH24: % Atendimento | AI24: Serviços Demandados | AJ24: Serviços Atendidos | AK24: % Atendimento | AL24: Serviços Demandados | AM24: Serviços Atendidos | AN24: % Atendimento | AO24: Serviços Demandados | AP24: Serviços Atendidos | AQ24: % Atendimento
B25: =IFERROR(INDEX(Empresas!$B$6:$AS$46,SMALL(IF(Empresas!$B$6:$B$46=Dados!$H$37,ROW(Empresas!$B$6:$B$46)-5),ROW($A1)),COLUMN(B$1)),"") -> 13 | C25: =IFERROR(INDEX(Empresas!$B$6:$AS$46,SMALL(IF(Empresas!$B$6:$B$46=Dados!$H$37,ROW(Empresas!$B$6:$B$46)-5),ROW($A1)),COLUMN(C$1)),"") -> EMPRESA 13 | D25: =IF(C25="","",IF(OFFSET(INDIRECT($D$23,TRUE),ROW(C25)-23,2)>OFFSET(INDIRECT($D$23),ROW(C25)-23,-1),1,IF(OFFSET(INDIRECT($D$23,TRUE),ROW(C25)-23,2)=OFFSET(INDIRECT($D$23),ROW(C25)-23,-1),2,3))) -> 1 | E25: =IFERROR(INDEX(Empresas!$B$6:$AS$46,SMALL(IF(Empresas!$B$6:$B$46=Dados!$H$37,ROW(Empresas!$B$6:$B$46)-5),ROW($A1)),COLUMN(F$1)),"") -> 72 | F25: =IFERROR(INDEX(Empresas!$B$6:$AS$46,SMALL(IF(Empresas!$B$6:$B$46=Dados!$H$37,ROW(Empresas!$B$6:$B$46)-5),ROW($A1)),COLUMN(G$1)),"") -> 18 | G25: =IFERROR(INDEX(Empresas!$B$6:$AS$46,SMALL(IF(Empresas!$B$6:$B$46=Dados!$H$37,ROW(Empresas!$B$6:$B$46)-5),ROW($A1)),COLUMN(H$1)),"") -> 0.25 | H25: =IFERROR(INDEX(Empresas!$B$6:$AS$46,SMALL(IF(Empresas!$B$6:$B$46=Dados!$H$37,ROW(Empresas!$B$6:$B$46)-5),ROW($A1)),COLUMN(I$1)),"") -> 72 | I25: =IFERROR(INDEX(Empresas!$B$6:$AS$46,SMALL(IF(Empresas!$B$6:$B$46=Dados!$H$37,ROW(Empresas!$B$6:$B$46)-5),ROW($A1)),COLUMN(J$1)),"") -> 29 | J25: =IFERROR(INDEX(Empresas!$B$6:$AS$46,SMALL(IF(Empresas!$B$6:$B$46=Dados!$H$37,ROW(Empresas!$B$6:$B$46)-5),ROW($A1)),COLUMN(K$1)),"") -> 0.4027777778 | K25: =IFERROR(INDEX(Empresas!$B$6:$AS$46,SMALL(IF(Empresas!$B$6:$B$46=Dados!$H$37,ROW(Empresas!$B$6:$B$46)-5),ROW($A1)),COLUMN(L$1)),"") ->  | L25: =IFERROR(INDEX(Empresas!$B$6:$AS$46,SMALL(IF(Empresas!$B$6:$B$46=Dados!$H$37,ROW(Empresas!$B$6:$B$46)-5),ROW($A1)),COLUMN(M$1)),"") ->  | M25: =IFERROR(INDEX(Empresas!$B$6:$AS$46,SMALL(IF(Empresas!$B$6:$B$46=Dados!$H$37,ROW(Empresas!$B$6:$B$46)-5),ROW($A1)),COLUMN(N$1)),"") ->  | N25: =IFERROR(INDEX(Empresas!$B$6:$AS$46,SMALL(IF(Empresas!$B$6:$B$46=Dados!$H$37,ROW(Empresas!$B$6:$B$46)-5),ROW($A1)),COLUMN(O$1)),"") ->  | O25: =IFERROR(INDEX(Empresas!$B$6:$AS$46,SMALL(IF(Empresas!$B$6:$B$46=Dados!$H$37,ROW(Empresas!$B$6:$B$46)-5),ROW($A1)),COLUMN(P$1)),"") ->  | P25: =IFERROR(INDEX(Empresas!$B$6:$AS$46,SMALL(IF(Empresas!$B$6:$B$46=Dados!$H$37,ROW(Empresas!$B$6:$B$46)-5),ROW($A1)),COLUMN(Q$1)),"") ->  | Q25: =IFERROR(INDEX(Empresas!$B$6:$AS$46,SMALL(IF(Empresas!$B$6:$B$46=Dados!$H$37,ROW(Empresas!$B$6:$B$46)-5),ROW($A1)),COLUMN(R$1)),"") ->  | R25: =IFERROR(INDEX(Empresas!$B$6:$AS$46,SMALL(IF(Empresas!$B$6:$B$46=Dados!$H$37,ROW(Empresas!$B$6:$B$46)-5),ROW($A1)),COLUMN(S$1)),"") ->  | S25: =IFERROR(INDEX(Empresas!$B$6:$AS$46,SMALL(IF(Empresas!$B$6:$B$46=Dados!$H$37,ROW(Empresas!$B$6:$B$46)-5),ROW($A1)),COLUMN(T$1)),"") ->  | T25: =IFERROR(INDEX(Empresas!$B$6:$AS$46,SMALL(IF(Empresas!$B$6:$B$46=Dados!$H$37,ROW(Empresas!$B$6:$B$46)-5),ROW($A1)),COLUMN(U$1)),"") ->  | U25: =IFERROR(INDEX(Empresas!$B$6:$AS$46,SMALL(IF(Empresas!$B$6:$B$46=Dados!$H$37,ROW(Empresas!$B$6:$B$46)-5),ROW($A1)),COLUMN(V$1)),"") ->  | V25: =IFERROR(INDEX(Empresas!$B$6:$AS$46,SMALL(IF(Empresas!$B$6:$B$46=Dados!$H$37,ROW(Empresas!$B$6:$B$46)-5),ROW($A1)),COLUMN(W$1)),"") ->  | W25: =IFERROR(INDEX(Empresas!$B$6:$AS$46,SMALL(IF(Empresas!$B$6:$B$46=Dados!$H$37,ROW(Empresas!$B$6:$B$46)-5),ROW($A1)),COLUMN(X$1)),"") ->  | X25: =IFERROR(INDEX(Empresas!$B$6:$AS$46,SMALL(IF(Empresas!$B$6:$B$46=Dados!$H$37,ROW(Empresas!$B$6:$B$46)-5),ROW($A1)),COLUMN(Y$1)),"") ->  | Y25: =IFERROR(INDEX(Empresas!$B$6:$AS$46,SMALL(IF(Empresas!$B$6:$B$46=Dados!$H$37,ROW(Empresas!$B$6:$B$46)-5),ROW($A1)),COLUMN(Z$1)),"") ->  | Z25: =IFERROR(INDEX(Empresas!$B$6:$AS$46,SMALL(IF(Empresas!$B$6:$B$46=Dados!$H$37,ROW(Empresas!$B$6:$B$46)-5),ROW($A1)),COLUMN(AA$1)),"") ->  | AA25: =IFERROR(INDEX(Empresas!$B$6:$AS$46,SMALL(IF(Empresas!$B$6:$B$46=Dados!$H$37,ROW(Empresas!$B$6:$B$46)-5),ROW($A1)),COLUMN(AB$1)),"") ->  | AB25: =IFERROR(INDEX(Empresas!$B$6:$AS$46,SMALL(IF(Empresas!$B$6:$B$46=Dados!$H$37,ROW(Empresas!$B$6:$B$46)-5),ROW($A1)),COLUMN(AC$1)),"") ->  | AC25: =IFERROR(INDEX(Empresas!$B$6:$AS$46,SMALL(IF(Empresas!$B$6:$B$46=Dados!$H$37,ROW(Empresas!$B$6:$B$46)-5),ROW($A1)),COLUMN(AD$1)),"") ->  | AD25: =IFERROR(INDEX(Empresas!$B$6:$AS$46,SMALL(IF(Empresas!$B$6:$B$46=Dados!$H$37,ROW(Empresas!$B$6:$B$46)-5),ROW($A1)),COLUMN(AE$1)),"") ->  | AE25: =IFERROR(INDEX(Empresas!$B$6:$AS$46,SMALL(IF(Empresas!$B$6:$B$46=Dados!$H$37,ROW(Empresas!$B$6:$B$46)-5),ROW($A1)),COLUMN(AF$1)),"") ->  | AF25: =IFERROR(INDEX(Empresas!$B$6:$AS$46,SMALL(IF(Empresas!$B$6:$B$46=Dados!$H$37,ROW(Empresas!$B$6:$B$46)-5),ROW($A1)),COLUMN(AG$1)),"") ->  | AG25: =IFERROR(INDEX(Empresas!$B$6:$AS$46,SMALL(IF(Empresas!$B$6:$B$46=Dados!$H$37,ROW(Empresas!$B$6:$B$46)-5),ROW($A1)),COLUMN(AH$1)),"") ->  | AH25: =IFERROR(INDEX(Empresas!$B$6:$AS$46,SMALL(IF(Empresas!$B$6:$B$46=Dados!$H$37,ROW(Empresas!$B$6:$B$46)-5),ROW($A1)),COLUMN(AI$1)),"") ->  | AI25: =IFERROR(INDEX(Empresas!$B$6:$AS$46,SMALL(IF(Empresas!$B$6:$B$46=Dados!$H$37,ROW(Empresas!$B$6:$B$46)-5),ROW($A1)),COLUMN(AJ$1)),"") ->  | AJ25: =IFERROR(INDEX(Empresas!$B$6:$AS$46,SMALL(IF(Empresas!$B$6:$B$46=Dados!$H$37,ROW(Empresas!$B$6:$B$46)-5),ROW($A1)),COLUMN(AK$1)),"") ->  | AK25: =IFERROR(INDEX(Empresas!$B$6:$AS$46,SMALL(IF(Empresas!$B$6:$B$46=Dados!$H$37,ROW(Empresas!$B$6:$B$46)-5),ROW($A1)),COLUMN(AL$1)),"") ->  | AL25: =IFERROR(INDEX(Empresas!$B$6:$AS$46,SMALL(IF(Empresas!$B$6:$B$46=Dados!$H$37,ROW(Empresas!$B$6:$B$46)-5),ROW($A1)),COLUMN(AM$1)),"") ->  | AM25: =IFERROR(INDEX(Empresas!$B$6:$AS$46,SMALL(IF(Empresas!$B$6:$B$46=Dados!$H$37,ROW(Empresas!$B$6:$B$46)-5),ROW($A1)),COLUMN(AN$1)),"") ->  | AN25: =IFERROR(INDEX(Empresas!$B$6:$AS$46,SMALL(IF(Empresas!$B$6:$B$46=Dados!$H$37,ROW(Empresas!$B$6:$B$46)-5),ROW($A1)),COLUMN(AO$1)),"") ->  | AO25: =IFERROR(INDEX(Empresas!$B$6:$AS$46,SMALL(IF(Empresas!$B$6:$B$46=Dados!$H$37,ROW(Empresas!$B$6:$B$46)-5),ROW($A1)),COLUMN(AP$1)),"") ->  | AP25: =IFERROR(INDEX(Empresas!$B$6:$AS$46,SMALL(IF(Empresas!$B$6:$B$46=Dados!$H$37,ROW(Empresas!$B$6:$B$46)-5),ROW($A1)),COLUMN(AQ$1)),"") ->  | AQ25: =IFERROR(INDEX(Empresas!$B$6:$AS$46,SMALL(IF(Empresas!$B$6:$B$46=Dados!$H$37,ROW(Empresas!$B$6:$B$46)-5),ROW($A1)),COLUMN(AR$1)),"") -> 
B26: =IFERROR(INDEX(Empresas!$B$6:$AS$46,SMALL(IF(Empresas!$B$6:$B$46=Dados!$H$37,ROW(Empresas!$B$6:$B$46)-5),ROW($A2)),COLUMN(B$1)),"") -> 14 | C26: =IFERROR(INDEX(Empresas!$B$6:$AS$46,SMALL(IF(Empresas!$B$6:$B$46=Dados!$H$37,ROW(Empresas!$B$6:$B$46)-5),ROW($A2)),COLUMN(C$1)),"") -> EMPRESA 14 | D26: 3 | E26: =IFERROR(INDEX(Empresas!$B$6:$AS$46,SMALL(IF(Empresas!$B$6:$B$46=Dados!$H$37,ROW(Empresas!$B$6:$B$46)-5),ROW($A2)),COLUMN(F$1)),"") -> 67 | F26: =IFERROR(INDEX(Empresas!$B$6:$AS$46,SMALL(IF(Empresas!$B$6:$B$46=Dados!$H$37,ROW(Empresas!$B$6:$B$46)-5),ROW($A2)),COLUMN(G$1)),"") -> 29 | G26: =IFERROR(INDEX(Empresas!$B$6:$AS$46,SMALL(IF(Empresas!$B$6:$B$46=Dados!$H$37,ROW(Empresas!$B$6:$B$46)-5),ROW($A2)),COLUMN(H$1)),"") -> 0.4328358209 | H26: =IFERROR(INDEX(Empresas!$B$6:$AS$46,SMALL(IF(Empresas!$B$6:$B$46=Dados!$H$37,ROW(Empresas!$B$6:$B$46)-5),ROW($A2)),COLUMN(I$1)),"") -> 67 | I26: =IFERROR(INDEX(Empresas!$B$6:$AS$46,SMALL(IF(Empresas!$B$6:$B$46=Dados!$H$37,ROW(Empresas!$B$6:$B$46)-5),ROW($A2)),COLUMN(J$1)),"") -> 28 | J26: =IFERROR(INDEX(Empresas!$B$6:$AS$46,SMALL(IF(Empresas!$B$6:$B$46=Dados!$H$37,ROW(Empresas!$B$6:$B$46)-5),ROW($A2)),COLUMN(K$1)),"") -> 0.4179104478 | K26: =IFERROR(INDEX(Empresas!$B$6:$AS$46,SMALL(IF(Empresas!$B$6:$B$46=Dados!$H$37,ROW(Empresas!$B$6:$B$46)-5),ROW($A2)),COLUMN(L$1)),"") ->  | L26: =IFERROR(INDEX(Empresas!$B$6:$AS$46,SMALL(IF(Empresas!$B$6:$B$46=Dados!$H$37,ROW(Empresas!$B$6:$B$46)-5),ROW($A2)),COLUMN(M$1)),"") ->  | M26: =IFERROR(INDEX(Empresas!$B$6:$AS$46,SMALL(IF(Empresas!$B$6:$B$46=Dados!$H$37,ROW(Empresas!$B$6:$B$46)-5),ROW($A2)),COLUMN(N$1)),"") ->  | N26: =IFERROR(INDEX(Empresas!$B$6:$AS$46,SMALL(IF(Empresas!$B$6:$B$46=Dados!$H$37,ROW(Empresas!$B$6:$B$46)-5),ROW($A2)),COLUMN(O$1)),"") ->  | O26: =IFERROR(INDEX(Empresas!$B$6:$AS$46,SMALL(IF(Empresas!$B$6:$B$46=Dados!$H$37,ROW(Empresas!$B$6:$B$46)-5),ROW($A2)),COLUMN(P$1)),"") ->  | P26: =IFERROR(INDEX(Empresas!$B$6:$AS$46,SMALL(IF(Empresas!$B$6:$B$46=Dados!$H$37,ROW(Empresas!$B$6:$B$46)-5),ROW($A2)),COLUMN(Q$1)),"") ->  | Q26: =IFERROR(INDEX(Empresas!$B$6:$AS$46,SMALL(IF(Empresas!$B$6:$B$46=Dados!$H$37,ROW(Empresas!$B$6:$B$46)-5),ROW($A2)),COLUMN(R$1)),"") ->  | R26: =IFERROR(INDEX(Empresas!$B$6:$AS$46,SMALL(IF(Empresas!$B$6:$B$46=Dados!$H$37,ROW(Empresas!$B$6:$B$46)-5),ROW($A2)),COLUMN(S$1)),"") ->  | S26: =IFERROR(INDEX(Empresas!$B$6:$AS$46,SMALL(IF(Empresas!$B$6:$B$46=Dados!$H$37,ROW(Empresas!$B$6:$B$46)-5),ROW($A2)),COLUMN(T$1)),"") ->  | T26: =IFERROR(INDEX(Empresas!$B$6:$AS$46,SMALL(IF(Empresas!$B$6:$B$46=Dados!$H$37,ROW(Empresas!$B$6:$B$46)-5),ROW($A2)),COLUMN(U$1)),"") ->  | U26: =IFERROR(INDEX(Empresas!$B$6:$AS$46,SMALL(IF(Empresas!$B$6:$B$46=Dados!$H$37,ROW(Empresas!$B$6:$B$46)-5),ROW($A2)),COLUMN(V$1)),"") ->  | V26: =IFERROR(INDEX(Empresas!$B$6:$AS$46,SMALL(IF(Empresas!$B$6:$B$46=Dados!$H$37,ROW(Empresas!$B$6:$B$46)-5),ROW($A2)),COLUMN(W$1)),"") ->  | W26: =IFERROR(INDEX(Empresas!$B$6:$AS$46,SMALL(IF(Empresas!$B$6:$B$46=Dados!$H$37,ROW(Empresas!$B$6:$B$46)-5),ROW($A2)),COLUMN(X$1)),"") ->  | X26: =IFERROR(INDEX(Empresas!$B$6:$AS$46,SMALL(IF(Empresas!$B$6:$B$46=Dados!$H$37,ROW(Empresas!$B$6:$B$46)-5),ROW($A2)),COLUMN(Y$1)),"") ->  | Y26: =IFERROR(INDEX(Empresas!$B$6:$AS$46,SMALL(IF(Empresas!$B$6:$B$46=Dados!$H$37,ROW(Empresas!$B$6:$B$46)-5),ROW($A2)),COLUMN(Z$1)),"") ->  | Z26: =IFERROR(INDEX(Empresas!$B$6:$AS$46,SMALL(IF(Empresas!$B$6:$B$46=Dados!$H$37,ROW(Empresas!$B$6:$B$46)-5),ROW($A2)),COLUMN(AA$1)),"") ->  | AA26: =IFERROR(INDEX(Empresas!$B$6:$AS$46,SMALL(IF(Empresas!$B$6:$B$46=Dados!$H$37,ROW(Empresas!$B$6:$B$46)-5),ROW($A2)),COLUMN(AB$1)),"") ->  | AB26: =IFERROR(INDEX(Empresas!$B$6:$AS$46,SMALL(IF(Empresas!$B$6:$B$46=Dados!$H$37,ROW(Empresas!$B$6:$B$46)-5),ROW($A2)),COLUMN(AC$1)),"") ->  | AC26: =IFERROR(INDEX(Empresas!$B$6:$AS$46,SMALL(IF(Empresas!$B$6:$B$46=Dados!$H$37,ROW(Empresas!$B$6:$B$46)-5),ROW($A2)),COLUMN(AD$1)),"") ->  | AD26: =IFERROR(INDEX(Empresas!$B$6:$AS$46,SMALL(IF(Empresas!$B$6:$B$46=Dados!$H$37,ROW(Empresas!$B$6:$B$46)-5),ROW($A2)),COLUMN(AE$1)),"") ->  | AE26: =IFERROR(INDEX(Empresas!$B$6:$AS$46,SMALL(IF(Empresas!$B$6:$B$46=Dados!$H$37,ROW(Empresas!$B$6:$B$46)-5),ROW($A2)),COLUMN(AF$1)),"") ->  | AF26: =IFERROR(INDEX(Empresas!$B$6:$AS$46,SMALL(IF(Empresas!$B$6:$B$46=Dados!$H$37,ROW(Empresas!$B$6:$B$46)-5),ROW($A2)),COLUMN(AG$1)),"") ->  | AG26: =IFERROR(INDEX(Empresas!$B$6:$AS$46,SMALL(IF(Empresas!$B$6:$B$46=Dados!$H$37,ROW(Empresas!$B$6:$B$46)-5),ROW($A2)),COLUMN(AH$1)),"") ->  | AH26: =IFERROR(INDEX(Empresas!$B$6:$AS$46,SMALL(IF(Empresas!$B$6:$B$46=Dados!$H$37,ROW(Empresas!$B$6:$B$46)-5),ROW($A2)),COLUMN(AI$1)),"") ->  | AI26: =IFERROR(INDEX(Empresas!$B$6:$AS$46,SMALL(IF(Empresas!$B$6:$B$46=Dados!$H$37,ROW(Empresas!$B$6:$B$46)-5),ROW($A2)),COLUMN(AJ$1)),"") ->  | AJ26: =IFERROR(INDEX(Empresas!$B$6:$AS$46,SMALL(IF(Empresas!$B$6:$B$46=Dados!$H$37,ROW(Empresas!$B$6:$B$46)-5),ROW($A2)),COLUMN(AK$1)),"") ->  | AK26: =IFERROR(INDEX(Empresas!$B$6:$AS$46,SMALL(IF(Empresas!$B$6:$B$46=Dados!$H$37,ROW(Empresas!$B$6:$B$46)-5),ROW($A2)),COLUMN(AL$1)),"") ->  | AL26: =IFERROR(INDEX(Empresas!$B$6:$AS$46,SMALL(IF(Empresas!$B$6:$B$46=Dados!$H$37,ROW(Empresas!$B$6:$B$46)-5),ROW($A2)),COLUMN(AM$1)),"") ->  | AM26: =IFERROR(INDEX(Empresas!$B$6:$AS$46,SMALL(IF(Empresas!$B$6:$B$46=Dados!$H$37,ROW(Empresas!$B$6:$B$46)-5),ROW($A2)),COLUMN(AN$1)),"") ->  | AN26: =IFERROR(INDEX(Empresas!$B$6:$AS$46,SMALL(IF(Empresas!$B$6:$B$46=Dados!$H$37,ROW(Empresas!$B$6:$B$46)-5),ROW($A2)),COLUMN(AO$1)),"") ->  | AO26: =IFERROR(INDEX(Empresas!$B$6:$AS$46,SMALL(IF(Empresas!$B$6:$B$46=Dados!$H$37,ROW(Empresas!$B$6:$B$46)-5),ROW($A2)),COLUMN(AP$1)),"") ->  | AP26: =IFERROR(INDEX(Empresas!$B$6:$AS$46,SMALL(IF(Empresas!$B$6:$B$46=Dados!$H$37,ROW(Empresas!$B$6:$B$46)-5),ROW($A2)),COLUMN(AQ$1)),"") ->  | AQ26: =IFERROR(INDEX(Empresas!$B$6:$AS$46,SMALL(IF(Empresas!$B$6:$B$46=Dados!$H$37,ROW(Empresas!$B$6:$B$46)-5),ROW($A2)),COLUMN(AR$1)),"") -> 
B27: =IFERROR(INDEX(Empresas!$B$6:$AS$46,SMALL(IF(Empresas!$B$6:$B$46=Dados!$H$37,ROW(Empresas!$B$6:$B$46)-5),ROW($A3)),COLUMN(B$1)),"") -> 15 | C27: =IFERROR(INDEX(Empresas!$B$6:$AS$46,SMALL(IF(Empresas!$B$6:$B$46=Dados!$H$37,ROW(Empresas!$B$6:$B$46)-5),ROW($A3)),COLUMN(C$1)),"") -> EMPRESA 15 | D27: 1 | E27: =IFERROR(INDEX(Empresas!$B$6:$AS$46,SMALL(IF(Empresas!$B$6:$B$46=Dados!$H$37,ROW(Empresas!$B$6:$B$46)-5),ROW($A3)),COLUMN(F$1)),"") -> 47 | F27: =IFERROR(INDEX(Empresas!$B$6:$AS$46,SMALL(IF(Empresas!$B$6:$B$46=Dados!$H$37,ROW(Empresas!$B$6:$B$46)-5),ROW($A3)),COLUMN(G$1)),"") -> 8 | G27: =IFERROR(INDEX(Empresas!$B$6:$AS$46,SMALL(IF(Empresas!$B$6:$B$46=Dados!$H$37,ROW(Empresas!$B$6:$B$46)-5),ROW($A3)),COLUMN(H$1)),"") -> 0.170212766 | H27: =IFERROR(INDEX(Empresas!$B$6:$AS$46,SMALL(IF(Empresas!$B$6:$B$46=Dados!$H$37,ROW(Empresas!$B$6:$B$46)-5),ROW($A3)),COLUMN(I$1)),"") -> 47 | I27: =IFERROR(INDEX(Empresas!$B$6:$AS$46,SMALL(IF(Empresas!$B$6:$B$46=Dados!$H$37,ROW(Empresas!$B$6:$B$46)-5),ROW($A3)),COLUMN(J$1)),"") -> 12 | J27: =IFERROR(INDEX(Empresas!$B$6:$AS$46,SMALL(IF(Empresas!$B$6:$B$46=Dados!$H$37,ROW(Empresas!$B$6:$B$46)-5),ROW($A3)),COLUMN(K$1)),"") -> 0.2553191489 | K27: =IFERROR(INDEX(Empresas!$B$6:$AS$46,SMALL(IF(Empresas!$B$6:$B$46=Dados!$H$37,ROW(Empresas!$B$6:$B$46)-5),ROW($A3)),COLUMN(L$1)),"") ->  | L27: =IFERROR(INDEX(Empresas!$B$6:$AS$46,SMALL(IF(Empresas!$B$6:$B$46=Dados!$H$37,ROW(Empresas!$B$6:$B$46)-5),ROW($A3)),COLUMN(M$1)),"") ->  | M27: =IFERROR(INDEX(Empresas!$B$6:$AS$46,SMALL(IF(Empresas!$B$6:$B$46=Dados!$H$37,ROW(Empresas!$B$6:$B$46)-5),ROW($A3)),COLUMN(N$1)),"") ->  | N27: =IFERROR(INDEX(Empresas!$B$6:$AS$46,SMALL(IF(Empresas!$B$6:$B$46=Dados!$H$37,ROW(Empresas!$B$6:$B$46)-5),ROW($A3)),COLUMN(O$1)),"") ->  | O27: =IFERROR(INDEX(Empresas!$B$6:$AS$46,SMALL(IF(Empresas!$B$6:$B$46=Dados!$H$37,ROW(Empresas!$B$6:$B$46)-5),ROW($A3)),COLUMN(P$1)),"") ->  | P27: =IFERROR(INDEX(Empresas!$B$6:$AS$46,SMALL(IF(Empresas!$B$6:$B$46=Dados!$H$37,ROW(Empresas!$B$6:$B$46)-5),ROW($A3)),COLUMN(Q$1)),"") ->  | Q27: =IFERROR(INDEX(Empresas!$B$6:$AS$46,SMALL(IF(Empresas!$B$6:$B$46=Dados!$H$37,ROW(Empresas!$B$6:$B$46)-5),ROW($A3)),COLUMN(R$1)),"") ->  | R27: =IFERROR(INDEX(Empresas!$B$6:$AS$46,SMALL(IF(Empresas!$B$6:$B$46=Dados!$H$37,ROW(Empresas!$B$6:$B$46)-5),ROW($A3)),COLUMN(S$1)),"") ->  | S27: =IFERROR(INDEX(Empresas!$B$6:$AS$46,SMALL(IF(Empresas!$B$6:$B$46=Dados!$H$37,ROW(Empresas!$B$6:$B$46)-5),ROW($A3)),COLUMN(T$1)),"") ->  | T27: =IFERROR(INDEX(Empresas!$B$6:$AS$46,SMALL(IF(Empresas!$B$6:$B$46=Dados!$H$37,ROW(Empresas!$B$6:$B$46)-5),ROW($A3)),COLUMN(U$1)),"") ->  | U27: =IFERROR(INDEX(Empresas!$B$6:$AS$46,SMALL(IF(Empresas!$B$6:$B$46=Dados!$H$37,ROW(Empresas!$B$6:$B$46)-5),ROW($A3)),COLUMN(V$1)),"") ->  | V27: =IFERROR(INDEX(Empresas!$B$6:$AS$46,SMALL(IF(Empresas!$B$6:$B$46=Dados!$H$37,ROW(Empresas!$B$6:$B$46)-5),ROW($A3)),COLUMN(W$1)),"") ->  | W27: =IFERROR(INDEX(Empresas!$B$6:$AS$46,SMALL(IF(Empresas!$B$6:$B$46=Dados!$H$37,ROW(Empresas!$B$6:$B$46)-5),ROW($A3)),COLUMN(X$1)),"") ->  | X27: =IFERROR(INDEX(Empresas!$B$6:$AS$46,SMALL(IF(Empresas!$B$6:$B$46=Dados!$H$37,ROW(Empresas!$B$6:$B$46)-5),ROW($A3)),COLUMN(Y$1)),"") ->  | Y27: =IFERROR(INDEX(Empresas!$B$6:$AS$46,SMALL(IF(Empresas!$B$6:$B$46=Dados!$H$37,ROW(Empresas!$B$6:$B$46)-5),ROW($A3)),COLUMN(Z$1)),"") ->  | Z27: =IFERROR(INDEX(Empresas!$B$6:$AS$46,SMALL(IF(Empresas!$B$6:$B$46=Dados!$H$37,ROW(Empresas!$B$6:$B$46)-5),ROW($A3)),COLUMN(AA$1)),"") ->  | AA27: =IFERROR(INDEX(Empresas!$B$6:$AS$46,SMALL(IF(Empresas!$B$6:$B$46=Dados!$H$37,ROW(Empresas!$B$6:$B$46)-5),ROW($A3)),COLUMN(AB$1)),"") ->  | AB27: =IFERROR(INDEX(Empresas!$B$6:$AS$46,SMALL(IF(Empresas!$B$6:$B$46=Dados!$H$37,ROW(Empresas!$B$6:$B$46)-5),ROW($A3)),COLUMN(AC$1)),"") ->  | AC27: =IFERROR(INDEX(Empresas!$B$6:$AS$46,SMALL(IF(Empresas!$B$6:$B$46=Dados!$H$37,ROW(Empresas!$B$6:$B$46)-5),ROW($A3)),COLUMN(AD$1)),"") ->  | AD27: =IFERROR(INDEX(Empresas!$B$6:$AS$46,SMALL(IF(Empresas!$B$6:$B$46=Dados!$H$37,ROW(Empresas!$B$6:$B$46)-5),ROW($A3)),COLUMN(AE$1)),"") ->  | AE27: =IFERROR(INDEX(Empresas!$B$6:$AS$46,SMALL(IF(Empresas!$B$6:$B$46=Dados!$H$37,ROW(Empresas!$B$6:$B$46)-5),ROW($A3)),COLUMN(AF$1)),"") ->  | AF27: =IFERROR(INDEX(Empresas!$B$6:$AS$46,SMALL(IF(Empresas!$B$6:$B$46=Dados!$H$37,ROW(Empresas!$B$6:$B$46)-5),ROW($A3)),COLUMN(AG$1)),"") ->  | AG27: =IFERROR(INDEX(Empresas!$B$6:$AS$46,SMALL(IF(Empresas!$B$6:$B$46=Dados!$H$37,ROW(Empresas!$B$6:$B$46)-5),ROW($A3)),COLUMN(AH$1)),"") ->  | AH27: =IFERROR(INDEX(Empresas!$B$6:$AS$46,SMALL(IF(Empresas!$B$6:$B$46=Dados!$H$37,ROW(Empresas!$B$6:$B$46)-5),ROW($A3)),COLUMN(AI$1)),"") ->  | AI27: =IFERROR(INDEX(Empresas!$B$6:$AS$46,SMALL(IF(Empresas!$B$6:$B$46=Dados!$H$37,ROW(Empresas!$B$6:$B$46)-5),ROW($A3)),COLUMN(AJ$1)),"") ->  | AJ27: =IFERROR(INDEX(Empresas!$B$6:$AS$46,SMALL(IF(Empresas!$B$6:$B$46=Dados!$H$37,ROW(Empresas!$B$6:$B$46)-5),ROW($A3)),COLUMN(AK$1)),"") ->  | AK27: =IFERROR(INDEX(Empresas!$B$6:$AS$46,SMALL(IF(Empresas!$B$6:$B$46=Dados!$H$37,ROW(Empresas!$B$6:$B$46)-5),ROW($A3)),COLUMN(AL$1)),"") ->  | AL27: =IFERROR(INDEX(Empresas!$B$6:$AS$46,SMALL(IF(Empresas!$B$6:$B$46=Dados!$H$37,ROW(Empresas!$B$6:$B$46)-5),ROW($A3)),COLUMN(AM$1)),"") ->  | AM27: =IFERROR(INDEX(Empresas!$B$6:$AS$46,SMALL(IF(Empresas!$B$6:$B$46=Dados!$H$37,ROW(Empresas!$B$6:$B$46)-5),ROW($A3)),COLUMN(AN$1)),"") ->  | AN27: =IFERROR(INDEX(Empresas!$B$6:$AS$46,SMALL(IF(Empresas!$B$6:$B$46=Dados!$H$37,ROW(Empresas!$B$6:$B$46)-5),ROW($A3)),COLUMN(AO$1)),"") ->  | AO27: =IFERROR(INDEX(Empresas!$B$6:$AS$46,SMALL(IF(Empresas!$B$6:$B$46=Dados!$H$37,ROW(Empresas!$B$6:$B$46)-5),ROW($A3)),COLUMN(AP$1)),"") ->  | AP27: =IFERROR(INDEX(Empresas!$B$6:$AS$46,SMALL(IF(Empresas!$B$6:$B$46=Dados!$H$37,ROW(Empresas!$B$6:$B$46)-5),ROW($A3)),COLUMN(AQ$1)),"") ->  | AQ27: =IFERROR(INDEX(Empresas!$B$6:$AS$46,SMALL(IF(Empresas!$B$6:$B$46=Dados!$H$37,ROW(Empresas!$B$6:$B$46)-5),ROW($A3)),COLUMN(AR$1)),"") -> 
B28: =IFERROR(INDEX(Empresas!$B$6:$AS$46,SMALL(IF(Empresas!$B$6:$B$46=Dados!$H$37,ROW(Empresas!$B$6:$B$46)-5),ROW($A4)),COLUMN(B$1)),"") -> 16 | C28: =IFERROR(INDEX(Empresas!$B$6:$AS$46,SMALL(IF(Empresas!$B$6:$B$46=Dados!$H$37,ROW(Empresas!$B$6:$B$46)-5),ROW($A4)),COLUMN(C$1)),"") -> EMPRESA 16 | D28: 3 | E28: =IFERROR(INDEX(Empresas!$B$6:$AS$46,SMALL(IF(Empresas!$B$6:$B$46=Dados!$H$37,ROW(Empresas!$B$6:$B$46)-5),ROW($A4)),COLUMN(F$1)),"") -> 85 | F28: =IFERROR(INDEX(Empresas!$B$6:$AS$46,SMALL(IF(Empresas!$B$6:$B$46=Dados!$H$37,ROW(Empresas!$B$6:$B$46)-5),ROW($A4)),COLUMN(G$1)),"") -> 80 | G28: =IFERROR(INDEX(Empresas!$B$6:$AS$46,SMALL(IF(Empresas!$B$6:$B$46=Dados!$H$37,ROW(Empresas!$B$6:$B$46)-5),ROW($A4)),COLUMN(H$1)),"") -> 0.9411764706 | H28: =IFERROR(INDEX(Empresas!$B$6:$AS$46,SMALL(IF(Empresas!$B$6:$B$46=Dados!$H$37,ROW(Empresas!$B$6:$B$46)-5),ROW($A4)),COLUMN(I$1)),"") -> 85 | I28: =IFERROR(INDEX(Empresas!$B$6:$AS$46,SMALL(IF(Empresas!$B$6:$B$46=Dados!$H$37,ROW(Empresas!$B$6:$B$46)-5),ROW($A4)),COLUMN(J$1)),"") -> 66 | J28: =IFERROR(INDEX(Empresas!$B$6:$AS$46,SMALL(IF(Empresas!$B$6:$B$46=Dados!$H$37,ROW(Empresas!$B$6:$B$46)-5),ROW($A4)),COLUMN(K$1)),"") -> 0.7764705882 | K28: =IFERROR(INDEX(Empresas!$B$6:$AS$46,SMALL(IF(Empresas!$B$6:$B$46=Dados!$H$37,ROW(Empresas!$B$6:$B$46)-5),ROW($A4)),COLUMN(L$1)),"") ->  | L28: =IFERROR(INDEX(Empresas!$B$6:$AS$46,SMALL(IF(Empresas!$B$6:$B$46=Dados!$H$37,ROW(Empresas!$B$6:$B$46)-5),ROW($A4)),COLUMN(M$1)),"") ->  | M28: =IFERROR(INDEX(Empresas!$B$6:$AS$46,SMALL(IF(Empresas!$B$6:$B$46=Dados!$H$37,ROW(Empresas!$B$6:$B$46)-5),ROW($A4)),COLUMN(N$1)),"") ->  | N28: =IFERROR(INDEX(Empresas!$B$6:$AS$46,SMALL(IF(Empresas!$B$6:$B$46=Dados!$H$37,ROW(Empresas!$B$6:$B$46)-5),ROW($A4)),COLUMN(O$1)),"") ->  | O28: =IFERROR(INDEX(Empresas!$B$6:$AS$46,SMALL(IF(Empresas!$B$6:$B$46=Dados!$H$37,ROW(Empresas!$B$6:$B$46)-5),ROW($A4)),COLUMN(P$1)),"") ->  | P28: =IFERROR(INDEX(Empresas!$B$6:$AS$46,SMALL(IF(Empresas!$B$6:$B$46=Dados!$H$37,ROW(Empresas!$B$6:$B$46)-5),ROW($A4)),COLUMN(Q$1)),"") ->  | Q28: =IFERROR(INDEX(Empresas!$B$6:$AS$46,SMALL(IF(Empresas!$B$6:$B$46=Dados!$H$37,ROW(Empresas!$B$6:$B$46)-5),ROW($A4)),COLUMN(R$1)),"") ->  | R28: =IFERROR(INDEX(Empresas!$B$6:$AS$46,SMALL(IF(Empresas!$B$6:$B$46=Dados!$H$37,ROW(Empresas!$B$6:$B$46)-5),ROW($A4)),COLUMN(S$1)),"") ->  | S28: =IFERROR(INDEX(Empresas!$B$6:$AS$46,SMALL(IF(Empresas!$B$6:$B$46=Dados!$H$37,ROW(Empresas!$B$6:$B$46)-5),ROW($A4)),COLUMN(T$1)),"") ->  | T28: =IFERROR(INDEX(Empresas!$B$6:$AS$46,SMALL(IF(Empresas!$B$6:$B$46=Dados!$H$37,ROW(Empresas!$B$6:$B$46)-5),ROW($A4)),COLUMN(U$1)),"") ->  | U28: =IFERROR(INDEX(Empresas!$B$6:$AS$46,SMALL(IF(Empresas!$B$6:$B$46=Dados!$H$37,ROW(Empresas!$B$6:$B$46)-5),ROW($A4)),COLUMN(V$1)),"") ->  | V28: =IFERROR(INDEX(Empresas!$B$6:$AS$46,SMALL(IF(Empresas!$B$6:$B$46=Dados!$H$37,ROW(Empresas!$B$6:$B$46)-5),ROW($A4)),COLUMN(W$1)),"") ->  | W28: =IFERROR(INDEX(Empresas!$B$6:$AS$46,SMALL(IF(Empresas!$B$6:$B$46=Dados!$H$37,ROW(Empresas!$B$6:$B$46)-5),ROW($A4)),COLUMN(X$1)),"") ->  | X28: =IFERROR(INDEX(Empresas!$B$6:$AS$46,SMALL(IF(Empresas!$B$6:$B$46=Dados!$H$37,ROW(Empresas!$B$6:$B$46)-5),ROW($A4)),COLUMN(Y$1)),"") ->  | Y28: =IFERROR(INDEX(Empresas!$B$6:$AS$46,SMALL(IF(Empresas!$B$6:$B$46=Dados!$H$37,ROW(Empresas!$B$6:$B$46)-5),ROW($A4)),COLUMN(Z$1)),"") ->  | Z28: =IFERROR(INDEX(Empresas!$B$6:$AS$46,SMALL(IF(Empresas!$B$6:$B$46=Dados!$H$37,ROW(Empresas!$B$6:$B$46)-5),ROW($A4)),COLUMN(AA$1)),"") ->  | AA28: =IFERROR(INDEX(Empresas!$B$6:$AS$46,SMALL(IF(Empresas!$B$6:$B$46=Dados!$H$37,ROW(Empresas!$B$6:$B$46)-5),ROW($A4)),COLUMN(AB$1)),"") ->  | AB28: =IFERROR(INDEX(Empresas!$B$6:$AS$46,SMALL(IF(Empresas!$B$6:$B$46=Dados!$H$37,ROW(Empresas!$B$6:$B$46)-5),ROW($A4)),COLUMN(AC$1)),"") ->  | AC28: =IFERROR(INDEX(Empresas!$B$6:$AS$46,SMALL(IF(Empresas!$B$6:$B$46=Dados!$H$37,ROW(Empresas!$B$6:$B$46)-5),ROW($A4)),COLUMN(AD$1)),"") ->  | AD28: =IFERROR(INDEX(Empresas!$B$6:$AS$46,SMALL(IF(Empresas!$B$6:$B$46=Dados!$H$37,ROW(Empresas!$B$6:$B$46)-5),ROW($A4)),COLUMN(AE$1)),"") ->  | AE28: =IFERROR(INDEX(Empresas!$B$6:$AS$46,SMALL(IF(Empresas!$B$6:$B$46=Dados!$H$37,ROW(Empresas!$B$6:$B$46)-5),ROW($A4)),COLUMN(AF$1)),"") ->  | AF28: =IFERROR(INDEX(Empresas!$B$6:$AS$46,SMALL(IF(Empresas!$B$6:$B$46=Dados!$H$37,ROW(Empresas!$B$6:$B$46)-5),ROW($A4)),COLUMN(AG$1)),"") ->  | AG28: =IFERROR(INDEX(Empresas!$B$6:$AS$46,SMALL(IF(Empresas!$B$6:$B$46=Dados!$H$37,ROW(Empresas!$B$6:$B$46)-5),ROW($A4)),COLUMN(AH$1)),"") ->  | AH28: =IFERROR(INDEX(Empresas!$B$6:$AS$46,SMALL(IF(Empresas!$B$6:$B$46=Dados!$H$37,ROW(Empresas!$B$6:$B$46)-5),ROW($A4)),COLUMN(AI$1)),"") ->  | AI28: =IFERROR(INDEX(Empresas!$B$6:$AS$46,SMALL(IF(Empresas!$B$6:$B$46=Dados!$H$37,ROW(Empresas!$B$6:$B$46)-5),ROW($A4)),COLUMN(AJ$1)),"") ->  | AJ28: =IFERROR(INDEX(Empresas!$B$6:$AS$46,SMALL(IF(Empresas!$B$6:$B$46=Dados!$H$37,ROW(Empresas!$B$6:$B$46)-5),ROW($A4)),COLUMN(AK$1)),"") ->  | AK28: =IFERROR(INDEX(Empresas!$B$6:$AS$46,SMALL(IF(Empresas!$B$6:$B$46=Dados!$H$37,ROW(Empresas!$B$6:$B$46)-5),ROW($A4)),COLUMN(AL$1)),"") ->  | AL28: =IFERROR(INDEX(Empresas!$B$6:$AS$46,SMALL(IF(Empresas!$B$6:$B$46=Dados!$H$37,ROW(Empresas!$B$6:$B$46)-5),ROW($A4)),COLUMN(AM$1)),"") ->  | AM28: =IFERROR(INDEX(Empresas!$B$6:$AS$46,SMALL(IF(Empresas!$B$6:$B$46=Dados!$H$37,ROW(Empresas!$B$6:$B$46)-5),ROW($A4)),COLUMN(AN$1)),"") ->  | AN28: =IFERROR(INDEX(Empresas!$B$6:$AS$46,SMALL(IF(Empresas!$B$6:$B$46=Dados!$H$37,ROW(Empresas!$B$6:$B$46)-5),ROW($A4)),COLUMN(AO$1)),"") ->  | AO28: =IFERROR(INDEX(Empresas!$B$6:$AS$46,SMALL(IF(Empresas!$B$6:$B$46=Dados!$H$37,ROW(Empresas!$B$6:$B$46)-5),ROW($A4)),COLUMN(AP$1)),"") ->  | AP28: =IFERROR(INDEX(Empresas!$B$6:$AS$46,SMALL(IF(Empresas!$B$6:$B$46=Dados!$H$37,ROW(Empresas!$B$6:$B$46)-5),ROW($A4)),COLUMN(AQ$1)),"") ->  | AQ28: =IFERROR(INDEX(Empresas!$B$6:$AS$46,SMALL(IF(Empresas!$B$6:$B$46=Dados!$H$37,ROW(Empresas!$B$6:$B$46)-5),ROW($A4)),COLUMN(AR$1)),"") -> 
B29: =IFERROR(INDEX(Empresas!$B$6:$AS$46,SMALL(IF(Empresas!$B$6:$B$46=Dados!$H$37,ROW(Empresas!$B$6:$B$46)-5),ROW($A5)),COLUMN(B$1)),"") -> 17 | C29: =IFERROR(INDEX(Empresas!$B$6:$AS$46,SMALL(IF(Empresas!$B$6:$B$46=Dados!$H$37,ROW(Empresas!$B$6:$B$46)-5),ROW($A5)),COLUMN(C$1)),"") -> EMPRESA 17 | D29: 1 | E29: =IFERROR(INDEX(Empresas!$B$6:$AS$46,SMALL(IF(Empresas!$B$6:$B$46=Dados!$H$37,ROW(Empresas!$B$6:$B$46)-5),ROW($A5)),COLUMN(F$1)),"") -> 87 | F29: =IFERROR(INDEX(Empresas!$B$6:$AS$46,SMALL(IF(Empresas!$B$6:$B$46=Dados!$H$37,ROW(Empresas!$B$6:$B$46)-5),ROW($A5)),COLUMN(G$1)),"") -> 27 | G29: =IFERROR(INDEX(Empresas!$B$6:$AS$46,SMALL(IF(Empresas!$B$6:$B$46=Dados!$H$37,ROW(Empresas!$B$6:$B$46)-5),ROW($A5)),COLUMN(H$1)),"") -> 0.3103448276 | H29: =IFERROR(INDEX(Empresas!$B$6:$AS$46,SMALL(IF(Empresas!$B$6:$B$46=Dados!$H$37,ROW(Empresas!$B$6:$B$46)-5),ROW($A5)),COLUMN(I$1)),"") -> 87 | I29: =IFERROR(INDEX(Empresas!$B$6:$AS$46,SMALL(IF(Empresas!$B$6:$B$46=Dados!$H$37,ROW(Empresas!$B$6:$B$46)-5),ROW($A5)),COLUMN(J$1)),"") -> 37 | J29: =IFERROR(INDEX(Empresas!$B$6:$AS$46,SMALL(IF(Empresas!$B$6:$B$46=Dados!$H$37,ROW(Empresas!$B$6:$B$46)-5),ROW($A5)),COLUMN(K$1)),"") -> 0.4252873563 | K29: =IFERROR(INDEX(Empresas!$B$6:$AS$46,SMALL(IF(Empresas!$B$6:$B$46=Dados!$H$37,ROW(Empresas!$B$6:$B$46)-5),ROW($A5)),COLUMN(L$1)),"") ->  | L29: =IFERROR(INDEX(Empresas!$B$6:$AS$46,SMALL(IF(Empresas!$B$6:$B$46=Dados!$H$37,ROW(Empresas!$B$6:$B$46)-5),ROW($A5)),COLUMN(M$1)),"") ->  | M29: =IFERROR(INDEX(Empresas!$B$6:$AS$46,SMALL(IF(Empresas!$B$6:$B$46=Dados!$H$37,ROW(Empresas!$B$6:$B$46)-5),ROW($A5)),COLUMN(N$1)),"") ->  | N29: =IFERROR(INDEX(Empresas!$B$6:$AS$46,SMALL(IF(Empresas!$B$6:$B$46=Dados!$H$37,ROW(Empresas!$B$6:$B$46)-5),ROW($A5)),COLUMN(O$1)),"") ->  | O29: =IFERROR(INDEX(Empresas!$B$6:$AS$46,SMALL(IF(Empresas!$B$6:$B$46=Dados!$H$37,ROW(Empresas!$B$6:$B$46)-5),ROW($A5)),COLUMN(P$1)),"") ->  | P29: =IFERROR(INDEX(Empresas!$B$6:$AS$46,SMALL(IF(Empresas!$B$6:$B$46=Dados!$H$37,ROW(Empresas!$B$6:$B$46)-5),ROW($A5)),COLUMN(Q$1)),"") ->  | Q29: =IFERROR(INDEX(Empresas!$B$6:$AS$46,SMALL(IF(Empresas!$B$6:$B$46=Dados!$H$37,ROW(Empresas!$B$6:$B$46)-5),ROW($A5)),COLUMN(R$1)),"") ->  | R29: =IFERROR(INDEX(Empresas!$B$6:$AS$46,SMALL(IF(Empresas!$B$6:$B$46=Dados!$H$37,ROW(Empresas!$B$6:$B$46)-5),ROW($A5)),COLUMN(S$1)),"") ->  | S29: =IFERROR(INDEX(Empresas!$B$6:$AS$46,SMALL(IF(Empresas!$B$6:$B$46=Dados!$H$37,ROW(Empresas!$B$6:$B$46)-5),ROW($A5)),COLUMN(T$1)),"") ->  | T29: =IFERROR(INDEX(Empresas!$B$6:$AS$46,SMALL(IF(Empresas!$B$6:$B$46=Dados!$H$37,ROW(Empresas!$B$6:$B$46)-5),ROW($A5)),COLUMN(U$1)),"") ->  | U29: =IFERROR(INDEX(Empresas!$B$6:$AS$46,SMALL(IF(Empresas!$B$6:$B$46=Dados!$H$37,ROW(Empresas!$B$6:$B$46)-5),ROW($A5)),COLUMN(V$1)),"") ->  | V29: =IFERROR(INDEX(Empresas!$B$6:$AS$46,SMALL(IF(Empresas!$B$6:$B$46=Dados!$H$37,ROW(Empresas!$B$6:$B$46)-5),ROW($A5)),COLUMN(W$1)),"") ->  | W29: =IFERROR(INDEX(Empresas!$B$6:$AS$46,SMALL(IF(Empresas!$B$6:$B$46=Dados!$H$37,ROW(Empresas!$B$6:$B$46)-5),ROW($A5)),COLUMN(X$1)),"") ->  | X29: =IFERROR(INDEX(Empresas!$B$6:$AS$46,SMALL(IF(Empresas!$B$6:$B$46=Dados!$H$37,ROW(Empresas!$B$6:$B$46)-5),ROW($A5)),COLUMN(Y$1)),"") ->  | Y29: =IFERROR(INDEX(Empresas!$B$6:$AS$46,SMALL(IF(Empresas!$B$6:$B$46=Dados!$H$37,ROW(Empresas!$B$6:$B$46)-5),ROW($A5)),COLUMN(Z$1)),"") ->  | Z29: =IFERROR(INDEX(Empresas!$B$6:$AS$46,SMALL(IF(Empresas!$B$6:$B$46=Dados!$H$37,ROW(Empresas!$B$6:$B$46)-5),ROW($A5)),COLUMN(AA$1)),"") ->  | AA29: =IFERROR(INDEX(Empresas!$B$6:$AS$46,SMALL(IF(Empresas!$B$6:$B$46=Dados!$H$37,ROW(Empresas!$B$6:$B$46)-5),ROW($A5)),COLUMN(AB$1)),"") ->  | AB29: =IFERROR(INDEX(Empresas!$B$6:$AS$46,SMALL(IF(Empresas!$B$6:$B$46=Dados!$H$37,ROW(Empresas!$B$6:$B$46)-5),ROW($A5)),COLUMN(AC$1)),"") ->  | AC29: =IFERROR(INDEX(Empresas!$B$6:$AS$46,SMALL(IF(Empresas!$B$6:$B$46=Dados!$H$37,ROW(Empresas!$B$6:$B$46)-5),ROW($A5)),COLUMN(AD$1)),"") ->  | AD29: =IFERROR(INDEX(Empresas!$B$6:$AS$46,SMALL(IF(Empresas!$B$6:$B$46=Dados!$H$37,ROW(Empresas!$B$6:$B$46)-5),ROW($A5)),COLUMN(AE$1)),"") ->  | AE29: =IFERROR(INDEX(Empresas!$B$6:$AS$46,SMALL(IF(Empresas!$B$6:$B$46=Dados!$H$37,ROW(Empresas!$B$6:$B$46)-5),ROW($A5)),COLUMN(AF$1)),"") ->  | AF29: =IFERROR(INDEX(Empresas!$B$6:$AS$46,SMALL(IF(Empresas!$B$6:$B$46=Dados!$H$37,ROW(Empresas!$B$6:$B$46)-5),ROW($A5)),COLUMN(AG$1)),"") ->  | AG29: =IFERROR(INDEX(Empresas!$B$6:$AS$46,SMALL(IF(Empresas!$B$6:$B$46=Dados!$H$37,ROW(Empresas!$B$6:$B$46)-5),ROW($A5)),COLUMN(AH$1)),"") ->  | AH29: =IFERROR(INDEX(Empresas!$B$6:$AS$46,SMALL(IF(Empresas!$B$6:$B$46=Dados!$H$37,ROW(Empresas!$B$6:$B$46)-5),ROW($A5)),COLUMN(AI$1)),"") ->  | AI29: =IFERROR(INDEX(Empresas!$B$6:$AS$46,SMALL(IF(Empresas!$B$6:$B$46=Dados!$H$37,ROW(Empresas!$B$6:$B$46)-5),ROW($A5)),COLUMN(AJ$1)),"") ->  | AJ29: =IFERROR(INDEX(Empresas!$B$6:$AS$46,SMALL(IF(Empresas!$B$6:$B$46=Dados!$H$37,ROW(Empresas!$B$6:$B$46)-5),ROW($A5)),COLUMN(AK$1)),"") ->  | AK29: =IFERROR(INDEX(Empresas!$B$6:$AS$46,SMALL(IF(Empresas!$B$6:$B$46=Dados!$H$37,ROW(Empresas!$B$6:$B$46)-5),ROW($A5)),COLUMN(AL$1)),"") ->  | AL29: =IFERROR(INDEX(Empresas!$B$6:$AS$46,SMALL(IF(Empresas!$B$6:$B$46=Dados!$H$37,ROW(Empresas!$B$6:$B$46)-5),ROW($A5)),COLUMN(AM$1)),"") ->  | AM29: =IFERROR(INDEX(Empresas!$B$6:$AS$46,SMALL(IF(Empresas!$B$6:$B$46=Dados!$H$37,ROW(Empresas!$B$6:$B$46)-5),ROW($A5)),COLUMN(AN$1)),"") ->  | AN29: =IFERROR(INDEX(Empresas!$B$6:$AS$46,SMALL(IF(Empresas!$B$6:$B$46=Dados!$H$37,ROW(Empresas!$B$6:$B$46)-5),ROW($A5)),COLUMN(AO$1)),"") ->  | AO29: =IFERROR(INDEX(Empresas!$B$6:$AS$46,SMALL(IF(Empresas!$B$6:$B$46=Dados!$H$37,ROW(Empresas!$B$6:$B$46)-5),ROW($A5)),COLUMN(AP$1)),"") ->  | AP29: =IFERROR(INDEX(Empresas!$B$6:$AS$46,SMALL(IF(Empresas!$B$6:$B$46=Dados!$H$37,ROW(Empresas!$B$6:$B$46)-5),ROW($A5)),COLUMN(AQ$1)),"") ->  | AQ29: =IFERROR(INDEX(Empresas!$B$6:$AS$46,SMALL(IF(Empresas!$B$6:$B$46=Dados!$H$37,ROW(Empresas!$B$6:$B$46)-5),ROW($A5)),COLUMN(AR$1)),"") -> 
B30: =IFERROR(INDEX(Empresas!$B$6:$AS$46,SMALL(IF(Empresas!$B$6:$B$46=Dados!$H$37,ROW(Empresas!$B$6:$B$46)-5),ROW($A7)),COLUMN(B$1)),"") ->  | C30: =IFERROR(INDEX(Empresas!$B$6:$AS$46,SMALL(IF(Empresas!$B$6:$B$46=Dados!$H$37,ROW(Empresas!$B$6:$B$46)-5),ROW($A7)),COLUMN(C$1)),"") ->  | E30: =IFERROR(INDEX(Empresas!$B$6:$AS$46,SMALL(IF(Empresas!$B$6:$B$46=Dados!$H$37,ROW(Empresas!$B$6:$B$46)-5),ROW($A7)),COLUMN(F$1)),"") ->  | F30: =IFERROR(INDEX(Empresas!$B$6:$AS$46,SMALL(IF(Empresas!$B$6:$B$46=Dados!$H$37,ROW(Empresas!$B$6:$B$46)-5),ROW($A7)),COLUMN(G$1)),"") ->  | G30: =IFERROR(INDEX(Empresas!$B$6:$AS$46,SMALL(IF(Empresas!$B$6:$B$46=Dados!$H$37,ROW(Empresas!$B$6:$B$46)-5),ROW($A7)),COLUMN(H$1)),"") ->  | H30: =IFERROR(INDEX(Empresas!$B$6:$AS$46,SMALL(IF(Empresas!$B$6:$B$46=Dados!$H$37,ROW(Empresas!$B$6:$B$46)-5),ROW($A7)),COLUMN(I$1)),"") ->  | I30: =IFERROR(INDEX(Empresas!$B$6:$AS$46,SMALL(IF(Empresas!$B$6:$B$46=Dados!$H$37,ROW(Empresas!$B$6:$B$46)-5),ROW($A7)),COLUMN(J$1)),"") ->  | J30: =IFERROR(INDEX(Empresas!$B$6:$AS$46,SMALL(IF(Empresas!$B$6:$B$46=Dados!$H$37,ROW(Empresas!$B$6:$B$46)-5),ROW($A7)),COLUMN(K$1)),"") ->  | K30: =IFERROR(INDEX(Empresas!$B$6:$AS$46,SMALL(IF(Empresas!$B$6:$B$46=Dados!$H$37,ROW(Empresas!$B$6:$B$46)-5),ROW($A7)),COLUMN(L$1)),"") ->  | L30: =IFERROR(INDEX(Empresas!$B$6:$AS$46,SMALL(IF(Empresas!$B$6:$B$46=Dados!$H$37,ROW(Empresas!$B$6:$B$46)-5),ROW($A7)),COLUMN(M$1)),"") ->  | M30: =IFERROR(INDEX(Empresas!$B$6:$AS$46,SMALL(IF(Empresas!$B$6:$B$46=Dados!$H$37,ROW(Empresas!$B$6:$B$46)-5),ROW($A7)),COLUMN(N$1)),"") ->  | N30: =IFERROR(INDEX(Empresas!$B$6:$AS$46,SMALL(IF(Empresas!$B$6:$B$46=Dados!$H$37,ROW(Empresas!$B$6:$B$46)-5),ROW($A7)),COLUMN(O$1)),"") ->  | O30: =IFERROR(INDEX(Empresas!$B$6:$AS$46,SMALL(IF(Empresas!$B$6:$B$46=Dados!$H$37,ROW(Empresas!$B$6:$B$46)-5),ROW($A7)),COLUMN(P$1)),"") ->  | P30: =IFERROR(INDEX(Empresas!$B$6:$AS$46,SMALL(IF(Empresas!$B$6:$B$46=Dados!$H$37,ROW(Empresas!$B$6:$B$46)-5),ROW($A7)),COLUMN(Q$1)),"") ->  | Q30: =IFERROR(INDEX(Empresas!$B$6:$AS$46,SMALL(IF(Empresas!$B$6:$B$46=Dados!$H$37,ROW(Empresas!$B$6:$B$46)-5),ROW($A7)),COLUMN(R$1)),"") ->  | R30: =IFERROR(INDEX(Empresas!$B$6:$AS$46,SMALL(IF(Empresas!$B$6:$B$46=Dados!$H$37,ROW(Empresas!$B$6:$B$46)-5),ROW($A7)),COLUMN(S$1)),"") ->  | S30: =IFERROR(INDEX(Empresas!$B$6:$AS$46,SMALL(IF(Empresas!$B$6:$B$46=Dados!$H$37,ROW(Empresas!$B$6:$B$46)-5),ROW($A7)),COLUMN(T$1)),"") ->  | T30: =IFERROR(INDEX(Empresas!$B$6:$AS$46,SMALL(IF(Empresas!$B$6:$B$46=Dados!$H$37,ROW(Empresas!$B$6:$B$46)-5),ROW($A7)),COLUMN(U$1)),"") ->  | U30: =IFERROR(INDEX(Empresas!$B$6:$AS$46,SMALL(IF(Empresas!$B$6:$B$46=Dados!$H$37,ROW(Empresas!$B$6:$B$46)-5),ROW($A7)),COLUMN(V$1)),"") ->  | V30: =IFERROR(INDEX(Empresas!$B$6:$AS$46,SMALL(IF(Empresas!$B$6:$B$46=Dados!$H$37,ROW(Empresas!$B$6:$B$46)-5),ROW($A7)),COLUMN(W$1)),"") ->  | W30: =IFERROR(INDEX(Empresas!$B$6:$AS$46,SMALL(IF(Empresas!$B$6:$B$46=Dados!$H$37,ROW(Empresas!$B$6:$B$46)-5),ROW($A7)),COLUMN(X$1)),"") ->  | X30: =IFERROR(INDEX(Empresas!$B$6:$AS$46,SMALL(IF(Empresas!$B$6:$B$46=Dados!$H$37,ROW(Empresas!$B$6:$B$46)-5),ROW($A7)),COLUMN(Y$1)),"") ->  | Y30: =IFERROR(INDEX(Empresas!$B$6:$AS$46,SMALL(IF(Empresas!$B$6:$B$46=Dados!$H$37,ROW(Empresas!$B$6:$B$46)-5),ROW($A7)),COLUMN(Z$1)),"") ->  | Z30: =IFERROR(INDEX(Empresas!$B$6:$AS$46,SMALL(IF(Empresas!$B$6:$B$46=Dados!$H$37,ROW(Empresas!$B$6:$B$46)-5),ROW($A7)),COLUMN(AA$1)),"") ->  | AA30: =IFERROR(INDEX(Empresas!$B$6:$AS$46,SMALL(IF(Empresas!$B$6:$B$46=Dados!$H$37,ROW(Empresas!$B$6:$B$46)-5),ROW($A7)),COLUMN(AB$1)),"") ->  | AB30: =IFERROR(INDEX(Empresas!$B$6:$AS$46,SMALL(IF(Empresas!$B$6:$B$46=Dados!$H$37,ROW(Empresas!$B$6:$B$46)-5),ROW($A7)),COLUMN(AC$1)),"") ->  | AC30: =IFERROR(INDEX(Empresas!$B$6:$AS$46,SMALL(IF(Empresas!$B$6:$B$46=Dados!$H$37,ROW(Empresas!$B$6:$B$46)-5),ROW($A7)),COLUMN(AD$1)),"") ->  | AD30: =IFERROR(INDEX(Empresas!$B$6:$AS$46,SMALL(IF(Empresas!$B$6:$B$46=Dados!$H$37,ROW(Empresas!$B$6:$B$46)-5),ROW($A7)),COLUMN(AE$1)),"") ->  | AE30: =IFERROR(INDEX(Empresas!$B$6:$AS$46,SMALL(IF(Empresas!$B$6:$B$46=Dados!$H$37,ROW(Empresas!$B$6:$B$46)-5),ROW($A7)),COLUMN(AF$1)),"") ->  | AF30: =IFERROR(INDEX(Empresas!$B$6:$AS$46,SMALL(IF(Empresas!$B$6:$B$46=Dados!$H$37,ROW(Empresas!$B$6:$B$46)-5),ROW($A7)),COLUMN(AG$1)),"") ->  | AG30: =IFERROR(INDEX(Empresas!$B$6:$AS$46,SMALL(IF(Empresas!$B$6:$B$46=Dados!$H$37,ROW(Empresas!$B$6:$B$46)-5),ROW($A7)),COLUMN(AH$1)),"") ->  | AH30: =IFERROR(INDEX(Empresas!$B$6:$AS$46,SMALL(IF(Empresas!$B$6:$B$46=Dados!$H$37,ROW(Empresas!$B$6:$B$46)-5),ROW($A7)),COLUMN(AI$1)),"") ->  | AI30: =IFERROR(INDEX(Empresas!$B$6:$AS$46,SMALL(IF(Empresas!$B$6:$B$46=Dados!$H$37,ROW(Empresas!$B$6:$B$46)-5),ROW($A7)),COLUMN(AJ$1)),"") ->  | AJ30: =IFERROR(INDEX(Empresas!$B$6:$AS$46,SMALL(IF(Empresas!$B$6:$B$46=Dados!$H$37,ROW(Empresas!$B$6:$B$46)-5),ROW($A7)),COLUMN(AK$1)),"") ->  | AK30: =IFERROR(INDEX(Empresas!$B$6:$AS$46,SMALL(IF(Empresas!$B$6:$B$46=Dados!$H$37,ROW(Empresas!$B$6:$B$46)-5),ROW($A7)),COLUMN(AL$1)),"") ->  | AL30: =IFERROR(INDEX(Empresas!$B$6:$AS$46,SMALL(IF(Empresas!$B$6:$B$46=Dados!$H$37,ROW(Empresas!$B$6:$B$46)-5),ROW($A7)),COLUMN(AM$1)),"") ->  | AM30: =IFERROR(INDEX(Empresas!$B$6:$AS$46,SMALL(IF(Empresas!$B$6:$B$46=Dados!$H$37,ROW(Empresas!$B$6:$B$46)-5),ROW($A7)),COLUMN(AN$1)),"") ->  | AN30: =IFERROR(INDEX(Empresas!$B$6:$AS$46,SMALL(IF(Empresas!$B$6:$B$46=Dados!$H$37,ROW(Empresas!$B$6:$B$46)-5),ROW($A7)),COLUMN(AO$1)),"") ->  | AO30: =IFERROR(INDEX(Empresas!$B$6:$AS$46,SMALL(IF(Empresas!$B$6:$B$46=Dados!$H$37,ROW(Empresas!$B$6:$B$46)-5),ROW($A7)),COLUMN(AP$1)),"") ->  | AP30: =IFERROR(INDEX(Empresas!$B$6:$AS$46,SMALL(IF(Empresas!$B$6:$B$46=Dados!$H$37,ROW(Empresas!$B$6:$B$46)-5),ROW($A7)),COLUMN(AQ$1)),"") ->  | AQ30: =IFERROR(INDEX(Empresas!$B$6:$AS$46,SMALL(IF(Empresas!$B$6:$B$46=Dados!$H$37,ROW(Empresas!$B$6:$B$46)-5),ROW($A7)),COLUMN(AR$1)),"") -> 
B31: =IFERROR(INDEX(Empresas!$B$6:$AS$46,SMALL(IF(Empresas!$B$6:$B$46=Dados!$H$37,ROW(Empresas!$B$6:$B$46)-5),ROW($A8)),COLUMN(B$1)),"") ->  | C31: =IFERROR(INDEX(Empresas!$B$6:$AS$46,SMALL(IF(Empresas!$B$6:$B$46=Dados!$H$37,ROW(Empresas!$B$6:$B$46)-5),ROW($A8)),COLUMN(C$1)),"") ->  | E31: =IFERROR(INDEX(Empresas!$B$6:$AS$46,SMALL(IF(Empresas!$B$6:$B$46=Dados!$H$37,ROW(Empresas!$B$6:$B$46)-5),ROW($A8)),COLUMN(F$1)),"") ->  | F31: =IFERROR(INDEX(Empresas!$B$6:$AS$46,SMALL(IF(Empresas!$B$6:$B$46=Dados!$H$37,ROW(Empresas!$B$6:$B$46)-5),ROW($A8)),COLUMN(G$1)),"") ->  | G31: =IFERROR(INDEX(Empresas!$B$6:$AS$46,SMALL(IF(Empresas!$B$6:$B$46=Dados!$H$37,ROW(Empresas!$B$6:$B$46)-5),ROW($A8)),COLUMN(H$1)),"") ->  | H31: =IFERROR(INDEX(Empresas!$B$6:$AS$46,SMALL(IF(Empresas!$B$6:$B$46=Dados!$H$37,ROW(Empresas!$B$6:$B$46)-5),ROW($A8)),COLUMN(I$1)),"") ->  | I31: =IFERROR(INDEX(Empresas!$B$6:$AS$46,SMALL(IF(Empresas!$B$6:$B$46=Dados!$H$37,ROW(Empresas!$B$6:$B$46)-5),ROW($A8)),COLUMN(J$1)),"") ->  | J31: =IFERROR(INDEX(Empresas!$B$6:$AS$46,SMALL(IF(Empresas!$B$6:$B$46=Dados!$H$37,ROW(Empresas!$B$6:$B$46)-5),ROW($A8)),COLUMN(K$1)),"") ->  | K31: =IFERROR(INDEX(Empresas!$B$6:$AS$46,SMALL(IF(Empresas!$B$6:$B$46=Dados!$H$37,ROW(Empresas!$B$6:$B$46)-5),ROW($A8)),COLUMN(L$1)),"") ->  | L31: =IFERROR(INDEX(Empresas!$B$6:$AS$46,SMALL(IF(Empresas!$B$6:$B$46=Dados!$H$37,ROW(Empresas!$B$6:$B$46)-5),ROW($A8)),COLUMN(M$1)),"") ->  | M31: =IFERROR(INDEX(Empresas!$B$6:$AS$46,SMALL(IF(Empresas!$B$6:$B$46=Dados!$H$37,ROW(Empresas!$B$6:$B$46)-5),ROW($A8)),COLUMN(N$1)),"") ->  | N31: =IFERROR(INDEX(Empresas!$B$6:$AS$46,SMALL(IF(Empresas!$B$6:$B$46=Dados!$H$37,ROW(Empresas!$B$6:$B$46)-5),ROW($A8)),COLUMN(O$1)),"") ->  | O31: =IFERROR(INDEX(Empresas!$B$6:$AS$46,SMALL(IF(Empresas!$B$6:$B$46=Dados!$H$37,ROW(Empresas!$B$6:$B$46)-5),ROW($A8)),COLUMN(P$1)),"") ->  | P31: =IFERROR(INDEX(Empresas!$B$6:$AS$46,SMALL(IF(Empresas!$B$6:$B$46=Dados!$H$37,ROW(Empresas!$B$6:$B$46)-5),ROW($A8)),COLUMN(Q$1)),"") ->  | Q31: =IFERROR(INDEX(Empresas!$B$6:$AS$46,SMALL(IF(Empresas!$B$6:$B$46=Dados!$H$37,ROW(Empresas!$B$6:$B$46)-5),ROW($A8)),COLUMN(R$1)),"") ->  | R31: =IFERROR(INDEX(Empresas!$B$6:$AS$46,SMALL(IF(Empresas!$B$6:$B$46=Dados!$H$37,ROW(Empresas!$B$6:$B$46)-5),ROW($A8)),COLUMN(S$1)),"") ->  | S31: =IFERROR(INDEX(Empresas!$B$6:$AS$46,SMALL(IF(Empresas!$B$6:$B$46=Dados!$H$37,ROW(Empresas!$B$6:$B$46)-5),ROW($A8)),COLUMN(T$1)),"") ->  | T31: =IFERROR(INDEX(Empresas!$B$6:$AS$46,SMALL(IF(Empresas!$B$6:$B$46=Dados!$H$37,ROW(Empresas!$B$6:$B$46)-5),ROW($A8)),COLUMN(U$1)),"") ->  | U31: =IFERROR(INDEX(Empresas!$B$6:$AS$46,SMALL(IF(Empresas!$B$6:$B$46=Dados!$H$37,ROW(Empresas!$B$6:$B$46)-5),ROW($A8)),COLUMN(V$1)),"") ->  | V31: =IFERROR(INDEX(Empresas!$B$6:$AS$46,SMALL(IF(Empresas!$B$6:$B$46=Dados!$H$37,ROW(Empresas!$B$6:$B$46)-5),ROW($A8)),COLUMN(W$1)),"") ->  | W31: =IFERROR(INDEX(Empresas!$B$6:$AS$46,SMALL(IF(Empresas!$B$6:$B$46=Dados!$H$37,ROW(Empresas!$B$6:$B$46)-5),ROW($A8)),COLUMN(X$1)),"") ->  | X31: =IFERROR(INDEX(Empresas!$B$6:$AS$46,SMALL(IF(Empresas!$B$6:$B$46=Dados!$H$37,ROW(Empresas!$B$6:$B$46)-5),ROW($A8)),COLUMN(Y$1)),"") ->  | Y31: =IFERROR(INDEX(Empresas!$B$6:$AS$46,SMALL(IF(Empresas!$B$6:$B$46=Dados!$H$37,ROW(Empresas!$B$6:$B$46)-5),ROW($A8)),COLUMN(Z$1)),"") ->  | Z31: =IFERROR(INDEX(Empresas!$B$6:$AS$46,SMALL(IF(Empresas!$B$6:$B$46=Dados!$H$37,ROW(Empresas!$B$6:$B$46)-5),ROW($A8)),COLUMN(AA$1)),"") ->  | AA31: =IFERROR(INDEX(Empresas!$B$6:$AS$46,SMALL(IF(Empresas!$B$6:$B$46=Dados!$H$37,ROW(Empresas!$B$6:$B$46)-5),ROW($A8)),COLUMN(AB$1)),"") ->  | AB31: =IFERROR(INDEX(Empresas!$B$6:$AS$46,SMALL(IF(Empresas!$B$6:$B$46=Dados!$H$37,ROW(Empresas!$B$6:$B$46)-5),ROW($A8)),COLUMN(AC$1)),"") ->  | AC31: =IFERROR(INDEX(Empresas!$B$6:$AS$46,SMALL(IF(Empresas!$B$6:$B$46=Dados!$H$37,ROW(Empresas!$B$6:$B$46)-5),ROW($A8)),COLUMN(AD$1)),"") ->  | AD31: =IFERROR(INDEX(Empresas!$B$6:$AS$46,SMALL(IF(Empresas!$B$6:$B$46=Dados!$H$37,ROW(Empresas!$B$6:$B$46)-5),ROW($A8)),COLUMN(AE$1)),"") ->  | AE31: =IFERROR(INDEX(Empresas!$B$6:$AS$46,SMALL(IF(Empresas!$B$6:$B$46=Dados!$H$37,ROW(Empresas!$B$6:$B$46)-5),ROW($A8)),COLUMN(AF$1)),"") ->  | AF31: =IFERROR(INDEX(Empresas!$B$6:$AS$46,SMALL(IF(Empresas!$B$6:$B$46=Dados!$H$37,ROW(Empresas!$B$6:$B$46)-5),ROW($A8)),COLUMN(AG$1)),"") ->  | AG31: =IFERROR(INDEX(Empresas!$B$6:$AS$46,SMALL(IF(Empresas!$B$6:$B$46=Dados!$H$37,ROW(Empresas!$B$6:$B$46)-5),ROW($A8)),COLUMN(AH$1)),"") ->  | AH31: =IFERROR(INDEX(Empresas!$B$6:$AS$46,SMALL(IF(Empresas!$B$6:$B$46=Dados!$H$37,ROW(Empresas!$B$6:$B$46)-5),ROW($A8)),COLUMN(AI$1)),"") ->  | AI31: =IFERROR(INDEX(Empresas!$B$6:$AS$46,SMALL(IF(Empresas!$B$6:$B$46=Dados!$H$37,ROW(Empresas!$B$6:$B$46)-5),ROW($A8)),COLUMN(AJ$1)),"") ->  | AJ31: =IFERROR(INDEX(Empresas!$B$6:$AS$46,SMALL(IF(Empresas!$B$6:$B$46=Dados!$H$37,ROW(Empresas!$B$6:$B$46)-5),ROW($A8)),COLUMN(AK$1)),"") ->  | AK31: =IFERROR(INDEX(Empresas!$B$6:$AS$46,SMALL(IF(Empresas!$B$6:$B$46=Dados!$H$37,ROW(Empresas!$B$6:$B$46)-5),ROW($A8)),COLUMN(AL$1)),"") ->  | AL31: =IFERROR(INDEX(Empresas!$B$6:$AS$46,SMALL(IF(Empresas!$B$6:$B$46=Dados!$H$37,ROW(Empresas!$B$6:$B$46)-5),ROW($A8)),COLUMN(AM$1)),"") ->  | AM31: =IFERROR(INDEX(Empresas!$B$6:$AS$46,SMALL(IF(Empresas!$B$6:$B$46=Dados!$H$37,ROW(Empresas!$B$6:$B$46)-5),ROW($A8)),COLUMN(AN$1)),"") ->  | AN31: =IFERROR(INDEX(Empresas!$B$6:$AS$46,SMALL(IF(Empresas!$B$6:$B$46=Dados!$H$37,ROW(Empresas!$B$6:$B$46)-5),ROW($A8)),COLUMN(AO$1)),"") ->  | AO31: =IFERROR(INDEX(Empresas!$B$6:$AS$46,SMALL(IF(Empresas!$B$6:$B$46=Dados!$H$37,ROW(Empresas!$B$6:$B$46)-5),ROW($A8)),COLUMN(AP$1)),"") ->  | AP31: =IFERROR(INDEX(Empresas!$B$6:$AS$46,SMALL(IF(Empresas!$B$6:$B$46=Dados!$H$37,ROW(Empresas!$B$6:$B$46)-5),ROW($A8)),COLUMN(AQ$1)),"") ->  | AQ31: =IFERROR(INDEX(Empresas!$B$6:$AS$46,SMALL(IF(Empresas!$B$6:$B$46=Dados!$H$37,ROW(Empresas!$B$6:$B$46)-5),ROW($A8)),COLUMN(AR$1)),"") -> 
B32: =IFERROR(INDEX(Empresas!$B$6:$AS$46,SMALL(IF(Empresas!$B$6:$B$46=Dados!$H$37,ROW(Empresas!$B$6:$B$46)-5),ROW($A9)),COLUMN(B$1)),"") ->  | C32: =IFERROR(INDEX(Empresas!$B$6:$AS$46,SMALL(IF(Empresas!$B$6:$B$46=Dados!$H$37,ROW(Empresas!$B$6:$B$46)-5),ROW($A9)),COLUMN(C$1)),"") ->  | E32: =IFERROR(INDEX(Empresas!$B$6:$AS$46,SMALL(IF(Empresas!$B$6:$B$46=Dados!$H$37,ROW(Empresas!$B$6:$B$46)-5),ROW($A9)),COLUMN(F$1)),"") ->  | F32: =IFERROR(INDEX(Empresas!$B$6:$AS$46,SMALL(IF(Empresas!$B$6:$B$46=Dados!$H$37,ROW(Empresas!$B$6:$B$46)-5),ROW($A9)),COLUMN(G$1)),"") ->  | G32: =IFERROR(INDEX(Empresas!$B$6:$AS$46,SMALL(IF(Empresas!$B$6:$B$46=Dados!$H$37,ROW(Empresas!$B$6:$B$46)-5),ROW($A9)),COLUMN(H$1)),"") ->  | H32: =IFERROR(INDEX(Empresas!$B$6:$AS$46,SMALL(IF(Empresas!$B$6:$B$46=Dados!$H$37,ROW(Empresas!$B$6:$B$46)-5),ROW($A9)),COLUMN(I$1)),"") ->  | I32: =IFERROR(INDEX(Empresas!$B$6:$AS$46,SMALL(IF(Empresas!$B$6:$B$46=Dados!$H$37,ROW(Empresas!$B$6:$B$46)-5),ROW($A9)),COLUMN(J$1)),"") ->  | J32: =IFERROR(INDEX(Empresas!$B$6:$AS$46,SMALL(IF(Empresas!$B$6:$B$46=Dados!$H$37,ROW(Empresas!$B$6:$B$46)-5),ROW($A9)),COLUMN(K$1)),"") ->  | K32: =IFERROR(INDEX(Empresas!$B$6:$AS$46,SMALL(IF(Empresas!$B$6:$B$46=Dados!$H$37,ROW(Empresas!$B$6:$B$46)-5),ROW($A9)),COLUMN(L$1)),"") ->  | L32: =IFERROR(INDEX(Empresas!$B$6:$AS$46,SMALL(IF(Empresas!$B$6:$B$46=Dados!$H$37,ROW(Empresas!$B$6:$B$46)-5),ROW($A9)),COLUMN(M$1)),"") ->  | M32: =IFERROR(INDEX(Empresas!$B$6:$AS$46,SMALL(IF(Empresas!$B$6:$B$46=Dados!$H$37,ROW(Empresas!$B$6:$B$46)-5),ROW($A9)),COLUMN(N$1)),"") ->  | N32: =IFERROR(INDEX(Empresas!$B$6:$AS$46,SMALL(IF(Empresas!$B$6:$B$46=Dados!$H$37,ROW(Empresas!$B$6:$B$46)-5),ROW($A9)),COLUMN(O$1)),"") ->  | O32: =IFERROR(INDEX(Empresas!$B$6:$AS$46,SMALL(IF(Empresas!$B$6:$B$46=Dados!$H$37,ROW(Empresas!$B$6:$B$46)-5),ROW($A9)),COLUMN(P$1)),"") ->  | P32: =IFERROR(INDEX(Empresas!$B$6:$AS$46,SMALL(IF(Empresas!$B$6:$B$46=Dados!$H$37,ROW(Empresas!$B$6:$B$46)-5),ROW($A9)),COLUMN(Q$1)),"") ->  | Q32: =IFERROR(INDEX(Empresas!$B$6:$AS$46,SMALL(IF(Empresas!$B$6:$B$46=Dados!$H$37,ROW(Empresas!$B$6:$B$46)-5),ROW($A9)),COLUMN(R$1)),"") ->  | R32: =IFERROR(INDEX(Empresas!$B$6:$AS$46,SMALL(IF(Empresas!$B$6:$B$46=Dados!$H$37,ROW(Empresas!$B$6:$B$46)-5),ROW($A9)),COLUMN(S$1)),"") ->  | S32: =IFERROR(INDEX(Empresas!$B$6:$AS$46,SMALL(IF(Empresas!$B$6:$B$46=Dados!$H$37,ROW(Empresas!$B$6:$B$46)-5),ROW($A9)),COLUMN(T$1)),"") ->  | T32: =IFERROR(INDEX(Empresas!$B$6:$AS$46,SMALL(IF(Empresas!$B$6:$B$46=Dados!$H$37,ROW(Empresas!$B$6:$B$46)-5),ROW($A9)),COLUMN(U$1)),"") ->  | U32: =IFERROR(INDEX(Empresas!$B$6:$AS$46,SMALL(IF(Empresas!$B$6:$B$46=Dados!$H$37,ROW(Empresas!$B$6:$B$46)-5),ROW($A9)),COLUMN(V$1)),"") ->  | V32: =IFERROR(INDEX(Empresas!$B$6:$AS$46,SMALL(IF(Empresas!$B$6:$B$46=Dados!$H$37,ROW(Empresas!$B$6:$B$46)-5),ROW($A9)),COLUMN(W$1)),"") ->  | W32: =IFERROR(INDEX(Empresas!$B$6:$AS$46,SMALL(IF(Empresas!$B$6:$B$46=Dados!$H$37,ROW(Empresas!$B$6:$B$46)-5),ROW($A9)),COLUMN(X$1)),"") ->  | X32: =IFERROR(INDEX(Empresas!$B$6:$AS$46,SMALL(IF(Empresas!$B$6:$B$46=Dados!$H$37,ROW(Empresas!$B$6:$B$46)-5),ROW($A9)),COLUMN(Y$1)),"") ->  | Y32: =IFERROR(INDEX(Empresas!$B$6:$AS$46,SMALL(IF(Empresas!$B$6:$B$46=Dados!$H$37,ROW(Empresas!$B$6:$B$46)-5),ROW($A9)),COLUMN(Z$1)),"") ->  | Z32: =IFERROR(INDEX(Empresas!$B$6:$AS$46,SMALL(IF(Empresas!$B$6:$B$46=Dados!$H$37,ROW(Empresas!$B$6:$B$46)-5),ROW($A9)),COLUMN(AA$1)),"") ->  | AA32: =IFERROR(INDEX(Empresas!$B$6:$AS$46,SMALL(IF(Empresas!$B$6:$B$46=Dados!$H$37,ROW(Empresas!$B$6:$B$46)-5),ROW($A9)),COLUMN(AB$1)),"") ->  | AB32: =IFERROR(INDEX(Empresas!$B$6:$AS$46,SMALL(IF(Empresas!$B$6:$B$46=Dados!$H$37,ROW(Empresas!$B$6:$B$46)-5),ROW($A9)),COLUMN(AC$1)),"") ->  | AC32: =IFERROR(INDEX(Empresas!$B$6:$AS$46,SMALL(IF(Empresas!$B$6:$B$46=Dados!$H$37,ROW(Empresas!$B$6:$B$46)-5),ROW($A9)),COLUMN(AD$1)),"") ->  | AD32: =IFERROR(INDEX(Empresas!$B$6:$AS$46,SMALL(IF(Empresas!$B$6:$B$46=Dados!$H$37,ROW(Empresas!$B$6:$B$46)-5),ROW($A9)),COLUMN(AE$1)),"") ->  | AE32: =IFERROR(INDEX(Empresas!$B$6:$AS$46,SMALL(IF(Empresas!$B$6:$B$46=Dados!$H$37,ROW(Empresas!$B$6:$B$46)-5),ROW($A9)),COLUMN(AF$1)),"") ->  | AF32: =IFERROR(INDEX(Empresas!$B$6:$AS$46,SMALL(IF(Empresas!$B$6:$B$46=Dados!$H$37,ROW(Empresas!$B$6:$B$46)-5),ROW($A9)),COLUMN(AG$1)),"") ->  | AG32: =IFERROR(INDEX(Empresas!$B$6:$AS$46,SMALL(IF(Empresas!$B$6:$B$46=Dados!$H$37,ROW(Empresas!$B$6:$B$46)-5),ROW($A9)),COLUMN(AH$1)),"") ->  | AH32: =IFERROR(INDEX(Empresas!$B$6:$AS$46,SMALL(IF(Empresas!$B$6:$B$46=Dados!$H$37,ROW(Empresas!$B$6:$B$46)-5),ROW($A9)),COLUMN(AI$1)),"") ->  | AI32: =IFERROR(INDEX(Empresas!$B$6:$AS$46,SMALL(IF(Empresas!$B$6:$B$46=Dados!$H$37,ROW(Empresas!$B$6:$B$46)-5),ROW($A9)),COLUMN(AJ$1)),"") ->  | AJ32: =IFERROR(INDEX(Empresas!$B$6:$AS$46,SMALL(IF(Empresas!$B$6:$B$46=Dados!$H$37,ROW(Empresas!$B$6:$B$46)-5),ROW($A9)),COLUMN(AK$1)),"") ->  | AK32: =IFERROR(INDEX(Empresas!$B$6:$AS$46,SMALL(IF(Empresas!$B$6:$B$46=Dados!$H$37,ROW(Empresas!$B$6:$B$46)-5),ROW($A9)),COLUMN(AL$1)),"") ->  | AL32: =IFERROR(INDEX(Empresas!$B$6:$AS$46,SMALL(IF(Empresas!$B$6:$B$46=Dados!$H$37,ROW(Empresas!$B$6:$B$46)-5),ROW($A9)),COLUMN(AM$1)),"") ->  | AM32: =IFERROR(INDEX(Empresas!$B$6:$AS$46,SMALL(IF(Empresas!$B$6:$B$46=Dados!$H$37,ROW(Empresas!$B$6:$B$46)-5),ROW($A9)),COLUMN(AN$1)),"") ->  | AN32: =IFERROR(INDEX(Empresas!$B$6:$AS$46,SMALL(IF(Empresas!$B$6:$B$46=Dados!$H$37,ROW(Empresas!$B$6:$B$46)-5),ROW($A9)),COLUMN(AO$1)),"") ->  | AO32: =IFERROR(INDEX(Empresas!$B$6:$AS$46,SMALL(IF(Empresas!$B$6:$B$46=Dados!$H$37,ROW(Empresas!$B$6:$B$46)-5),ROW($A9)),COLUMN(AP$1)),"") ->  | AP32: =IFERROR(INDEX(Empresas!$B$6:$AS$46,SMALL(IF(Empresas!$B$6:$B$46=Dados!$H$37,ROW(Empresas!$B$6:$B$46)-5),ROW($A9)),COLUMN(AQ$1)),"") ->  | AQ32: =IFERROR(INDEX(Empresas!$B$6:$AS$46,SMALL(IF(Empresas!$B$6:$B$46=Dados!$H$37,ROW(Empresas!$B$6:$B$46)-5),ROW($A9)),COLUMN(AR$1)),"") -> 
B33: =IFERROR(INDEX(Empresas!$B$6:$AS$46,SMALL(IF(Empresas!$B$6:$B$46=Dados!$H$37,ROW(Empresas!$B$6:$B$46)-5),ROW($A10)),COLUMN(B$1)),"") ->  | C33: =IFERROR(INDEX(Empresas!$B$6:$AS$46,SMALL(IF(Empresas!$B$6:$B$46=Dados!$H$37,ROW(Empresas!$B$6:$B$46)-5),ROW($A10)),COLUMN(C$1)),"") ->  | E33: =IFERROR(INDEX(Empresas!$B$6:$AS$46,SMALL(IF(Empresas!$B$6:$B$46=Dados!$H$37,ROW(Empresas!$B$6:$B$46)-5),ROW($A10)),COLUMN(F$1)),"") ->  | F33: =IFERROR(INDEX(Empresas!$B$6:$AS$46,SMALL(IF(Empresas!$B$6:$B$46=Dados!$H$37,ROW(Empresas!$B$6:$B$46)-5),ROW($A10)),COLUMN(G$1)),"") ->  | G33: =IFERROR(INDEX(Empresas!$B$6:$AS$46,SMALL(IF(Empresas!$B$6:$B$46=Dados!$H$37,ROW(Empresas!$B$6:$B$46)-5),ROW($A10)),COLUMN(H$1)),"") ->  | H33: =IFERROR(INDEX(Empresas!$B$6:$AS$46,SMALL(IF(Empresas!$B$6:$B$46=Dados!$H$37,ROW(Empresas!$B$6:$B$46)-5),ROW($A10)),COLUMN(I$1)),"") ->  | I33: =IFERROR(INDEX(Empresas!$B$6:$AS$46,SMALL(IF(Empresas!$B$6:$B$46=Dados!$H$37,ROW(Empresas!$B$6:$B$46)-5),ROW($A10)),COLUMN(J$1)),"") ->  | J33: =IFERROR(INDEX(Empresas!$B$6:$AS$46,SMALL(IF(Empresas!$B$6:$B$46=Dados!$H$37,ROW(Empresas!$B$6:$B$46)-5),ROW($A10)),COLUMN(K$1)),"") ->  | K33: =IFERROR(INDEX(Empresas!$B$6:$AS$46,SMALL(IF(Empresas!$B$6:$B$46=Dados!$H$37,ROW(Empresas!$B$6:$B$46)-5),ROW($A10)),COLUMN(L$1)),"") ->  | L33: =IFERROR(INDEX(Empresas!$B$6:$AS$46,SMALL(IF(Empresas!$B$6:$B$46=Dados!$H$37,ROW(Empresas!$B$6:$B$46)-5),ROW($A10)),COLUMN(M$1)),"") ->  | M33: =IFERROR(INDEX(Empresas!$B$6:$AS$46,SMALL(IF(Empresas!$B$6:$B$46=Dados!$H$37,ROW(Empresas!$B$6:$B$46)-5),ROW($A10)),COLUMN(N$1)),"") ->  | N33: =IFERROR(INDEX(Empresas!$B$6:$AS$46,SMALL(IF(Empresas!$B$6:$B$46=Dados!$H$37,ROW(Empresas!$B$6:$B$46)-5),ROW($A10)),COLUMN(O$1)),"") ->  | O33: =IFERROR(INDEX(Empresas!$B$6:$AS$46,SMALL(IF(Empresas!$B$6:$B$46=Dados!$H$37,ROW(Empresas!$B$6:$B$46)-5),ROW($A10)),COLUMN(P$1)),"") ->  | P33: =IFERROR(INDEX(Empresas!$B$6:$AS$46,SMALL(IF(Empresas!$B$6:$B$46=Dados!$H$37,ROW(Empresas!$B$6:$B$46)-5),ROW($A10)),COLUMN(Q$1)),"") ->  | Q33: =IFERROR(INDEX(Empresas!$B$6:$AS$46,SMALL(IF(Empresas!$B$6:$B$46=Dados!$H$37,ROW(Empresas!$B$6:$B$46)-5),ROW($A10)),COLUMN(R$1)),"") ->  | R33: =IFERROR(INDEX(Empresas!$B$6:$AS$46,SMALL(IF(Empresas!$B$6:$B$46=Dados!$H$37,ROW(Empresas!$B$6:$B$46)-5),ROW($A10)),COLUMN(S$1)),"") ->  | S33: =IFERROR(INDEX(Empresas!$B$6:$AS$46,SMALL(IF(Empresas!$B$6:$B$46=Dados!$H$37,ROW(Empresas!$B$6:$B$46)-5),ROW($A10)),COLUMN(T$1)),"") ->  | T33: =IFERROR(INDEX(Empresas!$B$6:$AS$46,SMALL(IF(Empresas!$B$6:$B$46=Dados!$H$37,ROW(Empresas!$B$6:$B$46)-5),ROW($A10)),COLUMN(U$1)),"") ->  | U33: =IFERROR(INDEX(Empresas!$B$6:$AS$46,SMALL(IF(Empresas!$B$6:$B$46=Dados!$H$37,ROW(Empresas!$B$6:$B$46)-5),ROW($A10)),COLUMN(V$1)),"") ->  | V33: =IFERROR(INDEX(Empresas!$B$6:$AS$46,SMALL(IF(Empresas!$B$6:$B$46=Dados!$H$37,ROW(Empresas!$B$6:$B$46)-5),ROW($A10)),COLUMN(W$1)),"") ->  | W33: =IFERROR(INDEX(Empresas!$B$6:$AS$46,SMALL(IF(Empresas!$B$6:$B$46=Dados!$H$37,ROW(Empresas!$B$6:$B$46)-5),ROW($A10)),COLUMN(X$1)),"") ->  | X33: =IFERROR(INDEX(Empresas!$B$6:$AS$46,SMALL(IF(Empresas!$B$6:$B$46=Dados!$H$37,ROW(Empresas!$B$6:$B$46)-5),ROW($A10)),COLUMN(Y$1)),"") ->  | Y33: =IFERROR(INDEX(Empresas!$B$6:$AS$46,SMALL(IF(Empresas!$B$6:$B$46=Dados!$H$37,ROW(Empresas!$B$6:$B$46)-5),ROW($A10)),COLUMN(Z$1)),"") ->  | Z33: =IFERROR(INDEX(Empresas!$B$6:$AS$46,SMALL(IF(Empresas!$B$6:$B$46=Dados!$H$37,ROW(Empresas!$B$6:$B$46)-5),ROW($A10)),COLUMN(AA$1)),"") ->  | AA33: =IFERROR(INDEX(Empresas!$B$6:$AS$46,SMALL(IF(Empresas!$B$6:$B$46=Dados!$H$37,ROW(Empresas!$B$6:$B$46)-5),ROW($A10)),COLUMN(AB$1)),"") ->  | AB33: =IFERROR(INDEX(Empresas!$B$6:$AS$46,SMALL(IF(Empresas!$B$6:$B$46=Dados!$H$37,ROW(Empresas!$B$6:$B$46)-5),ROW($A10)),COLUMN(AC$1)),"") ->  | AC33: =IFERROR(INDEX(Empresas!$B$6:$AS$46,SMALL(IF(Empresas!$B$6:$B$46=Dados!$H$37,ROW(Empresas!$B$6:$B$46)-5),ROW($A10)),COLUMN(AD$1)),"") ->  | AD33: =IFERROR(INDEX(Empresas!$B$6:$AS$46,SMALL(IF(Empresas!$B$6:$B$46=Dados!$H$37,ROW(Empresas!$B$6:$B$46)-5),ROW($A10)),COLUMN(AE$1)),"") ->  | AE33: =IFERROR(INDEX(Empresas!$B$6:$AS$46,SMALL(IF(Empresas!$B$6:$B$46=Dados!$H$37,ROW(Empresas!$B$6:$B$46)-5),ROW($A10)),COLUMN(AF$1)),"") ->  | AF33: =IFERROR(INDEX(Empresas!$B$6:$AS$46,SMALL(IF(Empresas!$B$6:$B$46=Dados!$H$37,ROW(Empresas!$B$6:$B$46)-5),ROW($A10)),COLUMN(AG$1)),"") ->  | AG33: =IFERROR(INDEX(Empresas!$B$6:$AS$46,SMALL(IF(Empresas!$B$6:$B$46=Dados!$H$37,ROW(Empresas!$B$6:$B$46)-5),ROW($A10)),COLUMN(AH$1)),"") ->  | AH33: =IFERROR(INDEX(Empresas!$B$6:$AS$46,SMALL(IF(Empresas!$B$6:$B$46=Dados!$H$37,ROW(Empresas!$B$6:$B$46)-5),ROW($A10)),COLUMN(AI$1)),"") ->  | AI33: =IFERROR(INDEX(Empresas!$B$6:$AS$46,SMALL(IF(Empresas!$B$6:$B$46=Dados!$H$37,ROW(Empresas!$B$6:$B$46)-5),ROW($A10)),COLUMN(AJ$1)),"") ->  | AJ33: =IFERROR(INDEX(Empresas!$B$6:$AS$46,SMALL(IF(Empresas!$B$6:$B$46=Dados!$H$37,ROW(Empresas!$B$6:$B$46)-5),ROW($A10)),COLUMN(AK$1)),"") ->  | AK33: =IFERROR(INDEX(Empresas!$B$6:$AS$46,SMALL(IF(Empresas!$B$6:$B$46=Dados!$H$37,ROW(Empresas!$B$6:$B$46)-5),ROW($A10)),COLUMN(AL$1)),"") ->  | AL33: =IFERROR(INDEX(Empresas!$B$6:$AS$46,SMALL(IF(Empresas!$B$6:$B$46=Dados!$H$37,ROW(Empresas!$B$6:$B$46)-5),ROW($A10)),COLUMN(AM$1)),"") ->  | AM33: =IFERROR(INDEX(Empresas!$B$6:$AS$46,SMALL(IF(Empresas!$B$6:$B$46=Dados!$H$37,ROW(Empresas!$B$6:$B$46)-5),ROW($A10)),COLUMN(AN$1)),"") ->  | AN33: =IFERROR(INDEX(Empresas!$B$6:$AS$46,SMALL(IF(Empresas!$B$6:$B$46=Dados!$H$37,ROW(Empresas!$B$6:$B$46)-5),ROW($A10)),COLUMN(AO$1)),"") ->  | AO33: =IFERROR(INDEX(Empresas!$B$6:$AS$46,SMALL(IF(Empresas!$B$6:$B$46=Dados!$H$37,ROW(Empresas!$B$6:$B$46)-5),ROW($A10)),COLUMN(AP$1)),"") ->  | AP33: =IFERROR(INDEX(Empresas!$B$6:$AS$46,SMALL(IF(Empresas!$B$6:$B$46=Dados!$H$37,ROW(Empresas!$B$6:$B$46)-5),ROW($A10)),COLUMN(AQ$1)),"") ->  | AQ33: =IFERROR(INDEX(Empresas!$B$6:$AS$46,SMALL(IF(Empresas!$B$6:$B$46=Dados!$H$37,ROW(Empresas!$B$6:$B$46)-5),ROW($A10)),COLUMN(AR$1)),"") -> 
B34: =IFERROR(INDEX(Empresas!$B$6:$AS$46,SMALL(IF(Empresas!$B$6:$B$46=Dados!$H$37,ROW(Empresas!$B$6:$B$46)-5),ROW($A11)),COLUMN(B$1)),"") ->  | C34: =IFERROR(INDEX(Empresas!$B$6:$AS$46,SMALL(IF(Empresas!$B$6:$B$46=Dados!$H$37,ROW(Empresas!$B$6:$B$46)-5),ROW($A11)),COLUMN(C$1)),"") ->  | E34: =IFERROR(INDEX(Empresas!$B$6:$AS$46,SMALL(IF(Empresas!$B$6:$B$46=Dados!$H$37,ROW(Empresas!$B$6:$B$46)-5),ROW($A11)),COLUMN(F$1)),"") ->  | F34: =IFERROR(INDEX(Empresas!$B$6:$AS$46,SMALL(IF(Empresas!$B$6:$B$46=Dados!$H$37,ROW(Empresas!$B$6:$B$46)-5),ROW($A11)),COLUMN(G$1)),"") ->  | G34: =IFERROR(INDEX(Empresas!$B$6:$AS$46,SMALL(IF(Empresas!$B$6:$B$46=Dados!$H$37,ROW(Empresas!$B$6:$B$46)-5),ROW($A11)),COLUMN(H$1)),"") ->  | H34: =IFERROR(INDEX(Empresas!$B$6:$AS$46,SMALL(IF(Empresas!$B$6:$B$46=Dados!$H$37,ROW(Empresas!$B$6:$B$46)-5),ROW($A11)),COLUMN(I$1)),"") ->  | I34: =IFERROR(INDEX(Empresas!$B$6:$AS$46,SMALL(IF(Empresas!$B$6:$B$46=Dados!$H$37,ROW(Empresas!$B$6:$B$46)-5),ROW($A11)),COLUMN(J$1)),"") ->  | J34: =IFERROR(INDEX(Empresas!$B$6:$AS$46,SMALL(IF(Empresas!$B$6:$B$46=Dados!$H$37,ROW(Empresas!$B$6:$B$46)-5),ROW($A11)),COLUMN(K$1)),"") ->  | K34: =IFERROR(INDEX(Empresas!$B$6:$AS$46,SMALL(IF(Empresas!$B$6:$B$46=Dados!$H$37,ROW(Empresas!$B$6:$B$46)-5),ROW($A11)),COLUMN(L$1)),"") ->  | L34: =IFERROR(INDEX(Empresas!$B$6:$AS$46,SMALL(IF(Empresas!$B$6:$B$46=Dados!$H$37,ROW(Empresas!$B$6:$B$46)-5),ROW($A11)),COLUMN(M$1)),"") ->  | M34: =IFERROR(INDEX(Empresas!$B$6:$AS$46,SMALL(IF(Empresas!$B$6:$B$46=Dados!$H$37,ROW(Empresas!$B$6:$B$46)-5),ROW($A11)),COLUMN(N$1)),"") ->  | N34: =IFERROR(INDEX(Empresas!$B$6:$AS$46,SMALL(IF(Empresas!$B$6:$B$46=Dados!$H$37,ROW(Empresas!$B$6:$B$46)-5),ROW($A11)),COLUMN(O$1)),"") ->  | O34: =IFERROR(INDEX(Empresas!$B$6:$AS$46,SMALL(IF(Empresas!$B$6:$B$46=Dados!$H$37,ROW(Empresas!$B$6:$B$46)-5),ROW($A11)),COLUMN(P$1)),"") ->  | P34: =IFERROR(INDEX(Empresas!$B$6:$AS$46,SMALL(IF(Empresas!$B$6:$B$46=Dados!$H$37,ROW(Empresas!$B$6:$B$46)-5),ROW($A11)),COLUMN(Q$1)),"") ->  | Q34: =IFERROR(INDEX(Empresas!$B$6:$AS$46,SMALL(IF(Empresas!$B$6:$B$46=Dados!$H$37,ROW(Empresas!$B$6:$B$46)-5),ROW($A11)),COLUMN(R$1)),"") ->  | R34: =IFERROR(INDEX(Empresas!$B$6:$AS$46,SMALL(IF(Empresas!$B$6:$B$46=Dados!$H$37,ROW(Empresas!$B$6:$B$46)-5),ROW($A11)),COLUMN(S$1)),"") ->  | S34: =IFERROR(INDEX(Empresas!$B$6:$AS$46,SMALL(IF(Empresas!$B$6:$B$46=Dados!$H$37,ROW(Empresas!$B$6:$B$46)-5),ROW($A11)),COLUMN(T$1)),"") ->  | T34: =IFERROR(INDEX(Empresas!$B$6:$AS$46,SMALL(IF(Empresas!$B$6:$B$46=Dados!$H$37,ROW(Empresas!$B$6:$B$46)-5),ROW($A11)),COLUMN(U$1)),"") ->  | U34: =IFERROR(INDEX(Empresas!$B$6:$AS$46,SMALL(IF(Empresas!$B$6:$B$46=Dados!$H$37,ROW(Empresas!$B$6:$B$46)-5),ROW($A11)),COLUMN(V$1)),"") ->  | V34: =IFERROR(INDEX(Empresas!$B$6:$AS$46,SMALL(IF(Empresas!$B$6:$B$46=Dados!$H$37,ROW(Empresas!$B$6:$B$46)-5),ROW($A11)),COLUMN(W$1)),"") ->  | W34: =IFERROR(INDEX(Empresas!$B$6:$AS$46,SMALL(IF(Empresas!$B$6:$B$46=Dados!$H$37,ROW(Empresas!$B$6:$B$46)-5),ROW($A11)),COLUMN(X$1)),"") ->  | X34: =IFERROR(INDEX(Empresas!$B$6:$AS$46,SMALL(IF(Empresas!$B$6:$B$46=Dados!$H$37,ROW(Empresas!$B$6:$B$46)-5),ROW($A11)),COLUMN(Y$1)),"") ->  | Y34: =IFERROR(INDEX(Empresas!$B$6:$AS$46,SMALL(IF(Empresas!$B$6:$B$46=Dados!$H$37,ROW(Empresas!$B$6:$B$46)-5),ROW($A11)),COLUMN(Z$1)),"") ->  | Z34: =IFERROR(INDEX(Empresas!$B$6:$AS$46,SMALL(IF(Empresas!$B$6:$B$46=Dados!$H$37,ROW(Empresas!$B$6:$B$46)-5),ROW($A11)),COLUMN(AA$1)),"") ->  | AA34: =IFERROR(INDEX(Empresas!$B$6:$AS$46,SMALL(IF(Empresas!$B$6:$B$46=Dados!$H$37,ROW(Empresas!$B$6:$B$46)-5),ROW($A11)),COLUMN(AB$1)),"") ->  | AB34: =IFERROR(INDEX(Empresas!$B$6:$AS$46,SMALL(IF(Empresas!$B$6:$B$46=Dados!$H$37,ROW(Empresas!$B$6:$B$46)-5),ROW($A11)),COLUMN(AC$1)),"") ->  | AC34: =IFERROR(INDEX(Empresas!$B$6:$AS$46,SMALL(IF(Empresas!$B$6:$B$46=Dados!$H$37,ROW(Empresas!$B$6:$B$46)-5),ROW($A11)),COLUMN(AD$1)),"") ->  | AD34: =IFERROR(INDEX(Empresas!$B$6:$AS$46,SMALL(IF(Empresas!$B$6:$B$46=Dados!$H$37,ROW(Empresas!$B$6:$B$46)-5),ROW($A11)),COLUMN(AE$1)),"") ->  | AE34: =IFERROR(INDEX(Empresas!$B$6:$AS$46,SMALL(IF(Empresas!$B$6:$B$46=Dados!$H$37,ROW(Empresas!$B$6:$B$46)-5),ROW($A11)),COLUMN(AF$1)),"") ->  | AF34: =IFERROR(INDEX(Empresas!$B$6:$AS$46,SMALL(IF(Empresas!$B$6:$B$46=Dados!$H$37,ROW(Empresas!$B$6:$B$46)-5),ROW($A11)),COLUMN(AG$1)),"") ->  | AG34: =IFERROR(INDEX(Empresas!$B$6:$AS$46,SMALL(IF(Empresas!$B$6:$B$46=Dados!$H$37,ROW(Empresas!$B$6:$B$46)-5),ROW($A11)),COLUMN(AH$1)),"") ->  | AH34: =IFERROR(INDEX(Empresas!$B$6:$AS$46,SMALL(IF(Empresas!$B$6:$B$46=Dados!$H$37,ROW(Empresas!$B$6:$B$46)-5),ROW($A11)),COLUMN(AI$1)),"") ->  | AI34: =IFERROR(INDEX(Empresas!$B$6:$AS$46,SMALL(IF(Empresas!$B$6:$B$46=Dados!$H$37,ROW(Empresas!$B$6:$B$46)-5),ROW($A11)),COLUMN(AJ$1)),"") ->  | AJ34: =IFERROR(INDEX(Empresas!$B$6:$AS$46,SMALL(IF(Empresas!$B$6:$B$46=Dados!$H$37,ROW(Empresas!$B$6:$B$46)-5),ROW($A11)),COLUMN(AK$1)),"") ->  | AK34: =IFERROR(INDEX(Empresas!$B$6:$AS$46,SMALL(IF(Empresas!$B$6:$B$46=Dados!$H$37,ROW(Empresas!$B$6:$B$46)-5),ROW($A11)),COLUMN(AL$1)),"") ->  | AL34: =IFERROR(INDEX(Empresas!$B$6:$AS$46,SMALL(IF(Empresas!$B$6:$B$46=Dados!$H$37,ROW(Empresas!$B$6:$B$46)-5),ROW($A11)),COLUMN(AM$1)),"") ->  | AM34: =IFERROR(INDEX(Empresas!$B$6:$AS$46,SMALL(IF(Empresas!$B$6:$B$46=Dados!$H$37,ROW(Empresas!$B$6:$B$46)-5),ROW($A11)),COLUMN(AN$1)),"") ->  | AN34: =IFERROR(INDEX(Empresas!$B$6:$AS$46,SMALL(IF(Empresas!$B$6:$B$46=Dados!$H$37,ROW(Empresas!$B$6:$B$46)-5),ROW($A11)),COLUMN(AO$1)),"") ->  | AO34: =IFERROR(INDEX(Empresas!$B$6:$AS$46,SMALL(IF(Empresas!$B$6:$B$46=Dados!$H$37,ROW(Empresas!$B$6:$B$46)-5),ROW($A11)),COLUMN(AP$1)),"") ->  | AP34: =IFERROR(INDEX(Empresas!$B$6:$AS$46,SMALL(IF(Empresas!$B$6:$B$46=Dados!$H$37,ROW(Empresas!$B$6:$B$46)-5),ROW($A11)),COLUMN(AQ$1)),"") ->  | AQ34: =IFERROR(INDEX(Empresas!$B$6:$AS$46,SMALL(IF(Empresas!$B$6:$B$46=Dados!$H$37,ROW(Empresas!$B$6:$B$46)-5),ROW($A11)),COLUMN(AR$1)),"") -> 
B35: =IFERROR(INDEX(Empresas!$B$6:$AS$46,SMALL(IF(Empresas!$B$6:$B$46=Dados!$H$37,ROW(Empresas!$B$6:$B$46)-5),ROW($A12)),COLUMN(B$1)),"") ->  | C35: =IFERROR(INDEX(Empresas!$B$6:$AS$46,SMALL(IF(Empresas!$B$6:$B$46=Dados!$H$37,ROW(Empresas!$B$6:$B$46)-5),ROW($A12)),COLUMN(C$1)),"") ->  | E35: =IFERROR(INDEX(Empresas!$B$6:$AS$46,SMALL(IF(Empresas!$B$6:$B$46=Dados!$H$37,ROW(Empresas!$B$6:$B$46)-5),ROW($A12)),COLUMN(F$1)),"") ->  | F35: =IFERROR(INDEX(Empresas!$B$6:$AS$46,SMALL(IF(Empresas!$B$6:$B$46=Dados!$H$37,ROW(Empresas!$B$6:$B$46)-5),ROW($A12)),COLUMN(G$1)),"") ->  | G35: =IFERROR(INDEX(Empresas!$B$6:$AS$46,SMALL(IF(Empresas!$B$6:$B$46=Dados!$H$37,ROW(Empresas!$B$6:$B$46)-5),ROW($A12)),COLUMN(H$1)),"") ->  | H35: =IFERROR(INDEX(Empresas!$B$6:$AS$46,SMALL(IF(Empresas!$B$6:$B$46=Dados!$H$37,ROW(Empresas!$B$6:$B$46)-5),ROW($A12)),COLUMN(I$1)),"") ->  | I35: =IFERROR(INDEX(Empresas!$B$6:$AS$46,SMALL(IF(Empresas!$B$6:$B$46=Dados!$H$37,ROW(Empresas!$B$6:$B$46)-5),ROW($A12)),COLUMN(J$1)),"") ->  | J35: =IFERROR(INDEX(Empresas!$B$6:$AS$46,SMALL(IF(Empresas!$B$6:$B$46=Dados!$H$37,ROW(Empresas!$B$6:$B$46)-5),ROW($A12)),COLUMN(K$1)),"") ->  | K35: =IFERROR(INDEX(Empresas!$B$6:$AS$46,SMALL(IF(Empresas!$B$6:$B$46=Dados!$H$37,ROW(Empresas!$B$6:$B$46)-5),ROW($A12)),COLUMN(L$1)),"") ->  | L35: =IFERROR(INDEX(Empresas!$B$6:$AS$46,SMALL(IF(Empresas!$B$6:$B$46=Dados!$H$37,ROW(Empresas!$B$6:$B$46)-5),ROW($A12)),COLUMN(M$1)),"") ->  | M35: =IFERROR(INDEX(Empresas!$B$6:$AS$46,SMALL(IF(Empresas!$B$6:$B$46=Dados!$H$37,ROW(Empresas!$B$6:$B$46)-5),ROW($A12)),COLUMN(N$1)),"") ->  | N35: =IFERROR(INDEX(Empresas!$B$6:$AS$46,SMALL(IF(Empresas!$B$6:$B$46=Dados!$H$37,ROW(Empresas!$B$6:$B$46)-5),ROW($A12)),COLUMN(O$1)),"") ->  | O35: =IFERROR(INDEX(Empresas!$B$6:$AS$46,SMALL(IF(Empresas!$B$6:$B$46=Dados!$H$37,ROW(Empresas!$B$6:$B$46)-5),ROW($A12)),COLUMN(P$1)),"") ->  | P35: =IFERROR(INDEX(Empresas!$B$6:$AS$46,SMALL(IF(Empresas!$B$6:$B$46=Dados!$H$37,ROW(Empresas!$B$6:$B$46)-5),ROW($A12)),COLUMN(Q$1)),"") ->  | Q35: =IFERROR(INDEX(Empresas!$B$6:$AS$46,SMALL(IF(Empresas!$B$6:$B$46=Dados!$H$37,ROW(Empresas!$B$6:$B$46)-5),ROW($A12)),COLUMN(R$1)),"") ->  | R35: =IFERROR(INDEX(Empresas!$B$6:$AS$46,SMALL(IF(Empresas!$B$6:$B$46=Dados!$H$37,ROW(Empresas!$B$6:$B$46)-5),ROW($A12)),COLUMN(S$1)),"") ->  | S35: =IFERROR(INDEX(Empresas!$B$6:$AS$46,SMALL(IF(Empresas!$B$6:$B$46=Dados!$H$37,ROW(Empresas!$B$6:$B$46)-5),ROW($A12)),COLUMN(T$1)),"") ->  | T35: =IFERROR(INDEX(Empresas!$B$6:$AS$46,SMALL(IF(Empresas!$B$6:$B$46=Dados!$H$37,ROW(Empresas!$B$6:$B$46)-5),ROW($A12)),COLUMN(U$1)),"") ->  | U35: =IFERROR(INDEX(Empresas!$B$6:$AS$46,SMALL(IF(Empresas!$B$6:$B$46=Dados!$H$37,ROW(Empresas!$B$6:$B$46)-5),ROW($A12)),COLUMN(V$1)),"") ->  | V35: =IFERROR(INDEX(Empresas!$B$6:$AS$46,SMALL(IF(Empresas!$B$6:$B$46=Dados!$H$37,ROW(Empresas!$B$6:$B$46)-5),ROW($A12)),COLUMN(W$1)),"") ->  | W35: =IFERROR(INDEX(Empresas!$B$6:$AS$46,SMALL(IF(Empresas!$B$6:$B$46=Dados!$H$37,ROW(Empresas!$B$6:$B$46)-5),ROW($A12)),COLUMN(X$1)),"") ->  | X35: =IFERROR(INDEX(Empresas!$B$6:$AS$46,SMALL(IF(Empresas!$B$6:$B$46=Dados!$H$37,ROW(Empresas!$B$6:$B$46)-5),ROW($A12)),COLUMN(Y$1)),"") ->  | Y35: =IFERROR(INDEX(Empresas!$B$6:$AS$46,SMALL(IF(Empresas!$B$6:$B$46=Dados!$H$37,ROW(Empresas!$B$6:$B$46)-5),ROW($A12)),COLUMN(Z$1)),"") ->  | Z35: =IFERROR(INDEX(Empresas!$B$6:$AS$46,SMALL(IF(Empresas!$B$6:$B$46=Dados!$H$37,ROW(Empresas!$B$6:$B$46)-5),ROW($A12)),COLUMN(AA$1)),"") ->  | AA35: =IFERROR(INDEX(Empresas!$B$6:$AS$46,SMALL(IF(Empresas!$B$6:$B$46=Dados!$H$37,ROW(Empresas!$B$6:$B$46)-5),ROW($A12)),COLUMN(AB$1)),"") ->  | AB35: =IFERROR(INDEX(Empresas!$B$6:$AS$46,SMALL(IF(Empresas!$B$6:$B$46=Dados!$H$37,ROW(Empresas!$B$6:$B$46)-5),ROW($A12)),COLUMN(AC$1)),"") ->  | AC35: =IFERROR(INDEX(Empresas!$B$6:$AS$46,SMALL(IF(Empresas!$B$6:$B$46=Dados!$H$37,ROW(Empresas!$B$6:$B$46)-5),ROW($A12)),COLUMN(AD$1)),"") ->  | AD35: =IFERROR(INDEX(Empresas!$B$6:$AS$46,SMALL(IF(Empresas!$B$6:$B$46=Dados!$H$37,ROW(Empresas!$B$6:$B$46)-5),ROW($A12)),COLUMN(AE$1)),"") ->  | AE35: =IFERROR(INDEX(Empresas!$B$6:$AS$46,SMALL(IF(Empresas!$B$6:$B$46=Dados!$H$37,ROW(Empresas!$B$6:$B$46)-5),ROW($A12)),COLUMN(AF$1)),"") ->  | AF35: =IFERROR(INDEX(Empresas!$B$6:$AS$46,SMALL(IF(Empresas!$B$6:$B$46=Dados!$H$37,ROW(Empresas!$B$6:$B$46)-5),ROW($A12)),COLUMN(AG$1)),"") ->  | AG35: =IFERROR(INDEX(Empresas!$B$6:$AS$46,SMALL(IF(Empresas!$B$6:$B$46=Dados!$H$37,ROW(Empresas!$B$6:$B$46)-5),ROW($A12)),COLUMN(AH$1)),"") ->  | AH35: =IFERROR(INDEX(Empresas!$B$6:$AS$46,SMALL(IF(Empresas!$B$6:$B$46=Dados!$H$37,ROW(Empresas!$B$6:$B$46)-5),ROW($A12)),COLUMN(AI$1)),"") ->  | AI35: =IFERROR(INDEX(Empresas!$B$6:$AS$46,SMALL(IF(Empresas!$B$6:$B$46=Dados!$H$37,ROW(Empresas!$B$6:$B$46)-5),ROW($A12)),COLUMN(AJ$1)),"") ->  | AJ35: =IFERROR(INDEX(Empresas!$B$6:$AS$46,SMALL(IF(Empresas!$B$6:$B$46=Dados!$H$37,ROW(Empresas!$B$6:$B$46)-5),ROW($A12)),COLUMN(AK$1)),"") ->  | AK35: =IFERROR(INDEX(Empresas!$B$6:$AS$46,SMALL(IF(Empresas!$B$6:$B$46=Dados!$H$37,ROW(Empresas!$B$6:$B$46)-5),ROW($A12)),COLUMN(AL$1)),"") ->  | AL35: =IFERROR(INDEX(Empresas!$B$6:$AS$46,SMALL(IF(Empresas!$B$6:$B$46=Dados!$H$37,ROW(Empresas!$B$6:$B$46)-5),ROW($A12)),COLUMN(AM$1)),"") ->  | AM35: =IFERROR(INDEX(Empresas!$B$6:$AS$46,SMALL(IF(Empresas!$B$6:$B$46=Dados!$H$37,ROW(Empresas!$B$6:$B$46)-5),ROW($A12)),COLUMN(AN$1)),"") ->  | AN35: =IFERROR(INDEX(Empresas!$B$6:$AS$46,SMALL(IF(Empresas!$B$6:$B$46=Dados!$H$37,ROW(Empresas!$B$6:$B$46)-5),ROW($A12)),COLUMN(AO$1)),"") ->  | AO35: =IFERROR(INDEX(Empresas!$B$6:$AS$46,SMALL(IF(Empresas!$B$6:$B$46=Dados!$H$37,ROW(Empresas!$B$6:$B$46)-5),ROW($A12)),COLUMN(AP$1)),"") ->  | AP35: =IFERROR(INDEX(Empresas!$B$6:$AS$46,SMALL(IF(Empresas!$B$6:$B$46=Dados!$H$37,ROW(Empresas!$B$6:$B$46)-5),ROW($A12)),COLUMN(AQ$1)),"") ->  | AQ35: =IFERROR(INDEX(Empresas!$B$6:$AS$46,SMALL(IF(Empresas!$B$6:$B$46=Dados!$H$37,ROW(Empresas!$B$6:$B$46)-5),ROW($A12)),COLUMN(AR$1)),"") -> 
B36: =IFERROR(INDEX(Empresas!$B$6:$AS$46,SMALL(IF(Empresas!$B$6:$B$46=Dados!$H$37,ROW(Empresas!$B$6:$B$46)-5),ROW($A13)),COLUMN(B$1)),"") ->  | C36: =IFERROR(INDEX(Empresas!$B$6:$AS$46,SMALL(IF(Empresas!$B$6:$B$46=Dados!$H$37,ROW(Empresas!$B$6:$B$46)-5),ROW($A13)),COLUMN(C$1)),"") ->  | E36: =IFERROR(INDEX(Empresas!$B$6:$AS$46,SMALL(IF(Empresas!$B$6:$B$46=Dados!$H$37,ROW(Empresas!$B$6:$B$46)-5),ROW($A13)),COLUMN(F$1)),"") ->  | F36: =IFERROR(INDEX(Empresas!$B$6:$AS$46,SMALL(IF(Empresas!$B$6:$B$46=Dados!$H$37,ROW(Empresas!$B$6:$B$46)-5),ROW($A13)),COLUMN(G$1)),"") ->  | G36: =IFERROR(INDEX(Empresas!$B$6:$AS$46,SMALL(IF(Empresas!$B$6:$B$46=Dados!$H$37,ROW(Empresas!$B$6:$B$46)-5),ROW($A13)),COLUMN(H$1)),"") ->  | H36: =IFERROR(INDEX(Empresas!$B$6:$AS$46,SMALL(IF(Empresas!$B$6:$B$46=Dados!$H$37,ROW(Empresas!$B$6:$B$46)-5),ROW($A13)),COLUMN(I$1)),"") ->  | I36: =IFERROR(INDEX(Empresas!$B$6:$AS$46,SMALL(IF(Empresas!$B$6:$B$46=Dados!$H$37,ROW(Empresas!$B$6:$B$46)-5),ROW($A13)),COLUMN(J$1)),"") ->  | J36: =IFERROR(INDEX(Empresas!$B$6:$AS$46,SMALL(IF(Empresas!$B$6:$B$46=Dados!$H$37,ROW(Empresas!$B$6:$B$46)-5),ROW($A13)),COLUMN(K$1)),"") ->  | K36: =IFERROR(INDEX(Empresas!$B$6:$AS$46,SMALL(IF(Empresas!$B$6:$B$46=Dados!$H$37,ROW(Empresas!$B$6:$B$46)-5),ROW($A13)),COLUMN(L$1)),"") ->  | L36: =IFERROR(INDEX(Empresas!$B$6:$AS$46,SMALL(IF(Empresas!$B$6:$B$46=Dados!$H$37,ROW(Empresas!$B$6:$B$46)-5),ROW($A13)),COLUMN(M$1)),"") ->  | M36: =IFERROR(INDEX(Empresas!$B$6:$AS$46,SMALL(IF(Empresas!$B$6:$B$46=Dados!$H$37,ROW(Empresas!$B$6:$B$46)-5),ROW($A13)),COLUMN(N$1)),"") ->  | N36: =IFERROR(INDEX(Empresas!$B$6:$AS$46,SMALL(IF(Empresas!$B$6:$B$46=Dados!$H$37,ROW(Empresas!$B$6:$B$46)-5),ROW($A13)),COLUMN(O$1)),"") ->  | O36: =IFERROR(INDEX(Empresas!$B$6:$AS$46,SMALL(IF(Empresas!$B$6:$B$46=Dados!$H$37,ROW(Empresas!$B$6:$B$46)-5),ROW($A13)),COLUMN(P$1)),"") ->  | P36: =IFERROR(INDEX(Empresas!$B$6:$AS$46,SMALL(IF(Empresas!$B$6:$B$46=Dados!$H$37,ROW(Empresas!$B$6:$B$46)-5),ROW($A13)),COLUMN(Q$1)),"") ->  | Q36: =IFERROR(INDEX(Empresas!$B$6:$AS$46,SMALL(IF(Empresas!$B$6:$B$46=Dados!$H$37,ROW(Empresas!$B$6:$B$46)-5),ROW($A13)),COLUMN(R$1)),"") ->  | R36: =IFERROR(INDEX(Empresas!$B$6:$AS$46,SMALL(IF(Empresas!$B$6:$B$46=Dados!$H$37,ROW(Empresas!$B$6:$B$46)-5),ROW($A13)),COLUMN(S$1)),"") ->  | S36: =IFERROR(INDEX(Empresas!$B$6:$AS$46,SMALL(IF(Empresas!$B$6:$B$46=Dados!$H$37,ROW(Empresas!$B$6:$B$46)-5),ROW($A13)),COLUMN(T$1)),"") ->  | T36: =IFERROR(INDEX(Empresas!$B$6:$AS$46,SMALL(IF(Empresas!$B$6:$B$46=Dados!$H$37,ROW(Empresas!$B$6:$B$46)-5),ROW($A13)),COLUMN(U$1)),"") ->  | U36: =IFERROR(INDEX(Empresas!$B$6:$AS$46,SMALL(IF(Empresas!$B$6:$B$46=Dados!$H$37,ROW(Empresas!$B$6:$B$46)-5),ROW($A13)),COLUMN(V$1)),"") ->  | V36: =IFERROR(INDEX(Empresas!$B$6:$AS$46,SMALL(IF(Empresas!$B$6:$B$46=Dados!$H$37,ROW(Empresas!$B$6:$B$46)-5),ROW($A13)),COLUMN(W$1)),"") ->  | W36: =IFERROR(INDEX(Empresas!$B$6:$AS$46,SMALL(IF(Empresas!$B$6:$B$46=Dados!$H$37,ROW(Empresas!$B$6:$B$46)-5),ROW($A13)),COLUMN(X$1)),"") ->  | X36: =IFERROR(INDEX(Empresas!$B$6:$AS$46,SMALL(IF(Empresas!$B$6:$B$46=Dados!$H$37,ROW(Empresas!$B$6:$B$46)-5),ROW($A13)),COLUMN(Y$1)),"") ->  | Y36: =IFERROR(INDEX(Empresas!$B$6:$AS$46,SMALL(IF(Empresas!$B$6:$B$46=Dados!$H$37,ROW(Empresas!$B$6:$B$46)-5),ROW($A13)),COLUMN(Z$1)),"") ->  | Z36: =IFERROR(INDEX(Empresas!$B$6:$AS$46,SMALL(IF(Empresas!$B$6:$B$46=Dados!$H$37,ROW(Empresas!$B$6:$B$46)-5),ROW($A13)),COLUMN(AA$1)),"") ->  | AA36: =IFERROR(INDEX(Empresas!$B$6:$AS$46,SMALL(IF(Empresas!$B$6:$B$46=Dados!$H$37,ROW(Empresas!$B$6:$B$46)-5),ROW($A13)),COLUMN(AB$1)),"") ->  | AB36: =IFERROR(INDEX(Empresas!$B$6:$AS$46,SMALL(IF(Empresas!$B$6:$B$46=Dados!$H$37,ROW(Empresas!$B$6:$B$46)-5),ROW($A13)),COLUMN(AC$1)),"") ->  | AC36: =IFERROR(INDEX(Empresas!$B$6:$AS$46,SMALL(IF(Empresas!$B$6:$B$46=Dados!$H$37,ROW(Empresas!$B$6:$B$46)-5),ROW($A13)),COLUMN(AD$1)),"") ->  | AD36: =IFERROR(INDEX(Empresas!$B$6:$AS$46,SMALL(IF(Empresas!$B$6:$B$46=Dados!$H$37,ROW(Empresas!$B$6:$B$46)-5),ROW($A13)),COLUMN(AE$1)),"") ->  | AE36: =IFERROR(INDEX(Empresas!$B$6:$AS$46,SMALL(IF(Empresas!$B$6:$B$46=Dados!$H$37,ROW(Empresas!$B$6:$B$46)-5),ROW($A13)),COLUMN(AF$1)),"") ->  | AF36: =IFERROR(INDEX(Empresas!$B$6:$AS$46,SMALL(IF(Empresas!$B$6:$B$46=Dados!$H$37,ROW(Empresas!$B$6:$B$46)-5),ROW($A13)),COLUMN(AG$1)),"") ->  | AG36: =IFERROR(INDEX(Empresas!$B$6:$AS$46,SMALL(IF(Empresas!$B$6:$B$46=Dados!$H$37,ROW(Empresas!$B$6:$B$46)-5),ROW($A13)),COLUMN(AH$1)),"") ->  | AH36: =IFERROR(INDEX(Empresas!$B$6:$AS$46,SMALL(IF(Empresas!$B$6:$B$46=Dados!$H$37,ROW(Empresas!$B$6:$B$46)-5),ROW($A13)),COLUMN(AI$1)),"") ->  | AI36: =IFERROR(INDEX(Empresas!$B$6:$AS$46,SMALL(IF(Empresas!$B$6:$B$46=Dados!$H$37,ROW(Empresas!$B$6:$B$46)-5),ROW($A13)),COLUMN(AJ$1)),"") ->  | AJ36: =IFERROR(INDEX(Empresas!$B$6:$AS$46,SMALL(IF(Empresas!$B$6:$B$46=Dados!$H$37,ROW(Empresas!$B$6:$B$46)-5),ROW($A13)),COLUMN(AK$1)),"") ->  | AK36: =IFERROR(INDEX(Empresas!$B$6:$AS$46,SMALL(IF(Empresas!$B$6:$B$46=Dados!$H$37,ROW(Empresas!$B$6:$B$46)-5),ROW($A13)),COLUMN(AL$1)),"") ->  | AL36: =IFERROR(INDEX(Empresas!$B$6:$AS$46,SMALL(IF(Empresas!$B$6:$B$46=Dados!$H$37,ROW(Empresas!$B$6:$B$46)-5),ROW($A13)),COLUMN(AM$1)),"") ->  | AM36: =IFERROR(INDEX(Empresas!$B$6:$AS$46,SMALL(IF(Empresas!$B$6:$B$46=Dados!$H$37,ROW(Empresas!$B$6:$B$46)-5),ROW($A13)),COLUMN(AN$1)),"") ->  | AN36: =IFERROR(INDEX(Empresas!$B$6:$AS$46,SMALL(IF(Empresas!$B$6:$B$46=Dados!$H$37,ROW(Empresas!$B$6:$B$46)-5),ROW($A13)),COLUMN(AO$1)),"") ->  | AO36: =IFERROR(INDEX(Empresas!$B$6:$AS$46,SMALL(IF(Empresas!$B$6:$B$46=Dados!$H$37,ROW(Empresas!$B$6:$B$46)-5),ROW($A13)),COLUMN(AP$1)),"") ->  | AP36: =IFERROR(INDEX(Empresas!$B$6:$AS$46,SMALL(IF(Empresas!$B$6:$B$46=Dados!$H$37,ROW(Empresas!$B$6:$B$46)-5),ROW($A13)),COLUMN(AQ$1)),"") ->  | AQ36: =IFERROR(INDEX(Empresas!$B$6:$AS$46,SMALL(IF(Empresas!$B$6:$B$46=Dados!$H$37,ROW(Empresas!$B$6:$B$46)-5),ROW($A13)),COLUMN(AR$1)),"") -> 
B37: =IFERROR(INDEX(Empresas!$B$6:$AS$46,SMALL(IF(Empresas!$B$6:$B$46=Dados!$H$37,ROW(Empresas!$B$6:$B$46)-5),ROW($A14)),COLUMN(B$1)),"") ->  | C37: =IFERROR(INDEX(Empresas!$B$6:$AS$46,SMALL(IF(Empresas!$B$6:$B$46=Dados!$H$37,ROW(Empresas!$B$6:$B$46)-5),ROW($A14)),COLUMN(C$1)),"") ->  | E37: =IFERROR(INDEX(Empresas!$B$6:$AS$46,SMALL(IF(Empresas!$B$6:$B$46=Dados!$H$37,ROW(Empresas!$B$6:$B$46)-5),ROW($A14)),COLUMN(F$1)),"") ->  | F37: =IFERROR(INDEX(Empresas!$B$6:$AS$46,SMALL(IF(Empresas!$B$6:$B$46=Dados!$H$37,ROW(Empresas!$B$6:$B$46)-5),ROW($A14)),COLUMN(G$1)),"") ->  | G37: =IFERROR(INDEX(Empresas!$B$6:$AS$46,SMALL(IF(Empresas!$B$6:$B$46=Dados!$H$37,ROW(Empresas!$B$6:$B$46)-5),ROW($A14)),COLUMN(H$1)),"") ->  | H37: =IFERROR(INDEX(Empresas!$B$6:$AS$46,SMALL(IF(Empresas!$B$6:$B$46=Dados!$H$37,ROW(Empresas!$B$6:$B$46)-5),ROW($A14)),COLUMN(I$1)),"") ->  | I37: =IFERROR(INDEX(Empresas!$B$6:$AS$46,SMALL(IF(Empresas!$B$6:$B$46=Dados!$H$37,ROW(Empresas!$B$6:$B$46)-5),ROW($A14)),COLUMN(J$1)),"") ->  | J37: =IFERROR(INDEX(Empresas!$B$6:$AS$46,SMALL(IF(Empresas!$B$6:$B$46=Dados!$H$37,ROW(Empresas!$B$6:$B$46)-5),ROW($A14)),COLUMN(K$1)),"") ->  | K37: =IFERROR(INDEX(Empresas!$B$6:$AS$46,SMALL(IF(Empresas!$B$6:$B$46=Dados!$H$37,ROW(Empresas!$B$6:$B$46)-5),ROW($A14)),COLUMN(L$1)),"") ->  | L37: =IFERROR(INDEX(Empresas!$B$6:$AS$46,SMALL(IF(Empresas!$B$6:$B$46=Dados!$H$37,ROW(Empresas!$B$6:$B$46)-5),ROW($A14)),COLUMN(M$1)),"") ->  | M37: =IFERROR(INDEX(Empresas!$B$6:$AS$46,SMALL(IF(Empresas!$B$6:$B$46=Dados!$H$37,ROW(Empresas!$B$6:$B$46)-5),ROW($A14)),COLUMN(N$1)),"") ->  | N37: =IFERROR(INDEX(Empresas!$B$6:$AS$46,SMALL(IF(Empresas!$B$6:$B$46=Dados!$H$37,ROW(Empresas!$B$6:$B$46)-5),ROW($A14)),COLUMN(O$1)),"") ->  | O37: =IFERROR(INDEX(Empresas!$B$6:$AS$46,SMALL(IF(Empresas!$B$6:$B$46=Dados!$H$37,ROW(Empresas!$B$6:$B$46)-5),ROW($A14)),COLUMN(P$1)),"") ->  | P37: =IFERROR(INDEX(Empresas!$B$6:$AS$46,SMALL(IF(Empresas!$B$6:$B$46=Dados!$H$37,ROW(Empresas!$B$6:$B$46)-5),ROW($A14)),COLUMN(Q$1)),"") ->  | Q37: =IFERROR(INDEX(Empresas!$B$6:$AS$46,SMALL(IF(Empresas!$B$6:$B$46=Dados!$H$37,ROW(Empresas!$B$6:$B$46)-5),ROW($A14)),COLUMN(R$1)),"") ->  | R37: =IFERROR(INDEX(Empresas!$B$6:$AS$46,SMALL(IF(Empresas!$B$6:$B$46=Dados!$H$37,ROW(Empresas!$B$6:$B$46)-5),ROW($A14)),COLUMN(S$1)),"") ->  | S37: =IFERROR(INDEX(Empresas!$B$6:$AS$46,SMALL(IF(Empresas!$B$6:$B$46=Dados!$H$37,ROW(Empresas!$B$6:$B$46)-5),ROW($A14)),COLUMN(T$1)),"") ->  | T37: =IFERROR(INDEX(Empresas!$B$6:$AS$46,SMALL(IF(Empresas!$B$6:$B$46=Dados!$H$37,ROW(Empresas!$B$6:$B$46)-5),ROW($A14)),COLUMN(U$1)),"") ->  | U37: =IFERROR(INDEX(Empresas!$B$6:$AS$46,SMALL(IF(Empresas!$B$6:$B$46=Dados!$H$37,ROW(Empresas!$B$6:$B$46)-5),ROW($A14)),COLUMN(V$1)),"") ->  | V37: =IFERROR(INDEX(Empresas!$B$6:$AS$46,SMALL(IF(Empresas!$B$6:$B$46=Dados!$H$37,ROW(Empresas!$B$6:$B$46)-5),ROW($A14)),COLUMN(W$1)),"") ->  | W37: =IFERROR(INDEX(Empresas!$B$6:$AS$46,SMALL(IF(Empresas!$B$6:$B$46=Dados!$H$37,ROW(Empresas!$B$6:$B$46)-5),ROW($A14)),COLUMN(X$1)),"") ->  | X37: =IFERROR(INDEX(Empresas!$B$6:$AS$46,SMALL(IF(Empresas!$B$6:$B$46=Dados!$H$37,ROW(Empresas!$B$6:$B$46)-5),ROW($A14)),COLUMN(Y$1)),"") ->  | Y37: =IFERROR(INDEX(Empresas!$B$6:$AS$46,SMALL(IF(Empresas!$B$6:$B$46=Dados!$H$37,ROW(Empresas!$B$6:$B$46)-5),ROW($A14)),COLUMN(Z$1)),"") ->  | Z37: =IFERROR(INDEX(Empresas!$B$6:$AS$46,SMALL(IF(Empresas!$B$6:$B$46=Dados!$H$37,ROW(Empresas!$B$6:$B$46)-5),ROW($A14)),COLUMN(AA$1)),"") ->  | AA37: =IFERROR(INDEX(Empresas!$B$6:$AS$46,SMALL(IF(Empresas!$B$6:$B$46=Dados!$H$37,ROW(Empresas!$B$6:$B$46)-5),ROW($A14)),COLUMN(AB$1)),"") ->  | AB37: =IFERROR(INDEX(Empresas!$B$6:$AS$46,SMALL(IF(Empresas!$B$6:$B$46=Dados!$H$37,ROW(Empresas!$B$6:$B$46)-5),ROW($A14)),COLUMN(AC$1)),"") ->  | AC37: =IFERROR(INDEX(Empresas!$B$6:$AS$46,SMALL(IF(Empresas!$B$6:$B$46=Dados!$H$37,ROW(Empresas!$B$6:$B$46)-5),ROW($A14)),COLUMN(AD$1)),"") ->  | AD37: =IFERROR(INDEX(Empresas!$B$6:$AS$46,SMALL(IF(Empresas!$B$6:$B$46=Dados!$H$37,ROW(Empresas!$B$6:$B$46)-5),ROW($A14)),COLUMN(AE$1)),"") ->  | AE37: =IFERROR(INDEX(Empresas!$B$6:$AS$46,SMALL(IF(Empresas!$B$6:$B$46=Dados!$H$37,ROW(Empresas!$B$6:$B$46)-5),ROW($A14)),COLUMN(AF$1)),"") ->  | AF37: =IFERROR(INDEX(Empresas!$B$6:$AS$46,SMALL(IF(Empresas!$B$6:$B$46=Dados!$H$37,ROW(Empresas!$B$6:$B$46)-5),ROW($A14)),COLUMN(AG$1)),"") ->  | AG37: =IFERROR(INDEX(Empresas!$B$6:$AS$46,SMALL(IF(Empresas!$B$6:$B$46=Dados!$H$37,ROW(Empresas!$B$6:$B$46)-5),ROW($A14)),COLUMN(AH$1)),"") ->  | AH37: =IFERROR(INDEX(Empresas!$B$6:$AS$46,SMALL(IF(Empresas!$B$6:$B$46=Dados!$H$37,ROW(Empresas!$B$6:$B$46)-5),ROW($A14)),COLUMN(AI$1)),"") ->  | AI37: =IFERROR(INDEX(Empresas!$B$6:$AS$46,SMALL(IF(Empresas!$B$6:$B$46=Dados!$H$37,ROW(Empresas!$B$6:$B$46)-5),ROW($A14)),COLUMN(AJ$1)),"") ->  | AJ37: =IFERROR(INDEX(Empresas!$B$6:$AS$46,SMALL(IF(Empresas!$B$6:$B$46=Dados!$H$37,ROW(Empresas!$B$6:$B$46)-5),ROW($A14)),COLUMN(AK$1)),"") ->  | AK37: =IFERROR(INDEX(Empresas!$B$6:$AS$46,SMALL(IF(Empresas!$B$6:$B$46=Dados!$H$37,ROW(Empresas!$B$6:$B$46)-5),ROW($A14)),COLUMN(AL$1)),"") ->  | AL37: =IFERROR(INDEX(Empresas!$B$6:$AS$46,SMALL(IF(Empresas!$B$6:$B$46=Dados!$H$37,ROW(Empresas!$B$6:$B$46)-5),ROW($A14)),COLUMN(AM$1)),"") ->  | AM37: =IFERROR(INDEX(Empresas!$B$6:$AS$46,SMALL(IF(Empresas!$B$6:$B$46=Dados!$H$37,ROW(Empresas!$B$6:$B$46)-5),ROW($A14)),COLUMN(AN$1)),"") ->  | AN37: =IFERROR(INDEX(Empresas!$B$6:$AS$46,SMALL(IF(Empresas!$B$6:$B$46=Dados!$H$37,ROW(Empresas!$B$6:$B$46)-5),ROW($A14)),COLUMN(AO$1)),"") ->  | AO37: =IFERROR(INDEX(Empresas!$B$6:$AS$46,SMALL(IF(Empresas!$B$6:$B$46=Dados!$H$37,ROW(Empresas!$B$6:$B$46)-5),ROW($A14)),COLUMN(AP$1)),"") ->  | AP37: =IFERROR(INDEX(Empresas!$B$6:$AS$46,SMALL(IF(Empresas!$B$6:$B$46=Dados!$H$37,ROW(Empresas!$B$6:$B$46)-5),ROW($A14)),COLUMN(AQ$1)),"") ->  | AQ37: =IFERROR(INDEX(Empresas!$B$6:$AS$46,SMALL(IF(Empresas!$B$6:$B$46=Dados!$H$37,ROW(Empresas!$B$6:$B$46)-5),ROW($A14)),COLUMN(AR$1)),"") -> 
B38: =IFERROR(INDEX(Empresas!$B$6:$AS$46,SMALL(IF(Empresas!$B$6:$B$46=Dados!$H$37,ROW(Empresas!$B$6:$B$46)-5),ROW($A15)),COLUMN(B$1)),"") ->  | C38: =IFERROR(INDEX(Empresas!$B$6:$AS$46,SMALL(IF(Empresas!$B$6:$B$46=Dados!$H$37,ROW(Empresas!$B$6:$B$46)-5),ROW($A15)),COLUMN(C$1)),"") ->  | E38: =IFERROR(INDEX(Empresas!$B$6:$AS$46,SMALL(IF(Empresas!$B$6:$B$46=Dados!$H$37,ROW(Empresas!$B$6:$B$46)-5),ROW($A15)),COLUMN(F$1)),"") ->  | F38: =IFERROR(INDEX(Empresas!$B$6:$AS$46,SMALL(IF(Empresas!$B$6:$B$46=Dados!$H$37,ROW(Empresas!$B$6:$B$46)-5),ROW($A15)),COLUMN(G$1)),"") ->  | G38: =IFERROR(INDEX(Empresas!$B$6:$AS$46,SMALL(IF(Empresas!$B$6:$B$46=Dados!$H$37,ROW(Empresas!$B$6:$B$46)-5),ROW($A15)),COLUMN(H$1)),"") ->  | H38: =IFERROR(INDEX(Empresas!$B$6:$AS$46,SMALL(IF(Empresas!$B$6:$B$46=Dados!$H$37,ROW(Empresas!$B$6:$B$46)-5),ROW($A15)),COLUMN(I$1)),"") ->  | I38: =IFERROR(INDEX(Empresas!$B$6:$AS$46,SMALL(IF(Empresas!$B$6:$B$46=Dados!$H$37,ROW(Empresas!$B$6:$B$46)-5),ROW($A15)),COLUMN(J$1)),"") ->  | J38: =IFERROR(INDEX(Empresas!$B$6:$AS$46,SMALL(IF(Empresas!$B$6:$B$46=Dados!$H$37,ROW(Empresas!$B$6:$B$46)-5),ROW($A15)),COLUMN(K$1)),"") ->  | K38: =IFERROR(INDEX(Empresas!$B$6:$AS$46,SMALL(IF(Empresas!$B$6:$B$46=Dados!$H$37,ROW(Empresas!$B$6:$B$46)-5),ROW($A15)),COLUMN(L$1)),"") ->  | L38: =IFERROR(INDEX(Empresas!$B$6:$AS$46,SMALL(IF(Empresas!$B$6:$B$46=Dados!$H$37,ROW(Empresas!$B$6:$B$46)-5),ROW($A15)),COLUMN(M$1)),"") ->  | M38: =IFERROR(INDEX(Empresas!$B$6:$AS$46,SMALL(IF(Empresas!$B$6:$B$46=Dados!$H$37,ROW(Empresas!$B$6:$B$46)-5),ROW($A15)),COLUMN(N$1)),"") ->  | N38: =IFERROR(INDEX(Empresas!$B$6:$AS$46,SMALL(IF(Empresas!$B$6:$B$46=Dados!$H$37,ROW(Empresas!$B$6:$B$46)-5),ROW($A15)),COLUMN(O$1)),"") ->  | O38: =IFERROR(INDEX(Empresas!$B$6:$AS$46,SMALL(IF(Empresas!$B$6:$B$46=Dados!$H$37,ROW(Empresas!$B$6:$B$46)-5),ROW($A15)),COLUMN(P$1)),"") ->  | P38: =IFERROR(INDEX(Empresas!$B$6:$AS$46,SMALL(IF(Empresas!$B$6:$B$46=Dados!$H$37,ROW(Empresas!$B$6:$B$46)-5),ROW($A15)),COLUMN(Q$1)),"") ->  | Q38: =IFERROR(INDEX(Empresas!$B$6:$AS$46,SMALL(IF(Empresas!$B$6:$B$46=Dados!$H$37,ROW(Empresas!$B$6:$B$46)-5),ROW($A15)),COLUMN(R$1)),"") ->  | R38: =IFERROR(INDEX(Empresas!$B$6:$AS$46,SMALL(IF(Empresas!$B$6:$B$46=Dados!$H$37,ROW(Empresas!$B$6:$B$46)-5),ROW($A15)),COLUMN(S$1)),"") ->  | S38: =IFERROR(INDEX(Empresas!$B$6:$AS$46,SMALL(IF(Empresas!$B$6:$B$46=Dados!$H$37,ROW(Empresas!$B$6:$B$46)-5),ROW($A15)),COLUMN(T$1)),"") ->  | T38: =IFERROR(INDEX(Empresas!$B$6:$AS$46,SMALL(IF(Empresas!$B$6:$B$46=Dados!$H$37,ROW(Empresas!$B$6:$B$46)-5),ROW($A15)),COLUMN(U$1)),"") ->  | U38: =IFERROR(INDEX(Empresas!$B$6:$AS$46,SMALL(IF(Empresas!$B$6:$B$46=Dados!$H$37,ROW(Empresas!$B$6:$B$46)-5),ROW($A15)),COLUMN(V$1)),"") ->  | V38: =IFERROR(INDEX(Empresas!$B$6:$AS$46,SMALL(IF(Empresas!$B$6:$B$46=Dados!$H$37,ROW(Empresas!$B$6:$B$46)-5),ROW($A15)),COLUMN(W$1)),"") ->  | W38: =IFERROR(INDEX(Empresas!$B$6:$AS$46,SMALL(IF(Empresas!$B$6:$B$46=Dados!$H$37,ROW(Empresas!$B$6:$B$46)-5),ROW($A15)),COLUMN(X$1)),"") ->  | X38: =IFERROR(INDEX(Empresas!$B$6:$AS$46,SMALL(IF(Empresas!$B$6:$B$46=Dados!$H$37,ROW(Empresas!$B$6:$B$46)-5),ROW($A15)),COLUMN(Y$1)),"") ->  | Y38: =IFERROR(INDEX(Empresas!$B$6:$AS$46,SMALL(IF(Empresas!$B$6:$B$46=Dados!$H$37,ROW(Empresas!$B$6:$B$46)-5),ROW($A15)),COLUMN(Z$1)),"") ->  | Z38: =IFERROR(INDEX(Empresas!$B$6:$AS$46,SMALL(IF(Empresas!$B$6:$B$46=Dados!$H$37,ROW(Empresas!$B$6:$B$46)-5),ROW($A15)),COLUMN(AA$1)),"") ->  | AA38: =IFERROR(INDEX(Empresas!$B$6:$AS$46,SMALL(IF(Empresas!$B$6:$B$46=Dados!$H$37,ROW(Empresas!$B$6:$B$46)-5),ROW($A15)),COLUMN(AB$1)),"") ->  | AB38: =IFERROR(INDEX(Empresas!$B$6:$AS$46,SMALL(IF(Empresas!$B$6:$B$46=Dados!$H$37,ROW(Empresas!$B$6:$B$46)-5),ROW($A15)),COLUMN(AC$1)),"") ->  | AC38: =IFERROR(INDEX(Empresas!$B$6:$AS$46,SMALL(IF(Empresas!$B$6:$B$46=Dados!$H$37,ROW(Empresas!$B$6:$B$46)-5),ROW($A15)),COLUMN(AD$1)),"") ->  | AD38: =IFERROR(INDEX(Empresas!$B$6:$AS$46,SMALL(IF(Empresas!$B$6:$B$46=Dados!$H$37,ROW(Empresas!$B$6:$B$46)-5),ROW($A15)),COLUMN(AE$1)),"") ->  | AE38: =IFERROR(INDEX(Empresas!$B$6:$AS$46,SMALL(IF(Empresas!$B$6:$B$46=Dados!$H$37,ROW(Empresas!$B$6:$B$46)-5),ROW($A15)),COLUMN(AF$1)),"") ->  | AF38: =IFERROR(INDEX(Empresas!$B$6:$AS$46,SMALL(IF(Empresas!$B$6:$B$46=Dados!$H$37,ROW(Empresas!$B$6:$B$46)-5),ROW($A15)),COLUMN(AG$1)),"") ->  | AG38: =IFERROR(INDEX(Empresas!$B$6:$AS$46,SMALL(IF(Empresas!$B$6:$B$46=Dados!$H$37,ROW(Empresas!$B$6:$B$46)-5),ROW($A15)),COLUMN(AH$1)),"") ->  | AH38: =IFERROR(INDEX(Empresas!$B$6:$AS$46,SMALL(IF(Empresas!$B$6:$B$46=Dados!$H$37,ROW(Empresas!$B$6:$B$46)-5),ROW($A15)),COLUMN(AI$1)),"") ->  | AI38: =IFERROR(INDEX(Empresas!$B$6:$AS$46,SMALL(IF(Empresas!$B$6:$B$46=Dados!$H$37,ROW(Empresas!$B$6:$B$46)-5),ROW($A15)),COLUMN(AJ$1)),"") ->  | AJ38: =IFERROR(INDEX(Empresas!$B$6:$AS$46,SMALL(IF(Empresas!$B$6:$B$46=Dados!$H$37,ROW(Empresas!$B$6:$B$46)-5),ROW($A15)),COLUMN(AK$1)),"") ->  | AK38: =IFERROR(INDEX(Empresas!$B$6:$AS$46,SMALL(IF(Empresas!$B$6:$B$46=Dados!$H$37,ROW(Empresas!$B$6:$B$46)-5),ROW($A15)),COLUMN(AL$1)),"") ->  | AL38: =IFERROR(INDEX(Empresas!$B$6:$AS$46,SMALL(IF(Empresas!$B$6:$B$46=Dados!$H$37,ROW(Empresas!$B$6:$B$46)-5),ROW($A15)),COLUMN(AM$1)),"") ->  | AM38: =IFERROR(INDEX(Empresas!$B$6:$AS$46,SMALL(IF(Empresas!$B$6:$B$46=Dados!$H$37,ROW(Empresas!$B$6:$B$46)-5),ROW($A15)),COLUMN(AN$1)),"") ->  | AN38: =IFERROR(INDEX(Empresas!$B$6:$AS$46,SMALL(IF(Empresas!$B$6:$B$46=Dados!$H$37,ROW(Empresas!$B$6:$B$46)-5),ROW($A15)),COLUMN(AO$1)),"") ->  | AO38: =IFERROR(INDEX(Empresas!$B$6:$AS$46,SMALL(IF(Empresas!$B$6:$B$46=Dados!$H$37,ROW(Empresas!$B$6:$B$46)-5),ROW($A15)),COLUMN(AP$1)),"") ->  | AP38: =IFERROR(INDEX(Empresas!$B$6:$AS$46,SMALL(IF(Empresas!$B$6:$B$46=Dados!$H$37,ROW(Empresas!$B$6:$B$46)-5),ROW($A15)),COLUMN(AQ$1)),"") ->  | AQ38: =IFERROR(INDEX(Empresas!$B$6:$AS$46,SMALL(IF(Empresas!$B$6:$B$46=Dados!$H$37,ROW(Empresas!$B$6:$B$46)-5),ROW($A15)),COLUMN(AR$1)),"") -> 
B39: =IFERROR(INDEX(Empresas!$B$6:$AS$46,SMALL(IF(Empresas!$B$6:$B$46=Dados!$H$37,ROW(Empresas!$B$6:$B$46)-5),ROW($A16)),COLUMN(B$1)),"") ->  | C39: =IFERROR(INDEX(Empresas!$B$6:$AS$46,SMALL(IF(Empresas!$B$6:$B$46=Dados!$H$37,ROW(Empresas!$B$6:$B$46)-5),ROW($A16)),COLUMN(C$1)),"") ->  | E39: =IFERROR(INDEX(Empresas!$B$6:$AS$46,SMALL(IF(Empresas!$B$6:$B$46=Dados!$H$37,ROW(Empresas!$B$6:$B$46)-5),ROW($A16)),COLUMN(F$1)),"") ->  | F39: =IFERROR(INDEX(Empresas!$B$6:$AS$46,SMALL(IF(Empresas!$B$6:$B$46=Dados!$H$37,ROW(Empresas!$B$6:$B$46)-5),ROW($A16)),COLUMN(G$1)),"") ->  | G39: =IFERROR(INDEX(Empresas!$B$6:$AS$46,SMALL(IF(Empresas!$B$6:$B$46=Dados!$H$37,ROW(Empresas!$B$6:$B$46)-5),ROW($A16)),COLUMN(H$1)),"") ->  | H39: =IFERROR(INDEX(Empresas!$B$6:$AS$46,SMALL(IF(Empresas!$B$6:$B$46=Dados!$H$37,ROW(Empresas!$B$6:$B$46)-5),ROW($A16)),COLUMN(I$1)),"") ->  | I39: =IFERROR(INDEX(Empresas!$B$6:$AS$46,SMALL(IF(Empresas!$B$6:$B$46=Dados!$H$37,ROW(Empresas!$B$6:$B$46)-5),ROW($A16)),COLUMN(J$1)),"") ->  | J39: =IFERROR(INDEX(Empresas!$B$6:$AS$46,SMALL(IF(Empresas!$B$6:$B$46=Dados!$H$37,ROW(Empresas!$B$6:$B$46)-5),ROW($A16)),COLUMN(K$1)),"") ->  | K39: =IFERROR(INDEX(Empresas!$B$6:$AS$46,SMALL(IF(Empresas!$B$6:$B$46=Dados!$H$37,ROW(Empresas!$B$6:$B$46)-5),ROW($A16)),COLUMN(L$1)),"") ->  | L39: =IFERROR(INDEX(Empresas!$B$6:$AS$46,SMALL(IF(Empresas!$B$6:$B$46=Dados!$H$37,ROW(Empresas!$B$6:$B$46)-5),ROW($A16)),COLUMN(M$1)),"") ->  | M39: =IFERROR(INDEX(Empresas!$B$6:$AS$46,SMALL(IF(Empresas!$B$6:$B$46=Dados!$H$37,ROW(Empresas!$B$6:$B$46)-5),ROW($A16)),COLUMN(N$1)),"") ->  | N39: =IFERROR(INDEX(Empresas!$B$6:$AS$46,SMALL(IF(Empresas!$B$6:$B$46=Dados!$H$37,ROW(Empresas!$B$6:$B$46)-5),ROW($A16)),COLUMN(O$1)),"") ->  | O39: =IFERROR(INDEX(Empresas!$B$6:$AS$46,SMALL(IF(Empresas!$B$6:$B$46=Dados!$H$37,ROW(Empresas!$B$6:$B$46)-5),ROW($A16)),COLUMN(P$1)),"") ->  | P39: =IFERROR(INDEX(Empresas!$B$6:$AS$46,SMALL(IF(Empresas!$B$6:$B$46=Dados!$H$37,ROW(Empresas!$B$6:$B$46)-5),ROW($A16)),COLUMN(Q$1)),"") ->  | Q39: =IFERROR(INDEX(Empresas!$B$6:$AS$46,SMALL(IF(Empresas!$B$6:$B$46=Dados!$H$37,ROW(Empresas!$B$6:$B$46)-5),ROW($A16)),COLUMN(R$1)),"") ->  | R39: =IFERROR(INDEX(Empresas!$B$6:$AS$46,SMALL(IF(Empresas!$B$6:$B$46=Dados!$H$37,ROW(Empresas!$B$6:$B$46)-5),ROW($A16)),COLUMN(S$1)),"") ->  | S39: =IFERROR(INDEX(Empresas!$B$6:$AS$46,SMALL(IF(Empresas!$B$6:$B$46=Dados!$H$37,ROW(Empresas!$B$6:$B$46)-5),ROW($A16)),COLUMN(T$1)),"") ->  | T39: =IFERROR(INDEX(Empresas!$B$6:$AS$46,SMALL(IF(Empresas!$B$6:$B$46=Dados!$H$37,ROW(Empresas!$B$6:$B$46)-5),ROW($A16)),COLUMN(U$1)),"") ->  | U39: =IFERROR(INDEX(Empresas!$B$6:$AS$46,SMALL(IF(Empresas!$B$6:$B$46=Dados!$H$37,ROW(Empresas!$B$6:$B$46)-5),ROW($A16)),COLUMN(V$1)),"") ->  | V39: =IFERROR(INDEX(Empresas!$B$6:$AS$46,SMALL(IF(Empresas!$B$6:$B$46=Dados!$H$37,ROW(Empresas!$B$6:$B$46)-5),ROW($A16)),COLUMN(W$1)),"") ->  | W39: =IFERROR(INDEX(Empresas!$B$6:$AS$46,SMALL(IF(Empresas!$B$6:$B$46=Dados!$H$37,ROW(Empresas!$B$6:$B$46)-5),ROW($A16)),COLUMN(X$1)),"") ->  | X39: =IFERROR(INDEX(Empresas!$B$6:$AS$46,SMALL(IF(Empresas!$B$6:$B$46=Dados!$H$37,ROW(Empresas!$B$6:$B$46)-5),ROW($A16)),COLUMN(Y$1)),"") ->  | Y39: =IFERROR(INDEX(Empresas!$B$6:$AS$46,SMALL(IF(Empresas!$B$6:$B$46=Dados!$H$37,ROW(Empresas!$B$6:$B$46)-5),ROW($A16)),COLUMN(Z$1)),"") ->  | Z39: =IFERROR(INDEX(Empresas!$B$6:$AS$46,SMALL(IF(Empresas!$B$6:$B$46=Dados!$H$37,ROW(Empresas!$B$6:$B$46)-5),ROW($A16)),COLUMN(AA$1)),"") ->  | AA39: =IFERROR(INDEX(Empresas!$B$6:$AS$46,SMALL(IF(Empresas!$B$6:$B$46=Dados!$H$37,ROW(Empresas!$B$6:$B$46)-5),ROW($A16)),COLUMN(AB$1)),"") ->  | AB39: =IFERROR(INDEX(Empresas!$B$6:$AS$46,SMALL(IF(Empresas!$B$6:$B$46=Dados!$H$37,ROW(Empresas!$B$6:$B$46)-5),ROW($A16)),COLUMN(AC$1)),"") ->  | AC39: =IFERROR(INDEX(Empresas!$B$6:$AS$46,SMALL(IF(Empresas!$B$6:$B$46=Dados!$H$37,ROW(Empresas!$B$6:$B$46)-5),ROW($A16)),COLUMN(AD$1)),"") ->  | AD39: =IFERROR(INDEX(Empresas!$B$6:$AS$46,SMALL(IF(Empresas!$B$6:$B$46=Dados!$H$37,ROW(Empresas!$B$6:$B$46)-5),ROW($A16)),COLUMN(AE$1)),"") ->  | AE39: =IFERROR(INDEX(Empresas!$B$6:$AS$46,SMALL(IF(Empresas!$B$6:$B$46=Dados!$H$37,ROW(Empresas!$B$6:$B$46)-5),ROW($A16)),COLUMN(AF$1)),"") ->  | AF39: =IFERROR(INDEX(Empresas!$B$6:$AS$46,SMALL(IF(Empresas!$B$6:$B$46=Dados!$H$37,ROW(Empresas!$B$6:$B$46)-5),ROW($A16)),COLUMN(AG$1)),"") ->  | AG39: =IFERROR(INDEX(Empresas!$B$6:$AS$46,SMALL(IF(Empresas!$B$6:$B$46=Dados!$H$37,ROW(Empresas!$B$6:$B$46)-5),ROW($A16)),COLUMN(AH$1)),"") ->  | AH39: =IFERROR(INDEX(Empresas!$B$6:$AS$46,SMALL(IF(Empresas!$B$6:$B$46=Dados!$H$37,ROW(Empresas!$B$6:$B$46)-5),ROW($A16)),COLUMN(AI$1)),"") ->  | AI39: =IFERROR(INDEX(Empresas!$B$6:$AS$46,SMALL(IF(Empresas!$B$6:$B$46=Dados!$H$37,ROW(Empresas!$B$6:$B$46)-5),ROW($A16)),COLUMN(AJ$1)),"") ->  | AJ39: =IFERROR(INDEX(Empresas!$B$6:$AS$46,SMALL(IF(Empresas!$B$6:$B$46=Dados!$H$37,ROW(Empresas!$B$6:$B$46)-5),ROW($A16)),COLUMN(AK$1)),"") ->  | AK39: =IFERROR(INDEX(Empresas!$B$6:$AS$46,SMALL(IF(Empresas!$B$6:$B$46=Dados!$H$37,ROW(Empresas!$B$6:$B$46)-5),ROW($A16)),COLUMN(AL$1)),"") ->  | AL39: =IFERROR(INDEX(Empresas!$B$6:$AS$46,SMALL(IF(Empresas!$B$6:$B$46=Dados!$H$37,ROW(Empresas!$B$6:$B$46)-5),ROW($A16)),COLUMN(AM$1)),"") ->  | AM39: =IFERROR(INDEX(Empresas!$B$6:$AS$46,SMALL(IF(Empresas!$B$6:$B$46=Dados!$H$37,ROW(Empresas!$B$6:$B$46)-5),ROW($A16)),COLUMN(AN$1)),"") ->  | AN39: =IFERROR(INDEX(Empresas!$B$6:$AS$46,SMALL(IF(Empresas!$B$6:$B$46=Dados!$H$37,ROW(Empresas!$B$6:$B$46)-5),ROW($A16)),COLUMN(AO$1)),"") ->  | AO39: =IFERROR(INDEX(Empresas!$B$6:$AS$46,SMALL(IF(Empresas!$B$6:$B$46=Dados!$H$37,ROW(Empresas!$B$6:$B$46)-5),ROW($A16)),COLUMN(AP$1)),"") ->  | AP39: =IFERROR(INDEX(Empresas!$B$6:$AS$46,SMALL(IF(Empresas!$B$6:$B$46=Dados!$H$37,ROW(Empresas!$B$6:$B$46)-5),ROW($A16)),COLUMN(AQ$1)),"") ->  | AQ39: =IFERROR(INDEX(Empresas!$B$6:$AS$46,SMALL(IF(Empresas!$B$6:$B$46=Dados!$H$37,ROW(Empresas!$B$6:$B$46)-5),ROW($A16)),COLUMN(AR$1)),"") -> 
B40: =IFERROR(INDEX(Empresas!$B$6:$AS$46,SMALL(IF(Empresas!$B$6:$B$46=Dados!$H$37,ROW(Empresas!$B$6:$B$46)-5),ROW($A17)),COLUMN(B$1)),"") ->  | C40: =IFERROR(INDEX(Empresas!$B$6:$AS$46,SMALL(IF(Empresas!$B$6:$B$46=Dados!$H$37,ROW(Empresas!$B$6:$B$46)-5),ROW($A17)),COLUMN(C$1)),"") ->  | E40: =IFERROR(INDEX(Empresas!$B$6:$AS$46,SMALL(IF(Empresas!$B$6:$B$46=Dados!$H$37,ROW(Empresas!$B$6:$B$46)-5),ROW($A17)),COLUMN(F$1)),"") ->  | F40: =IFERROR(INDEX(Empresas!$B$6:$AS$46,SMALL(IF(Empresas!$B$6:$B$46=Dados!$H$37,ROW(Empresas!$B$6:$B$46)-5),ROW($A17)),COLUMN(G$1)),"") ->  | G40: =IFERROR(INDEX(Empresas!$B$6:$AS$46,SMALL(IF(Empresas!$B$6:$B$46=Dados!$H$37,ROW(Empresas!$B$6:$B$46)-5),ROW($A17)),COLUMN(H$1)),"") ->  | H40: =IFERROR(INDEX(Empresas!$B$6:$AS$46,SMALL(IF(Empresas!$B$6:$B$46=Dados!$H$37,ROW(Empresas!$B$6:$B$46)-5),ROW($A17)),COLUMN(I$1)),"") ->  | I40: =IFERROR(INDEX(Empresas!$B$6:$AS$46,SMALL(IF(Empresas!$B$6:$B$46=Dados!$H$37,ROW(Empresas!$B$6:$B$46)-5),ROW($A17)),COLUMN(J$1)),"") ->  | J40: =IFERROR(INDEX(Empresas!$B$6:$AS$46,SMALL(IF(Empresas!$B$6:$B$46=Dados!$H$37,ROW(Empresas!$B$6:$B$46)-5),ROW($A17)),COLUMN(K$1)),"") ->  | K40: =IFERROR(INDEX(Empresas!$B$6:$AS$46,SMALL(IF(Empresas!$B$6:$B$46=Dados!$H$37,ROW(Empresas!$B$6:$B$46)-5),ROW($A17)),COLUMN(L$1)),"") ->  | L40: =IFERROR(INDEX(Empresas!$B$6:$AS$46,SMALL(IF(Empresas!$B$6:$B$46=Dados!$H$37,ROW(Empresas!$B$6:$B$46)-5),ROW($A17)),COLUMN(M$1)),"") ->  | M40: =IFERROR(INDEX(Empresas!$B$6:$AS$46,SMALL(IF(Empresas!$B$6:$B$46=Dados!$H$37,ROW(Empresas!$B$6:$B$46)-5),ROW($A17)),COLUMN(N$1)),"") ->  | N40: =IFERROR(INDEX(Empresas!$B$6:$AS$46,SMALL(IF(Empresas!$B$6:$B$46=Dados!$H$37,ROW(Empresas!$B$6:$B$46)-5),ROW($A17)),COLUMN(O$1)),"") ->  | O40: =IFERROR(INDEX(Empresas!$B$6:$AS$46,SMALL(IF(Empresas!$B$6:$B$46=Dados!$H$37,ROW(Empresas!$B$6:$B$46)-5),ROW($A17)),COLUMN(P$1)),"") ->  | P40: =IFERROR(INDEX(Empresas!$B$6:$AS$46,SMALL(IF(Empresas!$B$6:$B$46=Dados!$H$37,ROW(Empresas!$B$6:$B$46)-5),ROW($A17)),COLUMN(Q$1)),"") ->  | Q40: =IFERROR(INDEX(Empresas!$B$6:$AS$46,SMALL(IF(Empresas!$B$6:$B$46=Dados!$H$37,ROW(Empresas!$B$6:$B$46)-5),ROW($A17)),COLUMN(R$1)),"") ->  | R40: =IFERROR(INDEX(Empresas!$B$6:$AS$46,SMALL(IF(Empresas!$B$6:$B$46=Dados!$H$37,ROW(Empresas!$B$6:$B$46)-5),ROW($A17)),COLUMN(S$1)),"") ->  | S40: =IFERROR(INDEX(Empresas!$B$6:$AS$46,SMALL(IF(Empresas!$B$6:$B$46=Dados!$H$37,ROW(Empresas!$B$6:$B$46)-5),ROW($A17)),COLUMN(T$1)),"") ->  | T40: =IFERROR(INDEX(Empresas!$B$6:$AS$46,SMALL(IF(Empresas!$B$6:$B$46=Dados!$H$37,ROW(Empresas!$B$6:$B$46)-5),ROW($A17)),COLUMN(U$1)),"") ->  | U40: =IFERROR(INDEX(Empresas!$B$6:$AS$46,SMALL(IF(Empresas!$B$6:$B$46=Dados!$H$37,ROW(Empresas!$B$6:$B$46)-5),ROW($A17)),COLUMN(V$1)),"") ->  | V40: =IFERROR(INDEX(Empresas!$B$6:$AS$46,SMALL(IF(Empresas!$B$6:$B$46=Dados!$H$37,ROW(Empresas!$B$6:$B$46)-5),ROW($A17)),COLUMN(W$1)),"") ->  | W40: =IFERROR(INDEX(Empresas!$B$6:$AS$46,SMALL(IF(Empresas!$B$6:$B$46=Dados!$H$37,ROW(Empresas!$B$6:$B$46)-5),ROW($A17)),COLUMN(X$1)),"") ->  | X40: =IFERROR(INDEX(Empresas!$B$6:$AS$46,SMALL(IF(Empresas!$B$6:$B$46=Dados!$H$37,ROW(Empresas!$B$6:$B$46)-5),ROW($A17)),COLUMN(Y$1)),"") ->  | Y40: =IFERROR(INDEX(Empresas!$B$6:$AS$46,SMALL(IF(Empresas!$B$6:$B$46=Dados!$H$37,ROW(Empresas!$B$6:$B$46)-5),ROW($A17)),COLUMN(Z$1)),"") ->  | Z40: =IFERROR(INDEX(Empresas!$B$6:$AS$46,SMALL(IF(Empresas!$B$6:$B$46=Dados!$H$37,ROW(Empresas!$B$6:$B$46)-5),ROW($A17)),COLUMN(AA$1)),"") ->  | AA40: =IFERROR(INDEX(Empresas!$B$6:$AS$46,SMALL(IF(Empresas!$B$6:$B$46=Dados!$H$37,ROW(Empresas!$B$6:$B$46)-5),ROW($A17)),COLUMN(AB$1)),"") ->  | AB40: =IFERROR(INDEX(Empresas!$B$6:$AS$46,SMALL(IF(Empresas!$B$6:$B$46=Dados!$H$37,ROW(Empresas!$B$6:$B$46)-5),ROW($A17)),COLUMN(AC$1)),"") ->  | AC40: =IFERROR(INDEX(Empresas!$B$6:$AS$46,SMALL(IF(Empresas!$B$6:$B$46=Dados!$H$37,ROW(Empresas!$B$6:$B$46)-5),ROW($A17)),COLUMN(AD$1)),"") ->  | AD40: =IFERROR(INDEX(Empresas!$B$6:$AS$46,SMALL(IF(Empresas!$B$6:$B$46=Dados!$H$37,ROW(Empresas!$B$6:$B$46)-5),ROW($A17)),COLUMN(AE$1)),"") ->  | AE40: =IFERROR(INDEX(Empresas!$B$6:$AS$46,SMALL(IF(Empresas!$B$6:$B$46=Dados!$H$37,ROW(Empresas!$B$6:$B$46)-5),ROW($A17)),COLUMN(AF$1)),"") ->  | AF40: =IFERROR(INDEX(Empresas!$B$6:$AS$46,SMALL(IF(Empresas!$B$6:$B$46=Dados!$H$37,ROW(Empresas!$B$6:$B$46)-5),ROW($A17)),COLUMN(AG$1)),"") ->  | AG40: =IFERROR(INDEX(Empresas!$B$6:$AS$46,SMALL(IF(Empresas!$B$6:$B$46=Dados!$H$37,ROW(Empresas!$B$6:$B$46)-5),ROW($A17)),COLUMN(AH$1)),"") ->  | AH40: =IFERROR(INDEX(Empresas!$B$6:$AS$46,SMALL(IF(Empresas!$B$6:$B$46=Dados!$H$37,ROW(Empresas!$B$6:$B$46)-5),ROW($A17)),COLUMN(AI$1)),"") ->  | AI40: =IFERROR(INDEX(Empresas!$B$6:$AS$46,SMALL(IF(Empresas!$B$6:$B$46=Dados!$H$37,ROW(Empresas!$B$6:$B$46)-5),ROW($A17)),COLUMN(AJ$1)),"") ->  | AJ40: =IFERROR(INDEX(Empresas!$B$6:$AS$46,SMALL(IF(Empresas!$B$6:$B$46=Dados!$H$37,ROW(Empresas!$B$6:$B$46)-5),ROW($A17)),COLUMN(AK$1)),"") ->  | AK40: =IFERROR(INDEX(Empresas!$B$6:$AS$46,SMALL(IF(Empresas!$B$6:$B$46=Dados!$H$37,ROW(Empresas!$B$6:$B$46)-5),ROW($A17)),COLUMN(AL$1)),"") ->  | AL40: =IFERROR(INDEX(Empresas!$B$6:$AS$46,SMALL(IF(Empresas!$B$6:$B$46=Dados!$H$37,ROW(Empresas!$B$6:$B$46)-5),ROW($A17)),COLUMN(AM$1)),"") ->  | AM40: =IFERROR(INDEX(Empresas!$B$6:$AS$46,SMALL(IF(Empresas!$B$6:$B$46=Dados!$H$37,ROW(Empresas!$B$6:$B$46)-5),ROW($A17)),COLUMN(AN$1)),"") ->  | AN40: =IFERROR(INDEX(Empresas!$B$6:$AS$46,SMALL(IF(Empresas!$B$6:$B$46=Dados!$H$37,ROW(Empresas!$B$6:$B$46)-5),ROW($A17)),COLUMN(AO$1)),"") ->  | AO40: =IFERROR(INDEX(Empresas!$B$6:$AS$46,SMALL(IF(Empresas!$B$6:$B$46=Dados!$H$37,ROW(Empresas!$B$6:$B$46)-5),ROW($A17)),COLUMN(AP$1)),"") ->  | AP40: =IFERROR(INDEX(Empresas!$B$6:$AS$46,SMALL(IF(Empresas!$B$6:$B$46=Dados!$H$37,ROW(Empresas!$B$6:$B$46)-5),ROW($A17)),COLUMN(AQ$1)),"") ->  | AQ40: =IFERROR(INDEX(Empresas!$B$6:$AS$46,SMALL(IF(Empresas!$B$6:$B$46=Dados!$H$37,ROW(Empresas!$B$6:$B$46)-5),ROW($A17)),COLUMN(AR$1)),"") -> 
B41: =IFERROR(INDEX(Empresas!$B$6:$AS$46,SMALL(IF(Empresas!$B$6:$B$46=Dados!$H$37,ROW(Empresas!$B$6:$B$46)-5),ROW($A18)),COLUMN(B$1)),"") ->  | C41: =IFERROR(INDEX(Empresas!$B$6:$AS$46,SMALL(IF(Empresas!$B$6:$B$46=Dados!$H$37,ROW(Empresas!$B$6:$B$46)-5),ROW($A18)),COLUMN(C$1)),"") ->  | E41: =IFERROR(INDEX(Empresas!$B$6:$AS$46,SMALL(IF(Empresas!$B$6:$B$46=Dados!$H$37,ROW(Empresas!$B$6:$B$46)-5),ROW($A18)),COLUMN(F$1)),"") ->  | F41: =IFERROR(INDEX(Empresas!$B$6:$AS$46,SMALL(IF(Empresas!$B$6:$B$46=Dados!$H$37,ROW(Empresas!$B$6:$B$46)-5),ROW($A18)),COLUMN(G$1)),"") ->  | G41: =IFERROR(INDEX(Empresas!$B$6:$AS$46,SMALL(IF(Empresas!$B$6:$B$46=Dados!$H$37,ROW(Empresas!$B$6:$B$46)-5),ROW($A18)),COLUMN(H$1)),"") ->  | H41: =IFERROR(INDEX(Empresas!$B$6:$AS$46,SMALL(IF(Empresas!$B$6:$B$46=Dados!$H$37,ROW(Empresas!$B$6:$B$46)-5),ROW($A18)),COLUMN(I$1)),"") ->  | I41: =IFERROR(INDEX(Empresas!$B$6:$AS$46,SMALL(IF(Empresas!$B$6:$B$46=Dados!$H$37,ROW(Empresas!$B$6:$B$46)-5),ROW($A18)),COLUMN(J$1)),"") ->  | J41: =IFERROR(INDEX(Empresas!$B$6:$AS$46,SMALL(IF(Empresas!$B$6:$B$46=Dados!$H$37,ROW(Empresas!$B$6:$B$46)-5),ROW($A18)),COLUMN(K$1)),"") ->  | K41: =IFERROR(INDEX(Empresas!$B$6:$AS$46,SMALL(IF(Empresas!$B$6:$B$46=Dados!$H$37,ROW(Empresas!$B$6:$B$46)-5),ROW($A18)),COLUMN(L$1)),"") ->  | L41: =IFERROR(INDEX(Empresas!$B$6:$AS$46,SMALL(IF(Empresas!$B$6:$B$46=Dados!$H$37,ROW(Empresas!$B$6:$B$46)-5),ROW($A18)),COLUMN(M$1)),"") ->  | M41: =IFERROR(INDEX(Empresas!$B$6:$AS$46,SMALL(IF(Empresas!$B$6:$B$46=Dados!$H$37,ROW(Empresas!$B$6:$B$46)-5),ROW($A18)),COLUMN(N$1)),"") ->  | N41: =IFERROR(INDEX(Empresas!$B$6:$AS$46,SMALL(IF(Empresas!$B$6:$B$46=Dados!$H$37,ROW(Empresas!$B$6:$B$46)-5),ROW($A18)),COLUMN(O$1)),"") ->  | O41: =IFERROR(INDEX(Empresas!$B$6:$AS$46,SMALL(IF(Empresas!$B$6:$B$46=Dados!$H$37,ROW(Empresas!$B$6:$B$46)-5),ROW($A18)),COLUMN(P$1)),"") ->  | P41: =IFERROR(INDEX(Empresas!$B$6:$AS$46,SMALL(IF(Empresas!$B$6:$B$46=Dados!$H$37,ROW(Empresas!$B$6:$B$46)-5),ROW($A18)),COLUMN(Q$1)),"") ->  | Q41: =IFERROR(INDEX(Empresas!$B$6:$AS$46,SMALL(IF(Empresas!$B$6:$B$46=Dados!$H$37,ROW(Empresas!$B$6:$B$46)-5),ROW($A18)),COLUMN(R$1)),"") ->  | R41: =IFERROR(INDEX(Empresas!$B$6:$AS$46,SMALL(IF(Empresas!$B$6:$B$46=Dados!$H$37,ROW(Empresas!$B$6:$B$46)-5),ROW($A18)),COLUMN(S$1)),"") ->  | S41: =IFERROR(INDEX(Empresas!$B$6:$AS$46,SMALL(IF(Empresas!$B$6:$B$46=Dados!$H$37,ROW(Empresas!$B$6:$B$46)-5),ROW($A18)),COLUMN(T$1)),"") ->  | T41: =IFERROR(INDEX(Empresas!$B$6:$AS$46,SMALL(IF(Empresas!$B$6:$B$46=Dados!$H$37,ROW(Empresas!$B$6:$B$46)-5),ROW($A18)),COLUMN(U$1)),"") ->  | U41: =IFERROR(INDEX(Empresas!$B$6:$AS$46,SMALL(IF(Empresas!$B$6:$B$46=Dados!$H$37,ROW(Empresas!$B$6:$B$46)-5),ROW($A18)),COLUMN(V$1)),"") ->  | V41: =IFERROR(INDEX(Empresas!$B$6:$AS$46,SMALL(IF(Empresas!$B$6:$B$46=Dados!$H$37,ROW(Empresas!$B$6:$B$46)-5),ROW($A18)),COLUMN(W$1)),"") ->  | W41: =IFERROR(INDEX(Empresas!$B$6:$AS$46,SMALL(IF(Empresas!$B$6:$B$46=Dados!$H$37,ROW(Empresas!$B$6:$B$46)-5),ROW($A18)),COLUMN(X$1)),"") ->  | X41: =IFERROR(INDEX(Empresas!$B$6:$AS$46,SMALL(IF(Empresas!$B$6:$B$46=Dados!$H$37,ROW(Empresas!$B$6:$B$46)-5),ROW($A18)),COLUMN(Y$1)),"") ->  | Y41: =IFERROR(INDEX(Empresas!$B$6:$AS$46,SMALL(IF(Empresas!$B$6:$B$46=Dados!$H$37,ROW(Empresas!$B$6:$B$46)-5),ROW($A18)),COLUMN(Z$1)),"") ->  | Z41: =IFERROR(INDEX(Empresas!$B$6:$AS$46,SMALL(IF(Empresas!$B$6:$B$46=Dados!$H$37,ROW(Empresas!$B$6:$B$46)-5),ROW($A18)),COLUMN(AA$1)),"") ->  | AA41: =IFERROR(INDEX(Empresas!$B$6:$AS$46,SMALL(IF(Empresas!$B$6:$B$46=Dados!$H$37,ROW(Empresas!$B$6:$B$46)-5),ROW($A18)),COLUMN(AB$1)),"") ->  | AB41: =IFERROR(INDEX(Empresas!$B$6:$AS$46,SMALL(IF(Empresas!$B$6:$B$46=Dados!$H$37,ROW(Empresas!$B$6:$B$46)-5),ROW($A18)),COLUMN(AC$1)),"") ->  | AC41: =IFERROR(INDEX(Empresas!$B$6:$AS$46,SMALL(IF(Empresas!$B$6:$B$46=Dados!$H$37,ROW(Empresas!$B$6:$B$46)-5),ROW($A18)),COLUMN(AD$1)),"") ->  | AD41: =IFERROR(INDEX(Empresas!$B$6:$AS$46,SMALL(IF(Empresas!$B$6:$B$46=Dados!$H$37,ROW(Empresas!$B$6:$B$46)-5),ROW($A18)),COLUMN(AE$1)),"") ->  | AE41: =IFERROR(INDEX(Empresas!$B$6:$AS$46,SMALL(IF(Empresas!$B$6:$B$46=Dados!$H$37,ROW(Empresas!$B$6:$B$46)-5),ROW($A18)),COLUMN(AF$1)),"") ->  | AF41: =IFERROR(INDEX(Empresas!$B$6:$AS$46,SMALL(IF(Empresas!$B$6:$B$46=Dados!$H$37,ROW(Empresas!$B$6:$B$46)-5),ROW($A18)),COLUMN(AG$1)),"") ->  | AG41: =IFERROR(INDEX(Empresas!$B$6:$AS$46,SMALL(IF(Empresas!$B$6:$B$46=Dados!$H$37,ROW(Empresas!$B$6:$B$46)-5),ROW($A18)),COLUMN(AH$1)),"") ->  | AH41: =IFERROR(INDEX(Empresas!$B$6:$AS$46,SMALL(IF(Empresas!$B$6:$B$46=Dados!$H$37,ROW(Empresas!$B$6:$B$46)-5),ROW($A18)),COLUMN(AI$1)),"") ->  | AI41: =IFERROR(INDEX(Empresas!$B$6:$AS$46,SMALL(IF(Empresas!$B$6:$B$46=Dados!$H$37,ROW(Empresas!$B$6:$B$46)-5),ROW($A18)),COLUMN(AJ$1)),"") ->  | AJ41: =IFERROR(INDEX(Empresas!$B$6:$AS$46,SMALL(IF(Empresas!$B$6:$B$46=Dados!$H$37,ROW(Empresas!$B$6:$B$46)-5),ROW($A18)),COLUMN(AK$1)),"") ->  | AK41: =IFERROR(INDEX(Empresas!$B$6:$AS$46,SMALL(IF(Empresas!$B$6:$B$46=Dados!$H$37,ROW(Empresas!$B$6:$B$46)-5),ROW($A18)),COLUMN(AL$1)),"") ->  | AL41: =IFERROR(INDEX(Empresas!$B$6:$AS$46,SMALL(IF(Empresas!$B$6:$B$46=Dados!$H$37,ROW(Empresas!$B$6:$B$46)-5),ROW($A18)),COLUMN(AM$1)),"") ->  | AM41: =IFERROR(INDEX(Empresas!$B$6:$AS$46,SMALL(IF(Empresas!$B$6:$B$46=Dados!$H$37,ROW(Empresas!$B$6:$B$46)-5),ROW($A18)),COLUMN(AN$1)),"") ->  | AN41: =IFERROR(INDEX(Empresas!$B$6:$AS$46,SMALL(IF(Empresas!$B$6:$B$46=Dados!$H$37,ROW(Empresas!$B$6:$B$46)-5),ROW($A18)),COLUMN(AO$1)),"") ->  | AO41: =IFERROR(INDEX(Empresas!$B$6:$AS$46,SMALL(IF(Empresas!$B$6:$B$46=Dados!$H$37,ROW(Empresas!$B$6:$B$46)-5),ROW($A18)),COLUMN(AP$1)),"") ->  | AP41: =IFERROR(INDEX(Empresas!$B$6:$AS$46,SMALL(IF(Empresas!$B$6:$B$46=Dados!$H$37,ROW(Empresas!$B$6:$B$46)-5),ROW($A18)),COLUMN(AQ$1)),"") ->  | AQ41: =IFERROR(INDEX(Empresas!$B$6:$AS$46,SMALL(IF(Empresas!$B$6:$B$46=Dados!$H$37,ROW(Empresas!$B$6:$B$46)-5),ROW($A18)),COLUMN(AR$1)),"") -> 
B42: =IFERROR(INDEX(Empresas!$B$6:$AS$46,SMALL(IF(Empresas!$B$6:$B$46=Dados!$H$37,ROW(Empresas!$B$6:$B$46)-5),ROW($A19)),COLUMN(B$1)),"") ->  | C42: =IFERROR(INDEX(Empresas!$B$6:$AS$46,SMALL(IF(Empresas!$B$6:$B$46=Dados!$H$37,ROW(Empresas!$B$6:$B$46)-5),ROW($A19)),COLUMN(C$1)),"") ->  | E42: =IFERROR(INDEX(Empresas!$B$6:$AS$46,SMALL(IF(Empresas!$B$6:$B$46=Dados!$H$37,ROW(Empresas!$B$6:$B$46)-5),ROW($A19)),COLUMN(F$1)),"") ->  | F42: =IFERROR(INDEX(Empresas!$B$6:$AS$46,SMALL(IF(Empresas!$B$6:$B$46=Dados!$H$37,ROW(Empresas!$B$6:$B$46)-5),ROW($A19)),COLUMN(G$1)),"") ->  | G42: =IFERROR(INDEX(Empresas!$B$6:$AS$46,SMALL(IF(Empresas!$B$6:$B$46=Dados!$H$37,ROW(Empresas!$B$6:$B$46)-5),ROW($A19)),COLUMN(H$1)),"") ->  | H42: =IFERROR(INDEX(Empresas!$B$6:$AS$46,SMALL(IF(Empresas!$B$6:$B$46=Dados!$H$37,ROW(Empresas!$B$6:$B$46)-5),ROW($A19)),COLUMN(I$1)),"") ->  | I42: =IFERROR(INDEX(Empresas!$B$6:$AS$46,SMALL(IF(Empresas!$B$6:$B$46=Dados!$H$37,ROW(Empresas!$B$6:$B$46)-5),ROW($A19)),COLUMN(J$1)),"") ->  | J42: =IFERROR(INDEX(Empresas!$B$6:$AS$46,SMALL(IF(Empresas!$B$6:$B$46=Dados!$H$37,ROW(Empresas!$B$6:$B$46)-5),ROW($A19)),COLUMN(K$1)),"") ->  | K42: =IFERROR(INDEX(Empresas!$B$6:$AS$46,SMALL(IF(Empresas!$B$6:$B$46=Dados!$H$37,ROW(Empresas!$B$6:$B$46)-5),ROW($A19)),COLUMN(L$1)),"") ->  | L42: =IFERROR(INDEX(Empresas!$B$6:$AS$46,SMALL(IF(Empresas!$B$6:$B$46=Dados!$H$37,ROW(Empresas!$B$6:$B$46)-5),ROW($A19)),COLUMN(M$1)),"") ->  | M42: =IFERROR(INDEX(Empresas!$B$6:$AS$46,SMALL(IF(Empresas!$B$6:$B$46=Dados!$H$37,ROW(Empresas!$B$6:$B$46)-5),ROW($A19)),COLUMN(N$1)),"") ->  | N42: =IFERROR(INDEX(Empresas!$B$6:$AS$46,SMALL(IF(Empresas!$B$6:$B$46=Dados!$H$37,ROW(Empresas!$B$6:$B$46)-5),ROW($A19)),COLUMN(O$1)),"") ->  | O42: =IFERROR(INDEX(Empresas!$B$6:$AS$46,SMALL(IF(Empresas!$B$6:$B$46=Dados!$H$37,ROW(Empresas!$B$6:$B$46)-5),ROW($A19)),COLUMN(P$1)),"") ->  | P42: =IFERROR(INDEX(Empresas!$B$6:$AS$46,SMALL(IF(Empresas!$B$6:$B$46=Dados!$H$37,ROW(Empresas!$B$6:$B$46)-5),ROW($A19)),COLUMN(Q$1)),"") ->  | Q42: =IFERROR(INDEX(Empresas!$B$6:$AS$46,SMALL(IF(Empresas!$B$6:$B$46=Dados!$H$37,ROW(Empresas!$B$6:$B$46)-5),ROW($A19)),COLUMN(R$1)),"") ->  | R42: =IFERROR(INDEX(Empresas!$B$6:$AS$46,SMALL(IF(Empresas!$B$6:$B$46=Dados!$H$37,ROW(Empresas!$B$6:$B$46)-5),ROW($A19)),COLUMN(S$1)),"") ->  | S42: =IFERROR(INDEX(Empresas!$B$6:$AS$46,SMALL(IF(Empresas!$B$6:$B$46=Dados!$H$37,ROW(Empresas!$B$6:$B$46)-5),ROW($A19)),COLUMN(T$1)),"") ->  | T42: =IFERROR(INDEX(Empresas!$B$6:$AS$46,SMALL(IF(Empresas!$B$6:$B$46=Dados!$H$37,ROW(Empresas!$B$6:$B$46)-5),ROW($A19)),COLUMN(U$1)),"") ->  | U42: =IFERROR(INDEX(Empresas!$B$6:$AS$46,SMALL(IF(Empresas!$B$6:$B$46=Dados!$H$37,ROW(Empresas!$B$6:$B$46)-5),ROW($A19)),COLUMN(V$1)),"") ->  | V42: =IFERROR(INDEX(Empresas!$B$6:$AS$46,SMALL(IF(Empresas!$B$6:$B$46=Dados!$H$37,ROW(Empresas!$B$6:$B$46)-5),ROW($A19)),COLUMN(W$1)),"") ->  | W42: =IFERROR(INDEX(Empresas!$B$6:$AS$46,SMALL(IF(Empresas!$B$6:$B$46=Dados!$H$37,ROW(Empresas!$B$6:$B$46)-5),ROW($A19)),COLUMN(X$1)),"") ->  | X42: =IFERROR(INDEX(Empresas!$B$6:$AS$46,SMALL(IF(Empresas!$B$6:$B$46=Dados!$H$37,ROW(Empresas!$B$6:$B$46)-5),ROW($A19)),COLUMN(Y$1)),"") ->  | Y42: =IFERROR(INDEX(Empresas!$B$6:$AS$46,SMALL(IF(Empresas!$B$6:$B$46=Dados!$H$37,ROW(Empresas!$B$6:$B$46)-5),ROW($A19)),COLUMN(Z$1)),"") ->  | Z42: =IFERROR(INDEX(Empresas!$B$6:$AS$46,SMALL(IF(Empresas!$B$6:$B$46=Dados!$H$37,ROW(Empresas!$B$6:$B$46)-5),ROW($A19)),COLUMN(AA$1)),"") ->  | AA42: =IFERROR(INDEX(Empresas!$B$6:$AS$46,SMALL(IF(Empresas!$B$6:$B$46=Dados!$H$37,ROW(Empresas!$B$6:$B$46)-5),ROW($A19)),COLUMN(AB$1)),"") ->  | AB42: =IFERROR(INDEX(Empresas!$B$6:$AS$46,SMALL(IF(Empresas!$B$6:$B$46=Dados!$H$37,ROW(Empresas!$B$6:$B$46)-5),ROW($A19)),COLUMN(AC$1)),"") ->  | AC42: =IFERROR(INDEX(Empresas!$B$6:$AS$46,SMALL(IF(Empresas!$B$6:$B$46=Dados!$H$37,ROW(Empresas!$B$6:$B$46)-5),ROW($A19)),COLUMN(AD$1)),"") ->  | AD42: =IFERROR(INDEX(Empresas!$B$6:$AS$46,SMALL(IF(Empresas!$B$6:$B$46=Dados!$H$37,ROW(Empresas!$B$6:$B$46)-5),ROW($A19)),COLUMN(AE$1)),"") ->  | AE42: =IFERROR(INDEX(Empresas!$B$6:$AS$46,SMALL(IF(Empresas!$B$6:$B$46=Dados!$H$37,ROW(Empresas!$B$6:$B$46)-5),ROW($A19)),COLUMN(AF$1)),"") ->  | AF42: =IFERROR(INDEX(Empresas!$B$6:$AS$46,SMALL(IF(Empresas!$B$6:$B$46=Dados!$H$37,ROW(Empresas!$B$6:$B$46)-5),ROW($A19)),COLUMN(AG$1)),"") ->  | AG42: =IFERROR(INDEX(Empresas!$B$6:$AS$46,SMALL(IF(Empresas!$B$6:$B$46=Dados!$H$37,ROW(Empresas!$B$6:$B$46)-5),ROW($A19)),COLUMN(AH$1)),"") ->  | AH42: =IFERROR(INDEX(Empresas!$B$6:$AS$46,SMALL(IF(Empresas!$B$6:$B$46=Dados!$H$37,ROW(Empresas!$B$6:$B$46)-5),ROW($A19)),COLUMN(AI$1)),"") ->  | AI42: =IFERROR(INDEX(Empresas!$B$6:$AS$46,SMALL(IF(Empresas!$B$6:$B$46=Dados!$H$37,ROW(Empresas!$B$6:$B$46)-5),ROW($A19)),COLUMN(AJ$1)),"") ->  | AJ42: =IFERROR(INDEX(Empresas!$B$6:$AS$46,SMALL(IF(Empresas!$B$6:$B$46=Dados!$H$37,ROW(Empresas!$B$6:$B$46)-5),ROW($A19)),COLUMN(AK$1)),"") ->  | AK42: =IFERROR(INDEX(Empresas!$B$6:$AS$46,SMALL(IF(Empresas!$B$6:$B$46=Dados!$H$37,ROW(Empresas!$B$6:$B$46)-5),ROW($A19)),COLUMN(AL$1)),"") ->  | AL42: =IFERROR(INDEX(Empresas!$B$6:$AS$46,SMALL(IF(Empresas!$B$6:$B$46=Dados!$H$37,ROW(Empresas!$B$6:$B$46)-5),ROW($A19)),COLUMN(AM$1)),"") ->  | AM42: =IFERROR(INDEX(Empresas!$B$6:$AS$46,SMALL(IF(Empresas!$B$6:$B$46=Dados!$H$37,ROW(Empresas!$B$6:$B$46)-5),ROW($A19)),COLUMN(AN$1)),"") ->  | AN42: =IFERROR(INDEX(Empresas!$B$6:$AS$46,SMALL(IF(Empresas!$B$6:$B$46=Dados!$H$37,ROW(Empresas!$B$6:$B$46)-5),ROW($A19)),COLUMN(AO$1)),"") ->  | AO42: =IFERROR(INDEX(Empresas!$B$6:$AS$46,SMALL(IF(Empresas!$B$6:$B$46=Dados!$H$37,ROW(Empresas!$B$6:$B$46)-5),ROW($A19)),COLUMN(AP$1)),"") ->  | AP42: =IFERROR(INDEX(Empresas!$B$6:$AS$46,SMALL(IF(Empresas!$B$6:$B$46=Dados!$H$37,ROW(Empresas!$B$6:$B$46)-5),ROW($A19)),COLUMN(AQ$1)),"") ->  | AQ42: =IFERROR(INDEX(Empresas!$B$6:$AS$46,SMALL(IF(Empresas!$B$6:$B$46=Dados!$H$37,ROW(Empresas!$B$6:$B$46)-5),ROW($A19)),COLUMN(AR$1)),"") -> 
B43: =IFERROR(INDEX(Empresas!$B$6:$AS$46,SMALL(IF(Empresas!$B$6:$B$46=Dados!$H$37,ROW(Empresas!$B$6:$B$46)-5),ROW($A20)),COLUMN(B$1)),"") ->  | C43: =IFERROR(INDEX(Empresas!$B$6:$AS$46,SMALL(IF(Empresas!$B$6:$B$46=Dados!$H$37,ROW(Empresas!$B$6:$B$46)-5),ROW($A20)),COLUMN(C$1)),"") ->  | E43: =IFERROR(INDEX(Empresas!$B$6:$AS$46,SMALL(IF(Empresas!$B$6:$B$46=Dados!$H$37,ROW(Empresas!$B$6:$B$46)-5),ROW($A20)),COLUMN(F$1)),"") ->  | F43: =IFERROR(INDEX(Empresas!$B$6:$AS$46,SMALL(IF(Empresas!$B$6:$B$46=Dados!$H$37,ROW(Empresas!$B$6:$B$46)-5),ROW($A20)),COLUMN(G$1)),"") ->  | G43: =IFERROR(INDEX(Empresas!$B$6:$AS$46,SMALL(IF(Empresas!$B$6:$B$46=Dados!$H$37,ROW(Empresas!$B$6:$B$46)-5),ROW($A20)),COLUMN(H$1)),"") ->  | H43: =IFERROR(INDEX(Empresas!$B$6:$AS$46,SMALL(IF(Empresas!$B$6:$B$46=Dados!$H$37,ROW(Empresas!$B$6:$B$46)-5),ROW($A20)),COLUMN(I$1)),"") ->  | I43: =IFERROR(INDEX(Empresas!$B$6:$AS$46,SMALL(IF(Empresas!$B$6:$B$46=Dados!$H$37,ROW(Empresas!$B$6:$B$46)-5),ROW($A20)),COLUMN(J$1)),"") ->  | J43: =IFERROR(INDEX(Empresas!$B$6:$AS$46,SMALL(IF(Empresas!$B$6:$B$46=Dados!$H$37,ROW(Empresas!$B$6:$B$46)-5),ROW($A20)),COLUMN(K$1)),"") ->  | K43: =IFERROR(INDEX(Empresas!$B$6:$AS$46,SMALL(IF(Empresas!$B$6:$B$46=Dados!$H$37,ROW(Empresas!$B$6:$B$46)-5),ROW($A20)),COLUMN(L$1)),"") ->  | L43: =IFERROR(INDEX(Empresas!$B$6:$AS$46,SMALL(IF(Empresas!$B$6:$B$46=Dados!$H$37,ROW(Empresas!$B$6:$B$46)-5),ROW($A20)),COLUMN(M$1)),"") ->  | M43: =IFERROR(INDEX(Empresas!$B$6:$AS$46,SMALL(IF(Empresas!$B$6:$B$46=Dados!$H$37,ROW(Empresas!$B$6:$B$46)-5),ROW($A20)),COLUMN(N$1)),"") ->  | N43: =IFERROR(INDEX(Empresas!$B$6:$AS$46,SMALL(IF(Empresas!$B$6:$B$46=Dados!$H$37,ROW(Empresas!$B$6:$B$46)-5),ROW($A20)),COLUMN(O$1)),"") ->  | O43: =IFERROR(INDEX(Empresas!$B$6:$AS$46,SMALL(IF(Empresas!$B$6:$B$46=Dados!$H$37,ROW(Empresas!$B$6:$B$46)-5),ROW($A20)),COLUMN(P$1)),"") ->  | P43: =IFERROR(INDEX(Empresas!$B$6:$AS$46,SMALL(IF(Empresas!$B$6:$B$46=Dados!$H$37,ROW(Empresas!$B$6:$B$46)-5),ROW($A20)),COLUMN(Q$1)),"") ->  | Q43: =IFERROR(INDEX(Empresas!$B$6:$AS$46,SMALL(IF(Empresas!$B$6:$B$46=Dados!$H$37,ROW(Empresas!$B$6:$B$46)-5),ROW($A20)),COLUMN(R$1)),"") ->  | R43: =IFERROR(INDEX(Empresas!$B$6:$AS$46,SMALL(IF(Empresas!$B$6:$B$46=Dados!$H$37,ROW(Empresas!$B$6:$B$46)-5),ROW($A20)),COLUMN(S$1)),"") ->  | S43: =IFERROR(INDEX(Empresas!$B$6:$AS$46,SMALL(IF(Empresas!$B$6:$B$46=Dados!$H$37,ROW(Empresas!$B$6:$B$46)-5),ROW($A20)),COLUMN(T$1)),"") ->  | T43: =IFERROR(INDEX(Empresas!$B$6:$AS$46,SMALL(IF(Empresas!$B$6:$B$46=Dados!$H$37,ROW(Empresas!$B$6:$B$46)-5),ROW($A20)),COLUMN(U$1)),"") ->  | U43: =IFERROR(INDEX(Empresas!$B$6:$AS$46,SMALL(IF(Empresas!$B$6:$B$46=Dados!$H$37,ROW(Empresas!$B$6:$B$46)-5),ROW($A20)),COLUMN(V$1)),"") ->  | V43: =IFERROR(INDEX(Empresas!$B$6:$AS$46,SMALL(IF(Empresas!$B$6:$B$46=Dados!$H$37,ROW(Empresas!$B$6:$B$46)-5),ROW($A20)),COLUMN(W$1)),"") ->  | W43: =IFERROR(INDEX(Empresas!$B$6:$AS$46,SMALL(IF(Empresas!$B$6:$B$46=Dados!$H$37,ROW(Empresas!$B$6:$B$46)-5),ROW($A20)),COLUMN(X$1)),"") ->  | X43: =IFERROR(INDEX(Empresas!$B$6:$AS$46,SMALL(IF(Empresas!$B$6:$B$46=Dados!$H$37,ROW(Empresas!$B$6:$B$46)-5),ROW($A20)),COLUMN(Y$1)),"") ->  | Y43: =IFERROR(INDEX(Empresas!$B$6:$AS$46,SMALL(IF(Empresas!$B$6:$B$46=Dados!$H$37,ROW(Empresas!$B$6:$B$46)-5),ROW($A20)),COLUMN(Z$1)),"") ->  | Z43: =IFERROR(INDEX(Empresas!$B$6:$AS$46,SMALL(IF(Empresas!$B$6:$B$46=Dados!$H$37,ROW(Empresas!$B$6:$B$46)-5),ROW($A20)),COLUMN(AA$1)),"") ->  | AA43: =IFERROR(INDEX(Empresas!$B$6:$AS$46,SMALL(IF(Empresas!$B$6:$B$46=Dados!$H$37,ROW(Empresas!$B$6:$B$46)-5),ROW($A20)),COLUMN(AB$1)),"") ->  | AB43: =IFERROR(INDEX(Empresas!$B$6:$AS$46,SMALL(IF(Empresas!$B$6:$B$46=Dados!$H$37,ROW(Empresas!$B$6:$B$46)-5),ROW($A20)),COLUMN(AC$1)),"") ->  | AC43: =IFERROR(INDEX(Empresas!$B$6:$AS$46,SMALL(IF(Empresas!$B$6:$B$46=Dados!$H$37,ROW(Empresas!$B$6:$B$46)-5),ROW($A20)),COLUMN(AD$1)),"") ->  | AD43: =IFERROR(INDEX(Empresas!$B$6:$AS$46,SMALL(IF(Empresas!$B$6:$B$46=Dados!$H$37,ROW(Empresas!$B$6:$B$46)-5),ROW($A20)),COLUMN(AE$1)),"") ->  | AE43: =IFERROR(INDEX(Empresas!$B$6:$AS$46,SMALL(IF(Empresas!$B$6:$B$46=Dados!$H$37,ROW(Empresas!$B$6:$B$46)-5),ROW($A20)),COLUMN(AF$1)),"") ->  | AF43: =IFERROR(INDEX(Empresas!$B$6:$AS$46,SMALL(IF(Empresas!$B$6:$B$46=Dados!$H$37,ROW(Empresas!$B$6:$B$46)-5),ROW($A20)),COLUMN(AG$1)),"") ->  | AG43: =IFERROR(INDEX(Empresas!$B$6:$AS$46,SMALL(IF(Empresas!$B$6:$B$46=Dados!$H$37,ROW(Empresas!$B$6:$B$46)-5),ROW($A20)),COLUMN(AH$1)),"") ->  | AH43: =IFERROR(INDEX(Empresas!$B$6:$AS$46,SMALL(IF(Empresas!$B$6:$B$46=Dados!$H$37,ROW(Empresas!$B$6:$B$46)-5),ROW($A20)),COLUMN(AI$1)),"") ->  | AI43: =IFERROR(INDEX(Empresas!$B$6:$AS$46,SMALL(IF(Empresas!$B$6:$B$46=Dados!$H$37,ROW(Empresas!$B$6:$B$46)-5),ROW($A20)),COLUMN(AJ$1)),"") ->  | AJ43: =IFERROR(INDEX(Empresas!$B$6:$AS$46,SMALL(IF(Empresas!$B$6:$B$46=Dados!$H$37,ROW(Empresas!$B$6:$B$46)-5),ROW($A20)),COLUMN(AK$1)),"") ->  | AK43: =IFERROR(INDEX(Empresas!$B$6:$AS$46,SMALL(IF(Empresas!$B$6:$B$46=Dados!$H$37,ROW(Empresas!$B$6:$B$46)-5),ROW($A20)),COLUMN(AL$1)),"") ->  | AL43: =IFERROR(INDEX(Empresas!$B$6:$AS$46,SMALL(IF(Empresas!$B$6:$B$46=Dados!$H$37,ROW(Empresas!$B$6:$B$46)-5),ROW($A20)),COLUMN(AM$1)),"") ->  | AM43: =IFERROR(INDEX(Empresas!$B$6:$AS$46,SMALL(IF(Empresas!$B$6:$B$46=Dados!$H$37,ROW(Empresas!$B$6:$B$46)-5),ROW($A20)),COLUMN(AN$1)),"") ->  | AN43: =IFERROR(INDEX(Empresas!$B$6:$AS$46,SMALL(IF(Empresas!$B$6:$B$46=Dados!$H$37,ROW(Empresas!$B$6:$B$46)-5),ROW($A20)),COLUMN(AO$1)),"") ->  | AO43: =IFERROR(INDEX(Empresas!$B$6:$AS$46,SMALL(IF(Empresas!$B$6:$B$46=Dados!$H$37,ROW(Empresas!$B$6:$B$46)-5),ROW($A20)),COLUMN(AP$1)),"") ->  | AP43: =IFERROR(INDEX(Empresas!$B$6:$AS$46,SMALL(IF(Empresas!$B$6:$B$46=Dados!$H$37,ROW(Empresas!$B$6:$B$46)-5),ROW($A20)),COLUMN(AQ$1)),"") ->  | AQ43: =IFERROR(INDEX(Empresas!$B$6:$AS$46,SMALL(IF(Empresas!$B$6:$B$46=Dados!$H$37,ROW(Empresas!$B$6:$B$46)-5),ROW($A20)),COLUMN(AR$1)),"") -> 
B44: =IFERROR(INDEX(Empresas!$B$6:$AS$46,SMALL(IF(Empresas!$B$6:$B$46=Dados!$H$37,ROW(Empresas!$B$6:$B$46)-5),ROW($A21)),COLUMN(B$1)),"") ->  | C44: =IFERROR(INDEX(Empresas!$B$6:$AS$46,SMALL(IF(Empresas!$B$6:$B$46=Dados!$H$37,ROW(Empresas!$B$6:$B$46)-5),ROW($A21)),COLUMN(C$1)),"") ->  | E44: =IFERROR(INDEX(Empresas!$B$6:$AS$46,SMALL(IF(Empresas!$B$6:$B$46=Dados!$H$37,ROW(Empresas!$B$6:$B$46)-5),ROW($A21)),COLUMN(F$1)),"") ->  | F44: =IFERROR(INDEX(Empresas!$B$6:$AS$46,SMALL(IF(Empresas!$B$6:$B$46=Dados!$H$37,ROW(Empresas!$B$6:$B$46)-5),ROW($A21)),COLUMN(G$1)),"") ->  | G44: =IFERROR(INDEX(Empresas!$B$6:$AS$46,SMALL(IF(Empresas!$B$6:$B$46=Dados!$H$37,ROW(Empresas!$B$6:$B$46)-5),ROW($A21)),COLUMN(H$1)),"") ->  | H44: =IFERROR(INDEX(Empresas!$B$6:$AS$46,SMALL(IF(Empresas!$B$6:$B$46=Dados!$H$37,ROW(Empresas!$B$6:$B$46)-5),ROW($A21)),COLUMN(I$1)),"") ->  | I44: =IFERROR(INDEX(Empresas!$B$6:$AS$46,SMALL(IF(Empresas!$B$6:$B$46=Dados!$H$37,ROW(Empresas!$B$6:$B$46)-5),ROW($A21)),COLUMN(J$1)),"") ->  | J44: =IFERROR(INDEX(Empresas!$B$6:$AS$46,SMALL(IF(Empresas!$B$6:$B$46=Dados!$H$37,ROW(Empresas!$B$6:$B$46)-5),ROW($A21)),COLUMN(K$1)),"") ->  | K44: =IFERROR(INDEX(Empresas!$B$6:$AS$46,SMALL(IF(Empresas!$B$6:$B$46=Dados!$H$37,ROW(Empresas!$B$6:$B$46)-5),ROW($A21)),COLUMN(L$1)),"") ->  | L44: =IFERROR(INDEX(Empresas!$B$6:$AS$46,SMALL(IF(Empresas!$B$6:$B$46=Dados!$H$37,ROW(Empresas!$B$6:$B$46)-5),ROW($A21)),COLUMN(M$1)),"") ->  | M44: =IFERROR(INDEX(Empresas!$B$6:$AS$46,SMALL(IF(Empresas!$B$6:$B$46=Dados!$H$37,ROW(Empresas!$B$6:$B$46)-5),ROW($A21)),COLUMN(N$1)),"") ->  | N44: =IFERROR(INDEX(Empresas!$B$6:$AS$46,SMALL(IF(Empresas!$B$6:$B$46=Dados!$H$37,ROW(Empresas!$B$6:$B$46)-5),ROW($A21)),COLUMN(O$1)),"") ->  | O44: =IFERROR(INDEX(Empresas!$B$6:$AS$46,SMALL(IF(Empresas!$B$6:$B$46=Dados!$H$37,ROW(Empresas!$B$6:$B$46)-5),ROW($A21)),COLUMN(P$1)),"") ->  | P44: =IFERROR(INDEX(Empresas!$B$6:$AS$46,SMALL(IF(Empresas!$B$6:$B$46=Dados!$H$37,ROW(Empresas!$B$6:$B$46)-5),ROW($A21)),COLUMN(Q$1)),"") ->  | Q44: =IFERROR(INDEX(Empresas!$B$6:$AS$46,SMALL(IF(Empresas!$B$6:$B$46=Dados!$H$37,ROW(Empresas!$B$6:$B$46)-5),ROW($A21)),COLUMN(R$1)),"") ->  | R44: =IFERROR(INDEX(Empresas!$B$6:$AS$46,SMALL(IF(Empresas!$B$6:$B$46=Dados!$H$37,ROW(Empresas!$B$6:$B$46)-5),ROW($A21)),COLUMN(S$1)),"") ->  | S44: =IFERROR(INDEX(Empresas!$B$6:$AS$46,SMALL(IF(Empresas!$B$6:$B$46=Dados!$H$37,ROW(Empresas!$B$6:$B$46)-5),ROW($A21)),COLUMN(T$1)),"") ->  | T44: =IFERROR(INDEX(Empresas!$B$6:$AS$46,SMALL(IF(Empresas!$B$6:$B$46=Dados!$H$37,ROW(Empresas!$B$6:$B$46)-5),ROW($A21)),COLUMN(U$1)),"") ->  | U44: =IFERROR(INDEX(Empresas!$B$6:$AS$46,SMALL(IF(Empresas!$B$6:$B$46=Dados!$H$37,ROW(Empresas!$B$6:$B$46)-5),ROW($A21)),COLUMN(V$1)),"") ->  | V44: =IFERROR(INDEX(Empresas!$B$6:$AS$46,SMALL(IF(Empresas!$B$6:$B$46=Dados!$H$37,ROW(Empresas!$B$6:$B$46)-5),ROW($A21)),COLUMN(W$1)),"") ->  | W44: =IFERROR(INDEX(Empresas!$B$6:$AS$46,SMALL(IF(Empresas!$B$6:$B$46=Dados!$H$37,ROW(Empresas!$B$6:$B$46)-5),ROW($A21)),COLUMN(X$1)),"") ->  | X44: =IFERROR(INDEX(Empresas!$B$6:$AS$46,SMALL(IF(Empresas!$B$6:$B$46=Dados!$H$37,ROW(Empresas!$B$6:$B$46)-5),ROW($A21)),COLUMN(Y$1)),"") ->  | Y44: =IFERROR(INDEX(Empresas!$B$6:$AS$46,SMALL(IF(Empresas!$B$6:$B$46=Dados!$H$37,ROW(Empresas!$B$6:$B$46)-5),ROW($A21)),COLUMN(Z$1)),"") ->  | Z44: =IFERROR(INDEX(Empresas!$B$6:$AS$46,SMALL(IF(Empresas!$B$6:$B$46=Dados!$H$37,ROW(Empresas!$B$6:$B$46)-5),ROW($A21)),COLUMN(AA$1)),"") ->  | AA44: =IFERROR(INDEX(Empresas!$B$6:$AS$46,SMALL(IF(Empresas!$B$6:$B$46=Dados!$H$37,ROW(Empresas!$B$6:$B$46)-5),ROW($A21)),COLUMN(AB$1)),"") ->  | AB44: =IFERROR(INDEX(Empresas!$B$6:$AS$46,SMALL(IF(Empresas!$B$6:$B$46=Dados!$H$37,ROW(Empresas!$B$6:$B$46)-5),ROW($A21)),COLUMN(AC$1)),"") ->  | AC44: =IFERROR(INDEX(Empresas!$B$6:$AS$46,SMALL(IF(Empresas!$B$6:$B$46=Dados!$H$37,ROW(Empresas!$B$6:$B$46)-5),ROW($A21)),COLUMN(AD$1)),"") ->  | AD44: =IFERROR(INDEX(Empresas!$B$6:$AS$46,SMALL(IF(Empresas!$B$6:$B$46=Dados!$H$37,ROW(Empresas!$B$6:$B$46)-5),ROW($A21)),COLUMN(AE$1)),"") ->  | AE44: =IFERROR(INDEX(Empresas!$B$6:$AS$46,SMALL(IF(Empresas!$B$6:$B$46=Dados!$H$37,ROW(Empresas!$B$6:$B$46)-5),ROW($A21)),COLUMN(AF$1)),"") ->  | AF44: =IFERROR(INDEX(Empresas!$B$6:$AS$46,SMALL(IF(Empresas!$B$6:$B$46=Dados!$H$37,ROW(Empresas!$B$6:$B$46)-5),ROW($A21)),COLUMN(AG$1)),"") ->  | AG44: =IFERROR(INDEX(Empresas!$B$6:$AS$46,SMALL(IF(Empresas!$B$6:$B$46=Dados!$H$37,ROW(Empresas!$B$6:$B$46)-5),ROW($A21)),COLUMN(AH$1)),"") ->  | AH44: =IFERROR(INDEX(Empresas!$B$6:$AS$46,SMALL(IF(Empresas!$B$6:$B$46=Dados!$H$37,ROW(Empresas!$B$6:$B$46)-5),ROW($A21)),COLUMN(AI$1)),"") ->  | AI44: =IFERROR(INDEX(Empresas!$B$6:$AS$46,SMALL(IF(Empresas!$B$6:$B$46=Dados!$H$37,ROW(Empresas!$B$6:$B$46)-5),ROW($A21)),COLUMN(AJ$1)),"") ->  | AJ44: =IFERROR(INDEX(Empresas!$B$6:$AS$46,SMALL(IF(Empresas!$B$6:$B$46=Dados!$H$37,ROW(Empresas!$B$6:$B$46)-5),ROW($A21)),COLUMN(AK$1)),"") ->  | AK44: =IFERROR(INDEX(Empresas!$B$6:$AS$46,SMALL(IF(Empresas!$B$6:$B$46=Dados!$H$37,ROW(Empresas!$B$6:$B$46)-5),ROW($A21)),COLUMN(AL$1)),"") ->  | AL44: =IFERROR(INDEX(Empresas!$B$6:$AS$46,SMALL(IF(Empresas!$B$6:$B$46=Dados!$H$37,ROW(Empresas!$B$6:$B$46)-5),ROW($A21)),COLUMN(AM$1)),"") ->  | AM44: =IFERROR(INDEX(Empresas!$B$6:$AS$46,SMALL(IF(Empresas!$B$6:$B$46=Dados!$H$37,ROW(Empresas!$B$6:$B$46)-5),ROW($A21)),COLUMN(AN$1)),"") ->  | AN44: =IFERROR(INDEX(Empresas!$B$6:$AS$46,SMALL(IF(Empresas!$B$6:$B$46=Dados!$H$37,ROW(Empresas!$B$6:$B$46)-5),ROW($A21)),COLUMN(AO$1)),"") ->  | AO44: =IFERROR(INDEX(Empresas!$B$6:$AS$46,SMALL(IF(Empresas!$B$6:$B$46=Dados!$H$37,ROW(Empresas!$B$6:$B$46)-5),ROW($A21)),COLUMN(AP$1)),"") ->  | AP44: =IFERROR(INDEX(Empresas!$B$6:$AS$46,SMALL(IF(Empresas!$B$6:$B$46=Dados!$H$37,ROW(Empresas!$B$6:$B$46)-5),ROW($A21)),COLUMN(AQ$1)),"") ->  | AQ44: =IFERROR(INDEX(Empresas!$B$6:$AS$46,SMALL(IF(Empresas!$B$6:$B$46=Dados!$H$37,ROW(Empresas!$B$6:$B$46)-5),ROW($A21)),COLUMN(AR$1)),"") -> 
B45: =IFERROR(INDEX(Empresas!$B$6:$AS$46,SMALL(IF(Empresas!$B$6:$B$46=Dados!$H$37,ROW(Empresas!$B$6:$B$46)-5),ROW($A22)),COLUMN(B$1)),"") ->  | C45: =IFERROR(INDEX(Empresas!$B$6:$AS$46,SMALL(IF(Empresas!$B$6:$B$46=Dados!$H$37,ROW(Empresas!$B$6:$B$46)-5),ROW($A22)),COLUMN(C$1)),"") ->  | E45: =IFERROR(INDEX(Empresas!$B$6:$AS$46,SMALL(IF(Empresas!$B$6:$B$46=Dados!$H$37,ROW(Empresas!$B$6:$B$46)-5),ROW($A22)),COLUMN(F$1)),"") ->  | F45: =IFERROR(INDEX(Empresas!$B$6:$AS$46,SMALL(IF(Empresas!$B$6:$B$46=Dados!$H$37,ROW(Empresas!$B$6:$B$46)-5),ROW($A22)),COLUMN(G$1)),"") ->  | G45: =IFERROR(INDEX(Empresas!$B$6:$AS$46,SMALL(IF(Empresas!$B$6:$B$46=Dados!$H$37,ROW(Empresas!$B$6:$B$46)-5),ROW($A22)),COLUMN(H$1)),"") ->  | H45: =IFERROR(INDEX(Empresas!$B$6:$AS$46,SMALL(IF(Empresas!$B$6:$B$46=Dados!$H$37,ROW(Empresas!$B$6:$B$46)-5),ROW($A22)),COLUMN(I$1)),"") ->  | I45: =IFERROR(INDEX(Empresas!$B$6:$AS$46,SMALL(IF(Empresas!$B$6:$B$46=Dados!$H$37,ROW(Empresas!$B$6:$B$46)-5),ROW($A22)),COLUMN(J$1)),"") ->  | J45: =IFERROR(INDEX(Empresas!$B$6:$AS$46,SMALL(IF(Empresas!$B$6:$B$46=Dados!$H$37,ROW(Empresas!$B$6:$B$46)-5),ROW($A22)),COLUMN(K$1)),"") ->  | K45: =IFERROR(INDEX(Empresas!$B$6:$AS$46,SMALL(IF(Empresas!$B$6:$B$46=Dados!$H$37,ROW(Empresas!$B$6:$B$46)-5),ROW($A22)),COLUMN(L$1)),"") ->  | L45: =IFERROR(INDEX(Empresas!$B$6:$AS$46,SMALL(IF(Empresas!$B$6:$B$46=Dados!$H$37,ROW(Empresas!$B$6:$B$46)-5),ROW($A22)),COLUMN(M$1)),"") ->  | M45: =IFERROR(INDEX(Empresas!$B$6:$AS$46,SMALL(IF(Empresas!$B$6:$B$46=Dados!$H$37,ROW(Empresas!$B$6:$B$46)-5),ROW($A22)),COLUMN(N$1)),"") ->  | N45: =IFERROR(INDEX(Empresas!$B$6:$AS$46,SMALL(IF(Empresas!$B$6:$B$46=Dados!$H$37,ROW(Empresas!$B$6:$B$46)-5),ROW($A22)),COLUMN(O$1)),"") ->  | O45: =IFERROR(INDEX(Empresas!$B$6:$AS$46,SMALL(IF(Empresas!$B$6:$B$46=Dados!$H$37,ROW(Empresas!$B$6:$B$46)-5),ROW($A22)),COLUMN(P$1)),"") ->  | P45: =IFERROR(INDEX(Empresas!$B$6:$AS$46,SMALL(IF(Empresas!$B$6:$B$46=Dados!$H$37,ROW(Empresas!$B$6:$B$46)-5),ROW($A22)),COLUMN(Q$1)),"") ->  | Q45: =IFERROR(INDEX(Empresas!$B$6:$AS$46,SMALL(IF(Empresas!$B$6:$B$46=Dados!$H$37,ROW(Empresas!$B$6:$B$46)-5),ROW($A22)),COLUMN(R$1)),"") ->  | R45: =IFERROR(INDEX(Empresas!$B$6:$AS$46,SMALL(IF(Empresas!$B$6:$B$46=Dados!$H$37,ROW(Empresas!$B$6:$B$46)-5),ROW($A22)),COLUMN(S$1)),"") ->  | S45: =IFERROR(INDEX(Empresas!$B$6:$AS$46,SMALL(IF(Empresas!$B$6:$B$46=Dados!$H$37,ROW(Empresas!$B$6:$B$46)-5),ROW($A22)),COLUMN(T$1)),"") ->  | T45: =IFERROR(INDEX(Empresas!$B$6:$AS$46,SMALL(IF(Empresas!$B$6:$B$46=Dados!$H$37,ROW(Empresas!$B$6:$B$46)-5),ROW($A22)),COLUMN(U$1)),"") ->  | U45: =IFERROR(INDEX(Empresas!$B$6:$AS$46,SMALL(IF(Empresas!$B$6:$B$46=Dados!$H$37,ROW(Empresas!$B$6:$B$46)-5),ROW($A22)),COLUMN(V$1)),"") ->  | V45: =IFERROR(INDEX(Empresas!$B$6:$AS$46,SMALL(IF(Empresas!$B$6:$B$46=Dados!$H$37,ROW(Empresas!$B$6:$B$46)-5),ROW($A22)),COLUMN(W$1)),"") ->  | W45: =IFERROR(INDEX(Empresas!$B$6:$AS$46,SMALL(IF(Empresas!$B$6:$B$46=Dados!$H$37,ROW(Empresas!$B$6:$B$46)-5),ROW($A22)),COLUMN(X$1)),"") ->  | X45: =IFERROR(INDEX(Empresas!$B$6:$AS$46,SMALL(IF(Empresas!$B$6:$B$46=Dados!$H$37,ROW(Empresas!$B$6:$B$46)-5),ROW($A22)),COLUMN(Y$1)),"") ->  | Y45: =IFERROR(INDEX(Empresas!$B$6:$AS$46,SMALL(IF(Empresas!$B$6:$B$46=Dados!$H$37,ROW(Empresas!$B$6:$B$46)-5),ROW($A22)),COLUMN(Z$1)),"") ->  | Z45: =IFERROR(INDEX(Empresas!$B$6:$AS$46,SMALL(IF(Empresas!$B$6:$B$46=Dados!$H$37,ROW(Empresas!$B$6:$B$46)-5),ROW($A22)),COLUMN(AA$1)),"") ->  | AA45: =IFERROR(INDEX(Empresas!$B$6:$AS$46,SMALL(IF(Empresas!$B$6:$B$46=Dados!$H$37,ROW(Empresas!$B$6:$B$46)-5),ROW($A22)),COLUMN(AB$1)),"") ->  | AB45: =IFERROR(INDEX(Empresas!$B$6:$AS$46,SMALL(IF(Empresas!$B$6:$B$46=Dados!$H$37,ROW(Empresas!$B$6:$B$46)-5),ROW($A22)),COLUMN(AC$1)),"") ->  | AC45: =IFERROR(INDEX(Empresas!$B$6:$AS$46,SMALL(IF(Empresas!$B$6:$B$46=Dados!$H$37,ROW(Empresas!$B$6:$B$46)-5),ROW($A22)),COLUMN(AD$1)),"") ->  | AD45: =IFERROR(INDEX(Empresas!$B$6:$AS$46,SMALL(IF(Empresas!$B$6:$B$46=Dados!$H$37,ROW(Empresas!$B$6:$B$46)-5),ROW($A22)),COLUMN(AE$1)),"") ->  | AE45: =IFERROR(INDEX(Empresas!$B$6:$AS$46,SMALL(IF(Empresas!$B$6:$B$46=Dados!$H$37,ROW(Empresas!$B$6:$B$46)-5),ROW($A22)),COLUMN(AF$1)),"") ->  | AF45: =IFERROR(INDEX(Empresas!$B$6:$AS$46,SMALL(IF(Empresas!$B$6:$B$46=Dados!$H$37,ROW(Empresas!$B$6:$B$46)-5),ROW($A22)),COLUMN(AG$1)),"") ->  | AG45: =IFERROR(INDEX(Empresas!$B$6:$AS$46,SMALL(IF(Empresas!$B$6:$B$46=Dados!$H$37,ROW(Empresas!$B$6:$B$46)-5),ROW($A22)),COLUMN(AH$1)),"") ->  | AH45: =IFERROR(INDEX(Empresas!$B$6:$AS$46,SMALL(IF(Empresas!$B$6:$B$46=Dados!$H$37,ROW(Empresas!$B$6:$B$46)-5),ROW($A22)),COLUMN(AI$1)),"") ->  | AI45: =IFERROR(INDEX(Empresas!$B$6:$AS$46,SMALL(IF(Empresas!$B$6:$B$46=Dados!$H$37,ROW(Empresas!$B$6:$B$46)-5),ROW($A22)),COLUMN(AJ$1)),"") ->  | AJ45: =IFERROR(INDEX(Empresas!$B$6:$AS$46,SMALL(IF(Empresas!$B$6:$B$46=Dados!$H$37,ROW(Empresas!$B$6:$B$46)-5),ROW($A22)),COLUMN(AK$1)),"") ->  | AK45: =IFERROR(INDEX(Empresas!$B$6:$AS$46,SMALL(IF(Empresas!$B$6:$B$46=Dados!$H$37,ROW(Empresas!$B$6:$B$46)-5),ROW($A22)),COLUMN(AL$1)),"") ->  | AL45: =IFERROR(INDEX(Empresas!$B$6:$AS$46,SMALL(IF(Empresas!$B$6:$B$46=Dados!$H$37,ROW(Empresas!$B$6:$B$46)-5),ROW($A22)),COLUMN(AM$1)),"") ->  | AM45: =IFERROR(INDEX(Empresas!$B$6:$AS$46,SMALL(IF(Empresas!$B$6:$B$46=Dados!$H$37,ROW(Empresas!$B$6:$B$46)-5),ROW($A22)),COLUMN(AN$1)),"") ->  | AN45: =IFERROR(INDEX(Empresas!$B$6:$AS$46,SMALL(IF(Empresas!$B$6:$B$46=Dados!$H$37,ROW(Empresas!$B$6:$B$46)-5),ROW($A22)),COLUMN(AO$1)),"") ->  | AO45: =IFERROR(INDEX(Empresas!$B$6:$AS$46,SMALL(IF(Empresas!$B$6:$B$46=Dados!$H$37,ROW(Empresas!$B$6:$B$46)-5),ROW($A22)),COLUMN(AP$1)),"") ->  | AP45: =IFERROR(INDEX(Empresas!$B$6:$AS$46,SMALL(IF(Empresas!$B$6:$B$46=Dados!$H$37,ROW(Empresas!$B$6:$B$46)-5),ROW($A22)),COLUMN(AQ$1)),"") ->  | AQ45: =IFERROR(INDEX(Empresas!$B$6:$AS$46,SMALL(IF(Empresas!$B$6:$B$46=Dados!$H$37,ROW(Empresas!$B$6:$B$46)-5),ROW($A22)),COLUMN(AR$1)),"") -> 
B46: =IFERROR(INDEX(Empresas!$B$6:$AS$46,SMALL(IF(Empresas!$B$6:$B$46=Dados!$H$37,ROW(Empresas!$B$6:$B$46)-5),ROW($A23)),COLUMN(B$1)),"") ->  | C46: =IFERROR(INDEX(Empresas!$B$6:$AS$46,SMALL(IF(Empresas!$B$6:$B$46=Dados!$H$37,ROW(Empresas!$B$6:$B$46)-5),ROW($A23)),COLUMN(C$1)),"") ->  | E46: =IFERROR(INDEX(Empresas!$B$6:$AS$46,SMALL(IF(Empresas!$B$6:$B$46=Dados!$H$37,ROW(Empresas!$B$6:$B$46)-5),ROW($A23)),COLUMN(F$1)),"") ->  | F46: =IFERROR(INDEX(Empresas!$B$6:$AS$46,SMALL(IF(Empresas!$B$6:$B$46=Dados!$H$37,ROW(Empresas!$B$6:$B$46)-5),ROW($A23)),COLUMN(G$1)),"") ->  | G46: =IFERROR(INDEX(Empresas!$B$6:$AS$46,SMALL(IF(Empresas!$B$6:$B$46=Dados!$H$37,ROW(Empresas!$B$6:$B$46)-5),ROW($A23)),COLUMN(H$1)),"") ->  | H46: =IFERROR(INDEX(Empresas!$B$6:$AS$46,SMALL(IF(Empresas!$B$6:$B$46=Dados!$H$37,ROW(Empresas!$B$6:$B$46)-5),ROW($A23)),COLUMN(I$1)),"") ->  | I46: =IFERROR(INDEX(Empresas!$B$6:$AS$46,SMALL(IF(Empresas!$B$6:$B$46=Dados!$H$37,ROW(Empresas!$B$6:$B$46)-5),ROW($A23)),COLUMN(J$1)),"") ->  | J46: =IFERROR(INDEX(Empresas!$B$6:$AS$46,SMALL(IF(Empresas!$B$6:$B$46=Dados!$H$37,ROW(Empresas!$B$6:$B$46)-5),ROW($A23)),COLUMN(K$1)),"") ->  | K46: =IFERROR(INDEX(Empresas!$B$6:$AS$46,SMALL(IF(Empresas!$B$6:$B$46=Dados!$H$37,ROW(Empresas!$B$6:$B$46)-5),ROW($A23)),COLUMN(L$1)),"") ->  | L46: =IFERROR(INDEX(Empresas!$B$6:$AS$46,SMALL(IF(Empresas!$B$6:$B$46=Dados!$H$37,ROW(Empresas!$B$6:$B$46)-5),ROW($A23)),COLUMN(M$1)),"") ->  | M46: =IFERROR(INDEX(Empresas!$B$6:$AS$46,SMALL(IF(Empresas!$B$6:$B$46=Dados!$H$37,ROW(Empresas!$B$6:$B$46)-5),ROW($A23)),COLUMN(N$1)),"") ->  | N46: =IFERROR(INDEX(Empresas!$B$6:$AS$46,SMALL(IF(Empresas!$B$6:$B$46=Dados!$H$37,ROW(Empresas!$B$6:$B$46)-5),ROW($A23)),COLUMN(O$1)),"") ->  | O46: =IFERROR(INDEX(Empresas!$B$6:$AS$46,SMALL(IF(Empresas!$B$6:$B$46=Dados!$H$37,ROW(Empresas!$B$6:$B$46)-5),ROW($A23)),COLUMN(P$1)),"") ->  | P46: =IFERROR(INDEX(Empresas!$B$6:$AS$46,SMALL(IF(Empresas!$B$6:$B$46=Dados!$H$37,ROW(Empresas!$B$6:$B$46)-5),ROW($A23)),COLUMN(Q$1)),"") ->  | Q46: =IFERROR(INDEX(Empresas!$B$6:$AS$46,SMALL(IF(Empresas!$B$6:$B$46=Dados!$H$37,ROW(Empresas!$B$6:$B$46)-5),ROW($A23)),COLUMN(R$1)),"") ->  | R46: =IFERROR(INDEX(Empresas!$B$6:$AS$46,SMALL(IF(Empresas!$B$6:$B$46=Dados!$H$37,ROW(Empresas!$B$6:$B$46)-5),ROW($A23)),COLUMN(S$1)),"") ->  | S46: =IFERROR(INDEX(Empresas!$B$6:$AS$46,SMALL(IF(Empresas!$B$6:$B$46=Dados!$H$37,ROW(Empresas!$B$6:$B$46)-5),ROW($A23)),COLUMN(T$1)),"") ->  | T46: =IFERROR(INDEX(Empresas!$B$6:$AS$46,SMALL(IF(Empresas!$B$6:$B$46=Dados!$H$37,ROW(Empresas!$B$6:$B$46)-5),ROW($A23)),COLUMN(U$1)),"") ->  | U46: =IFERROR(INDEX(Empresas!$B$6:$AS$46,SMALL(IF(Empresas!$B$6:$B$46=Dados!$H$37,ROW(Empresas!$B$6:$B$46)-5),ROW($A23)),COLUMN(V$1)),"") ->  | V46: =IFERROR(INDEX(Empresas!$B$6:$AS$46,SMALL(IF(Empresas!$B$6:$B$46=Dados!$H$37,ROW(Empresas!$B$6:$B$46)-5),ROW($A23)),COLUMN(W$1)),"") ->  | W46: =IFERROR(INDEX(Empresas!$B$6:$AS$46,SMALL(IF(Empresas!$B$6:$B$46=Dados!$H$37,ROW(Empresas!$B$6:$B$46)-5),ROW($A23)),COLUMN(X$1)),"") ->  | X46: =IFERROR(INDEX(Empresas!$B$6:$AS$46,SMALL(IF(Empresas!$B$6:$B$46=Dados!$H$37,ROW(Empresas!$B$6:$B$46)-5),ROW($A23)),COLUMN(Y$1)),"") ->  | Y46: =IFERROR(INDEX(Empresas!$B$6:$AS$46,SMALL(IF(Empresas!$B$6:$B$46=Dados!$H$37,ROW(Empresas!$B$6:$B$46)-5),ROW($A23)),COLUMN(Z$1)),"") ->  | Z46: =IFERROR(INDEX(Empresas!$B$6:$AS$46,SMALL(IF(Empresas!$B$6:$B$46=Dados!$H$37,ROW(Empresas!$B$6:$B$46)-5),ROW($A23)),COLUMN(AA$1)),"") ->  | AA46: =IFERROR(INDEX(Empresas!$B$6:$AS$46,SMALL(IF(Empresas!$B$6:$B$46=Dados!$H$37,ROW(Empresas!$B$6:$B$46)-5),ROW($A23)),COLUMN(AB$1)),"") ->  | AB46: =IFERROR(INDEX(Empresas!$B$6:$AS$46,SMALL(IF(Empresas!$B$6:$B$46=Dados!$H$37,ROW(Empresas!$B$6:$B$46)-5),ROW($A23)),COLUMN(AC$1)),"") ->  | AC46: =IFERROR(INDEX(Empresas!$B$6:$AS$46,SMALL(IF(Empresas!$B$6:$B$46=Dados!$H$37,ROW(Empresas!$B$6:$B$46)-5),ROW($A23)),COLUMN(AD$1)),"") ->  | AD46: =IFERROR(INDEX(Empresas!$B$6:$AS$46,SMALL(IF(Empresas!$B$6:$B$46=Dados!$H$37,ROW(Empresas!$B$6:$B$46)-5),ROW($A23)),COLUMN(AE$1)),"") ->  | AE46: =IFERROR(INDEX(Empresas!$B$6:$AS$46,SMALL(IF(Empresas!$B$6:$B$46=Dados!$H$37,ROW(Empresas!$B$6:$B$46)-5),ROW($A23)),COLUMN(AF$1)),"") ->  | AF46: =IFERROR(INDEX(Empresas!$B$6:$AS$46,SMALL(IF(Empresas!$B$6:$B$46=Dados!$H$37,ROW(Empresas!$B$6:$B$46)-5),ROW($A23)),COLUMN(AG$1)),"") ->  | AG46: =IFERROR(INDEX(Empresas!$B$6:$AS$46,SMALL(IF(Empresas!$B$6:$B$46=Dados!$H$37,ROW(Empresas!$B$6:$B$46)-5),ROW($A23)),COLUMN(AH$1)),"") ->  | AH46: =IFERROR(INDEX(Empresas!$B$6:$AS$46,SMALL(IF(Empresas!$B$6:$B$46=Dados!$H$37,ROW(Empresas!$B$6:$B$46)-5),ROW($A23)),COLUMN(AI$1)),"") ->  | AI46: =IFERROR(INDEX(Empresas!$B$6:$AS$46,SMALL(IF(Empresas!$B$6:$B$46=Dados!$H$37,ROW(Empresas!$B$6:$B$46)-5),ROW($A23)),COLUMN(AJ$1)),"") ->  | AJ46: =IFERROR(INDEX(Empresas!$B$6:$AS$46,SMALL(IF(Empresas!$B$6:$B$46=Dados!$H$37,ROW(Empresas!$B$6:$B$46)-5),ROW($A23)),COLUMN(AK$1)),"") ->  | AK46: =IFERROR(INDEX(Empresas!$B$6:$AS$46,SMALL(IF(Empresas!$B$6:$B$46=Dados!$H$37,ROW(Empresas!$B$6:$B$46)-5),ROW($A23)),COLUMN(AL$1)),"") ->  | AL46: =IFERROR(INDEX(Empresas!$B$6:$AS$46,SMALL(IF(Empresas!$B$6:$B$46=Dados!$H$37,ROW(Empresas!$B$6:$B$46)-5),ROW($A23)),COLUMN(AM$1)),"") ->  | AM46: =IFERROR(INDEX(Empresas!$B$6:$AS$46,SMALL(IF(Empresas!$B$6:$B$46=Dados!$H$37,ROW(Empresas!$B$6:$B$46)-5),ROW($A23)),COLUMN(AN$1)),"") ->  | AN46: =IFERROR(INDEX(Empresas!$B$6:$AS$46,SMALL(IF(Empresas!$B$6:$B$46=Dados!$H$37,ROW(Empresas!$B$6:$B$46)-5),ROW($A23)),COLUMN(AO$1)),"") ->  | AO46: =IFERROR(INDEX(Empresas!$B$6:$AS$46,SMALL(IF(Empresas!$B$6:$B$46=Dados!$H$37,ROW(Empresas!$B$6:$B$46)-5),ROW($A23)),COLUMN(AP$1)),"") ->  | AP46: =IFERROR(INDEX(Empresas!$B$6:$AS$46,SMALL(IF(Empresas!$B$6:$B$46=Dados!$H$37,ROW(Empresas!$B$6:$B$46)-5),ROW($A23)),COLUMN(AQ$1)),"") ->  | AQ46: =IFERROR(INDEX(Empresas!$B$6:$AS$46,SMALL(IF(Empresas!$B$6:$B$46=Dados!$H$37,ROW(Empresas!$B$6:$B$46)-5),ROW($A23)),COLUMN(AR$1)),"") -> 
B47: =IFERROR(INDEX(Empresas!$B$6:$AS$46,SMALL(IF(Empresas!$B$6:$B$46=Dados!$H$37,ROW(Empresas!$B$6:$B$46)-5),ROW($A24)),COLUMN(B$1)),"") ->  | C47: =IFERROR(INDEX(Empresas!$B$6:$AS$46,SMALL(IF(Empresas!$B$6:$B$46=Dados!$H$37,ROW(Empresas!$B$6:$B$46)-5),ROW($A24)),COLUMN(C$1)),"") ->  | E47: =IFERROR(INDEX(Empresas!$B$6:$AS$46,SMALL(IF(Empresas!$B$6:$B$46=Dados!$H$37,ROW(Empresas!$B$6:$B$46)-5),ROW($A24)),COLUMN(F$1)),"") ->  | F47: =IFERROR(INDEX(Empresas!$B$6:$AS$46,SMALL(IF(Empresas!$B$6:$B$46=Dados!$H$37,ROW(Empresas!$B$6:$B$46)-5),ROW($A24)),COLUMN(G$1)),"") ->  | G47: =IFERROR(INDEX(Empresas!$B$6:$AS$46,SMALL(IF(Empresas!$B$6:$B$46=Dados!$H$37,ROW(Empresas!$B$6:$B$46)-5),ROW($A24)),COLUMN(H$1)),"") ->  | H47: =IFERROR(INDEX(Empresas!$B$6:$AS$46,SMALL(IF(Empresas!$B$6:$B$46=Dados!$H$37,ROW(Empresas!$B$6:$B$46)-5),ROW($A24)),COLUMN(I$1)),"") ->  | I47: =IFERROR(INDEX(Empresas!$B$6:$AS$46,SMALL(IF(Empresas!$B$6:$B$46=Dados!$H$37,ROW(Empresas!$B$6:$B$46)-5),ROW($A24)),COLUMN(J$1)),"") ->  | J47: =IFERROR(INDEX(Empresas!$B$6:$AS$46,SMALL(IF(Empresas!$B$6:$B$46=Dados!$H$37,ROW(Empresas!$B$6:$B$46)-5),ROW($A24)),COLUMN(K$1)),"") ->  | K47: =IFERROR(INDEX(Empresas!$B$6:$AS$46,SMALL(IF(Empresas!$B$6:$B$46=Dados!$H$37,ROW(Empresas!$B$6:$B$46)-5),ROW($A24)),COLUMN(L$1)),"") ->  | L47: =IFERROR(INDEX(Empresas!$B$6:$AS$46,SMALL(IF(Empresas!$B$6:$B$46=Dados!$H$37,ROW(Empresas!$B$6:$B$46)-5),ROW($A24)),COLUMN(M$1)),"") ->  | M47: =IFERROR(INDEX(Empresas!$B$6:$AS$46,SMALL(IF(Empresas!$B$6:$B$46=Dados!$H$37,ROW(Empresas!$B$6:$B$46)-5),ROW($A24)),COLUMN(N$1)),"") ->  | N47: =IFERROR(INDEX(Empresas!$B$6:$AS$46,SMALL(IF(Empresas!$B$6:$B$46=Dados!$H$37,ROW(Empresas!$B$6:$B$46)-5),ROW($A24)),COLUMN(O$1)),"") ->  | O47: =IFERROR(INDEX(Empresas!$B$6:$AS$46,SMALL(IF(Empresas!$B$6:$B$46=Dados!$H$37,ROW(Empresas!$B$6:$B$46)-5),ROW($A24)),COLUMN(P$1)),"") ->  | P47: =IFERROR(INDEX(Empresas!$B$6:$AS$46,SMALL(IF(Empresas!$B$6:$B$46=Dados!$H$37,ROW(Empresas!$B$6:$B$46)-5),ROW($A24)),COLUMN(Q$1)),"") ->  | Q47: =IFERROR(INDEX(Empresas!$B$6:$AS$46,SMALL(IF(Empresas!$B$6:$B$46=Dados!$H$37,ROW(Empresas!$B$6:$B$46)-5),ROW($A24)),COLUMN(R$1)),"") ->  | R47: =IFERROR(INDEX(Empresas!$B$6:$AS$46,SMALL(IF(Empresas!$B$6:$B$46=Dados!$H$37,ROW(Empresas!$B$6:$B$46)-5),ROW($A24)),COLUMN(S$1)),"") ->  | S47: =IFERROR(INDEX(Empresas!$B$6:$AS$46,SMALL(IF(Empresas!$B$6:$B$46=Dados!$H$37,ROW(Empresas!$B$6:$B$46)-5),ROW($A24)),COLUMN(T$1)),"") ->  | T47: =IFERROR(INDEX(Empresas!$B$6:$AS$46,SMALL(IF(Empresas!$B$6:$B$46=Dados!$H$37,ROW(Empresas!$B$6:$B$46)-5),ROW($A24)),COLUMN(U$1)),"") ->  | U47: =IFERROR(INDEX(Empresas!$B$6:$AS$46,SMALL(IF(Empresas!$B$6:$B$46=Dados!$H$37,ROW(Empresas!$B$6:$B$46)-5),ROW($A24)),COLUMN(V$1)),"") ->  | V47: =IFERROR(INDEX(Empresas!$B$6:$AS$46,SMALL(IF(Empresas!$B$6:$B$46=Dados!$H$37,ROW(Empresas!$B$6:$B$46)-5),ROW($A24)),COLUMN(W$1)),"") ->  | W47: =IFERROR(INDEX(Empresas!$B$6:$AS$46,SMALL(IF(Empresas!$B$6:$B$46=Dados!$H$37,ROW(Empresas!$B$6:$B$46)-5),ROW($A24)),COLUMN(X$1)),"") ->  | X47: =IFERROR(INDEX(Empresas!$B$6:$AS$46,SMALL(IF(Empresas!$B$6:$B$46=Dados!$H$37,ROW(Empresas!$B$6:$B$46)-5),ROW($A24)),COLUMN(Y$1)),"") ->  | Y47: =IFERROR(INDEX(Empresas!$B$6:$AS$46,SMALL(IF(Empresas!$B$6:$B$46=Dados!$H$37,ROW(Empresas!$B$6:$B$46)-5),ROW($A24)),COLUMN(Z$1)),"") ->  | Z47: =IFERROR(INDEX(Empresas!$B$6:$AS$46,SMALL(IF(Empresas!$B$6:$B$46=Dados!$H$37,ROW(Empresas!$B$6:$B$46)-5),ROW($A24)),COLUMN(AA$1)),"") ->  | AA47: =IFERROR(INDEX(Empresas!$B$6:$AS$46,SMALL(IF(Empresas!$B$6:$B$46=Dados!$H$37,ROW(Empresas!$B$6:$B$46)-5),ROW($A24)),COLUMN(AB$1)),"") ->  | AB47: =IFERROR(INDEX(Empresas!$B$6:$AS$46,SMALL(IF(Empresas!$B$6:$B$46=Dados!$H$37,ROW(Empresas!$B$6:$B$46)-5),ROW($A24)),COLUMN(AC$1)),"") ->  | AC47: =IFERROR(INDEX(Empresas!$B$6:$AS$46,SMALL(IF(Empresas!$B$6:$B$46=Dados!$H$37,ROW(Empresas!$B$6:$B$46)-5),ROW($A24)),COLUMN(AD$1)),"") ->  | AD47: =IFERROR(INDEX(Empresas!$B$6:$AS$46,SMALL(IF(Empresas!$B$6:$B$46=Dados!$H$37,ROW(Empresas!$B$6:$B$46)-5),ROW($A24)),COLUMN(AE$1)),"") ->  | AE47: =IFERROR(INDEX(Empresas!$B$6:$AS$46,SMALL(IF(Empresas!$B$6:$B$46=Dados!$H$37,ROW(Empresas!$B$6:$B$46)-5),ROW($A24)),COLUMN(AF$1)),"") ->  | AF47: =IFERROR(INDEX(Empresas!$B$6:$AS$46,SMALL(IF(Empresas!$B$6:$B$46=Dados!$H$37,ROW(Empresas!$B$6:$B$46)-5),ROW($A24)),COLUMN(AG$1)),"") ->  | AG47: =IFERROR(INDEX(Empresas!$B$6:$AS$46,SMALL(IF(Empresas!$B$6:$B$46=Dados!$H$37,ROW(Empresas!$B$6:$B$46)-5),ROW($A24)),COLUMN(AH$1)),"") ->  | AH47: =IFERROR(INDEX(Empresas!$B$6:$AS$46,SMALL(IF(Empresas!$B$6:$B$46=Dados!$H$37,ROW(Empresas!$B$6:$B$46)-5),ROW($A24)),COLUMN(AI$1)),"") ->  | AI47: =IFERROR(INDEX(Empresas!$B$6:$AS$46,SMALL(IF(Empresas!$B$6:$B$46=Dados!$H$37,ROW(Empresas!$B$6:$B$46)-5),ROW($A24)),COLUMN(AJ$1)),"") ->  | AJ47: =IFERROR(INDEX(Empresas!$B$6:$AS$46,SMALL(IF(Empresas!$B$6:$B$46=Dados!$H$37,ROW(Empresas!$B$6:$B$46)-5),ROW($A24)),COLUMN(AK$1)),"") ->  | AK47: =IFERROR(INDEX(Empresas!$B$6:$AS$46,SMALL(IF(Empresas!$B$6:$B$46=Dados!$H$37,ROW(Empresas!$B$6:$B$46)-5),ROW($A24)),COLUMN(AL$1)),"") ->  | AL47: =IFERROR(INDEX(Empresas!$B$6:$AS$46,SMALL(IF(Empresas!$B$6:$B$46=Dados!$H$37,ROW(Empresas!$B$6:$B$46)-5),ROW($A24)),COLUMN(AM$1)),"") ->  | AM47: =IFERROR(INDEX(Empresas!$B$6:$AS$46,SMALL(IF(Empresas!$B$6:$B$46=Dados!$H$37,ROW(Empresas!$B$6:$B$46)-5),ROW($A24)),COLUMN(AN$1)),"") ->  | AN47: =IFERROR(INDEX(Empresas!$B$6:$AS$46,SMALL(IF(Empresas!$B$6:$B$46=Dados!$H$37,ROW(Empresas!$B$6:$B$46)-5),ROW($A24)),COLUMN(AO$1)),"") ->  | AO47: =IFERROR(INDEX(Empresas!$B$6:$AS$46,SMALL(IF(Empresas!$B$6:$B$46=Dados!$H$37,ROW(Empresas!$B$6:$B$46)-5),ROW($A24)),COLUMN(AP$1)),"") ->  | AP47: =IFERROR(INDEX(Empresas!$B$6:$AS$46,SMALL(IF(Empresas!$B$6:$B$46=Dados!$H$37,ROW(Empresas!$B$6:$B$46)-5),ROW($A24)),COLUMN(AQ$1)),"") ->  | AQ47: =IFERROR(INDEX(Empresas!$B$6:$AS$46,SMALL(IF(Empresas!$B$6:$B$46=Dados!$H$37,ROW(Empresas!$B$6:$B$46)-5),ROW($A24)),COLUMN(AR$1)),"") -> 
B48: =IFERROR(INDEX(Empresas!$B$6:$AS$46,SMALL(IF(Empresas!$B$6:$B$46=Dados!$H$37,ROW(Empresas!$B$6:$B$46)-5),ROW($A25)),COLUMN(B$1)),"") ->  | C48: =IFERROR(INDEX(Empresas!$B$6:$AS$46,SMALL(IF(Empresas!$B$6:$B$46=Dados!$H$37,ROW(Empresas!$B$6:$B$46)-5),ROW($A25)),COLUMN(C$1)),"") ->  | E48: =IFERROR(INDEX(Empresas!$B$6:$AS$46,SMALL(IF(Empresas!$B$6:$B$46=Dados!$H$37,ROW(Empresas!$B$6:$B$46)-5),ROW($A25)),COLUMN(F$1)),"") ->  | F48: =IFERROR(INDEX(Empresas!$B$6:$AS$46,SMALL(IF(Empresas!$B$6:$B$46=Dados!$H$37,ROW(Empresas!$B$6:$B$46)-5),ROW($A25)),COLUMN(G$1)),"") ->  | G48: =IFERROR(INDEX(Empresas!$B$6:$AS$46,SMALL(IF(Empresas!$B$6:$B$46=Dados!$H$37,ROW(Empresas!$B$6:$B$46)-5),ROW($A25)),COLUMN(H$1)),"") ->  | H48: =IFERROR(INDEX(Empresas!$B$6:$AS$46,SMALL(IF(Empresas!$B$6:$B$46=Dados!$H$37,ROW(Empresas!$B$6:$B$46)-5),ROW($A25)),COLUMN(I$1)),"") ->  | I48: =IFERROR(INDEX(Empresas!$B$6:$AS$46,SMALL(IF(Empresas!$B$6:$B$46=Dados!$H$37,ROW(Empresas!$B$6:$B$46)-5),ROW($A25)),COLUMN(J$1)),"") ->  | J48: =IFERROR(INDEX(Empresas!$B$6:$AS$46,SMALL(IF(Empresas!$B$6:$B$46=Dados!$H$37,ROW(Empresas!$B$6:$B$46)-5),ROW($A25)),COLUMN(K$1)),"") ->  | K48: =IFERROR(INDEX(Empresas!$B$6:$AS$46,SMALL(IF(Empresas!$B$6:$B$46=Dados!$H$37,ROW(Empresas!$B$6:$B$46)-5),ROW($A25)),COLUMN(L$1)),"") ->  | L48: =IFERROR(INDEX(Empresas!$B$6:$AS$46,SMALL(IF(Empresas!$B$6:$B$46=Dados!$H$37,ROW(Empresas!$B$6:$B$46)-5),ROW($A25)),COLUMN(M$1)),"") ->  | M48: =IFERROR(INDEX(Empresas!$B$6:$AS$46,SMALL(IF(Empresas!$B$6:$B$46=Dados!$H$37,ROW(Empresas!$B$6:$B$46)-5),ROW($A25)),COLUMN(N$1)),"") ->  | N48: =IFERROR(INDEX(Empresas!$B$6:$AS$46,SMALL(IF(Empresas!$B$6:$B$46=Dados!$H$37,ROW(Empresas!$B$6:$B$46)-5),ROW($A25)),COLUMN(O$1)),"") ->  | O48: =IFERROR(INDEX(Empresas!$B$6:$AS$46,SMALL(IF(Empresas!$B$6:$B$46=Dados!$H$37,ROW(Empresas!$B$6:$B$46)-5),ROW($A25)),COLUMN(P$1)),"") ->  | P48: =IFERROR(INDEX(Empresas!$B$6:$AS$46,SMALL(IF(Empresas!$B$6:$B$46=Dados!$H$37,ROW(Empresas!$B$6:$B$46)-5),ROW($A25)),COLUMN(Q$1)),"") ->  | Q48: =IFERROR(INDEX(Empresas!$B$6:$AS$46,SMALL(IF(Empresas!$B$6:$B$46=Dados!$H$37,ROW(Empresas!$B$6:$B$46)-5),ROW($A25)),COLUMN(R$1)),"") ->  | R48: =IFERROR(INDEX(Empresas!$B$6:$AS$46,SMALL(IF(Empresas!$B$6:$B$46=Dados!$H$37,ROW(Empresas!$B$6:$B$46)-5),ROW($A25)),COLUMN(S$1)),"") ->  | S48: =IFERROR(INDEX(Empresas!$B$6:$AS$46,SMALL(IF(Empresas!$B$6:$B$46=Dados!$H$37,ROW(Empresas!$B$6:$B$46)-5),ROW($A25)),COLUMN(T$1)),"") ->  | T48: =IFERROR(INDEX(Empresas!$B$6:$AS$46,SMALL(IF(Empresas!$B$6:$B$46=Dados!$H$37,ROW(Empresas!$B$6:$B$46)-5),ROW($A25)),COLUMN(U$1)),"") ->  | U48: =IFERROR(INDEX(Empresas!$B$6:$AS$46,SMALL(IF(Empresas!$B$6:$B$46=Dados!$H$37,ROW(Empresas!$B$6:$B$46)-5),ROW($A25)),COLUMN(V$1)),"") ->  | V48: =IFERROR(INDEX(Empresas!$B$6:$AS$46,SMALL(IF(Empresas!$B$6:$B$46=Dados!$H$37,ROW(Empresas!$B$6:$B$46)-5),ROW($A25)),COLUMN(W$1)),"") ->  | W48: =IFERROR(INDEX(Empresas!$B$6:$AS$46,SMALL(IF(Empresas!$B$6:$B$46=Dados!$H$37,ROW(Empresas!$B$6:$B$46)-5),ROW($A25)),COLUMN(X$1)),"") ->  | X48: =IFERROR(INDEX(Empresas!$B$6:$AS$46,SMALL(IF(Empresas!$B$6:$B$46=Dados!$H$37,ROW(Empresas!$B$6:$B$46)-5),ROW($A25)),COLUMN(Y$1)),"") ->  | Y48: =IFERROR(INDEX(Empresas!$B$6:$AS$46,SMALL(IF(Empresas!$B$6:$B$46=Dados!$H$37,ROW(Empresas!$B$6:$B$46)-5),ROW($A25)),COLUMN(Z$1)),"") ->  | Z48: =IFERROR(INDEX(Empresas!$B$6:$AS$46,SMALL(IF(Empresas!$B$6:$B$46=Dados!$H$37,ROW(Empresas!$B$6:$B$46)-5),ROW($A25)),COLUMN(AA$1)),"") ->  | AA48: =IFERROR(INDEX(Empresas!$B$6:$AS$46,SMALL(IF(Empresas!$B$6:$B$46=Dados!$H$37,ROW(Empresas!$B$6:$B$46)-5),ROW($A25)),COLUMN(AB$1)),"") ->  | AB48: =IFERROR(INDEX(Empresas!$B$6:$AS$46,SMALL(IF(Empresas!$B$6:$B$46=Dados!$H$37,ROW(Empresas!$B$6:$B$46)-5),ROW($A25)),COLUMN(AC$1)),"") ->  | AC48: =IFERROR(INDEX(Empresas!$B$6:$AS$46,SMALL(IF(Empresas!$B$6:$B$46=Dados!$H$37,ROW(Empresas!$B$6:$B$46)-5),ROW($A25)),COLUMN(AD$1)),"") ->  | AD48: =IFERROR(INDEX(Empresas!$B$6:$AS$46,SMALL(IF(Empresas!$B$6:$B$46=Dados!$H$37,ROW(Empresas!$B$6:$B$46)-5),ROW($A25)),COLUMN(AE$1)),"") ->  | AE48: =IFERROR(INDEX(Empresas!$B$6:$AS$46,SMALL(IF(Empresas!$B$6:$B$46=Dados!$H$37,ROW(Empresas!$B$6:$B$46)-5),ROW($A25)),COLUMN(AF$1)),"") ->  | AF48: =IFERROR(INDEX(Empresas!$B$6:$AS$46,SMALL(IF(Empresas!$B$6:$B$46=Dados!$H$37,ROW(Empresas!$B$6:$B$46)-5),ROW($A25)),COLUMN(AG$1)),"") ->  | AG48: =IFERROR(INDEX(Empresas!$B$6:$AS$46,SMALL(IF(Empresas!$B$6:$B$46=Dados!$H$37,ROW(Empresas!$B$6:$B$46)-5),ROW($A25)),COLUMN(AH$1)),"") ->  | AH48: =IFERROR(INDEX(Empresas!$B$6:$AS$46,SMALL(IF(Empresas!$B$6:$B$46=Dados!$H$37,ROW(Empresas!$B$6:$B$46)-5),ROW($A25)),COLUMN(AI$1)),"") ->  | AI48: =IFERROR(INDEX(Empresas!$B$6:$AS$46,SMALL(IF(Empresas!$B$6:$B$46=Dados!$H$37,ROW(Empresas!$B$6:$B$46)-5),ROW($A25)),COLUMN(AJ$1)),"") ->  | AJ48: =IFERROR(INDEX(Empresas!$B$6:$AS$46,SMALL(IF(Empresas!$B$6:$B$46=Dados!$H$37,ROW(Empresas!$B$6:$B$46)-5),ROW($A25)),COLUMN(AK$1)),"") ->  | AK48: =IFERROR(INDEX(Empresas!$B$6:$AS$46,SMALL(IF(Empresas!$B$6:$B$46=Dados!$H$37,ROW(Empresas!$B$6:$B$46)-5),ROW($A25)),COLUMN(AL$1)),"") ->  | AL48: =IFERROR(INDEX(Empresas!$B$6:$AS$46,SMALL(IF(Empresas!$B$6:$B$46=Dados!$H$37,ROW(Empresas!$B$6:$B$46)-5),ROW($A25)),COLUMN(AM$1)),"") ->  | AM48: =IFERROR(INDEX(Empresas!$B$6:$AS$46,SMALL(IF(Empresas!$B$6:$B$46=Dados!$H$37,ROW(Empresas!$B$6:$B$46)-5),ROW($A25)),COLUMN(AN$1)),"") ->  | AN48: =IFERROR(INDEX(Empresas!$B$6:$AS$46,SMALL(IF(Empresas!$B$6:$B$46=Dados!$H$37,ROW(Empresas!$B$6:$B$46)-5),ROW($A25)),COLUMN(AO$1)),"") ->  | AO48: =IFERROR(INDEX(Empresas!$B$6:$AS$46,SMALL(IF(Empresas!$B$6:$B$46=Dados!$H$37,ROW(Empresas!$B$6:$B$46)-5),ROW($A25)),COLUMN(AP$1)),"") ->  | AP48: =IFERROR(INDEX(Empresas!$B$6:$AS$46,SMALL(IF(Empresas!$B$6:$B$46=Dados!$H$37,ROW(Empresas!$B$6:$B$46)-5),ROW($A25)),COLUMN(AQ$1)),"") ->  | AQ48: =IFERROR(INDEX(Empresas!$B$6:$AS$46,SMALL(IF(Empresas!$B$6:$B$46=Dados!$H$37,ROW(Empresas!$B$6:$B$46)-5),ROW($A25)),COLUMN(AR$1)),"") -> 
B49: =IFERROR(INDEX(Empresas!$B$6:$AS$46,SMALL(IF(Empresas!$B$6:$B$46=Dados!$H$37,ROW(Empresas!$B$6:$B$46)-5),ROW($A26)),COLUMN(B$1)),"") ->  | C49: =IFERROR(INDEX(Empresas!$B$6:$AS$46,SMALL(IF(Empresas!$B$6:$B$46=Dados!$H$37,ROW(Empresas!$B$6:$B$46)-5),ROW($A26)),COLUMN(C$1)),"") ->  | E49: =IFERROR(INDEX(Empresas!$B$6:$AS$46,SMALL(IF(Empresas!$B$6:$B$46=Dados!$H$37,ROW(Empresas!$B$6:$B$46)-5),ROW($A26)),COLUMN(F$1)),"") ->  | F49: =IFERROR(INDEX(Empresas!$B$6:$AS$46,SMALL(IF(Empresas!$B$6:$B$46=Dados!$H$37,ROW(Empresas!$B$6:$B$46)-5),ROW($A26)),COLUMN(G$1)),"") ->  | G49: =IFERROR(INDEX(Empresas!$B$6:$AS$46,SMALL(IF(Empresas!$B$6:$B$46=Dados!$H$37,ROW(Empresas!$B$6:$B$46)-5),ROW($A26)),COLUMN(H$1)),"") ->  | H49: =IFERROR(INDEX(Empresas!$B$6:$AS$46,SMALL(IF(Empresas!$B$6:$B$46=Dados!$H$37,ROW(Empresas!$B$6:$B$46)-5),ROW($A26)),COLUMN(I$1)),"") ->  | I49: =IFERROR(INDEX(Empresas!$B$6:$AS$46,SMALL(IF(Empresas!$B$6:$B$46=Dados!$H$37,ROW(Empresas!$B$6:$B$46)-5),ROW($A26)),COLUMN(J$1)),"") ->  | J49: =IFERROR(INDEX(Empresas!$B$6:$AS$46,SMALL(IF(Empresas!$B$6:$B$46=Dados!$H$37,ROW(Empresas!$B$6:$B$46)-5),ROW($A26)),COLUMN(K$1)),"") ->  | K49: =IFERROR(INDEX(Empresas!$B$6:$AS$46,SMALL(IF(Empresas!$B$6:$B$46=Dados!$H$37,ROW(Empresas!$B$6:$B$46)-5),ROW($A26)),COLUMN(L$1)),"") ->  | L49: =IFERROR(INDEX(Empresas!$B$6:$AS$46,SMALL(IF(Empresas!$B$6:$B$46=Dados!$H$37,ROW(Empresas!$B$6:$B$46)-5),ROW($A26)),COLUMN(M$1)),"") ->  | M49: =IFERROR(INDEX(Empresas!$B$6:$AS$46,SMALL(IF(Empresas!$B$6:$B$46=Dados!$H$37,ROW(Empresas!$B$6:$B$46)-5),ROW($A26)),COLUMN(N$1)),"") ->  | N49: =IFERROR(INDEX(Empresas!$B$6:$AS$46,SMALL(IF(Empresas!$B$6:$B$46=Dados!$H$37,ROW(Empresas!$B$6:$B$46)-5),ROW($A26)),COLUMN(O$1)),"") ->  | O49: =IFERROR(INDEX(Empresas!$B$6:$AS$46,SMALL(IF(Empresas!$B$6:$B$46=Dados!$H$37,ROW(Empresas!$B$6:$B$46)-5),ROW($A26)),COLUMN(P$1)),"") ->  | P49: =IFERROR(INDEX(Empresas!$B$6:$AS$46,SMALL(IF(Empresas!$B$6:$B$46=Dados!$H$37,ROW(Empresas!$B$6:$B$46)-5),ROW($A26)),COLUMN(Q$1)),"") ->  | Q49: =IFERROR(INDEX(Empresas!$B$6:$AS$46,SMALL(IF(Empresas!$B$6:$B$46=Dados!$H$37,ROW(Empresas!$B$6:$B$46)-5),ROW($A26)),COLUMN(R$1)),"") ->  | R49: =IFERROR(INDEX(Empresas!$B$6:$AS$46,SMALL(IF(Empresas!$B$6:$B$46=Dados!$H$37,ROW(Empresas!$B$6:$B$46)-5),ROW($A26)),COLUMN(S$1)),"") ->  | S49: =IFERROR(INDEX(Empresas!$B$6:$AS$46,SMALL(IF(Empresas!$B$6:$B$46=Dados!$H$37,ROW(Empresas!$B$6:$B$46)-5),ROW($A26)),COLUMN(T$1)),"") ->  | T49: =IFERROR(INDEX(Empresas!$B$6:$AS$46,SMALL(IF(Empresas!$B$6:$B$46=Dados!$H$37,ROW(Empresas!$B$6:$B$46)-5),ROW($A26)),COLUMN(U$1)),"") ->  | U49: =IFERROR(INDEX(Empresas!$B$6:$AS$46,SMALL(IF(Empresas!$B$6:$B$46=Dados!$H$37,ROW(Empresas!$B$6:$B$46)-5),ROW($A26)),COLUMN(V$1)),"") ->  | V49: =IFERROR(INDEX(Empresas!$B$6:$AS$46,SMALL(IF(Empresas!$B$6:$B$46=Dados!$H$37,ROW(Empresas!$B$6:$B$46)-5),ROW($A26)),COLUMN(W$1)),"") ->  | W49: =IFERROR(INDEX(Empresas!$B$6:$AS$46,SMALL(IF(Empresas!$B$6:$B$46=Dados!$H$37,ROW(Empresas!$B$6:$B$46)-5),ROW($A26)),COLUMN(X$1)),"") ->  | X49: =IFERROR(INDEX(Empresas!$B$6:$AS$46,SMALL(IF(Empresas!$B$6:$B$46=Dados!$H$37,ROW(Empresas!$B$6:$B$46)-5),ROW($A26)),COLUMN(Y$1)),"") ->  | Y49: =IFERROR(INDEX(Empresas!$B$6:$AS$46,SMALL(IF(Empresas!$B$6:$B$46=Dados!$H$37,ROW(Empresas!$B$6:$B$46)-5),ROW($A26)),COLUMN(Z$1)),"") ->  | Z49: =IFERROR(INDEX(Empresas!$B$6:$AS$46,SMALL(IF(Empresas!$B$6:$B$46=Dados!$H$37,ROW(Empresas!$B$6:$B$46)-5),ROW($A26)),COLUMN(AA$1)),"") ->  | AA49: =IFERROR(INDEX(Empresas!$B$6:$AS$46,SMALL(IF(Empresas!$B$6:$B$46=Dados!$H$37,ROW(Empresas!$B$6:$B$46)-5),ROW($A26)),COLUMN(AB$1)),"") ->  | AB49: =IFERROR(INDEX(Empresas!$B$6:$AS$46,SMALL(IF(Empresas!$B$6:$B$46=Dados!$H$37,ROW(Empresas!$B$6:$B$46)-5),ROW($A26)),COLUMN(AC$1)),"") ->  | AC49: =IFERROR(INDEX(Empresas!$B$6:$AS$46,SMALL(IF(Empresas!$B$6:$B$46=Dados!$H$37,ROW(Empresas!$B$6:$B$46)-5),ROW($A26)),COLUMN(AD$1)),"") ->  | AD49: =IFERROR(INDEX(Empresas!$B$6:$AS$46,SMALL(IF(Empresas!$B$6:$B$46=Dados!$H$37,ROW(Empresas!$B$6:$B$46)-5),ROW($A26)),COLUMN(AE$1)),"") ->  | AE49: =IFERROR(INDEX(Empresas!$B$6:$AS$46,SMALL(IF(Empresas!$B$6:$B$46=Dados!$H$37,ROW(Empresas!$B$6:$B$46)-5),ROW($A26)),COLUMN(AF$1)),"") ->  | AF49: =IFERROR(INDEX(Empresas!$B$6:$AS$46,SMALL(IF(Empresas!$B$6:$B$46=Dados!$H$37,ROW(Empresas!$B$6:$B$46)-5),ROW($A26)),COLUMN(AG$1)),"") ->  | AG49: =IFERROR(INDEX(Empresas!$B$6:$AS$46,SMALL(IF(Empresas!$B$6:$B$46=Dados!$H$37,ROW(Empresas!$B$6:$B$46)-5),ROW($A26)),COLUMN(AH$1)),"") ->  | AH49: =IFERROR(INDEX(Empresas!$B$6:$AS$46,SMALL(IF(Empresas!$B$6:$B$46=Dados!$H$37,ROW(Empresas!$B$6:$B$46)-5),ROW($A26)),COLUMN(AI$1)),"") ->  | AI49: =IFERROR(INDEX(Empresas!$B$6:$AS$46,SMALL(IF(Empresas!$B$6:$B$46=Dados!$H$37,ROW(Empresas!$B$6:$B$46)-5),ROW($A26)),COLUMN(AJ$1)),"") ->  | AJ49: =IFERROR(INDEX(Empresas!$B$6:$AS$46,SMALL(IF(Empresas!$B$6:$B$46=Dados!$H$37,ROW(Empresas!$B$6:$B$46)-5),ROW($A26)),COLUMN(AK$1)),"") ->  | AK49: =IFERROR(INDEX(Empresas!$B$6:$AS$46,SMALL(IF(Empresas!$B$6:$B$46=Dados!$H$37,ROW(Empresas!$B$6:$B$46)-5),ROW($A26)),COLUMN(AL$1)),"") ->  | AL49: =IFERROR(INDEX(Empresas!$B$6:$AS$46,SMALL(IF(Empresas!$B$6:$B$46=Dados!$H$37,ROW(Empresas!$B$6:$B$46)-5),ROW($A26)),COLUMN(AM$1)),"") ->  | AM49: =IFERROR(INDEX(Empresas!$B$6:$AS$46,SMALL(IF(Empresas!$B$6:$B$46=Dados!$H$37,ROW(Empresas!$B$6:$B$46)-5),ROW($A26)),COLUMN(AN$1)),"") ->  | AN49: =IFERROR(INDEX(Empresas!$B$6:$AS$46,SMALL(IF(Empresas!$B$6:$B$46=Dados!$H$37,ROW(Empresas!$B$6:$B$46)-5),ROW($A26)),COLUMN(AO$1)),"") ->  | AO49: =IFERROR(INDEX(Empresas!$B$6:$AS$46,SMALL(IF(Empresas!$B$6:$B$46=Dados!$H$37,ROW(Empresas!$B$6:$B$46)-5),ROW($A26)),COLUMN(AP$1)),"") ->  | AP49: =IFERROR(INDEX(Empresas!$B$6:$AS$46,SMALL(IF(Empresas!$B$6:$B$46=Dados!$H$37,ROW(Empresas!$B$6:$B$46)-5),ROW($A26)),COLUMN(AQ$1)),"") ->  | AQ49: =IFERROR(INDEX(Empresas!$B$6:$AS$46,SMALL(IF(Empresas!$B$6:$B$46=Dados!$H$37,ROW(Empresas!$B$6:$B$46)-5),ROW($A26)),COLUMN(AR$1)),"") -> 
B50: =IFERROR(INDEX(Empresas!$B$6:$AS$46,SMALL(IF(Empresas!$B$6:$B$46=Dados!$H$37,ROW(Empresas!$B$6:$B$46)-5),ROW($A27)),COLUMN(B$1)),"") ->  | C50: =IFERROR(INDEX(Empresas!$B$6:$AS$46,SMALL(IF(Empresas!$B$6:$B$46=Dados!$H$37,ROW(Empresas!$B$6:$B$46)-5),ROW($A27)),COLUMN(C$1)),"") ->  | E50: =IFERROR(INDEX(Empresas!$B$6:$AS$46,SMALL(IF(Empresas!$B$6:$B$46=Dados!$H$37,ROW(Empresas!$B$6:$B$46)-5),ROW($A27)),COLUMN(F$1)),"") ->  | F50: =IFERROR(INDEX(Empresas!$B$6:$AS$46,SMALL(IF(Empresas!$B$6:$B$46=Dados!$H$37,ROW(Empresas!$B$6:$B$46)-5),ROW($A27)),COLUMN(G$1)),"") ->  | G50: =IFERROR(INDEX(Empresas!$B$6:$AS$46,SMALL(IF(Empresas!$B$6:$B$46=Dados!$H$37,ROW(Empresas!$B$6:$B$46)-5),ROW($A27)),COLUMN(H$1)),"") ->  | H50: =IFERROR(INDEX(Empresas!$B$6:$AS$46,SMALL(IF(Empresas!$B$6:$B$46=Dados!$H$37,ROW(Empresas!$B$6:$B$46)-5),ROW($A27)),COLUMN(I$1)),"") ->  | I50: =IFERROR(INDEX(Empresas!$B$6:$AS$46,SMALL(IF(Empresas!$B$6:$B$46=Dados!$H$37,ROW(Empresas!$B$6:$B$46)-5),ROW($A27)),COLUMN(J$1)),"") ->  | J50: =IFERROR(INDEX(Empresas!$B$6:$AS$46,SMALL(IF(Empresas!$B$6:$B$46=Dados!$H$37,ROW(Empresas!$B$6:$B$46)-5),ROW($A27)),COLUMN(K$1)),"") ->  | K50: =IFERROR(INDEX(Empresas!$B$6:$AS$46,SMALL(IF(Empresas!$B$6:$B$46=Dados!$H$37,ROW(Empresas!$B$6:$B$46)-5),ROW($A27)),COLUMN(L$1)),"") ->  | L50: =IFERROR(INDEX(Empresas!$B$6:$AS$46,SMALL(IF(Empresas!$B$6:$B$46=Dados!$H$37,ROW(Empresas!$B$6:$B$46)-5),ROW($A27)),COLUMN(M$1)),"") ->  | M50: =IFERROR(INDEX(Empresas!$B$6:$AS$46,SMALL(IF(Empresas!$B$6:$B$46=Dados!$H$37,ROW(Empresas!$B$6:$B$46)-5),ROW($A27)),COLUMN(N$1)),"") ->  | N50: =IFERROR(INDEX(Empresas!$B$6:$AS$46,SMALL(IF(Empresas!$B$6:$B$46=Dados!$H$37,ROW(Empresas!$B$6:$B$46)-5),ROW($A27)),COLUMN(O$1)),"") ->  | O50: =IFERROR(INDEX(Empresas!$B$6:$AS$46,SMALL(IF(Empresas!$B$6:$B$46=Dados!$H$37,ROW(Empresas!$B$6:$B$46)-5),ROW($A27)),COLUMN(P$1)),"") ->  | P50: =IFERROR(INDEX(Empresas!$B$6:$AS$46,SMALL(IF(Empresas!$B$6:$B$46=Dados!$H$37,ROW(Empresas!$B$6:$B$46)-5),ROW($A27)),COLUMN(Q$1)),"") ->  | Q50: =IFERROR(INDEX(Empresas!$B$6:$AS$46,SMALL(IF(Empresas!$B$6:$B$46=Dados!$H$37,ROW(Empresas!$B$6:$B$46)-5),ROW($A27)),COLUMN(R$1)),"") ->  | R50: =IFERROR(INDEX(Empresas!$B$6:$AS$46,SMALL(IF(Empresas!$B$6:$B$46=Dados!$H$37,ROW(Empresas!$B$6:$B$46)-5),ROW($A27)),COLUMN(S$1)),"") ->  | S50: =IFERROR(INDEX(Empresas!$B$6:$AS$46,SMALL(IF(Empresas!$B$6:$B$46=Dados!$H$37,ROW(Empresas!$B$6:$B$46)-5),ROW($A27)),COLUMN(T$1)),"") ->  | T50: =IFERROR(INDEX(Empresas!$B$6:$AS$46,SMALL(IF(Empresas!$B$6:$B$46=Dados!$H$37,ROW(Empresas!$B$6:$B$46)-5),ROW($A27)),COLUMN(U$1)),"") ->  | U50: =IFERROR(INDEX(Empresas!$B$6:$AS$46,SMALL(IF(Empresas!$B$6:$B$46=Dados!$H$37,ROW(Empresas!$B$6:$B$46)-5),ROW($A27)),COLUMN(V$1)),"") ->  | V50: =IFERROR(INDEX(Empresas!$B$6:$AS$46,SMALL(IF(Empresas!$B$6:$B$46=Dados!$H$37,ROW(Empresas!$B$6:$B$46)-5),ROW($A27)),COLUMN(W$1)),"") ->  | W50: =IFERROR(INDEX(Empresas!$B$6:$AS$46,SMALL(IF(Empresas!$B$6:$B$46=Dados!$H$37,ROW(Empresas!$B$6:$B$46)-5),ROW($A27)),COLUMN(X$1)),"") ->  | X50: =IFERROR(INDEX(Empresas!$B$6:$AS$46,SMALL(IF(Empresas!$B$6:$B$46=Dados!$H$37,ROW(Empresas!$B$6:$B$46)-5),ROW($A27)),COLUMN(Y$1)),"") ->  | Y50: =IFERROR(INDEX(Empresas!$B$6:$AS$46,SMALL(IF(Empresas!$B$6:$B$46=Dados!$H$37,ROW(Empresas!$B$6:$B$46)-5),ROW($A27)),COLUMN(Z$1)),"") ->  | Z50: =IFERROR(INDEX(Empresas!$B$6:$AS$46,SMALL(IF(Empresas!$B$6:$B$46=Dados!$H$37,ROW(Empresas!$B$6:$B$46)-5),ROW($A27)),COLUMN(AA$1)),"") ->  | AA50: =IFERROR(INDEX(Empresas!$B$6:$AS$46,SMALL(IF(Empresas!$B$6:$B$46=Dados!$H$37,ROW(Empresas!$B$6:$B$46)-5),ROW($A27)),COLUMN(AB$1)),"") ->  | AB50: =IFERROR(INDEX(Empresas!$B$6:$AS$46,SMALL(IF(Empresas!$B$6:$B$46=Dados!$H$37,ROW(Empresas!$B$6:$B$46)-5),ROW($A27)),COLUMN(AC$1)),"") ->  | AC50: =IFERROR(INDEX(Empresas!$B$6:$AS$46,SMALL(IF(Empresas!$B$6:$B$46=Dados!$H$37,ROW(Empresas!$B$6:$B$46)-5),ROW($A27)),COLUMN(AD$1)),"") ->  | AD50: =IFERROR(INDEX(Empresas!$B$6:$AS$46,SMALL(IF(Empresas!$B$6:$B$46=Dados!$H$37,ROW(Empresas!$B$6:$B$46)-5),ROW($A27)),COLUMN(AE$1)),"") ->  | AE50: =IFERROR(INDEX(Empresas!$B$6:$AS$46,SMALL(IF(Empresas!$B$6:$B$46=Dados!$H$37,ROW(Empresas!$B$6:$B$46)-5),ROW($A27)),COLUMN(AF$1)),"") ->  | AF50: =IFERROR(INDEX(Empresas!$B$6:$AS$46,SMALL(IF(Empresas!$B$6:$B$46=Dados!$H$37,ROW(Empresas!$B$6:$B$46)-5),ROW($A27)),COLUMN(AG$1)),"") ->  | AG50: =IFERROR(INDEX(Empresas!$B$6:$AS$46,SMALL(IF(Empresas!$B$6:$B$46=Dados!$H$37,ROW(Empresas!$B$6:$B$46)-5),ROW($A27)),COLUMN(AH$1)),"") ->  | AH50: =IFERROR(INDEX(Empresas!$B$6:$AS$46,SMALL(IF(Empresas!$B$6:$B$46=Dados!$H$37,ROW(Empresas!$B$6:$B$46)-5),ROW($A27)),COLUMN(AI$1)),"") ->  | AI50: =IFERROR(INDEX(Empresas!$B$6:$AS$46,SMALL(IF(Empresas!$B$6:$B$46=Dados!$H$37,ROW(Empresas!$B$6:$B$46)-5),ROW($A27)),COLUMN(AJ$1)),"") ->  | AJ50: =IFERROR(INDEX(Empresas!$B$6:$AS$46,SMALL(IF(Empresas!$B$6:$B$46=Dados!$H$37,ROW(Empresas!$B$6:$B$46)-5),ROW($A27)),COLUMN(AK$1)),"") ->  | AK50: =IFERROR(INDEX(Empresas!$B$6:$AS$46,SMALL(IF(Empresas!$B$6:$B$46=Dados!$H$37,ROW(Empresas!$B$6:$B$46)-5),ROW($A27)),COLUMN(AL$1)),"") ->  | AL50: =IFERROR(INDEX(Empresas!$B$6:$AS$46,SMALL(IF(Empresas!$B$6:$B$46=Dados!$H$37,ROW(Empresas!$B$6:$B$46)-5),ROW($A27)),COLUMN(AM$1)),"") ->  | AM50: =IFERROR(INDEX(Empresas!$B$6:$AS$46,SMALL(IF(Empresas!$B$6:$B$46=Dados!$H$37,ROW(Empresas!$B$6:$B$46)-5),ROW($A27)),COLUMN(AN$1)),"") ->  | AN50: =IFERROR(INDEX(Empresas!$B$6:$AS$46,SMALL(IF(Empresas!$B$6:$B$46=Dados!$H$37,ROW(Empresas!$B$6:$B$46)-5),ROW($A27)),COLUMN(AO$1)),"") ->  | AO50: =IFERROR(INDEX(Empresas!$B$6:$AS$46,SMALL(IF(Empresas!$B$6:$B$46=Dados!$H$37,ROW(Empresas!$B$6:$B$46)-5),ROW($A27)),COLUMN(AP$1)),"") ->  | AP50: =IFERROR(INDEX(Empresas!$B$6:$AS$46,SMALL(IF(Empresas!$B$6:$B$46=Dados!$H$37,ROW(Empresas!$B$6:$B$46)-5),ROW($A27)),COLUMN(AQ$1)),"") ->  | AQ50: =IFERROR(INDEX(Empresas!$B$6:$AS$46,SMALL(IF(Empresas!$B$6:$B$46=Dados!$H$37,ROW(Empresas!$B$6:$B$46)-5),ROW($A27)),COLUMN(AR$1)),"") -> 
B51: =IFERROR(INDEX(Empresas!$B$6:$AS$46,SMALL(IF(Empresas!$B$6:$B$46=Dados!$H$37,ROW(Empresas!$B$6:$B$46)-5),ROW($A28)),COLUMN(B$1)),"") ->  | C51: =IFERROR(INDEX(Empresas!$B$6:$AS$46,SMALL(IF(Empresas!$B$6:$B$46=Dados!$H$37,ROW(Empresas!$B$6:$B$46)-5),ROW($A28)),COLUMN(C$1)),"") ->  | E51: =IFERROR(INDEX(Empresas!$B$6:$AS$46,SMALL(IF(Empresas!$B$6:$B$46=Dados!$H$37,ROW(Empresas!$B$6:$B$46)-5),ROW($A28)),COLUMN(F$1)),"") ->  | F51: =IFERROR(INDEX(Empresas!$B$6:$AS$46,SMALL(IF(Empresas!$B$6:$B$46=Dados!$H$37,ROW(Empresas!$B$6:$B$46)-5),ROW($A28)),COLUMN(G$1)),"") ->  | G51: =IFERROR(INDEX(Empresas!$B$6:$AS$46,SMALL(IF(Empresas!$B$6:$B$46=Dados!$H$37,ROW(Empresas!$B$6:$B$46)-5),ROW($A28)),COLUMN(H$1)),"") ->  | H51: =IFERROR(INDEX(Empresas!$B$6:$AS$46,SMALL(IF(Empresas!$B$6:$B$46=Dados!$H$37,ROW(Empresas!$B$6:$B$46)-5),ROW($A28)),COLUMN(I$1)),"") ->  | I51: =IFERROR(INDEX(Empresas!$B$6:$AS$46,SMALL(IF(Empresas!$B$6:$B$46=Dados!$H$37,ROW(Empresas!$B$6:$B$46)-5),ROW($A28)),COLUMN(J$1)),"") ->  | J51: =IFERROR(INDEX(Empresas!$B$6:$AS$46,SMALL(IF(Empresas!$B$6:$B$46=Dados!$H$37,ROW(Empresas!$B$6:$B$46)-5),ROW($A28)),COLUMN(K$1)),"") ->  | K51: =IFERROR(INDEX(Empresas!$B$6:$AS$46,SMALL(IF(Empresas!$B$6:$B$46=Dados!$H$37,ROW(Empresas!$B$6:$B$46)-5),ROW($A28)),COLUMN(L$1)),"") ->  | L51: =IFERROR(INDEX(Empresas!$B$6:$AS$46,SMALL(IF(Empresas!$B$6:$B$46=Dados!$H$37,ROW(Empresas!$B$6:$B$46)-5),ROW($A28)),COLUMN(M$1)),"") ->  | M51: =IFERROR(INDEX(Empresas!$B$6:$AS$46,SMALL(IF(Empresas!$B$6:$B$46=Dados!$H$37,ROW(Empresas!$B$6:$B$46)-5),ROW($A28)),COLUMN(N$1)),"") ->  | N51: =IFERROR(INDEX(Empresas!$B$6:$AS$46,SMALL(IF(Empresas!$B$6:$B$46=Dados!$H$37,ROW(Empresas!$B$6:$B$46)-5),ROW($A28)),COLUMN(O$1)),"") ->  | O51: =IFERROR(INDEX(Empresas!$B$6:$AS$46,SMALL(IF(Empresas!$B$6:$B$46=Dados!$H$37,ROW(Empresas!$B$6:$B$46)-5),ROW($A28)),COLUMN(P$1)),"") ->  | P51: =IFERROR(INDEX(Empresas!$B$6:$AS$46,SMALL(IF(Empresas!$B$6:$B$46=Dados!$H$37,ROW(Empresas!$B$6:$B$46)-5),ROW($A28)),COLUMN(Q$1)),"") ->  | Q51: =IFERROR(INDEX(Empresas!$B$6:$AS$46,SMALL(IF(Empresas!$B$6:$B$46=Dados!$H$37,ROW(Empresas!$B$6:$B$46)-5),ROW($A28)),COLUMN(R$1)),"") ->  | R51: =IFERROR(INDEX(Empresas!$B$6:$AS$46,SMALL(IF(Empresas!$B$6:$B$46=Dados!$H$37,ROW(Empresas!$B$6:$B$46)-5),ROW($A28)),COLUMN(S$1)),"") ->  | S51: =IFERROR(INDEX(Empresas!$B$6:$AS$46,SMALL(IF(Empresas!$B$6:$B$46=Dados!$H$37,ROW(Empresas!$B$6:$B$46)-5),ROW($A28)),COLUMN(T$1)),"") ->  | T51: =IFERROR(INDEX(Empresas!$B$6:$AS$46,SMALL(IF(Empresas!$B$6:$B$46=Dados!$H$37,ROW(Empresas!$B$6:$B$46)-5),ROW($A28)),COLUMN(U$1)),"") ->  | U51: =IFERROR(INDEX(Empresas!$B$6:$AS$46,SMALL(IF(Empresas!$B$6:$B$46=Dados!$H$37,ROW(Empresas!$B$6:$B$46)-5),ROW($A28)),COLUMN(V$1)),"") ->  | V51: =IFERROR(INDEX(Empresas!$B$6:$AS$46,SMALL(IF(Empresas!$B$6:$B$46=Dados!$H$37,ROW(Empresas!$B$6:$B$46)-5),ROW($A28)),COLUMN(W$1)),"") ->  | W51: =IFERROR(INDEX(Empresas!$B$6:$AS$46,SMALL(IF(Empresas!$B$6:$B$46=Dados!$H$37,ROW(Empresas!$B$6:$B$46)-5),ROW($A28)),COLUMN(X$1)),"") ->  | X51: =IFERROR(INDEX(Empresas!$B$6:$AS$46,SMALL(IF(Empresas!$B$6:$B$46=Dados!$H$37,ROW(Empresas!$B$6:$B$46)-5),ROW($A28)),COLUMN(Y$1)),"") ->  | Y51: =IFERROR(INDEX(Empresas!$B$6:$AS$46,SMALL(IF(Empresas!$B$6:$B$46=Dados!$H$37,ROW(Empresas!$B$6:$B$46)-5),ROW($A28)),COLUMN(Z$1)),"") ->  | Z51: =IFERROR(INDEX(Empresas!$B$6:$AS$46,SMALL(IF(Empresas!$B$6:$B$46=Dados!$H$37,ROW(Empresas!$B$6:$B$46)-5),ROW($A28)),COLUMN(AA$1)),"") ->  | AA51: =IFERROR(INDEX(Empresas!$B$6:$AS$46,SMALL(IF(Empresas!$B$6:$B$46=Dados!$H$37,ROW(Empresas!$B$6:$B$46)-5),ROW($A28)),COLUMN(AB$1)),"") ->  | AB51: =IFERROR(INDEX(Empresas!$B$6:$AS$46,SMALL(IF(Empresas!$B$6:$B$46=Dados!$H$37,ROW(Empresas!$B$6:$B$46)-5),ROW($A28)),COLUMN(AC$1)),"") ->  | AC51: =IFERROR(INDEX(Empresas!$B$6:$AS$46,SMALL(IF(Empresas!$B$6:$B$46=Dados!$H$37,ROW(Empresas!$B$6:$B$46)-5),ROW($A28)),COLUMN(AD$1)),"") ->  | AD51: =IFERROR(INDEX(Empresas!$B$6:$AS$46,SMALL(IF(Empresas!$B$6:$B$46=Dados!$H$37,ROW(Empresas!$B$6:$B$46)-5),ROW($A28)),COLUMN(AE$1)),"") ->  | AE51: =IFERROR(INDEX(Empresas!$B$6:$AS$46,SMALL(IF(Empresas!$B$6:$B$46=Dados!$H$37,ROW(Empresas!$B$6:$B$46)-5),ROW($A28)),COLUMN(AF$1)),"") ->  | AF51: =IFERROR(INDEX(Empresas!$B$6:$AS$46,SMALL(IF(Empresas!$B$6:$B$46=Dados!$H$37,ROW(Empresas!$B$6:$B$46)-5),ROW($A28)),COLUMN(AG$1)),"") ->  | AG51: =IFERROR(INDEX(Empresas!$B$6:$AS$46,SMALL(IF(Empresas!$B$6:$B$46=Dados!$H$37,ROW(Empresas!$B$6:$B$46)-5),ROW($A28)),COLUMN(AH$1)),"") ->  | AH51: =IFERROR(INDEX(Empresas!$B$6:$AS$46,SMALL(IF(Empresas!$B$6:$B$46=Dados!$H$37,ROW(Empresas!$B$6:$B$46)-5),ROW($A28)),COLUMN(AI$1)),"") ->  | AI51: =IFERROR(INDEX(Empresas!$B$6:$AS$46,SMALL(IF(Empresas!$B$6:$B$46=Dados!$H$37,ROW(Empresas!$B$6:$B$46)-5),ROW($A28)),COLUMN(AJ$1)),"") ->  | AJ51: =IFERROR(INDEX(Empresas!$B$6:$AS$46,SMALL(IF(Empresas!$B$6:$B$46=Dados!$H$37,ROW(Empresas!$B$6:$B$46)-5),ROW($A28)),COLUMN(AK$1)),"") ->  | AK51: =IFERROR(INDEX(Empresas!$B$6:$AS$46,SMALL(IF(Empresas!$B$6:$B$46=Dados!$H$37,ROW(Empresas!$B$6:$B$46)-5),ROW($A28)),COLUMN(AL$1)),"") ->  | AL51: =IFERROR(INDEX(Empresas!$B$6:$AS$46,SMALL(IF(Empresas!$B$6:$B$46=Dados!$H$37,ROW(Empresas!$B$6:$B$46)-5),ROW($A28)),COLUMN(AM$1)),"") ->  | AM51: =IFERROR(INDEX(Empresas!$B$6:$AS$46,SMALL(IF(Empresas!$B$6:$B$46=Dados!$H$37,ROW(Empresas!$B$6:$B$46)-5),ROW($A28)),COLUMN(AN$1)),"") ->  | AN51: =IFERROR(INDEX(Empresas!$B$6:$AS$46,SMALL(IF(Empresas!$B$6:$B$46=Dados!$H$37,ROW(Empresas!$B$6:$B$46)-5),ROW($A28)),COLUMN(AO$1)),"") ->  | AO51: =IFERROR(INDEX(Empresas!$B$6:$AS$46,SMALL(IF(Empresas!$B$6:$B$46=Dados!$H$37,ROW(Empresas!$B$6:$B$46)-5),ROW($A28)),COLUMN(AP$1)),"") ->  | AP51: =IFERROR(INDEX(Empresas!$B$6:$AS$46,SMALL(IF(Empresas!$B$6:$B$46=Dados!$H$37,ROW(Empresas!$B$6:$B$46)-5),ROW($A28)),COLUMN(AQ$1)),"") ->  | AQ51: =IFERROR(INDEX(Empresas!$B$6:$AS$46,SMALL(IF(Empresas!$B$6:$B$46=Dados!$H$37,ROW(Empresas!$B$6:$B$46)-5),ROW($A28)),COLUMN(AR$1)),"") -> 
B52: =IFERROR(INDEX(Empresas!$B$6:$AS$46,SMALL(IF(Empresas!$B$6:$B$46=Dados!$H$37,ROW(Empresas!$B$6:$B$46)-5),ROW($A29)),COLUMN(B$1)),"") ->  | C52: =IFERROR(INDEX(Empresas!$B$6:$AS$46,SMALL(IF(Empresas!$B$6:$B$46=Dados!$H$37,ROW(Empresas!$B$6:$B$46)-5),ROW($A29)),COLUMN(C$1)),"") ->  | E52: =IFERROR(INDEX(Empresas!$B$6:$AS$46,SMALL(IF(Empresas!$B$6:$B$46=Dados!$H$37,ROW(Empresas!$B$6:$B$46)-5),ROW($A29)),COLUMN(F$1)),"") ->  | F52: =IFERROR(INDEX(Empresas!$B$6:$AS$46,SMALL(IF(Empresas!$B$6:$B$46=Dados!$H$37,ROW(Empresas!$B$6:$B$46)-5),ROW($A29)),COLUMN(G$1)),"") ->  | G52: =IFERROR(INDEX(Empresas!$B$6:$AS$46,SMALL(IF(Empresas!$B$6:$B$46=Dados!$H$37,ROW(Empresas!$B$6:$B$46)-5),ROW($A29)),COLUMN(H$1)),"") ->  | H52: =IFERROR(INDEX(Empresas!$B$6:$AS$46,SMALL(IF(Empresas!$B$6:$B$46=Dados!$H$37,ROW(Empresas!$B$6:$B$46)-5),ROW($A29)),COLUMN(I$1)),"") ->  | I52: =IFERROR(INDEX(Empresas!$B$6:$AS$46,SMALL(IF(Empresas!$B$6:$B$46=Dados!$H$37,ROW(Empresas!$B$6:$B$46)-5),ROW($A29)),COLUMN(J$1)),"") ->  | J52: =IFERROR(INDEX(Empresas!$B$6:$AS$46,SMALL(IF(Empresas!$B$6:$B$46=Dados!$H$37,ROW(Empresas!$B$6:$B$46)-5),ROW($A29)),COLUMN(K$1)),"") ->  | K52: =IFERROR(INDEX(Empresas!$B$6:$AS$46,SMALL(IF(Empresas!$B$6:$B$46=Dados!$H$37,ROW(Empresas!$B$6:$B$46)-5),ROW($A29)),COLUMN(L$1)),"") ->  | L52: =IFERROR(INDEX(Empresas!$B$6:$AS$46,SMALL(IF(Empresas!$B$6:$B$46=Dados!$H$37,ROW(Empresas!$B$6:$B$46)-5),ROW($A29)),COLUMN(M$1)),"") ->  | M52: =IFERROR(INDEX(Empresas!$B$6:$AS$46,SMALL(IF(Empresas!$B$6:$B$46=Dados!$H$37,ROW(Empresas!$B$6:$B$46)-5),ROW($A29)),COLUMN(N$1)),"") ->  | N52: =IFERROR(INDEX(Empresas!$B$6:$AS$46,SMALL(IF(Empresas!$B$6:$B$46=Dados!$H$37,ROW(Empresas!$B$6:$B$46)-5),ROW($A29)),COLUMN(O$1)),"") ->  | O52: =IFERROR(INDEX(Empresas!$B$6:$AS$46,SMALL(IF(Empresas!$B$6:$B$46=Dados!$H$37,ROW(Empresas!$B$6:$B$46)-5),ROW($A29)),COLUMN(P$1)),"") ->  | P52: =IFERROR(INDEX(Empresas!$B$6:$AS$46,SMALL(IF(Empresas!$B$6:$B$46=Dados!$H$37,ROW(Empresas!$B$6:$B$46)-5),ROW($A29)),COLUMN(Q$1)),"") ->  | Q52: =IFERROR(INDEX(Empresas!$B$6:$AS$46,SMALL(IF(Empresas!$B$6:$B$46=Dados!$H$37,ROW(Empresas!$B$6:$B$46)-5),ROW($A29)),COLUMN(R$1)),"") ->  | R52: =IFERROR(INDEX(Empresas!$B$6:$AS$46,SMALL(IF(Empresas!$B$6:$B$46=Dados!$H$37,ROW(Empresas!$B$6:$B$46)-5),ROW($A29)),COLUMN(S$1)),"") ->  | S52: =IFERROR(INDEX(Empresas!$B$6:$AS$46,SMALL(IF(Empresas!$B$6:$B$46=Dados!$H$37,ROW(Empresas!$B$6:$B$46)-5),ROW($A29)),COLUMN(T$1)),"") ->  | T52: =IFERROR(INDEX(Empresas!$B$6:$AS$46,SMALL(IF(Empresas!$B$6:$B$46=Dados!$H$37,ROW(Empresas!$B$6:$B$46)-5),ROW($A29)),COLUMN(U$1)),"") ->  | U52: =IFERROR(INDEX(Empresas!$B$6:$AS$46,SMALL(IF(Empresas!$B$6:$B$46=Dados!$H$37,ROW(Empresas!$B$6:$B$46)-5),ROW($A29)),COLUMN(V$1)),"") ->  | V52: =IFERROR(INDEX(Empresas!$B$6:$AS$46,SMALL(IF(Empresas!$B$6:$B$46=Dados!$H$37,ROW(Empresas!$B$6:$B$46)-5),ROW($A29)),COLUMN(W$1)),"") ->  | W52: =IFERROR(INDEX(Empresas!$B$6:$AS$46,SMALL(IF(Empresas!$B$6:$B$46=Dados!$H$37,ROW(Empresas!$B$6:$B$46)-5),ROW($A29)),COLUMN(X$1)),"") ->  | X52: =IFERROR(INDEX(Empresas!$B$6:$AS$46,SMALL(IF(Empresas!$B$6:$B$46=Dados!$H$37,ROW(Empresas!$B$6:$B$46)-5),ROW($A29)),COLUMN(Y$1)),"") ->  | Y52: =IFERROR(INDEX(Empresas!$B$6:$AS$46,SMALL(IF(Empresas!$B$6:$B$46=Dados!$H$37,ROW(Empresas!$B$6:$B$46)-5),ROW($A29)),COLUMN(Z$1)),"") ->  | Z52: =IFERROR(INDEX(Empresas!$B$6:$AS$46,SMALL(IF(Empresas!$B$6:$B$46=Dados!$H$37,ROW(Empresas!$B$6:$B$46)-5),ROW($A29)),COLUMN(AA$1)),"") ->  | AA52: =IFERROR(INDEX(Empresas!$B$6:$AS$46,SMALL(IF(Empresas!$B$6:$B$46=Dados!$H$37,ROW(Empresas!$B$6:$B$46)-5),ROW($A29)),COLUMN(AB$1)),"") ->  | AB52: =IFERROR(INDEX(Empresas!$B$6:$AS$46,SMALL(IF(Empresas!$B$6:$B$46=Dados!$H$37,ROW(Empresas!$B$6:$B$46)-5),ROW($A29)),COLUMN(AC$1)),"") ->  | AC52: =IFERROR(INDEX(Empresas!$B$6:$AS$46,SMALL(IF(Empresas!$B$6:$B$46=Dados!$H$37,ROW(Empresas!$B$6:$B$46)-5),ROW($A29)),COLUMN(AD$1)),"") ->  | AD52: =IFERROR(INDEX(Empresas!$B$6:$AS$46,SMALL(IF(Empresas!$B$6:$B$46=Dados!$H$37,ROW(Empresas!$B$6:$B$46)-5),ROW($A29)),COLUMN(AE$1)),"") ->  | AE52: =IFERROR(INDEX(Empresas!$B$6:$AS$46,SMALL(IF(Empresas!$B$6:$B$46=Dados!$H$37,ROW(Empresas!$B$6:$B$46)-5),ROW($A29)),COLUMN(AF$1)),"") ->  | AF52: =IFERROR(INDEX(Empresas!$B$6:$AS$46,SMALL(IF(Empresas!$B$6:$B$46=Dados!$H$37,ROW(Empresas!$B$6:$B$46)-5),ROW($A29)),COLUMN(AG$1)),"") ->  | AG52: =IFERROR(INDEX(Empresas!$B$6:$AS$46,SMALL(IF(Empresas!$B$6:$B$46=Dados!$H$37,ROW(Empresas!$B$6:$B$46)-5),ROW($A29)),COLUMN(AH$1)),"") ->  | AH52: =IFERROR(INDEX(Empresas!$B$6:$AS$46,SMALL(IF(Empresas!$B$6:$B$46=Dados!$H$37,ROW(Empresas!$B$6:$B$46)-5),ROW($A29)),COLUMN(AI$1)),"") ->  | AI52: =IFERROR(INDEX(Empresas!$B$6:$AS$46,SMALL(IF(Empresas!$B$6:$B$46=Dados!$H$37,ROW(Empresas!$B$6:$B$46)-5),ROW($A29)),COLUMN(AJ$1)),"") ->  | AJ52: =IFERROR(INDEX(Empresas!$B$6:$AS$46,SMALL(IF(Empresas!$B$6:$B$46=Dados!$H$37,ROW(Empresas!$B$6:$B$46)-5),ROW($A29)),COLUMN(AK$1)),"") ->  | AK52: =IFERROR(INDEX(Empresas!$B$6:$AS$46,SMALL(IF(Empresas!$B$6:$B$46=Dados!$H$37,ROW(Empresas!$B$6:$B$46)-5),ROW($A29)),COLUMN(AL$1)),"") ->  | AL52: =IFERROR(INDEX(Empresas!$B$6:$AS$46,SMALL(IF(Empresas!$B$6:$B$46=Dados!$H$37,ROW(Empresas!$B$6:$B$46)-5),ROW($A29)),COLUMN(AM$1)),"") ->  | AM52: =IFERROR(INDEX(Empresas!$B$6:$AS$46,SMALL(IF(Empresas!$B$6:$B$46=Dados!$H$37,ROW(Empresas!$B$6:$B$46)-5),ROW($A29)),COLUMN(AN$1)),"") ->  | AN52: =IFERROR(INDEX(Empresas!$B$6:$AS$46,SMALL(IF(Empresas!$B$6:$B$46=Dados!$H$37,ROW(Empresas!$B$6:$B$46)-5),ROW($A29)),COLUMN(AO$1)),"") ->  | AO52: =IFERROR(INDEX(Empresas!$B$6:$AS$46,SMALL(IF(Empresas!$B$6:$B$46=Dados!$H$37,ROW(Empresas!$B$6:$B$46)-5),ROW($A29)),COLUMN(AP$1)),"") ->  | AP52: =IFERROR(INDEX(Empresas!$B$6:$AS$46,SMALL(IF(Empresas!$B$6:$B$46=Dados!$H$37,ROW(Empresas!$B$6:$B$46)-5),ROW($A29)),COLUMN(AQ$1)),"") ->  | AQ52: =IFERROR(INDEX(Empresas!$B$6:$AS$46,SMALL(IF(Empresas!$B$6:$B$46=Dados!$H$37,ROW(Empresas!$B$6:$B$46)-5),ROW($A29)),COLUMN(AR$1)),"") -> 
B53: =IFERROR(INDEX(Empresas!$B$6:$AS$46,SMALL(IF(Empresas!$B$6:$B$46=Dados!$H$37,ROW(Empresas!$B$6:$B$46)-5),ROW($A30)),COLUMN(B$1)),"") ->  | C53: =IFERROR(INDEX(Empresas!$B$6:$AS$46,SMALL(IF(Empresas!$B$6:$B$46=Dados!$H$37,ROW(Empresas!$B$6:$B$46)-5),ROW($A30)),COLUMN(C$1)),"") ->  | E53: =IFERROR(INDEX(Empresas!$B$6:$AS$46,SMALL(IF(Empresas!$B$6:$B$46=Dados!$H$37,ROW(Empresas!$B$6:$B$46)-5),ROW($A30)),COLUMN(F$1)),"") ->  | F53: =IFERROR(INDEX(Empresas!$B$6:$AS$46,SMALL(IF(Empresas!$B$6:$B$46=Dados!$H$37,ROW(Empresas!$B$6:$B$46)-5),ROW($A30)),COLUMN(G$1)),"") ->  | G53: =IFERROR(INDEX(Empresas!$B$6:$AS$46,SMALL(IF(Empresas!$B$6:$B$46=Dados!$H$37,ROW(Empresas!$B$6:$B$46)-5),ROW($A30)),COLUMN(H$1)),"") ->  | H53: =IFERROR(INDEX(Empresas!$B$6:$AS$46,SMALL(IF(Empresas!$B$6:$B$46=Dados!$H$37,ROW(Empresas!$B$6:$B$46)-5),ROW($A30)),COLUMN(I$1)),"") ->  | I53: =IFERROR(INDEX(Empresas!$B$6:$AS$46,SMALL(IF(Empresas!$B$6:$B$46=Dados!$H$37,ROW(Empresas!$B$6:$B$46)-5),ROW($A30)),COLUMN(J$1)),"") ->  | J53: =IFERROR(INDEX(Empresas!$B$6:$AS$46,SMALL(IF(Empresas!$B$6:$B$46=Dados!$H$37,ROW(Empresas!$B$6:$B$46)-5),ROW($A30)),COLUMN(K$1)),"") ->  | K53: =IFERROR(INDEX(Empresas!$B$6:$AS$46,SMALL(IF(Empresas!$B$6:$B$46=Dados!$H$37,ROW(Empresas!$B$6:$B$46)-5),ROW($A30)),COLUMN(L$1)),"") ->  | L53: =IFERROR(INDEX(Empresas!$B$6:$AS$46,SMALL(IF(Empresas!$B$6:$B$46=Dados!$H$37,ROW(Empresas!$B$6:$B$46)-5),ROW($A30)),COLUMN(M$1)),"") ->  | M53: =IFERROR(INDEX(Empresas!$B$6:$AS$46,SMALL(IF(Empresas!$B$6:$B$46=Dados!$H$37,ROW(Empresas!$B$6:$B$46)-5),ROW($A30)),COLUMN(N$1)),"") ->  | N53: =IFERROR(INDEX(Empresas!$B$6:$AS$46,SMALL(IF(Empresas!$B$6:$B$46=Dados!$H$37,ROW(Empresas!$B$6:$B$46)-5),ROW($A30)),COLUMN(O$1)),"") ->  | O53: =IFERROR(INDEX(Empresas!$B$6:$AS$46,SMALL(IF(Empresas!$B$6:$B$46=Dados!$H$37,ROW(Empresas!$B$6:$B$46)-5),ROW($A30)),COLUMN(P$1)),"") ->  | P53: =IFERROR(INDEX(Empresas!$B$6:$AS$46,SMALL(IF(Empresas!$B$6:$B$46=Dados!$H$37,ROW(Empresas!$B$6:$B$46)-5),ROW($A30)),COLUMN(Q$1)),"") ->  | Q53: =IFERROR(INDEX(Empresas!$B$6:$AS$46,SMALL(IF(Empresas!$B$6:$B$46=Dados!$H$37,ROW(Empresas!$B$6:$B$46)-5),ROW($A30)),COLUMN(R$1)),"") ->  | R53: =IFERROR(INDEX(Empresas!$B$6:$AS$46,SMALL(IF(Empresas!$B$6:$B$46=Dados!$H$37,ROW(Empresas!$B$6:$B$46)-5),ROW($A30)),COLUMN(S$1)),"") ->  | S53: =IFERROR(INDEX(Empresas!$B$6:$AS$46,SMALL(IF(Empresas!$B$6:$B$46=Dados!$H$37,ROW(Empresas!$B$6:$B$46)-5),ROW($A30)),COLUMN(T$1)),"") ->  | T53: =IFERROR(INDEX(Empresas!$B$6:$AS$46,SMALL(IF(Empresas!$B$6:$B$46=Dados!$H$37,ROW(Empresas!$B$6:$B$46)-5),ROW($A30)),COLUMN(U$1)),"") ->  | U53: =IFERROR(INDEX(Empresas!$B$6:$AS$46,SMALL(IF(Empresas!$B$6:$B$46=Dados!$H$37,ROW(Empresas!$B$6:$B$46)-5),ROW($A30)),COLUMN(V$1)),"") ->  | V53: =IFERROR(INDEX(Empresas!$B$6:$AS$46,SMALL(IF(Empresas!$B$6:$B$46=Dados!$H$37,ROW(Empresas!$B$6:$B$46)-5),ROW($A30)),COLUMN(W$1)),"") ->  | W53: =IFERROR(INDEX(Empresas!$B$6:$AS$46,SMALL(IF(Empresas!$B$6:$B$46=Dados!$H$37,ROW(Empresas!$B$6:$B$46)-5),ROW($A30)),COLUMN(X$1)),"") ->  | X53: =IFERROR(INDEX(Empresas!$B$6:$AS$46,SMALL(IF(Empresas!$B$6:$B$46=Dados!$H$37,ROW(Empresas!$B$6:$B$46)-5),ROW($A30)),COLUMN(Y$1)),"") ->  | Y53: =IFERROR(INDEX(Empresas!$B$6:$AS$46,SMALL(IF(Empresas!$B$6:$B$46=Dados!$H$37,ROW(Empresas!$B$6:$B$46)-5),ROW($A30)),COLUMN(Z$1)),"") ->  | Z53: =IFERROR(INDEX(Empresas!$B$6:$AS$46,SMALL(IF(Empresas!$B$6:$B$46=Dados!$H$37,ROW(Empresas!$B$6:$B$46)-5),ROW($A30)),COLUMN(AA$1)),"") ->  | AA53: =IFERROR(INDEX(Empresas!$B$6:$AS$46,SMALL(IF(Empresas!$B$6:$B$46=Dados!$H$37,ROW(Empresas!$B$6:$B$46)-5),ROW($A30)),COLUMN(AB$1)),"") ->  | AB53: =IFERROR(INDEX(Empresas!$B$6:$AS$46,SMALL(IF(Empresas!$B$6:$B$46=Dados!$H$37,ROW(Empresas!$B$6:$B$46)-5),ROW($A30)),COLUMN(AC$1)),"") ->  | AC53: =IFERROR(INDEX(Empresas!$B$6:$AS$46,SMALL(IF(Empresas!$B$6:$B$46=Dados!$H$37,ROW(Empresas!$B$6:$B$46)-5),ROW($A30)),COLUMN(AD$1)),"") ->  | AD53: =IFERROR(INDEX(Empresas!$B$6:$AS$46,SMALL(IF(Empresas!$B$6:$B$46=Dados!$H$37,ROW(Empresas!$B$6:$B$46)-5),ROW($A30)),COLUMN(AE$1)),"") ->  | AE53: =IFERROR(INDEX(Empresas!$B$6:$AS$46,SMALL(IF(Empresas!$B$6:$B$46=Dados!$H$37,ROW(Empresas!$B$6:$B$46)-5),ROW($A30)),COLUMN(AF$1)),"") ->  | AF53: =IFERROR(INDEX(Empresas!$B$6:$AS$46,SMALL(IF(Empresas!$B$6:$B$46=Dados!$H$37,ROW(Empresas!$B$6:$B$46)-5),ROW($A30)),COLUMN(AG$1)),"") ->  | AG53: =IFERROR(INDEX(Empresas!$B$6:$AS$46,SMALL(IF(Empresas!$B$6:$B$46=Dados!$H$37,ROW(Empresas!$B$6:$B$46)-5),ROW($A30)),COLUMN(AH$1)),"") ->  | AH53: =IFERROR(INDEX(Empresas!$B$6:$AS$46,SMALL(IF(Empresas!$B$6:$B$46=Dados!$H$37,ROW(Empresas!$B$6:$B$46)-5),ROW($A30)),COLUMN(AI$1)),"") ->  | AI53: =IFERROR(INDEX(Empresas!$B$6:$AS$46,SMALL(IF(Empresas!$B$6:$B$46=Dados!$H$37,ROW(Empresas!$B$6:$B$46)-5),ROW($A30)),COLUMN(AJ$1)),"") ->  | AJ53: =IFERROR(INDEX(Empresas!$B$6:$AS$46,SMALL(IF(Empresas!$B$6:$B$46=Dados!$H$37,ROW(Empresas!$B$6:$B$46)-5),ROW($A30)),COLUMN(AK$1)),"") ->  | AK53: =IFERROR(INDEX(Empresas!$B$6:$AS$46,SMALL(IF(Empresas!$B$6:$B$46=Dados!$H$37,ROW(Empresas!$B$6:$B$46)-5),ROW($A30)),COLUMN(AL$1)),"") ->  | AL53: =IFERROR(INDEX(Empresas!$B$6:$AS$46,SMALL(IF(Empresas!$B$6:$B$46=Dados!$H$37,ROW(Empresas!$B$6:$B$46)-5),ROW($A30)),COLUMN(AM$1)),"") ->  | AM53: =IFERROR(INDEX(Empresas!$B$6:$AS$46,SMALL(IF(Empresas!$B$6:$B$46=Dados!$H$37,ROW(Empresas!$B$6:$B$46)-5),ROW($A30)),COLUMN(AN$1)),"") ->  | AN53: =IFERROR(INDEX(Empresas!$B$6:$AS$46,SMALL(IF(Empresas!$B$6:$B$46=Dados!$H$37,ROW(Empresas!$B$6:$B$46)-5),ROW($A30)),COLUMN(AO$1)),"") ->  | AO53: =IFERROR(INDEX(Empresas!$B$6:$AS$46,SMALL(IF(Empresas!$B$6:$B$46=Dados!$H$37,ROW(Empresas!$B$6:$B$46)-5),ROW($A30)),COLUMN(AP$1)),"") ->  | AP53: =IFERROR(INDEX(Empresas!$B$6:$AS$46,SMALL(IF(Empresas!$B$6:$B$46=Dados!$H$37,ROW(Empresas!$B$6:$B$46)-5),ROW($A30)),COLUMN(AQ$1)),"") ->  | AQ53: =IFERROR(INDEX(Empresas!$B$6:$AS$46,SMALL(IF(Empresas!$B$6:$B$46=Dados!$H$37,ROW(Empresas!$B$6:$B$46)-5),ROW($A30)),COLUMN(AR$1)),"") -> 
B54: =IFERROR(INDEX(Empresas!$B$6:$AS$46,SMALL(IF(Empresas!$B$6:$B$46=Dados!$H$37,ROW(Empresas!$B$6:$B$46)-5),ROW($A31)),COLUMN(B$1)),"") ->  | C54: =IFERROR(INDEX(Empresas!$B$6:$AS$46,SMALL(IF(Empresas!$B$6:$B$46=Dados!$H$37,ROW(Empresas!$B$6:$B$46)-5),ROW($A31)),COLUMN(C$1)),"") ->  | E54: =IFERROR(INDEX(Empresas!$B$6:$AS$46,SMALL(IF(Empresas!$B$6:$B$46=Dados!$H$37,ROW(Empresas!$B$6:$B$46)-5),ROW($A31)),COLUMN(F$1)),"") ->  | F54: =IFERROR(INDEX(Empresas!$B$6:$AS$46,SMALL(IF(Empresas!$B$6:$B$46=Dados!$H$37,ROW(Empresas!$B$6:$B$46)-5),ROW($A31)),COLUMN(G$1)),"") ->  | G54: =IFERROR(INDEX(Empresas!$B$6:$AS$46,SMALL(IF(Empresas!$B$6:$B$46=Dados!$H$37,ROW(Empresas!$B$6:$B$46)-5),ROW($A31)),COLUMN(H$1)),"") ->  | H54: =IFERROR(INDEX(Empresas!$B$6:$AS$46,SMALL(IF(Empresas!$B$6:$B$46=Dados!$H$37,ROW(Empresas!$B$6:$B$46)-5),ROW($A31)),COLUMN(I$1)),"") ->  | I54: =IFERROR(INDEX(Empresas!$B$6:$AS$46,SMALL(IF(Empresas!$B$6:$B$46=Dados!$H$37,ROW(Empresas!$B$6:$B$46)-5),ROW($A31)),COLUMN(J$1)),"") ->  | J54: =IFERROR(INDEX(Empresas!$B$6:$AS$46,SMALL(IF(Empresas!$B$6:$B$46=Dados!$H$37,ROW(Empresas!$B$6:$B$46)-5),ROW($A31)),COLUMN(K$1)),"") ->  | K54: =IFERROR(INDEX(Empresas!$B$6:$AS$46,SMALL(IF(Empresas!$B$6:$B$46=Dados!$H$37,ROW(Empresas!$B$6:$B$46)-5),ROW($A31)),COLUMN(L$1)),"") ->  | L54: =IFERROR(INDEX(Empresas!$B$6:$AS$46,SMALL(IF(Empresas!$B$6:$B$46=Dados!$H$37,ROW(Empresas!$B$6:$B$46)-5),ROW($A31)),COLUMN(M$1)),"") ->  | M54: =IFERROR(INDEX(Empresas!$B$6:$AS$46,SMALL(IF(Empresas!$B$6:$B$46=Dados!$H$37,ROW(Empresas!$B$6:$B$46)-5),ROW($A31)),COLUMN(N$1)),"") ->  | N54: =IFERROR(INDEX(Empresas!$B$6:$AS$46,SMALL(IF(Empresas!$B$6:$B$46=Dados!$H$37,ROW(Empresas!$B$6:$B$46)-5),ROW($A31)),COLUMN(O$1)),"") ->  | O54: =IFERROR(INDEX(Empresas!$B$6:$AS$46,SMALL(IF(Empresas!$B$6:$B$46=Dados!$H$37,ROW(Empresas!$B$6:$B$46)-5),ROW($A31)),COLUMN(P$1)),"") ->  | P54: =IFERROR(INDEX(Empresas!$B$6:$AS$46,SMALL(IF(Empresas!$B$6:$B$46=Dados!$H$37,ROW(Empresas!$B$6:$B$46)-5),ROW($A31)),COLUMN(Q$1)),"") ->  | Q54: =IFERROR(INDEX(Empresas!$B$6:$AS$46,SMALL(IF(Empresas!$B$6:$B$46=Dados!$H$37,ROW(Empresas!$B$6:$B$46)-5),ROW($A31)),COLUMN(R$1)),"") ->  | R54: =IFERROR(INDEX(Empresas!$B$6:$AS$46,SMALL(IF(Empresas!$B$6:$B$46=Dados!$H$37,ROW(Empresas!$B$6:$B$46)-5),ROW($A31)),COLUMN(S$1)),"") ->  | S54: =IFERROR(INDEX(Empresas!$B$6:$AS$46,SMALL(IF(Empresas!$B$6:$B$46=Dados!$H$37,ROW(Empresas!$B$6:$B$46)-5),ROW($A31)),COLUMN(T$1)),"") ->  | T54: =IFERROR(INDEX(Empresas!$B$6:$AS$46,SMALL(IF(Empresas!$B$6:$B$46=Dados!$H$37,ROW(Empresas!$B$6:$B$46)-5),ROW($A31)),COLUMN(U$1)),"") ->  | U54: =IFERROR(INDEX(Empresas!$B$6:$AS$46,SMALL(IF(Empresas!$B$6:$B$46=Dados!$H$37,ROW(Empresas!$B$6:$B$46)-5),ROW($A31)),COLUMN(V$1)),"") ->  | V54: =IFERROR(INDEX(Empresas!$B$6:$AS$46,SMALL(IF(Empresas!$B$6:$B$46=Dados!$H$37,ROW(Empresas!$B$6:$B$46)-5),ROW($A31)),COLUMN(W$1)),"") ->  | W54: =IFERROR(INDEX(Empresas!$B$6:$AS$46,SMALL(IF(Empresas!$B$6:$B$46=Dados!$H$37,ROW(Empresas!$B$6:$B$46)-5),ROW($A31)),COLUMN(X$1)),"") ->  | X54: =IFERROR(INDEX(Empresas!$B$6:$AS$46,SMALL(IF(Empresas!$B$6:$B$46=Dados!$H$37,ROW(Empresas!$B$6:$B$46)-5),ROW($A31)),COLUMN(Y$1)),"") ->  | Y54: =IFERROR(INDEX(Empresas!$B$6:$AS$46,SMALL(IF(Empresas!$B$6:$B$46=Dados!$H$37,ROW(Empresas!$B$6:$B$46)-5),ROW($A31)),COLUMN(Z$1)),"") ->  | Z54: =IFERROR(INDEX(Empresas!$B$6:$AS$46,SMALL(IF(Empresas!$B$6:$B$46=Dados!$H$37,ROW(Empresas!$B$6:$B$46)-5),ROW($A31)),COLUMN(AA$1)),"") ->  | AA54: =IFERROR(INDEX(Empresas!$B$6:$AS$46,SMALL(IF(Empresas!$B$6:$B$46=Dados!$H$37,ROW(Empresas!$B$6:$B$46)-5),ROW($A31)),COLUMN(AB$1)),"") ->  | AB54: =IFERROR(INDEX(Empresas!$B$6:$AS$46,SMALL(IF(Empresas!$B$6:$B$46=Dados!$H$37,ROW(Empresas!$B$6:$B$46)-5),ROW($A31)),COLUMN(AC$1)),"") ->  | AC54: =IFERROR(INDEX(Empresas!$B$6:$AS$46,SMALL(IF(Empresas!$B$6:$B$46=Dados!$H$37,ROW(Empresas!$B$6:$B$46)-5),ROW($A31)),COLUMN(AD$1)),"") ->  | AD54: =IFERROR(INDEX(Empresas!$B$6:$AS$46,SMALL(IF(Empresas!$B$6:$B$46=Dados!$H$37,ROW(Empresas!$B$6:$B$46)-5),ROW($A31)),COLUMN(AE$1)),"") ->  | AE54: =IFERROR(INDEX(Empresas!$B$6:$AS$46,SMALL(IF(Empresas!$B$6:$B$46=Dados!$H$37,ROW(Empresas!$B$6:$B$46)-5),ROW($A31)),COLUMN(AF$1)),"") ->  | AF54: =IFERROR(INDEX(Empresas!$B$6:$AS$46,SMALL(IF(Empresas!$B$6:$B$46=Dados!$H$37,ROW(Empresas!$B$6:$B$46)-5),ROW($A31)),COLUMN(AG$1)),"") ->  | AG54: =IFERROR(INDEX(Empresas!$B$6:$AS$46,SMALL(IF(Empresas!$B$6:$B$46=Dados!$H$37,ROW(Empresas!$B$6:$B$46)-5),ROW($A31)),COLUMN(AH$1)),"") ->  | AH54: =IFERROR(INDEX(Empresas!$B$6:$AS$46,SMALL(IF(Empresas!$B$6:$B$46=Dados!$H$37,ROW(Empresas!$B$6:$B$46)-5),ROW($A31)),COLUMN(AI$1)),"") ->  | AI54: =IFERROR(INDEX(Empresas!$B$6:$AS$46,SMALL(IF(Empresas!$B$6:$B$46=Dados!$H$37,ROW(Empresas!$B$6:$B$46)-5),ROW($A31)),COLUMN(AJ$1)),"") ->  | AJ54: =IFERROR(INDEX(Empresas!$B$6:$AS$46,SMALL(IF(Empresas!$B$6:$B$46=Dados!$H$37,ROW(Empresas!$B$6:$B$46)-5),ROW($A31)),COLUMN(AK$1)),"") ->  | AK54: =IFERROR(INDEX(Empresas!$B$6:$AS$46,SMALL(IF(Empresas!$B$6:$B$46=Dados!$H$37,ROW(Empresas!$B$6:$B$46)-5),ROW($A31)),COLUMN(AL$1)),"") ->  | AL54: =IFERROR(INDEX(Empresas!$B$6:$AS$46,SMALL(IF(Empresas!$B$6:$B$46=Dados!$H$37,ROW(Empresas!$B$6:$B$46)-5),ROW($A31)),COLUMN(AM$1)),"") ->  | AM54: =IFERROR(INDEX(Empresas!$B$6:$AS$46,SMALL(IF(Empresas!$B$6:$B$46=Dados!$H$37,ROW(Empresas!$B$6:$B$46)-5),ROW($A31)),COLUMN(AN$1)),"") ->  | AN54: =IFERROR(INDEX(Empresas!$B$6:$AS$46,SMALL(IF(Empresas!$B$6:$B$46=Dados!$H$37,ROW(Empresas!$B$6:$B$46)-5),ROW($A31)),COLUMN(AO$1)),"") ->  | AO54: =IFERROR(INDEX(Empresas!$B$6:$AS$46,SMALL(IF(Empresas!$B$6:$B$46=Dados!$H$37,ROW(Empresas!$B$6:$B$46)-5),ROW($A31)),COLUMN(AP$1)),"") ->  | AP54: =IFERROR(INDEX(Empresas!$B$6:$AS$46,SMALL(IF(Empresas!$B$6:$B$46=Dados!$H$37,ROW(Empresas!$B$6:$B$46)-5),ROW($A31)),COLUMN(AQ$1)),"") ->  | AQ54: =IFERROR(INDEX(Empresas!$B$6:$AS$46,SMALL(IF(Empresas!$B$6:$B$46=Dados!$H$37,ROW(Empresas!$B$6:$B$46)-5),ROW($A31)),COLUMN(AR$1)),"") -> 
